Workbook

Sheet Plan Selection
A1: ASR FINANCIAL REPORT - PLAN SELECTION
A3: Instructions: Using the buttons below, please select the reporting managed care plan to display the schedules (Excel tabs) applicable only to that managed care plan.
A4: Pressing the "Hide All" button will hide all tabs, after which a managed care plan can be re-selected.
B11: Comprehensive Plans
B16: Specialty Plans
B21: MMA Only Plans
B26: LTC Plus Plans

Sheet General Instructions
A1: SMMC ASR FINANCIAL REPORTS - GENERAL INSTRUCTIONS
A3: Certification
A4: Each Unaudited Quarterly and Annual ASR Financial Report submitted to the Agency shall be accompanied by a certification/attestation in the format listed in
A5: Chapter 3 of the SMMC Report Guide.
A7: Quarterly ASR Financial Report
A8: With the exception of the Q1 ASR Financial Report, unaudited Quarterly ASR Financial Reports are due to the Agency on the 15th of the second month following the end of the reporting quarter, with claims paid through the end of the reporting period. The Q1 ASR Financial Report is due by June 1. Each subsequent quarter's report shall include restated versions of previously submitted quarters, paid through the end of the current reporting period. The ASR and MLR Exhibit shall be prepared using restated financial data. The Quarterly ASR Financial Report shall be submitted with the certification of the CEO or CFO attesting to its accuracy, as discussed in Chapter 2, General Reporting Requirements.
A14: Annual ASR Financial Report
A15: Annual unaudited ASR Financial Reports are due to the Agency by May 1 following the end of the reporting calendar year, allowing for three months of runout. The following shall be submitted as part of the Annual unaudited ASR Financial Report (refer to the Report Guide for further information):
A19: o One set of the completed Annual ASR Financial Report with all applicable schedules completed.
A20: o Actuarial certification of incurred claims
A21: o Claim lag template
A22: o Certification by the CEO or CFO, as discussed in Chapter 2, General Reporting Requirements.
A24: Instructions
A25: 1. | B25: The Managed Care Plan shall prepare the MMA and LTC Quarterly and Annual ASR Financial Reports, and applicable schedules, using generally accepted accounting principles (GAAP).
A28: 2. | B28: The Managed Care Plan shall submit reports that are specific to the operations of the Managed Care Plan rather than to a parent or umbrella organization.
A31: 3. | B31: For the Quarterly ASR Financial Reports, report revenues and expenses earned or incurred during the reporting period. An estimated liability shall be reported for expenses Incurred but Not Paid (IBNP). For the Annual ASR Financial Report, report revenue and expenses earned or incurred during the reporting period allowing for the 90 calendar day runout period. An estimated liability shall be reported for IBNP.
A36: 4. | B36: The Managed Care Plan shall complete the MMA and LTC Quarterly ASR Financial Reports using the Excel file supplied by the Agency for unaudited quarterly reports and the MMA and LTC Annual ASR Financial Report using the Excel file supplied by the Agency for examined annual reports. The following reports/schedules shall be completed and submitted for each region that the Managed Care Plan has a contract:
B40: a. | C40: Quarterly ASR Financial Report (unaudited)
C41: i. | D41: Revenue and Expense Schedule in summary and for each region, each quarter year-to-date
C42: ii. | D42: Subcapitation schedule in summary and for each region, each quarter year-to-date
C43: iii. | D43: Related-Party Schedule in summary and for each region, each quarter year-to-date
C44: iv. | D44: Achieved Savings Rebate Exhibit, all quarters year-to-date
C45: v. | D45: Medical Loss Ratio Exhibit, all quarters year-to-date
B47: b. | C47: Annual ASR Financial Report (unaudited)
C48: i. | D48: Annual Revenue and Expense Schedule in summary and for each region
C49: ii. | D49: Annual Subcapitation Summary Schedule
C50: iii. | D50: Annual Related-Party Schedule Summary Schedule
C51: iv. | D51: Annual Achieved Savings Rebate Exhibit
C52: v. | D52: Annual Medical Loss Ratio Exhibit
C53: vi. | D53: Claim Lag Template
C54: vii. | D54: Underwriting and Investment (U&I) Exhibit, Part 2B (for plans not submitting the annual NAIC Health Statement)
A56: 5. | B56: Refer to the Instructions tabs for the MMA and LTC Revenue and Expense Schedules, the ASR Exhibit and MLR Exhibit for more detailed instructions listing the type of revenue or expense to be reported on each line of the reports.
A59: 6. | B59: MMA and LTC Subcapitation Schedules
B60: For each type of service that the Managed Care Plan subcapitates with another entity to provide, the five vendors with the highest total paid shall be listed individually, with all others combined for that type of service.
A64: 7. | B64: MMA and LTC Related-Party Schedules
B65: For each type of service that the Managed Care Plan elects to have a related-party provide, the related-party’s name, the nature of affiliation, service type, and a description of the payment methodology used to compensate the related-party shall be provided on the Related-Party Schedule in the applicable section, as well as the amount paid to each entity. Related-parties can include, but are not limited to:
B69: a. | C69: Any person or entity who directly or indirectly manages, controls, or oversees the operation of the Managed Care Plan, regardless of whether such person or entity is a partner, shareholder, owner, officer, director, agent, or employee of the entity.
B71: b. | C71: Any person or entity who has a financial relationship with the Managed Care Plan as defined by 42 CFR 438.320(1).
B72: c. | C72: An individual or entity who meets the definition of an affiliate as defined in 48 CFR 19.101.
A74: The following instructions shall be used when completing the Related-Party Schedule:
B75: o | C75: Report related-party transactions by type of service, including Fee-for-Service, Subcapitated services, administrative expenses, and other expenses. Refer to the instruction tab for the MMA and LTC Revenue and Expense Schedules for additional information concerning the types of administrative expenses and other expenses.
B78: o | C78: Vendor Name: List the name of the entity with which the Managed Care Plan has the related-party affiliation.
B79: o | C79: Affiliation: Describe the nature of the relationship/affiliation with the related-party.
B80: o | C80: Payment Methodology: Select the methodology used to compensate the related-party for the services provided from the drop down list. If Other is selected, please describe in the Notes section.
A83: 8. | B83: MMA Enhanced MPIP Schedule
B84: The purpose of this schedule is to report the incremental costs associated with the health plan's compliance with Section 409.967, F.S., regarding
B85: enhanced physician compensation. The costs reported should be the incremental costs to increase compensation for the applicable provider types
B86: to the Medicare for applicable services, based on the health plan's Agency-approved proposal. The following instructions shall be used when
B87: completing this schedule:
B88: o | C88: Member Months: Report only member months associated with the enhanced physician compensation payments.
B89: o | C89: Payment Methodology
C90: FFS: Expenses incurred for enhanced physician compensation through Fee-For-Service (FFS) payments to qualified providers.
C91: Subcapitation: Expenses incurred for enhanced physician compensation through subcapitated payments to qualified providers.
C92: Retroactive Payment: Expenses incurred for enhanced physician compensation through periodic, lump sum retroactive payments.
C93: Other: Expenses incurred for enhanced physician compensation utilizing a payment methodology other than FFS, subcapitation, or retroactive
C94: payments.
A96: 9. | B96: MMA & LTC Expanded Benefits Schedule
B97: The purpose of this schedule is to report all expenses incurred for each expanded benefit (FFS, subcapitated, etc.) provided to Medicaid recipients.
B98: The Expanded Benefits schedule should agree with the amounts reported on the Total Expanded Benefits line on the Rev-Exp schedules.
A100: 10 | B100: For existing plans, please continue to report revenue and expenses associated with old contract period in prior year adjustment column in each tab.

Sheet Index
A1: ASR FINANCIAL REPORT - INDEX
A4: Section | B4: Tab Name | C4: Description
A5: General | B5: Plan Selection | C5: Displays the applicable MMA, LTC, and ASR Schedules for the reporting managed care plan based on the plan selected.
A6: General | B6: General Instructions | C6: Provides general instructions for the completion of the ASR Financial Report. Additional instructions can be found on the schedule-specific instructions.
A7: General | B7: Index | C7: Listing of all tabs contained within the ASR Financial Report
A8: General | B8: Changes | C8: Listing of changes made to the ASR Financial Report
A9: General | B9: Jurat | C9: Jurat Page
A10: MMA | B10: MMA Rev-Exp Instructions | C10: Detailed instructions for completion of the MMA Rev-Exp Schedules.
A11: MMA | B11: MMA Rev-Exp - Summary | C11: Summary of MMA data reported on the MMA Rev-Exp Regional Schedules.
A12: MMA | B12: MMA Rev-Exp - Region 1 | C12: MMA Revenue and Expense information for Region 1.
A13: MMA | B13: MMA Rev-Exp - Region 2 | C13: MMA Revenue and Expense information for Region 2.
A14: MMA | B14: MMA Rev-Exp - Region 3 | C14: MMA Revenue and Expense information for Region 3.
A15: MMA | B15: MMA Rev-Exp - Region 4 | C15: MMA Revenue and Expense information for Region 4.
A16: MMA | B16: MMA Rev-Exp - Region 5 | C16: MMA Revenue and Expense information for Region 5.
A17: MMA | B17: MMA Rev-Exp - Region 6 | C17: MMA Revenue and Expense information for Region 6.
A18: MMA | B18: MMA Rev-Exp - Region 7 | C18: MMA Revenue and Expense information for Region 7.
A19: MMA | B19: MMA Rev-Exp - Region 8 | C19: MMA Revenue and Expense information for Region 8.
A20: MMA | B20: MMA Rev-Exp - Region 9 | C20: MMA Revenue and Expense information for Region 9.
A21: MMA | B21: MMA Rev-Exp - Region 10 | C21: MMA Revenue and Expense information for Region 10.
A22: MMA | B22: MMA Rev-Exp - Region 11 | C22: MMA Revenue and Expense information for Region 11.
A23: MMA | B23: MMA Subcap - Summary | C23: Summary of Subcapitated MMA data.
A24: MMA | B24: MMA Exp Benefits | C24: Summary of MMA Expanded Benefits.
A25: MMA | B25: MMA Related-Party - Summary | C25: Summary of MMA data reported on the MMA Related-Party Regional Schedules.
A26: MMA | B26: MMA Phys Comp | C26: Reporting of incremental expenses associated with the enhanced physician compensation proposals approved by the Agency.
A27: LTC | B27: LTC Rev-Exp Instructions | C27: Detailed instructions for completion of the LTC Rev-Exp Schedules.
A28: LTC | B28: LTC Rev-Exp - Summary | C28: Summary of LTC data reported on the LTC Rev-Exp Regional Schedules.
A29: LTC | B29: LTC Rev-Exp - Region 1 | C29: LTC Revenue and Expense information for Region 1.
A30: LTC | B30: LTC Rev-Exp - Region 2 | C30: LTC Revenue and Expense information for Region 2.
A31: LTC | B31: LTC Rev-Exp - Region 3 | C31: LTC Revenue and Expense information for Region 3.
A32: LTC | B32: LTC Rev-Exp - Region 4 | C32: LTC Revenue and Expense information for Region 4.
A33: LTC | B33: LTC Rev-Exp - Region 5 | C33: LTC Revenue and Expense information for Region 5.
A34: LTC | B34: LTC Rev-Exp - Region 6 | C34: LTC Revenue and Expense information for Region 6.
A35: LTC | B35: LTC Rev-Exp - Region 7 | C35: LTC Revenue and Expense information for Region 7.
A36: LTC | B36: LTC Rev-Exp - Region 8 | C36: LTC Revenue and Expense information for Region 8.
A37: LTC | B37: LTC Rev-Exp - Region 9 | C37: LTC Revenue and Expense information for Region 9.
A38: LTC | B38: LTC Rev-Exp - Region 10 | C38: LTC Revenue and Expense information for Region 10.
A39: LTC | B39: LTC Rev-Exp - Region 11 | C39: LTC Revenue and Expense information for Region 11.
A40: LTC | B40: LTC Subcap - Summary | C40: Summary of LTC subcapitated data.
A41: LTC | B41: LTC Exp Benefits | C41: Summary of LTC Expanded Benefits.
A42: LTC | B42: LTC Related-Party - Summary | C42: Summary of LTC data reported on the LTC Related-Party Regional Schedules.
A43: ASR | B43: ASR Exhibit Instructions | C43: Detailed instructions for completing the ASR Exhibit
A44: ASR | B44: ASR Exhibit | C44: Schedule for calculating the Achieved Savings Rebate and Medical Loss Ratio.
A45: ASR | B45: ASR Admin Max | C45: Schedule for calculating the Actuarially-Sound Administrative Maximum used in the determining the Achieved Savings Rebate.
A46: ASR | B46: MLR Exhibit Instruction | C46: Detailed instructions for completing the MLR exhibit
A47: ASR | B47: MLR Exhibit | C47: Schedule for calculating the Medical Loss Ratio.
A48: Notes | B48: Notes | C48: Notes section.

Sheet Changes
A1: ASR FINANCIAL REPORT - CHANGE LOG
A3: Current Version: | C3: ASR Financial Report, 020822
A4: Previous Version: | C4: ASR Financial Report, 072121
B6: Changes effective with the current version
A8: Section | B8: Change No. | C8: Report Version | D8: Schedule/Excel Tab | E8: Change
A9: All | B9: 1 | C9: 102014 | D9: All | E9: The structure of the Report has been locked. Tabs cannot be added, deleted, or renamed.
A10: General | B10: 1 | C10: 102014 | D10: General Instructions | E10: Included a statement requiring a certification to be submitted along with the ASR Financial Report.
A11: General | B11: =1+B10 -> 2 | C11: 102014 | D11: General Instructions | E11: Added clarification to the Subcapitation schedules to report Member Months subcapitated.
A12: General | B12: =1+B11 -> 3 | C12: 102014 | D12: Jurat | E12: No changes.
A13: General | B13: =B12+1 -> 4 | C13: 102014 | D13: Changes | E13: Updated for current version changes.
A14: General | B14: 6 | C14: 121614 | D14: Plan Selection | E14: Based on the plan selected, the applicable MMA, LTC, and ASR schedules will be displayed. Schedules not applicable to the selected plan will not be displayed.
A15: General | B15: 7 | C15: 121614 | D15: Index | E15: Included an index of tabs contained within the ASR Financial Report.
A16: General | B16: 8 | C16: 031715 | D16: General Instructions | E16: Revised the annual ASR Reporting requirement to reflect an examination engagement limited to specific schedules.
A17: General | B17: 9 | C17: 062315 | D17: General Instructions | E17: Revised the reporting instructions for the subcapitation summary schedule.
A18: General | B18: 10 | C18: 122115 | D18: General Instructions | E18: Revised the Annual ASR Reporting requirement to submission of an unaudited annual ASR report by May 1 and extended Q1 to June 1.
A19: General | B19: 11 | C19: 100116 | D19: General Instructions | E19: Added instructions for the Enhanced Physician Compensation Schedule.
A20: General | B20: 12 | C20: 040117 | D20: General Instructions | E20: Added instructions for the MMA & LTC Expanded Benefits Schedule
A21: General | B21: 13 | C21: 112818 | D21: Plan Selection | E21: Updated plans macros to reflect the new Medicaid Health Plan Contracts for regions 9, 10, and 11.
A22: General | B22: 14 | C22: 040119 | D22: Plan Selection | E22: Updated plans to reflect the new Medicaid Health Plan Contracts.
A23: General | B23: 15 | C23: 040119 | D23: General Instructions | E23: For existing plans, please continue to report old regions' transactions in prior year adjustment column
A24: General | B24: =16 -> 16 | C24: 040119 | D24: General Instructions | E24: Added clarification to the MMA & LTC Expanded Benefits Schedule to report all expenses incurred for each expanded benefit, and provided further instructions to align expenses in this schedule with the amount report on the Total Expanded Benefits line on the Rev-Exp Schedules.
A25: General | B25: 17 | C25: 100119 | D25: General Instructions | E25: Added Medical Loss Ratio (MLR) Exhibit in item 4a(v.) and 4b(v.) and changed the description in line 11.
A26: General | B26: 18 | C26: 100119 | D26: General Instructions | E26: Added MLR Exhibit in item 5.
A27: MMA | B27: 1 | C27: 102014 | D27: MMA Rev-Exp Instructions | E27: Revised instructions for the reporting of Section 9010 HIPF on line 13.3.
A28: MMA | B28: =B27+1 -> 2 | C28: 102014 | D28: MMA Rev-Exp Instructions | E28: Added instructions for the lines added on the MMA Rev-Exp Summary and Regional tabs, noted below.
A29: MMA | B29: 3 | C29: 102014 | D29: MMA Rev-Exp Summary | E29: Added a Settlements line in each medical service category. Instructions added to the Instructions tab.
A30: MMA | B30: 4 | C30: 102014 | D30: MMA Rev-Exp Summary | E30: Added a Hepatitis C Prescription Drug line in Pharmacy (line 8.2). Instructions added to the instructions tab.
A31: MMA | B31: 5 | C31: 102014 | D31: MMA Rev-Exp Summary | E31: Added Total Settlements (line 11.4). Instructions added to the instructions tab.
A32: MMA | B32: 6 | C32: 102014 | D32: MMA Rev-Exp Summary | E32: Formulas have been added to populate the Summary schedule from information entered on the Regional schedules. Cells with formulas have been locked.
A33: MMA | B33: 7 | C33: 102014 | D33: MMA Rev-Exp Summary | E33: Formulas added to populate Health Plan, Reporting Period, and Paid Through for all remaining MMA schedules based on what is entered on the Summary.
A34: MMA | B34: 8 | C34: 102014 | D34: MMA Rev-Exp Regional | E34: Regional Tabs added for all 11 regions.
A35: MMA | B35: 9 | C35: 102014 | D35: MMA Rev-Exp Regional | E35: Added the same lines noted above in Change Nos. 8-10.
A36: MMA | B36: 10 | C36: 102014 | D36: MMA Rev-Exp Regional | E36: Formulas added for totals. Cells with formulas have been locked.
A37: MMA | B37: 11 | C37: 102014 | D37: MMA Subcap Summary/Regional | E37: Summary and Regional schedules added for all 11 regions.
A38: MMA | B38: 12 | C38: 102014 | D38: MMA Subcap Summary/Regional | E38: Formulas added for totals. However, cells have not been locked so that additional Vendors can be added, if needed.
B39: 13 | C39: 102014 | D39: MMA Subcap Summary/Regional | E39: Expanded Benefits section added.
A40: MMA | B40: 14 | C40: 102014 | D40: MMA Related-Party Summary/Regional | E40: Summary and Regional schedules added for all 11 regions.
A41: MMA | B41: 15 | C41: 102014 | D41: MMA Related-Party Summary/Regional | E41: Formulas added for totals. However, cells have not been locked so that additional Vendors can be added, if needed.
A42: MMA | B42: 16 | C42: 102014 | D42: MMA Related-Party Summary/Regional | E42: Expanded Benefits section added.
A43: MMA | B43: 17 | C43: 121614 | D43: MMA Subcap Summary | E43: Formulas have been added to populate the Summary schedule from information entered on the Regional schedules. The Subcap and Regional schedules remain unlocked so that plans can add additional lines to accommodate more subcap providers, if needed. Plans are responsible for ensuring formulas are correct when new rows are added.
A44: MMA | B44: 18 | C44: 121614 | D44: MMA Related-Party Summary | E44: Formulas have been added to populate the Summary schedule from information entered on the Regional schedules. The Subcap and Regional schedules remain unlocked so that plans can add additional lines to accommodate more subcap providers, if needed. Plans are responsible for ensuring formulas are correct when new rows are added.
A45: MMA | B45: 19 | C45: 062315 | D45: MMA Subcap Summary/Regional | E45: Revised the MMA Subcap Summary schedule and removed the MMA Subcap Regional schedules.
A46: MMA | B46: 20 | C46: 062315 | D46: MMA Related-Party Summary/Regional | E46: Revised the MMA Related-Party Summary schedule and removed the MMA Related-Party Regional schedules.
A47: MMA | B47: 21 | C47: 062315 | D47: MMA Rev-Exp Instructions | E47: Revised IBNP definition to exclude margin and LAE.
A48: MMA | B48: 22 | C48: 122115 | D48: MMA Rev-Exp Instructions | E48: Clarified instructions to report revenue earned and expenses incurred during the period.
A49: MMA | B49: 23 | C49: 052016 | D49: MMA Rev-Exp Summary/Regional | E49: Added Prior Calendar Year Adjustments column for the reporting of prior calendar year adjustments.
A50: MMA | B50: 24 | C50: 052516 | D50: MMA Rev-Exp Summary/Regional | E50: Corrected formulas.
A51: MMA | B51: 25 | C51: 100116 | D51: MMA Rev-Exp Instructions | E51: Clarified IBNP instructions to include the Prior Calendar Year adjustment column.
A52: MMA | B52: 26 | C52: 100116 | D52: MMA Rev-Exp Summary/Regional; Instructions | E52: Revised the reporting of administrative expenses (lines 12.1-12.6) to require administrative expenses to be reported separately for direct health plan expenses and corporate allocations.
A53: MMA | B53: 27 | C53: 100116 | D53: MMA Phys Comp | E53: Added the Enhanced Physician Compensation schedule to report incremental costs associated with this program.
A54: MMA | B54: 28 | C54: 040117 | D54: MMA Rev-Exp Summary/Regional; Physician Comp, Exp Benefits | E54: The TANF and SSI No Medicaid rate groups have been split into SMI and Non-SMI for the following additions: TANF Non-SMI, TANF SMI, SSI Medicaid Only Non-SMI, SSI Medicaid Only SMI. Also, SSI No Medicare has been retitled to SSI Medicaid Only for consistency.
A55: MMA | B55: =B54+1 -> 29 | C55: 040117 | D55: MMA Rev-Exp Summary/Regional | E55: Added Line 1.4.1 - Maternity Kick Payments. Removed Line 1.4 PCP Fee Increase payments.
A56: MMA | B56: =B55+1 -> 30 | C56: 040117 | D56: MMA Rev-Exp Summary/Regional | E56: Added Line 2.7.1 - Transplant Services to the Hospital Services section for the reporting of Transplant Services expenses.
A57: MMA | B57: 31 | C57: 040117 | D57: MMA Rev-Exp Summary/Regional | E57: Maternity Services has been added to capture expenses for services associated with maternity kick payments. This replaces the Transplant Services section on previous reports and the numbering has changed to 4.1.1, 4.2.1, 4.3.1, and 4.4.1. Transplant Services has moved to line 2.7.1, as noted above.
A58: MMA | B58: 32 | C58: 040117 | D58: MMA Rev-Exp Summary/Regional | E58: The "Settlements" line within each service section has been revised to also include expenses for alternative payment arrangements, as noted by the addition of "AP."
A59: MMA | B59: 33 | C59: 040117 | D59: MMA Rev-Exp Summary/Regional | E59: Line 11.6.1 - Premium Deficiency Reserve has been added an replaces line 11.6 - Incentive Payments. Incentive payments (and other alternative payment arrangements are to be reported on the appropriate Settlements/AP line.
A60: MMA | B60: 34 | C60: 040117 | D60: MMA Rev-Exp Summary/Regional | E60: The Net Investment section has been deleted. This is no longer required.
A61: MMA | B61: =B60+1 -> 35 | C61: 040117 | D61: MMA Subcap Summary | E61: This schedule has been revised to no longer require subcap amounts to be split by rate group.
A62: MMA | B62: 36 | C62: 040117 | D62: MMA Related-Party Summary | E62: The structure of this schedule has been revised to report related-party transactions by service type (and Admin). A drop down list has been added to Payment Methodology.
A63: MMA | B63: 37 | C63: 040117 | D63: MMA Exp Benefits | E63: Added the MMA Exp Benefits schedule to report expanded benefits by the type of benefit provided and for each rate group.
A64: MMA | B64: 38 | C64: 040117 | D64: MMA Rev-Exp Instructions | E64: Revised the instructions tab for the above changes as well as clarifying the Prior Year Adjustment column. Also further clarified that revenue reported on Line 1.6 - Other Revenue shall be further disclosed on the Notes tab. The Notes tab has been revised to include a schedule to report the components of Line 1.6.
A65: MMA | B65: 39 | C65: 040118 | D65: MPIP Summary | E65: MMA Phys Comp schedule was renamed MPIP Summary schedule. The schedule was also updated to include additional provider types that are participating in the Year 2 MPIP, along with an IBNP line.
A66: MMA | B66: 40 | C66: 040118 | D66: MMA Rev-Exp Summary/Regional; Instructions | E66: Line 4.1.1 - Maternity Services has been modified to only include expenses incurred for the bucket of maternity services associated with the maternity kick payment. Only include covered services as defined by Milliman in their MMA Capitation Rate Report.
A67: MMA | B67: 41 | C67: 040118 | D67: MMA Rev-Exp Summary/Regional; Instructions | E67: The Non-Special Needs Plan (Non-SNP) members in SMMC MMA should be included in the SMMC MMA schedule under the following corresponding category (Dual Eligible, HIV/AIDS Dual Eligible, or LTC Dual Eligible). DO NOT include any Dual Special Needs Plan (D-SNP) members in the SMMC MMA schedule.
A68: MMA | B68: =B67+1 -> 42 | C68: 040118 | D68: MMA Rev-Exp Summary | E68: The instructions for line 1.1-1.5 have been updated. The accrued revenue' types and amounts should be presented in notes tab.
A69: MMA | B69: 43 | C69: 040119 | D69: MMA Rev-Exp Summary/Regional; Instructions | E69: Removed line 1.2 - Transplant Kick Payments
A70: MMA | B70: 44 | C70: 040119 | D70: MMA Rev-Exp Summary/Regional; Instructions | E70: Line 1.2.1 - Pharmacy Drug High Risk Pool was added to include amounts accrued by the plans for the Pharmacy Drug High Risk Pool.
A71: MMA | B71: 45 | C71: 040119 | D71: MMA Rev-Exp Summary/Regional; Instructions | E71: Line 9.2.1 - Nursing Facility FFS was added to include expenses incurred for nursing facility services for recipients age 18 and older.
A72: MMA | B72: 46 | C72: 040119 | D72: MMA Rev-Exp Instructions | E72: Expanded Benefits instructions were updated to to reflect new contract location reference.
A73: MMA | B73: 47 | C73: 040119 | D73: MMA Exp Benefits | E73: Updated the list of expanded benefits in the MMA Exp Benefits schedule to reflect changes made in the Medicaid Health Plan Contracts.
A74: MMA | B74: 48 | C74: 040119 | D74: MMA Rev-Exp Instructions | E74: Line 9.2.1 - Nursing Facility FFS was edited to include expenses incurred for nursing facility services for all recipients.
A75: MMA | B75: =+B74+1 -> 49 | C75: 040119 | D75: MMA Exp Benefits | E75: Added an IBNP line and Subcapitated line to the MMA Exp Benefits schedule.
A76: MMA | B76: 50 | C76: 011520 | D76: MMA Rev-Exp Summary/Regional | E76: Added Private Duty Nursing rate group in each quarter and year to date (YTD ) columns on the MMA rev-exp summary and region tabs.
A77: MMA | B77: 51 | C77: 011520 | D77: MMA Rev-Exp Summary | E77: Added formula on line 9.2.1 Nursing Facility FFS for Q3.
A78: MMA | B78: 52 | C78: 011520 | D78: MMA Exp Benefits | E78: Added Private Duty Nursing rate group in each quarter and YTD columns.
A79: MMA | B79: 53 | C79: 011520 | D79: MPIP Summary | E79: Added Private Duty Nursing rate group in each quarter and YTD columns.
A80: MMA | B80: 54 | C80: 013020 | D80: MMA region 5 | E80: Updated the formulas for cell D68-D71
A81: MMA | B81: 55 | C81: 013020 | D81: MMA region 8 | E81: Updated the formulas for cell BA64-BA67
A82: MMA | B82: 56 | C82: 013020 | D82: MMA region 9 | E82: Added formula in cell BJ29
A83: MMA | B83: 57 | C83: 013020 | D83: MMA Rev-Exp Summary | E83: Updated the formulas for cell AZ65-AZ71
A84: MMA | B84: 58 | C84: 071020 | D84: MMA Rev-Exp Region 9 | E84: Updated the formulas for cell D65-D67 and cell M78
A85: MMA | B85: 59 | C85: 091520 | D85: MMA Rev-Exp Summary | E85: Updated the note 2
A86: LTC | B86: 1 | C86: 102014 | D86: LTC Rev-Exp Instructions | E86: Revised instructions for the reporting of the Nursing Home Rate Reconciliation on line 1.2.
A87: LTC | B87: =B86+1 -> 2 | C87: 102014 | D87: LTC Rev-Exp Summary | E87: Added Non-HCBS, HCBS, and MEDP/SIXT columns for reporting Expenses.
A88: LTC | B88: 3 | C88: 102014 | D88: LTC Rev-Exp Summary | E88: Formulas have been added to populate the Summary schedule from information entered on the Regional schedules. Cells with formulas have been locked.
A89: LTC | B89: 4 | C89: 102014 | D89: LTC Rev-Exp Summary | E89: Formulas added to populate Health Plan, Reporting Period, and Paid Through for all remaining MMA schedules based on what is entered on the Summary.
A90: LTC | B90: 5 | C90: 102014 | D90: LTC Rev-Exp Regional | E90: Added Non-HCBS, HCBS, and MEDP/SIXT columns for reporting Expenses.
A91: LTC | B91: 6 | C91: 102014 | D91: LTC Rev-Exp Regional | E91: Regional Tabs added for all 11 regions.
A92: LTC | B92: 7 | C92: 102014 | D92: LTC Rev-Exp Regional | E92: Formulas added for totals. Cells with formulas have been locked.
A93: LTC | B93: 8 | C93: 102014 | D93: LTC Subcap Summary/Regional | E93: Added Non-HCBS, HCBS, and MEDP/SIXT columns for reporting subcapitation expenses.
A94: LTC | B94: 9 | C94: 102014 | D94: LTC Subcap Summary/Regional | E94: Summary and Regional schedules added for all 11 regions.
A95: LTC | B95: 10 | C95: 102014 | D95: LTC Subcap Summary/Regional | E95: Formulas added for totals. However, cells have not been locked so that additional Vendors can be added, if needed.
A96: LTC | B96: 11 | C96: 102014 | D96: LTC Subcap Summary/Regional | E96: Expanded Benefits section added.
A97: LTC | B97: 12 | C97: 102014 | D97: LTC Related-Party Summary/Regional | E97: Summary and Regional schedules added for all 11 regions.
A98: LTC | B98: 13 | C98: 102014 | D98: LTC Related-Party Summary/Regional | E98: Formulas added for totals. However, cells have not been locked so that additional Vendors can be added, if needed.
A99: LTC | B99: 14 | C99: 102014 | D99: LTC Related-Party Summary/Regional | E99: Expanded Benefits section added.
A100: LTC | B100: 15 | C100: 121614 | D100: LTC Rev-Exp Instructions | E100: LTC Service Categories have been revised, including revised definitions for each listed LTC service category.
A101: LTC | B101: 16 | C101: 121614 | D101: LTC Rev-Exp Summary/Regional | E101: LTC Service Categories have been revised, as well as the definitions for each service category.
A102: LTC | B102: 17 | C102: 121614 | D102: LTC Subcap Summary | E102: Formulas have been added to populate the Summary schedule from information entered on the Regional schedules. The Subcap and Regional schedules remain unlocked so that plans can add additional lines to accommodate more subcap providers, if needed. Plans are responsible for ensuring formulas are correct when new rows are added.
A103: LTC | B103: 18 | C103: 121614 | D103: LTC Related-Party Summary | E103: Formulas have been added to populate the Summary schedule from information entered on the Regional schedules. The Subcap and Regional schedules remain unlocked so that plans can add additional lines to accommodate more subcap providers, if needed. Plans are responsible for ensuring formulas are correct when new rows are added.
A104: LTC | B104: 19 | C104: 031715 | D104: LTC Rev-Exp Instructions | E104: Clarified Administrative expense instructions to report case management as an LTC service expense.
A105: LTC | B105: 20 | C105: 062315 | D105: LTC Subcap Summary/Regional | E105: Revised the LTC Subcap Summary schedule and removed the LTC Subcap Regional schedules.
A106: LTC | B106: 21 | C106: 062315 | D106: LTC Related-Party Summary/Regional | E106: Revised the LTC Related-Party Summary schedule and removed the LTC Related-Party Regional schedules.
A107: LTC | B107: 22 | C107: 062315 | D107: LTC Rev-Exp Instructions | E107: Revised IBNP definition to exclude margin and LAE.
A108: LTC | B108: 23 | C108: 122115 | D108: LTC Rev-Exp Instructions | E108: Clarified instructions to report revenue earned and expenses incurred during the period.
A109: LTC | B109: 24 | C109: 122115 | D109: LTC Rev-Exp Summary/Regional | E109: Revised the reporting of Nursing Facility and Hospice (lines 2.1 through 2.10) to include the reporting of Nursing Facility days and costs for both Medicaid and crossover. Also includes the reporting of hospice days.
A110: LTC | B110: 25 | C110: 122115 | D110: LTC Rev-Exp Summary/Regional | E110: Case management lines added to LTC services (2.16 and 2.17).
A111: LTC | B111: 26 | C111: 122115 | D111: LTC Rev-Exp Summary/Regional | E111: Revised the reporting of administrative expenses to allocate across populations. The allocation methodology should be disclosed on the Notes schedule.
A112: LTC | B112: 27 | C112: 122115 | D112: LTC Rev-Exp Instructions | E112: Revised instructions to address the additions noted in 24 through 26, above.
A113: LTC | B113: 28 | C113: 052016 | D113: LTC Rev-Exp Summary/Regional | E113: Added Prior Calendar Year Adjustments column for the reporting of prior calendar year adjustments.
A114: LTC | B114: 29 | C114: 052516 | D114: LTC Rev-Exp Summary/Regional | E114: Corrected formulas.
A115: LTC | B115: 30 | C115: 100116 | D115: LTC Rev-Exp Instructions | E115: Clarified IBNP instructions to include the Prior Calendar Year adjustment column.
A116: LTC | B116: 31 | C116: 040117 | D116: LTC Rev-Exp Summary/Regional | E116: The "Settlements" line within each service section has been revised to also include expenses for alternative payment arrangements, as noted by the addition of "AP."
A117: LTC | B117: 32 | C117: 040117 | D117: LTC Rev-Exp Summary/Regional | E117: Line 11.4.1 - Premium Deficiency Reserve has been added an replaces line 4.6 - Incentive Payments. Incentive payments (and other alternative payment arrangements are to be reported on the appropriate Settlements/AP line.
A118: LTC | C118: 040117 | D118: LTC Rev-Exp Summary/Regional | E118: The Net Investment section has been deleted. This is no longer required.
A119: LTC | B119: 33 | C119: 040117 | D119: LTC Subcap Summary/Regional | E119: This schedule has been revised to no longer require subcap expenses to be split by rate group.
A120: LTC | B120: 34 | C120: 040117 | D120: LTC Exp Benefits | E120: Added the LTC Exp Benefits schedule to report expanded benefits by the type of benefit provided and for each rate group.
A121: LTC | B121: 35 | C121: 100116 | D121: LTC Rev-Exp Instructions | E121: Revised the instructions tab for the above changes as well as clarifying the Prior Year Adjustment column. Also further clarified that revenue reported on Line 1.4 - Other Revenue shall be further disclosed on the Notes tab. The Notes tab has been revised to include a schedule to report the components of Line 1.4.
A122: LTC | B122: =+B121+1 -> 36 | C122: 040118 | D122: LTC Rev-Exp Instructions | E122: The instructions for line 1.1-1.2 have been updated. The accrued revenues' types and amounts should be presented in notes tab.
A123: LTC | B123: 37 | C123: 040119 | D123: LTC Rev-Exp Summary/Regional; Instructions | E123: Line 1.2.1 - Community High Risk Pool was added to include amounts accrued by the plan for the Community High Risk Pool.
A124: LTC | B124: 38 | C124: 040119 | D124: LTC Rev-Exp Summary/Regional; Instructions | E124: Line 1.2.2 - Patient Responsibility Reconciliation was added to include accruals for amounts due to the plan as a result of the annual patient responsibility reconciliation
A125: LTC | B125: 39 | C125: 040119 | D125: LTC Rev-Exp Instructions | E125: Expanded Benefits instructions were updated to to reflect new contract location reference.
A126: LTC | B126: 40 | C126: 040119 | D126: LTC Exp Benefits | E126: Updated the list of expanded benefits in the LTC Exp Benefits schedule to reflect changes made in the Medicaid Health Plan Contracts.
A127: LTC | B127: 41 | C127: 040119 | D127: LTC Exp Benefits | E127: Added an IBNP line and Subcapitated line to the LTC Exp Benefits schedule.
A128: LTC | B128: 42 | C128: 061519 | D128: LTC regional tabs | E128: Added formula in Cell U13 and U14 at LTC regional tabs.
A129: ASR | B129: 1 | C129: 102014 | D129: ASR Instructions | E129: Requires the 10/1 - 12/31 ASR Exhibit to be submitted with the 3/31 ASR Report.
A130: ASR | B130: =B129+1 -> 2 | C130: 102014 | D130: ASR Exhibit | E130: Calendar-year quarters have been added.
A131: ASR | B131: =B130+1 -> 3 | C131: 102014 | D131: ASR Exhibit | E131: Formulas added for totals and calculations. Cells with formulas have been locked.
A132: ASR | B132: =B131+1 -> 4 | C132: 102014 | D132: ASR Exhibit | E132: Removed Pharmaceutical Rebates (line 2.3 on previous version).
A133: ASR | B133: 5 | C133: 121614 | D133: ASR Admin Max | E133: This schedule has been added for the calculation of the Actuarially-Sound Administrative Maximum needed for the Achieved Savings Rebate.
A134: ASR | B134: 6 | C134: 121614 | D134: ASR Instructions | E134: Instructions for the Actuarially-Sound Administrative Maximum revised to reference the ASR Admin Max schedule.
A135: ASR | B135: 7 | C135: 121614 | D135: ASR Instructions | E135: Clarified instructions related to administrative expenditures to include Improving Health Care Quality Expenses Incurred.
A136: ASR | B136: 8 | C136: 031715 | D136: ASR Exhibit | E136: Added formula in cells P18 and Q18 for Line 2.2 Change in IBNP Reserve for Calendar Year Total.
A137: ASR | B137: 9 | C137: 122115 | D137: ASR Instructions | E137: Revised instructions to no longer require the restated prior calendar year to be submitted on the Q1 ASR Exhibit. Extended due date of Q1 report to June 1.
A138: ASR | B138: 10 | C138: 052516 | D138: ASR Exhibit | E138: Added Prior Calendar Year Adjustments column for the reporting of prior calendar year adjustments.
A139: ASR | B139: 11 | C139: 100116 | D139: ASR Exhibit | E139: Revised the reporting of adjustments to revenue to more clearly indicate that the ASR calculation is "pre-tax." Income taxes deducted for Federal MLR reporting shall be added back on line 1.7.
A140: ASR | B140: 12 | C140: 100116 | D140: ASR Exhibit Instructions | E140: Clarified instructions for Federal and State deductions from premium revenue to better align with Section 409.967(3), Florida Statutes and the SMMC contract.
A141: ASR | B141: 13 | C141: 100116 | D141: ASR Admin Max | E141: Revised instructions for Line 1.0 Plan Enrollment. Total national enrollment should be used to determine the appropriate MMA admin max.
A142: ASR | B142: 14 | C142: 040117 | D142: ASR Exhibit | E142: Line 2.4.1 has been added for Premium Deficiency Reserve (and other reserve contributions) as a component of Benefit expense. Previously, reserve account contributions was located in Administrative Expense. Amounts on this line are to be reported as a negative and are excluded from the ASR calculation, per 409.967(3), Florida Statutes.
A143: ASR | B143: 15 | C143: 040117 | D143: ASR Exhibit Instructions | E143: Instructions have been revised for the above change.
A144: ASR | B144: 16 | C144: 040118 | D144: Notes | E144: Added accrued revenue details for MMA and LTC services.
A145: ASR | B145: 17 | C145: 080118 | D145: Notes | E145: Changed the LTC Rev- Exp Line 1.1 – 1.2 reference to LTC Rev-Exp Line 1.1 – 1.2.2
A146: ASR | B146: 18 | C146: 050119 | D146: ASR Exhibit Instructions | E146: Instructions for the Actuarially-Sound Administrative Maximum revised to reference the ASR Admin Max schedule.
A147: ASR | B147: 19 | C147: 050119 | D147: ASR Admin Max | E147: Updated ASR Admin Max schedule based on the methodology changes to set an admin max per rate group.
A148: ASR | B148: 20 | C148: 050119 | D148: ASR Admin Max | E148: Updated and revised instructions for Line 1.0, 1.2, 2.0 and 2.1.
A149: ASR | B149: 21 | C149: 050119 | D149: ASR Admin Max | E149: Add CMS plan in select one in Line 1.0.
A150: ASR | B150: 22 | C150: 050119 | D150: ASR Admin Max | E150: Add CMS plan's PMPM rate in the schedule
A151: ASR | B151: 23 | C151: 100119 | D151: ASR Exhibit | E151: Deleted Line 1.5 Revenue Subject to MLR.
A152: ASR | B152: 24 | C152: 100119 | D152: ASR Exhibit | E152: Deleted Line 3.1 Funds to Graduate Medical Education institutions.
A153: ASR | B153: 25 | C153: 100119 | D153: ASR Exhibit | E153: Deleted Line 3.2 Contributions for the Purpose of Supporting Medicaid and Indigent Care.
A154: ASR | B154: 26 | C154: 100119 | D154: ASR Exhibit | E154: Deleted Line 3.3 Total Florida-Specific Contributions.
A155: ASR | B155: 27 | C155: 100119 | D155: ASR Exhibit | E155: Deleted Line 4.1 Improve Health Outcomes.
A156: ASR | B156: 28 | C156: 100119 | D156: ASR Exhibit | E156: Deleted Line 4.2 Activities to Prevent Hospital Readmissions.
A157: ASR | B157: 29 | C157: 100119 | D157: ASR Exhibit | E157: Deleted Line 4.3 Improve Patient Safety and Reducing Medical Errors.
A158: ASR | B158: 30 | C158: 100119 | D158: ASR Exhibit | E158: Deleted Line 4.4 Wellness and Health Promotion Activities.
A159: ASR | B159: 31 | C159: 100119 | D159: ASR Exhibit | E159: Deleted Line 4.5 Health Information Technology (HIT) expenses related to Health Improvement.
A160: ASR | B160: 32 | C160: 100119 | D160: ASR Exhibit | E160: Deleted Line 4.6 Total of Defined Expenses incurred for improving Health Care Quality.
A161: ASR | B161: 33 | C161: 100119 | D161: ASR Exhibit | E161: Deleted Line 5.0 Deductible Fraud and Abuse Detection/Recovery Expenses (MLR only).
A162: ASR | B162: 34 | C162: 100119 | D162: ASR Exhibit | E162: Deleted Line 6.0 Preliminary Medical Loss Ratio: MLR.
A163: ASR | B163: 35 | C163: 100119 | D163: ASR Exhibit | E163: Deleted Line 1.6 Add: Income taxes deducted from Revenue for Federal MLR reporting
A164: ASR | B164: 36 | C164: 100119 | D164: ASR Exhibit Instructions | E164: Instructions have been revised for the above changes.
A165: ASR | B165: 37 | C165: 100119 | D165: ASR Exhibit Instructions | E165: Instructions have been revised from Excel line 5 to line 10. Removed one quarter lag behind Revenue & Expense schedule
A166: ASR | B166: 38 | C166: 100119 | D166: ASR Exhibit Instructions | E166: Instructions have been revised for line 1.2 Federal Taxes and Assessments- ACA9010. Removed income taxes deductible from revenue.
A167: ASR | B167: 39 | C167: 100119 | D167: ASR Exhibit Instructions | E167: Instructions have been revised for line 1.3 State insurance, Premium and other Taxes. Removed income taxes deductible from revenue.
A168: ASR | B168: 40 | C168: 100119 | D168: ASR Exhibit Instructions | E168: Removed line 1.6 Add; Income taxes deducted from Revenue for Federal MLR reporting.
A169: ASR | B169: 41 | C169: 100119 | D169: MLR Instructions | E169: Added Medical Loss Ratio Instructions Tab.
A170: ASR | B170: 42 | C170: 100119 | D170: MLR Exhibit | E170: Added Medical Loss Ratio Exhibit Tab. This change is related to CMCS informational bulletin issued on May 15, 2019 " Medical Loss Ratio (MLR) Requirements Related to Third Party Vendors"
A171: ASR | B171: 43 | C171: 011520 | D171: Notes | E171: Unlock notes tab
A172: ASR | B172: 44 | C172: 011520 | D172: MLR Instructions | E172: Added item 2.4 instruction for Incurred But Not Paid Ending Balance-Subcontractors
A173: ASR | B173: 45 | C173: 011520 | D173: MLR exhibit | E173: Added item 2.4-Incurred But Not Paid Ending Balance-Subcontractors
A174: ASR | B174: 46 | C174: 033020 | D174: ASR Admin Max | E174: Updated instructions for line 1.0, 1.1 ,1.2, 2.0 and 2.1
A175: ASR | B175: 47 | C175: 033020 | D175: ASR Admin Max | E175: Added instructions for member month of maternity kick payments and added Note 1
A176: ASR | B176: 48 | C176: 033020 | D176: ASR Admin Max | E176: Updated reporting period and paid through information in line 5 and line 6
A177: ASR | B177: 49 | C177: 033020 | D177: ASR Admin Max-Period 2 | E177: Added ASR Admin max-Period 2. This tab represents admin max for reporting period from Oct 1, 2019 to Dec 31, 2019. Please see note 1 for PMPM instruction.
A178: ASR | B178: 50 | C178: 033020 | D178: ASR Exhibit | E178: Updated the formulas for cell S30 and cell T30 for line 30
A179: ASR | B179: 51 | C179: 042720 | D179: ASR Admin Max | E179: Updated instructions from line 40 to line 52
A180: ASR | B180: 52 | C180: 042720 | D180: ASR Admin Max-Period 2 | E180: Updated instructions from line 40 to line 50
A181: ASR | B181: 53 | C181: 091520 | D181: Encounter Instructions | E181: Added Encounter Instructions tab
A182: ASR | B182: 54 | C182: 091520 | D182: MMA & LTC Encounter | E182: Added MMA & LTC Encounter tab and formulas
A183: ASR | B183: 55 | C183: 072121 | D183: ASR exhibit | E183: Removed premium deficiency reserve and other reserve account contributions.
A184: ASR | B184: 56 | C184: 072121 | D184: MLR Exhibit | E184: Removed premium deficiency reserve and other reserve account contributions.
A185: ASR | B185: 57 | C185: 072121 | D185: MMA & LTC Encounter | E185: Updated the formulas for cell H19, H30, J19, M19, C32
A186: ASR | B186: 58 | C186: 072121 | D186: MMA Rev-Exp Region 5 | E186: Corrected Q3 formulas at cells AB65, AB66, AB67.
A187: ASR | B187: 59 | C187: 072121 | D187: MMA Rev-Exp Summary/Regional | E187: Regional tab changes due to mergers and acquisitions
A188: ASR | B188: 60 | C188: 072121 | D188: LTC Rev-Exp Summary/Regional | E188: Regional tab changes due to mergers and acquisitions
A189: ASR | B189: 61 | C189: 020822 | D189: Plan Selection | E189: MMA Plan Only tab updated from Prestige to AmeriHealth Caritas Florida
A190: ASR | B190: 62 | C190: 020822 | D190: MMA Rev-Exp Regions 2, 3, 5, 6, 7, 8 | E190: Regional tab changes due to mergers and acquisitions for AmeriHealth Caritas of Florida
A191: ASR | B191: 63 | C191: 020822 | D191: MMA Rev-Exp Regions 1, 4, 6, 7, 9 | E191: Regional tab changes due to mergers and acquisitions for Molina Healthcare of Florida
A192: ASR | B192: 64 | C192: 020822 | D192: LTC Rev-Exp Regions 5, 6 | E192: Regional tab changes due to mergers and acquisitions for Molina Healthcare of Florida
A193: MMA | B193: 65 | C193: 020822 | D193: MMA Rev-Exp Instructions | E193: Update to Note 2 regarding DPP (Direct Payment Program) Administrative Fee

Sheet Jurat
A1: SMMC MMA | C1: HEALTH PLAN NAME | G1: Calendar Year: | I1: 2021
B2: Yes | C2: Florida Community Care, LLC
B3: No | C3: ADDRESS
A4: SMMC LTC | C4: 4601 NW 77th Avenue, Miami, FL 33166 | H4: (street, city, zip)
B5: Yes | C5: PARENT COMPANY NAME
B6: No | C6: Independent Living Systems, LLC
B8: CONTACT PERSON: | C8: Tarlton Thomas
B9: TELEPHONE: | C9: 305-262-1292x106625
B10: FAX:
B11: E-MAIL ADDRESS: | C11: tthomas@ilshealth.com
C12: PRESIDENT, C.E.O.
C13: Josefina Carbonell, President
C14: OFFICERS AND DIRECTORS
B15: Name: | E15: Title:
A16: 1. | B16: Dennis Liotta | E16: Chief Medical Officer
A17: 2. | B17: Tarlton Thomas | E17: Chief Financial Officer
A18: 3. | B18: David Rogers | E18: Executive Director & COO
A19: 4. | B19: Nicholas Gross | E19: Compliance Officer
A20: 5. | B20: Hugh Chang Alloy | E20: VP & Treasurer
A21: 6. | B21: Stuart Williams | E21: VP & Secretary
A22: 7.
A23: 8.
A24: 9.
A25: 10.
C28: Company Filing Status: (1) For-Profit (2) Not-For-Profit
D29: 1
D32: FOR THE QUARTER ENDING
D33: 2021-12-31
B35: -----------------------------------------------------------------------------
B36: CEO/PRESIDENT'S SIGNATURE
B38: AUTHORITY GRANTED BY :
B39: AGENCY FOR HEALTH CARE ADMINISTRATION

Sheet MMA Rev-Exp Instructions
A1: MANAGED MEDICAL ASSISTANCE REVENUE AND EXPENSE SCHEDULE - INSTRUCTIONS
A2: QUARTERLY AND ANNUAL
A4: Coverage: | B4: Reported for MMA experience, by region and by eligibility group. Summary report aggregates all contracted regions.
A5: Reporting Period: | B5: Quarter YTD; each quarterly submission introduces a new quarter and updates prior quarters.
A6: June 1 | B6: Q1 Revenue & Expense Schedule includes only January - March (paid through March).
A7: August 15 | B7: Q2 Revenue & Expense Schedule includes restated January - March, first look at April - June (all paid through June).
A8: November 15 | B8: Q3 Revenue & Expense Schedule includes restated January - March and April - June, first look at July - September (all paid through September).
A9: February 15 | B9: Q4 Revenue & Expense Schedule includes restated quarters 1 - 3, first look at October - December (all paid through December).
A10: May 1 | B10: Annual Revenue & Expense Schedule includes restated quarters 1-4 of prior calendar year, all paid through March.
A12: Health Plan: | B12: Name or D/B/A of the reporting managed care plan.
A13: Reporting Period: | B13: Based upon the reporting periods identified above.
A14: Paid Through: | B14: Based on the paid through timeframes identified above.
A15: Region: | B15: Applicable only for Regional reports.
A17: Note 1: The Prior Year Adjustment column shall be used to report all prior period activity, including changes in estimates.
A18: Note 2: Please exclude medical school, cancer hospital, public emergency medical transportation and hospital inpatient and outpatient exemption uniform increase, and DPP (Directed Payment Program) pass-through payments from the ASR Report. Please include 3% DPP related Administrative Fee on line 1.6 Other Revenue. Report details of this income, including the type and amount, in the notes tab of this report.
A19: Note 3: The members in MMA who qualify for the Non-Special Needs Plan (Non-SNP) Medicare Advantage capitation rate should be included in the ASR Report under one of the dual eligible rate groups. DO NOT include any members who qualify for the Dual Eligible SNP (D-SNP) capitation rate.
A20: Note 4: COVID Vaccine Reimbursement: Please report the Revenue in Other Revenue. Report details of this income, including the type and amount, in the notes tab of this report. Report expenses associated with COVID vaccine reimbursement on associated lines of administering provider types (pharmacy or doctor).
A22: MEMBER MONTHS | D22: Number of members enrolled in each month. Year-to-Date is the sum of the member months over the individual months of the period.
A23: REVENUES
A25: Revenues | B25: 1.1 | C25: Capitation | D25: Monthly premium payments earned on behalf of Medicaid recipients. Report accrued revenue details, including the type and the amounts, in the notes tab of this report.
B26: 1.2.1 | C26: Pharmacy Drug High Risk Pool | D26: Amounts accrued by the plans for the Pharmacy Drug High Risk Pool. Report accrued revenue details, including the type and the amounts, in the notes tab of this report.
B27: 1.3 | C27: Hepatitis C Kick Payments | D27: Amounts earned by plans for Hepatitis C services. Report accrued revenue details, including the type and the amounts, in the notes tab of this report.
B28: 1.4.1 | C28: Maternity Kick Payments | D28: Amounts earned by plans for Maternity services. Report accrued revenue details, including the type and the amounts, in the notes tab of this report.
B29: 1.5 | C29: ACA § 9010 related payments | D29: Amounts earned by plans for the Health Insurance Providers Fee and associated tax gross-ups. Report accrued revenue details, including the type and the amounts, in the notes tab of this report.
B30: 1.6 | C30: Other Revenue | D30: Plan-related revenue earned from other sources not listed in lines 1.1 through 1.4. -- does not include investment gains. Report details of this income, including the type and amount, in the notes tab of this report.
B31: 1.7 | C31: Total Revenue | D31: Sum of lines 1.1 through 1.6 (Direct business, not increased for reinsurance assumed and not reduced by reinsurance ceded)
A32: BENEFIT EXPENSES
A34: Hospital Services | B34: 2.1 | C34: Inpatient FFS | D34: Expenses incurred for Inpatient facility charges billed on a UB-04 claim form, also known as the CMS-1450 form, including Statewide Inpatient Psychiatric Program services. Expenses for maternity services should be reported in the Maternity Services section.
B35: 2.2 | C35: Ending IBNP for Inpatient Hospital Services | D35: Estimated amount for Inpatient Hospital Services incurred but not paid (IBNP). Amounts should be "Best Estimate" and should not include margin or LAE. The Prior Calendar Year column should include a reversal of the prior year's IBNP as claims experience develops.
B36: 2.3 | C36: Outpatient FFS: ER | D36: Expenses incurred for Outpatient facility charges for the Emergency Department billed on a UB-04 claim form, also known as the CMS-1450 form.
B37: 2.4 | C37: Outpatient FFS: Other than ER | D37: Expenses incurred for Outpatient facility charges for other than the Emergency Department billed on a UB-04 claim form. Includes ASC claims.
B38: 2.5 | C38: Ending IBNP for Outpatient Hospital Services | D38: Estimated amount for Outpatient Hospital Services incurred but not paid (IBNP). Amounts should be "Best Estimate" and should not include margin or LAE. The Prior Calendar Year column should include a reversal of the prior year's IBNP as claims experience develops.
B39: 2.6 | C39: Subcapitated Hospital Services | D39: Expenses incurred for Subcapitated payments to providers for Inpatient, Outpatient: ER, and Outpatient: Other than ER services.
B40: 2.7 | C40: Hospital Service Settlements/AP | D40: Expenses incurred for hospital services associated with provider, recipient, legal, and/or TPL settlements not included on lines 2.1 through 2.6. Also includes alternative payment arrangements.
B41: 2.7.1 | C41: Transplant Services | D41: Expenses incurred for services covered by the global case rate payments for transplant services.
B42: 2.8 | C42: Total Hospital Services | D42: Sum of lines 2.1 through 2.7.1
A43: Professional Services | B43: 3.1 | C43: Primary Care FFS | D43: Expenses incurred for health plan staff or contracted professional practicing as a general or family practitioner, internist, pediatrician, obstetrician, gynecologist, advanced registered nurse practitioner, physician assistant, or other specialty approved by the Agency, who furnishes primary care and patient management services to an enrollee. PCP Fee Increase payments shall be reported on line 3.4, below.
B44: 3.2 | C44: Specialty Care FFS | D44: Expenses incurred for health plan staff or contracted health professionals other than those identified in line 3.1 - Primary Care FFS.
B45: 3.3 | C45: Other Professional FFS | D45: Expenses incurred for services performed in a Rural Health Clinic, Federally Qualified Health Center, or County Health Department.
B46: 3.4 | C46: § 1202 PCP Payments to providers | D46: Expenses incurred for Primary Care Physician increase payments issued to providers, through both FFS and subcapitation.
B47: 3.5 | C47: Subcapitated Professional Services | D47: Expenses incurred for subcapitated payments to providers for primary care, specialty care, and other professional services.
B48: 3.6 | C48: Ending IBNP for Professional Services | D48: Estimated amount for Professional Services incurred but not paid (IBNP). Amounts should be "Best Estimate" and should not include margin or LAE. The Prior Calendar Year column should include a reversal of the prior year's IBNP as claims experience develops.
B49: 3.7 | C49: Professional Service Settlements | D49: Expenses incurred for professional services associated with provider, recipient, legal, and/or TPL settlements not included on lines 3.1 through 3.6. Also includes alternative payment arrangements.
B50: 3.8 | C50: Total Physician Services | D50: Sum of lines 3.1 through 3.7.
A51: Maternity Services | B51: 4.1.1 | C51: Maternity Services | D51: Expenses incurred for the bucket of maternity services associated with the maternity kick payment. Only include covered services as defined by Milliman in their MMA Capitation Rate Report.
B52: 4.2.1 | C52: Ending IBNP for Maternity Services | D52: Estimated amount for Maternity Services incurred but not paid (IBNP). Amounts should be "Best Estimate" and should not include margin or LAE. The Prior Calendar Year column should include a reversal of the prior year's IBNP as claims experience develops.
B53: 4.3.1 | C53: Maternity Settlements/AP | D53: Expenses incurred for Maternity services associated with provider, recipient, legal, and/or TPL settlements not included on lines 4.1.1 through 4.2.1. Includes alternative payment methodologies.
B54: 4.4.1 | C54: Total Maternity Services | D54: Sum of lines 4.1.1 through 4.3.1
A55: Mental Health | B55: 5.1 | C55: Mental Health & Substance Abuse FFS | D55: Expenses incurred for services listed in the Community Behavioral Health Services and Mental Health Targeted Case Management Coverage and Limitation Handbooks.
B56: 5.2 | C56: Mental Health & Substance Abuse Subcapitation | D56: Expenses incurred for subcapitated payments to providers for Community Behavioral Health and Targeted Case Management services.
B57: 5.3 | C57: Ending IBNP for Mental Health & Substance Abuse | D57: Estimated amount for MH & SA Services incurred but not paid (IBNP) as of the end of the period. Amounts should be "Best Estimate" and should not include margin or LAE.
B58: 5.4 | C58: Mental Health Service Settlements | D58: Expenses incurred for mental health services associated with provider, recipient, legal, and/or TPL settlements not included on lines 5.1 through 5.3. Also includes alternative payment arrangements.
B59: 5.5 | C59: Total Mental Health & Substance Abuse Services | D59: Sum of lines 5.1 through 5.4.
A60: Dental | B60: 6.1 | C60: Dental FFS | D60: Expenses incurred for services billed using ADA code of HCPCS Level II code beginning with "D." Include applicable dental services provided by FQHCs and RHCs.
B61: 6.2 | C61: Dental Subcapitation | D61: Expenses incurred for subcapitated payments to providers for dental services.
B62: 6.3 | C62: Ending IBNP for Dental Services | D62: Estimated amount for Dental Services incurred but not paid (IBNP). Amounts should be "Best Estimate" and should not include margin or LAE. The Prior Calendar Year column should include a reversal of the prior year's IBNP as claims experience develops.
B63: 6.4 | C63: Dental Service Settlements | D63: Expenses incurred for dental services associated with provider, recipient, legal, and/or TPL settlements not included on lines 6.1 through 6.3. Also includes alternative payment arrangements.
B64: 6.5 | C64: Total Dental Services | D64: Sum of lines 6.1 through 6.4.
A65: Transportation | B65: 7.1 | C65: Transportation FFS | D65: Expenses incurred for both emergency and non-emergency transportation services.
B66: 7.2 | C66: Transportation Subcapitation | D66: Expenses incurred for subcapitated payments to providers for transportation services.
B67: 7.3 | C67: Ending IBNP for Transportation | D67: Estimated amount for Transportation Services incurred but not paid (IBNP). Amounts should be "Best Estimate" and should not include margin or LAE. The Prior Calendar Year column should include a reversal of the prior year's IBNP as claims experience develops.
B68: 7.4 | C68: Transportation Service Settlements | D68: Expenses incurred for transportation services expense associated with provider, recipient, legal, and/or TPL settlements not included on lines 7.1 through 7.3. Also includes alternative payment arrangements.
B69: 7.5 | C69: Total Transportation Services | D69: Sum of lines 7.1 through 7.4.
A70: Pharmacy | B70: 8.1 | C70: Prescription Drugs FFS | D70: Expenses incurred for prescription drugs billed using NDC codes for drugs not administered in a physician's office or a facility setting, excluding amounts on line 8.2.
B71: 8.2 | C71: Hepatitis C Prescription Drug FFS | D71: Expenses incurred for prescription drugs billed for the treatment of Hepatitis C and not administered in a physician's office or a facility setting.
B72: 8.3 | C72: Ending IBNP for Prescription Drugs | D72: Estimated amount for Prescription Drugs incurred but not paid (IBNP). Amounts should be "Best Estimate" and should not include margin or LAE. The Prior Calendar Year column should include a reversal of the prior year's IBNP as claims experience develops.
B73: 8.4 | C73: Prescription Drug Rebates | D73: Amount of prescription drug rebates received by the plan. Reported as a negative amount.
B74: 8.5 | C74: Ending accrual for Rebates receivable | D74: Estimated amount for prescription drug rebates receivable but not collected. Reported as a negative amount.
B75: 8.6 | C75: Prescription Drugs Subcapitation | D75: Expenses incurred for subcapitated payments to providers for prescription drug services.
B76: 8.7 | C76: Prescription Drug Service Settlements | D76: Expenses incurred for prescription drug services associated with provider, recipient, legal, and/or TPL settlements not included on lines 8.1 through 8.6. Also includes alternative payment arrangements.
B77: 8.8 | C77: Total Prescription Drugs | D77: Sum of lines 8.1 through 8.7.
A78: Other Services | B78: 9.1 | C78: Home Health, Private Duty Nursing, Personal Care FFS | D78: Expenses incurred to licensed home health agencies for services other than medical supplies, appliances, and durable medical equipment. This includes the home health benefit available under the Medicaid State plan.
B79: 9.2 | C79: Hospice FFS | D79: Expenses incurred for hospice services.
B80: 9.2.1 | C80: Nursing Facility FFS | D80: Expenses incurred for nursing facility services for recipients.
B81: 9.3 | C81: DME FFS | D81: Expenses incurred for licensed home health agencies and other providers for medical supplies, appliances, and durable medical equipment. This service also includes repair of items as well as replacement parts.
B82: 9.4 | C82: Other State Plan Services FFS | D82: Amounts paid for other Medicaid State Plan services not listed in lines 2.1 through 9.3.
B83: 9.5 | C83: Other Services Subcapitation | D83: Expenses incurred for subcapitated payments to providers for home health, DME, and other Medicaid State Plan services.
B84: 9.6 | C84: Ending IBNP for Other Services | D84: Estimated amount for Other Services incurred but not paid (IBNP). Amounts should be "Best Estimate" and should not include margin or LAE. The Prior Calendar Year column should include a reversal of the prior year's IBNP as claims experience develops.
B85: 9.7 | C85: Other Service Settlements | D85: Expenses incurred for other services associated with provider, recipient, legal, and/or TPL settlements not included on lines 9.1 through 9.6. Also includes alternative payment arrangements.
B86: 9.8 | C86: Total Other Services | D86: Sum of lines 9.1 through 9.7.
A87: Expanded Benefits | B87: 10.1 | C87: Expanded Benefits FFS | D87: Expenses incurred by the health plan as listed in the Medicaid Health Plan Contract, Attachment I, Table 3.
B88: 10.2 | C88: Expanded benefits Subcapitation | D88: Expenses incurred for subcapitated payments to providers for Expanded Benefits services.
B89: 10.3 | C89: Ending IBNP for Expanded Benefits | D89: Estimated amount for Expanded Benefits services incurred but not paid (IBNP). Amounts should be "Best Estimate" and should not include margin or LAE. The Prior Calendar Year column should include a reversal of the prior year's IBNP as claims experience develops.
B90: 10.4 | C90: Expanded Benefits Settlements | D90: Expenses incurred for expanded benefits services associated with provider, recipient, legal, and/or TPL settlements not included on lines 10.1 through 10.3. Also includes alternative payment arrangements.
B91: 10.5 | C91: Total Expanded Benefits | D91: Sum of lines 10.1 through 10.4.
A92: Totals Before and After Reinsurance | B92: 11.1 | C92: Total Services Paid Directly FFS | D92: Sum of lines 2.1, 2.3 through 2.4, 3.1 through 3.4, 4.1, 5.1, 6.1, 7.1, 8.1 through 8.2, 8.4 through 8.5, 9.1 through 9.4, 10.1.
B93: 11.2 | C93: Total Services Paid Directly -- IBNP | D93: Sum of lines 2.2, 2.5, 3.6, 4.2, 5.3, 6.3, 7.3, 8.3, 9.6, 10.3.
B94: 11.3 | C94: Total Services Paid through Subcapitation | D94: Sum of lines 2.6, 3.5, 5.2, 6.2, 7.2, 8.6, 9.5, 10.2.
B95: 11.4 | C95: Total Services Paid by Settlements | D95: Sum of lines 2.7, 3.7, 4.3, 5.4, 6.4, 7.4, 8.7, 9.7, 10.4.
B96: 11.5 | C96: TPL & Fraud/Abuse Recoveries | D96: Recoveries due to Third-Party Liability, Fraud & Abuse, and other overpayment recovery efforts not included in lines 11.1 through 11.3. Reported as a negative amount.
B97: 11.6.1 | C97: Premium Deficiency Reserve | D97: Provision for Premium Deficiency Reserve.
B98: 11.7 | C98: Subtotal Benefit Expense before Reinsurance | D98: Sum of lines 11.1 through 11.6
B99: 11.8 | C99: Reinsurance Premiums | D99: Amounts incurred by plans to authorized companies assuming risk.
B100: 11.9 | C100: Reinsurance Recoveries | D100: Amounts recovered and changes in accrued amounts recoverable from reinsurers on paid losses and on losses included in IBNP. Reported as a negative amount.
B101: 11.10 | C101: Net cost of Reinsurance | D101: Sum of Line 11.8 and line 11.9
B102: 11.11 | C102: Grand Total Medical Benefit Expense Net of Reinsurance | D102: Sum of line 11.7 plus line 11.10
A103: Administrative Expenses, Government-Mandated Assessments, Taxes, and Fees
A104: Administrative Expenses | B104: 12.1 | C104: Salaries & Benefits | D104: Direct salary, benefit, and payroll tax expenses. Reported separately for direct health plan expenses and corporate allocations. Also report DPP related Administrative Fees Revenue.
B105: 12.2 | C105: Administrative Services | D105: Non-salary/benefit-related expenses for accounting, actuarial, risk management, legal, investment services, underwriting, etc. Includes payments to parent company or other contracted entities. Reported separately for direct health plan expenses and corporate allocations.
B106: 12.3 | C106: Information Systems | D106: Claims processing, pharmacy benefits management, and other information systems expenses. Includes payments to parent company or contracted entities. Reported separately for direct health plan expenses and corporate allocations.
B107: 12.4 | C107: Marketing Expenses | D107: Market research, marketing campaigns/advertising, public relations. Reported separately for direct health plan expenses and corporate allocations.
B108: 12.5 | C108: General Administration | D108: Direct & Allocated overhead, rent, utilities, supplies, insurance, and other operating expenses not specifically identified in lines 12.1 through 12.4. Reported separately for direct health plan expenses and corporate allocations.
B109: 12.6 | C109: Compliance/Regulatory | D109: Expenses associated with fines, penalties, liquidated damages, or other compliance matters as identified/levied by governmental or other regulatory entities. Reported separately for direct health plan expenses and corporate allocations.
B110: 12.7 | C110: Total Administrative Expenses | D110: Sum of lines 12.1 through 12.6
A111: Government-Mandated Assessments, Taxes, and Fees Other Than Income Taxes | B111: 13.1 | C111: State Premium tax | D111: Amounts paid or payable on premium revenue in 1.7
B112: 13.2 | C112: Department of Insurance Assessments | D112: Amounts paid or payable related to premium revenue in 1.7
B113: 13.3 | C113: Section 9010 Health Insurance Providers Fee | D113: Amounts payable for the HIPF calculated from amounts of premium revenue filed on Form 8963.
B114: 13.4 | C114: Other 1 | D114: Additional assessments, taxes, and fees not reported on lines 13.1 through 13.3, as needed. Additional information to be provided in the Notes section.
B115: 13.5 | C115: Other 2 | D115: Additional assessments, taxes, and fees not reported on lines 13.1 through 13.3, as needed. Additional information to be provided in the Notes section.
B116: 13.6 | C116: Other 3 | D116: Additional assessments, taxes, and fees not reported on lines 13.1 through 13.3, as needed. Additional information to be provided in the Notes section.
B117: 13.7 | C117: Total | D117: Sum of lines 13.1 through 13.6
B118: 14.0 | C118: Grand Total Expenses | D118: Sum of lines 11.11 and 12.7 and 13.7
B119: 15.0 | C119: Underwriting Gain / (Loss) --- AKA Pre-tax Earnings from Operations | D119: Line 1.7 minus 14
B120: 16.0 | C120: Income Tax Expense | D120: Domestic federal, state, and local taxes based on income from operations. Exclude income tax expense reported on lines 18.6 and 18.8.
B121: 17.0 | C121: Net Underwriting Gain (Loss) from Operations | D121: Line 15 minus 16

Sheet MMA Rev-Exp Summary
A1: MANAGED MEDICAL ASSISTANCE -- REVENUE AND EXPENSE SCHEDULE - SUMMARY
A3: Health Plan: | C3: Florida Community Care
A4: Reporting Period: | C4: Q4 2021
A5: Paid Through: | C5: 2022-03-31
A6: Summary
D7: JANUARY - MARCH (Q1) | P7: APRIL - JUNE (Q2) | AB7: JULY - SEPTEMBER (Q3) | AN7: OCTOBER - DECEMBER (Q4) | BA7: TOTAL (TO DATE)
D8: Total | E8: TANF Non-SMI | F8: TANF SMI | G8: SSI Medicaid Only Non-SMI | H8: SSI Medicaid Only SMI | I8: Dual Eligible | J8: Child Welfare | K8: HIV/AIDS Dual Eligible | L8: HIV/AIDS Medicaid Only | M8: Private Duty Nursing | N8: LTC Dual Eligible | O8: LTC Medicaid Only | P8: Total | Q8: TANF Non-SMI | R8: TANF SMI | S8: SSI Medicaid Only Non-SMI | T8: SSI Medicaid Only SMI | U8: Dual Eligible | V8: Child Welfare | W8: HIV/AIDS Dual Eligible | X8: HIV/AIDS Medicaid Only | Y8: Private Duty Nursing | Z8: LTC Dual Eligible | AA8: LTC Medicaid Only | AB8: Total | AC8: TANF Non-SMI | AD8: TANF SMI | AE8: SSI Medicaid Only Non-SMI | AF8: SSI Medicaid Only SMI | AG8: Dual Eligible | AH8: Child Welfare | AI8: HIV/AIDS Dual Eligible | AJ8: HIV/AIDS Medicaid Only | AK8: Private Duty Nursing | AL8: LTC Dual Eligible | AM8: LTC Medicaid Only | AN8: Total | AO8: TANF Non-SMI | AP8: TANF SMI | AQ8: SSI Medicaid Only Non-SMI | AR8: SSI Medicaid Only SMI | AS8: Dual Eligible | AT8: Child Welfare | AU8: HIV/AIDS Dual Eligible | AV8: HIV/AIDS Medicaid Only | AW8: Private Duty Nursing | AX8: LTC Dual Eligible | AY8: LTC Medicaid Only | AZ8: Prior Year Adjustments | BA8: Total | BB8: TANF Non-SMI | BC8: TANF SMI | BD8: SSI Medicaid Only Non-SMI | BE8: SSI Medicaid Only SMI | BF8: Dual Eligible | BG8: Child Welfare | BH8: HIV/AIDS Dual Eligible | BI8: HIV/AIDS Medicaid Only | BJ8: Private Duty Nursing | BK8: LTC Dual Eligible | BL8: LTC Medicaid Only
A9: MEMBER MONTHS | D9: =SUM(E9:O9) -> 32,399.6 | E9: =SUM('MMA Rev-Exp Region 1:MMA Rev-Exp Region 11'!E9) -> 0 | F9: =SUM('MMA Rev-Exp Region 1:MMA Rev-Exp Region 11'!F9) -> 0 | G9: =SUM('MMA Rev-Exp Region 1:MMA Rev-Exp Region 11'!G9) -> 9.0 | H9: =SUM('MMA Rev-Exp Region 1:MMA Rev-Exp Region 11'!H9) -> 15.0 | I9: =SUM('MMA Rev-Exp Region 1:MMA Rev-Exp Region 11'!I9) -> 96.0 | J9: =SUM('MMA Rev-Exp Region 1:MMA Rev-Exp Region 11'!J9) -> 0 | K9: =SUM('MMA Rev-Exp Region 1:MMA Rev-Exp Region 11'!K9) -> 4.0 | L9: =SUM('MMA Rev-Exp Region 1:MMA Rev-Exp Region 11'!L9) -> 3.0 | M9: =SUM('MMA Rev-Exp Region 1:MMA Rev-Exp Region 11'!M9) -> 0 | N9: =SUM('MMA Rev-Exp Region 1:MMA Rev-Exp Region 11'!N9) -> 29,896.6 | O9: =SUM('MMA Rev-Exp Region 1:MMA Rev-Exp Region 11'!O9) -> 2,376.0 | P9: =SUM(Q9:AA9) -> 34,493.9 | Q9: =SUM('MMA Rev-Exp Region 1:MMA Rev-Exp Region 11'!Q9) -> 0 | R9: =SUM('MMA Rev-Exp Region 1:MMA Rev-Exp Region 11'!R9) -> 0 | S9: =SUM('MMA Rev-Exp Region 1:MMA Rev-Exp Region 11'!S9) -> 4.0 | T9: =SUM('MMA Rev-Exp Region 1:MMA Rev-Exp Region 11'!T9) -> 16.0 | U9: =SUM('MMA Rev-Exp Region 1:MMA Rev-Exp Region 11'!U9) -> 107.0 | V9: =SUM('MMA Rev-Exp Region 1:MMA Rev-Exp Region 11'!V9) -> 0 | W9: =SUM('MMA Rev-Exp Region 1:MMA Rev-Exp Region 11'!W9) -> 3.0 | X9: =SUM('MMA Rev-Exp Region 1:MMA Rev-Exp Region 11'!X9) -> 3.0 | Y9: =SUM('MMA Rev-Exp Region 1:MMA Rev-Exp Region 11'!Y9) -> 0 | Z9: =SUM('MMA Rev-Exp Region 1:MMA Rev-Exp Region 11'!Z9) -> 31,894.9 | AA9: =SUM('MMA Rev-Exp Region 1:MMA Rev-Exp Region 11'!AA9) -> 2,466.0 | AB9: =SUM(AC9:AM9) -> 36,550.5 | AC9: =SUM('MMA Rev-Exp Region 1:MMA Rev-Exp Region 11'!AC9) -> 0 | AD9: =SUM('MMA Rev-Exp Region 1:MMA Rev-Exp Region 11'!AD9) -> 0 | AE9: =SUM('MMA Rev-Exp Region 1:MMA Rev-Exp Region 11'!AE9) -> 8.0 | AF9: =SUM('MMA Rev-Exp Region 1:MMA Rev-Exp Region 11'!AF9) -> 15.0 | AG9: =SUM('MMA Rev-Exp Region 1:MMA Rev-Exp Region 11'!AG9) -> 106.2 | AH9: =SUM('MMA Rev-Exp Region 1:MMA Rev-Exp Region 11'!AH9) -> 0 | AI9: =SUM('MMA Rev-Exp Region 1:MMA Rev-Exp Region 11'!AI9) -> 3.0 | AJ9: =SUM('MMA Rev-Exp Region 1:MMA Rev-Exp Region 11'!AJ9) -> 2.0 | AK9: =SUM('MMA Rev-Exp Region 1:MMA Rev-Exp Region 11'!AK9) -> 0 | AL9: =SUM('MMA Rev-Exp Region 1:MMA Rev-Exp Region 11'!AL9) -> 33,852.4 | AM9: =SUM('MMA Rev-Exp Region 1:MMA Rev-Exp Region 11'!AM9) -> 2,564.0 | AN9: =SUM(AO9:AY9) -> 38,473.4 | AO9: =SUM('MMA Rev-Exp Region 1:MMA Rev-Exp Region 11'!AO9) -> 0 | AP9: =SUM('MMA Rev-Exp Region 1:MMA Rev-Exp Region 11'!AP9) -> 0 | AQ9: =SUM('MMA Rev-Exp Region 1:MMA Rev-Exp Region 11'!AQ9) -> 2.0 | AR9: =SUM('MMA Rev-Exp Region 1:MMA Rev-Exp Region 11'!AR9) -> 7.0 | AS9: =SUM('MMA Rev-Exp Region 1:MMA Rev-Exp Region 11'!AS9) -> 76.0 | AT9: =SUM('MMA Rev-Exp Region 1:MMA Rev-Exp Region 11'!AT9) -> 0 | AU9: =SUM('MMA Rev-Exp Region 1:MMA Rev-Exp Region 11'!AU9) -> 0 | AV9: =SUM('MMA Rev-Exp Region 1:MMA Rev-Exp Region 11'!AV9) -> 2.0 | AW9: =SUM('MMA Rev-Exp Region 1:MMA Rev-Exp Region 11'!AW9) -> 0 | AX9: =SUM('MMA Rev-Exp Region 1:MMA Rev-Exp Region 11'!AX9) -> 35,664.4 | AY9: =SUM('MMA Rev-Exp Region 1:MMA Rev-Exp Region 11'!AY9) -> 2,722.0 | AZ9: =SUM('MMA Rev-Exp Region 1:MMA Rev-Exp Region 11'!AZ9) -> 226.6 | BA9: =AN9+AB9+P9+D9+AZ9 -> 142,144.0 | BB9: =SUM('MMA Rev-Exp Region 1:MMA Rev-Exp Region 11'!BB9) -> 0 | BC9: =SUM('MMA Rev-Exp Region 1:MMA Rev-Exp Region 11'!BC9) -> 0 | BD9: =SUM('MMA Rev-Exp Region 1:MMA Rev-Exp Region 11'!BD9) -> 23.0 | BE9: =SUM('MMA Rev-Exp Region 1:MMA Rev-Exp Region 11'!BE9) -> 53.0 | BF9: =SUM('MMA Rev-Exp Region 1:MMA Rev-Exp Region 11'!BF9) -> 385.1 | BG9: =SUM('MMA Rev-Exp Region 1:MMA Rev-Exp Region 11'!BG9) -> 0 | BH9: =SUM('MMA Rev-Exp Region 1:MMA Rev-Exp Region 11'!BH9) -> 10.0 | BI9: =SUM('MMA Rev-Exp Region 1:MMA Rev-Exp Region 11'!BI9) -> 10.0 | BJ9: =SUM('MMA Rev-Exp Region 1:MMA Rev-Exp Region 11'!BJ9) -> 0 | BK9: =SUM('MMA Rev-Exp Region 1:MMA Rev-Exp Region 11'!BK9) -> 131,308.3 | BL9: =SUM('MMA Rev-Exp Region 1:MMA Rev-Exp Region 11'!BL9) -> 10,128.0
A10: REVENUES
A11: Revenues | B11: 1.1 | C11: Capitation | D11: =SUM(E11:O11) -> 8,967,796 | E11: =SUM('MMA Rev-Exp Region 1:MMA Rev-Exp Region 11'!E11) -> 0 | F11: =SUM('MMA Rev-Exp Region 1:MMA Rev-Exp Region 11'!F11) -> 0 | G11: =SUM('MMA Rev-Exp Region 1:MMA Rev-Exp Region 11'!G11) -> 9,304 | H11: =SUM('MMA Rev-Exp Region 1:MMA Rev-Exp Region 11'!H11) -> 18,956 | I11: =SUM('MMA Rev-Exp Region 1:MMA Rev-Exp Region 11'!I11) -> 22,035 | J11: =SUM('MMA Rev-Exp Region 1:MMA Rev-Exp Region 11'!J11) -> 0 | K11: =SUM('MMA Rev-Exp Region 1:MMA Rev-Exp Region 11'!K11) -> 829 | L11: =SUM('MMA Rev-Exp Region 1:MMA Rev-Exp Region 11'!L11) -> 10,272 | M11: =SUM('MMA Rev-Exp Region 1:MMA Rev-Exp Region 11'!M11) -> 0 | N11: =SUM('MMA Rev-Exp Region 1:MMA Rev-Exp Region 11'!N11) -> 3,584,721 | O11: =SUM('MMA Rev-Exp Region 1:MMA Rev-Exp Region 11'!O11) -> 5,321,679 | P11: =SUM(Q11:AA11) -> 9,405,086 | Q11: =SUM('MMA Rev-Exp Region 1:MMA Rev-Exp Region 11'!Q11) -> 0 | R11: =SUM('MMA Rev-Exp Region 1:MMA Rev-Exp Region 11'!R11) -> 0 | S11: =SUM('MMA Rev-Exp Region 1:MMA Rev-Exp Region 11'!S11) -> 4,304 | T11: =SUM('MMA Rev-Exp Region 1:MMA Rev-Exp Region 11'!T11) -> 20,631 | U11: =SUM('MMA Rev-Exp Region 1:MMA Rev-Exp Region 11'!U11) -> 23,877 | V11: =SUM('MMA Rev-Exp Region 1:MMA Rev-Exp Region 11'!V11) -> 0 | W11: =SUM('MMA Rev-Exp Region 1:MMA Rev-Exp Region 11'!W11) -> 777 | X11: =SUM('MMA Rev-Exp Region 1:MMA Rev-Exp Region 11'!X11) -> 10,272 | Y11: =SUM('MMA Rev-Exp Region 1:MMA Rev-Exp Region 11'!Y11) -> 0 | Z11: =SUM('MMA Rev-Exp Region 1:MMA Rev-Exp Region 11'!Z11) -> 3,842,040 | AA11: =SUM('MMA Rev-Exp Region 1:MMA Rev-Exp Region 11'!AA11) -> 5,503,185 | AB11: =SUM(AC11:AM11) -> 9,828,720 | AC11: =SUM('MMA Rev-Exp Region 1:MMA Rev-Exp Region 11'!AC11) -> 0 | AD11: =SUM('MMA Rev-Exp Region 1:MMA Rev-Exp Region 11'!AD11) -> 0 | AE11: =SUM('MMA Rev-Exp Region 1:MMA Rev-Exp Region 11'!AE11) -> 8,194 | AF11: =SUM('MMA Rev-Exp Region 1:MMA Rev-Exp Region 11'!AF11) -> 19,746 | AG11: =SUM('MMA Rev-Exp Region 1:MMA Rev-Exp Region 11'!AG11) -> 23,780 | AH11: =SUM('MMA Rev-Exp Region 1:MMA Rev-Exp Region 11'!AH11) -> 0 | AI11: =SUM('MMA Rev-Exp Region 1:MMA Rev-Exp Region 11'!AI11) -> 710 | AJ11: =SUM('MMA Rev-Exp Region 1:MMA Rev-Exp Region 11'!AJ11) -> 8,346 | AK11: =SUM('MMA Rev-Exp Region 1:MMA Rev-Exp Region 11'!AK11) -> 0 | AL11: =SUM('MMA Rev-Exp Region 1:MMA Rev-Exp Region 11'!AL11) -> 4,076,862 | AM11: =SUM('MMA Rev-Exp Region 1:MMA Rev-Exp Region 11'!AM11) -> 5,691,083 | AN11: =SUM(AO11:AY11) -> 11,119,876 | AO11: =SUM('MMA Rev-Exp Region 1:MMA Rev-Exp Region 11'!AO11) -> 0 | AP11: =SUM('MMA Rev-Exp Region 1:MMA Rev-Exp Region 11'!AP11) -> 0 | AQ11: =SUM('MMA Rev-Exp Region 1:MMA Rev-Exp Region 11'!AQ11) -> 2,139 | AR11: =SUM('MMA Rev-Exp Region 1:MMA Rev-Exp Region 11'!AR11) -> 9,444 | AS11: =SUM('MMA Rev-Exp Region 1:MMA Rev-Exp Region 11'!AS11) -> 17,038 | AT11: =SUM('MMA Rev-Exp Region 1:MMA Rev-Exp Region 11'!AT11) -> 0 | AU11: =SUM('MMA Rev-Exp Region 1:MMA Rev-Exp Region 11'!AU11) -> 0 | AV11: =SUM('MMA Rev-Exp Region 1:MMA Rev-Exp Region 11'!AV11) -> 8,745 | AW11: =SUM('MMA Rev-Exp Region 1:MMA Rev-Exp Region 11'!AW11) -> 0 | AX11: =SUM('MMA Rev-Exp Region 1:MMA Rev-Exp Region 11'!AX11) -> 4,361,131 | AY11: =SUM('MMA Rev-Exp Region 1:MMA Rev-Exp Region 11'!AY11) -> 6,721,378 | AZ11: =SUM('MMA Rev-Exp Region 1:MMA Rev-Exp Region 11'!AZ11) -> (120,256) | BA11: =SUM(BB11:BL11)+AZ11 -> 39,201,222 | BB11: =SUM('MMA Rev-Exp Region 1:MMA Rev-Exp Region 11'!BB11) -> 0 | BC11: =SUM('MMA Rev-Exp Region 1:MMA Rev-Exp Region 11'!BC11) -> 0 | BD11: =SUM('MMA Rev-Exp Region 1:MMA Rev-Exp Region 11'!BD11) -> 23,941 | BE11: =SUM('MMA Rev-Exp Region 1:MMA Rev-Exp Region 11'!BE11) -> 68,777 | BF11: =SUM('MMA Rev-Exp Region 1:MMA Rev-Exp Region 11'!BF11) -> 86,730 | BG11: =SUM('MMA Rev-Exp Region 1:MMA Rev-Exp Region 11'!BG11) -> 0 | BH11: =SUM('MMA Rev-Exp Region 1:MMA Rev-Exp Region 11'!BH11) -> 2,316 | BI11: =SUM('MMA Rev-Exp Region 1:MMA Rev-Exp Region 11'!BI11) -> 37,635 | BJ11: =SUM('MMA Rev-Exp Region 1:MMA Rev-Exp Region 11'!BJ11) -> 0 | BK11: =SUM('MMA Rev-Exp Region 1:MMA Rev-Exp Region 11'!BK11) -> 15,864,754 | BL11: =SUM('MMA Rev-Exp Region 1:MMA Rev-Exp Region 11'!BL11) -> 23,237,325
B12: 1.2.1 | C12: Pharmacy Drug High Risk Pool | D12: 0 | E12: =SUM('MMA Rev-Exp Region 1:MMA Rev-Exp Region 11'!E12) -> 0 | F12: =SUM('MMA Rev-Exp Region 1:MMA Rev-Exp Region 11'!F12) -> 0 | G12: =SUM('MMA Rev-Exp Region 1:MMA Rev-Exp Region 11'!G12) -> 0 | H12: =SUM('MMA Rev-Exp Region 1:MMA Rev-Exp Region 11'!H12) -> 0 | I12: =SUM('MMA Rev-Exp Region 1:MMA Rev-Exp Region 11'!I12) -> 0 | J12: =SUM('MMA Rev-Exp Region 1:MMA Rev-Exp Region 11'!J12) -> 0 | K12: =SUM('MMA Rev-Exp Region 1:MMA Rev-Exp Region 11'!K12) -> 0 | L12: =SUM('MMA Rev-Exp Region 1:MMA Rev-Exp Region 11'!L12) -> 0 | M12: =SUM('MMA Rev-Exp Region 1:MMA Rev-Exp Region 11'!M12) -> 0 | N12: =SUM('MMA Rev-Exp Region 1:MMA Rev-Exp Region 11'!N12) -> 0 | O12: =SUM('MMA Rev-Exp Region 1:MMA Rev-Exp Region 11'!O12) -> 0 | P12: 0 | Q12: =SUM('MMA Rev-Exp Region 1:MMA Rev-Exp Region 11'!Q12) -> 0 | R12: =SUM('MMA Rev-Exp Region 1:MMA Rev-Exp Region 11'!R12) -> 0 | S12: =SUM('MMA Rev-Exp Region 1:MMA Rev-Exp Region 11'!S12) -> 0 | T12: =SUM('MMA Rev-Exp Region 1:MMA Rev-Exp Region 11'!T12) -> 0 | U12: =SUM('MMA Rev-Exp Region 1:MMA Rev-Exp Region 11'!U12) -> 0 | V12: =SUM('MMA Rev-Exp Region 1:MMA Rev-Exp Region 11'!V12) -> 0 | W12: =SUM('MMA Rev-Exp Region 1:MMA Rev-Exp Region 11'!W12) -> 0 | X12: =SUM('MMA Rev-Exp Region 1:MMA Rev-Exp Region 11'!X12) -> 0 | Y12: =SUM('MMA Rev-Exp Region 1:MMA Rev-Exp Region 11'!Y12) -> 0 | Z12: =SUM('MMA Rev-Exp Region 1:MMA Rev-Exp Region 11'!Z12) -> 0 | AA12: =SUM('MMA Rev-Exp Region 1:MMA Rev-Exp Region 11'!AA12) -> 0 | AB12: 0 | AC12: =SUM('MMA Rev-Exp Region 1:MMA Rev-Exp Region 11'!AC12) -> 0 | AD12: =SUM('MMA Rev-Exp Region 1:MMA Rev-Exp Region 11'!AD12) -> 0 | AE12: =SUM('MMA Rev-Exp Region 1:MMA Rev-Exp Region 11'!AE12) -> 0 | AF12: =SUM('MMA Rev-Exp Region 1:MMA Rev-Exp Region 11'!AF12) -> 0 | AG12: =SUM('MMA Rev-Exp Region 1:MMA Rev-Exp Region 11'!AG12) -> 0 | AH12: =SUM('MMA Rev-Exp Region 1:MMA Rev-Exp Region 11'!AH12) -> 0 | AI12: =SUM('MMA Rev-Exp Region 1:MMA Rev-Exp Region 11'!AI12) -> 0 | AJ12: =SUM('MMA Rev-Exp Region 1:MMA Rev-Exp Region 11'!AJ12) -> 0 | AK12: =SUM('MMA Rev-Exp Region 1:MMA Rev-Exp Region 11'!AK12) -> 0 | AL12: =SUM('MMA Rev-Exp Region 1:MMA Rev-Exp Region 11'!AL12) -> 0 | AM12: =SUM('MMA Rev-Exp Region 1:MMA Rev-Exp Region 11'!AM12) -> 0 | AN12: 0 | AO12: =SUM('MMA Rev-Exp Region 1:MMA Rev-Exp Region 11'!AO12) -> 0 | AP12: =SUM('MMA Rev-Exp Region 1:MMA Rev-Exp Region 11'!AP12) -> 0 | AQ12: =SUM('MMA Rev-Exp Region 1:MMA Rev-Exp Region 11'!AQ12) -> 0 | AR12: =SUM('MMA Rev-Exp Region 1:MMA Rev-Exp Region 11'!AR12) -> 0 | AS12: =SUM('MMA Rev-Exp Region 1:MMA Rev-Exp Region 11'!AS12) -> 0 | AT12: =SUM('MMA Rev-Exp Region 1:MMA Rev-Exp Region 11'!AT12) -> 0 | AU12: =SUM('MMA Rev-Exp Region 1:MMA Rev-Exp Region 11'!AU12) -> 0 | AV12: =SUM('MMA Rev-Exp Region 1:MMA Rev-Exp Region 11'!AV12) -> 0 | AW12: =SUM('MMA Rev-Exp Region 1:MMA Rev-Exp Region 11'!AW12) -> 0 | AX12: =SUM('MMA Rev-Exp Region 1:MMA Rev-Exp Region 11'!AX12) -> 0 | AY12: =SUM('MMA Rev-Exp Region 1:MMA Rev-Exp Region 11'!AY12) -> 0 | AZ12: =SUM('MMA Rev-Exp Region 1:MMA Rev-Exp Region 11'!AZ12) -> 9,211 | BA12: 9,211 | BB12: =SUM('MMA Rev-Exp Region 1:MMA Rev-Exp Region 11'!BB12) -> 0 | BC12: =SUM('MMA Rev-Exp Region 1:MMA Rev-Exp Region 11'!BC12) -> 0 | BD12: =SUM('MMA Rev-Exp Region 1:MMA Rev-Exp Region 11'!BD12) -> 0 | BE12: =SUM('MMA Rev-Exp Region 1:MMA Rev-Exp Region 11'!BE12) -> 0 | BF12: =SUM('MMA Rev-Exp Region 1:MMA Rev-Exp Region 11'!BF12) -> 0 | BG12: =SUM('MMA Rev-Exp Region 1:MMA Rev-Exp Region 11'!BG12) -> 0 | BH12: =SUM('MMA Rev-Exp Region 1:MMA Rev-Exp Region 11'!BH12) -> 0 | BI12: =SUM('MMA Rev-Exp Region 1:MMA Rev-Exp Region 11'!BI12) -> 0 | BJ12: =SUM('MMA Rev-Exp Region 1:MMA Rev-Exp Region 11'!BJ12) -> 0 | BK12: =SUM('MMA Rev-Exp Region 1:MMA Rev-Exp Region 11'!BK12) -> 0 | BL12: =SUM('MMA Rev-Exp Region 1:MMA Rev-Exp Region 11'!BL12) -> 0
B13: 1.3 | C13: Hepatitis C Kick Payments | D13: 0 | E13: =SUM('MMA Rev-Exp Region 1:MMA Rev-Exp Region 11'!E13) -> 0 | F13: =SUM('MMA Rev-Exp Region 1:MMA Rev-Exp Region 11'!F13) -> 0 | G13: =SUM('MMA Rev-Exp Region 1:MMA Rev-Exp Region 11'!G13) -> 0 | H13: =SUM('MMA Rev-Exp Region 1:MMA Rev-Exp Region 11'!H13) -> 0 | I13: =SUM('MMA Rev-Exp Region 1:MMA Rev-Exp Region 11'!I13) -> 0 | J13: =SUM('MMA Rev-Exp Region 1:MMA Rev-Exp Region 11'!J13) -> 0 | K13: =SUM('MMA Rev-Exp Region 1:MMA Rev-Exp Region 11'!K13) -> 0 | L13: =SUM('MMA Rev-Exp Region 1:MMA Rev-Exp Region 11'!L13) -> 0 | M13: =SUM('MMA Rev-Exp Region 1:MMA Rev-Exp Region 11'!M13) -> 0 | N13: =SUM('MMA Rev-Exp Region 1:MMA Rev-Exp Region 11'!N13) -> 0 | O13: =SUM('MMA Rev-Exp Region 1:MMA Rev-Exp Region 11'!O13) -> 0 | P13: 0 | Q13: =SUM('MMA Rev-Exp Region 1:MMA Rev-Exp Region 11'!Q13) -> 0 | R13: =SUM('MMA Rev-Exp Region 1:MMA Rev-Exp Region 11'!R13) -> 0 | S13: =SUM('MMA Rev-Exp Region 1:MMA Rev-Exp Region 11'!S13) -> 0 | T13: =SUM('MMA Rev-Exp Region 1:MMA Rev-Exp Region 11'!T13) -> 0 | U13: =SUM('MMA Rev-Exp Region 1:MMA Rev-Exp Region 11'!U13) -> 0 | V13: =SUM('MMA Rev-Exp Region 1:MMA Rev-Exp Region 11'!V13) -> 0 | W13: =SUM('MMA Rev-Exp Region 1:MMA Rev-Exp Region 11'!W13) -> 0 | X13: =SUM('MMA Rev-Exp Region 1:MMA Rev-Exp Region 11'!X13) -> 0 | Y13: =SUM('MMA Rev-Exp Region 1:MMA Rev-Exp Region 11'!Y13) -> 0 | Z13: =SUM('MMA Rev-Exp Region 1:MMA Rev-Exp Region 11'!Z13) -> 0 | AA13: =SUM('MMA Rev-Exp Region 1:MMA Rev-Exp Region 11'!AA13) -> 0 | AB13: 0 | AC13: =SUM('MMA Rev-Exp Region 1:MMA Rev-Exp Region 11'!AC13) -> 0 | AD13: =SUM('MMA Rev-Exp Region 1:MMA Rev-Exp Region 11'!AD13) -> 0 | AE13: =SUM('MMA Rev-Exp Region 1:MMA Rev-Exp Region 11'!AE13) -> 0 | AF13: =SUM('MMA Rev-Exp Region 1:MMA Rev-Exp Region 11'!AF13) -> 0 | AG13: =SUM('MMA Rev-Exp Region 1:MMA Rev-Exp Region 11'!AG13) -> 0 | AH13: =SUM('MMA Rev-Exp Region 1:MMA Rev-Exp Region 11'!AH13) -> 0 | AI13: =SUM('MMA Rev-Exp Region 1:MMA Rev-Exp Region 11'!AI13) -> 0 | AJ13: =SUM('MMA Rev-Exp Region 1:MMA Rev-Exp Region 11'!AJ13) -> 0 | AK13: =SUM('MMA Rev-Exp Region 1:MMA Rev-Exp Region 11'!AK13) -> 0 | AL13: =SUM('MMA Rev-Exp Region 1:MMA Rev-Exp Region 11'!AL13) -> 0 | AM13: =SUM('MMA Rev-Exp Region 1:MMA Rev-Exp Region 11'!AM13) -> 0 | AN13: 0 | AO13: =SUM('MMA Rev-Exp Region 1:MMA Rev-Exp Region 11'!AO13) -> 0 | AP13: =SUM('MMA Rev-Exp Region 1:MMA Rev-Exp Region 11'!AP13) -> 0 | AQ13: =SUM('MMA Rev-Exp Region 1:MMA Rev-Exp Region 11'!AQ13) -> 0 | AR13: =SUM('MMA Rev-Exp Region 1:MMA Rev-Exp Region 11'!AR13) -> 0 | AS13: =SUM('MMA Rev-Exp Region 1:MMA Rev-Exp Region 11'!AS13) -> 0 | AT13: =SUM('MMA Rev-Exp Region 1:MMA Rev-Exp Region 11'!AT13) -> 0 | AU13: =SUM('MMA Rev-Exp Region 1:MMA Rev-Exp Region 11'!AU13) -> 0 | AV13: =SUM('MMA Rev-Exp Region 1:MMA Rev-Exp Region 11'!AV13) -> 0 | AW13: =SUM('MMA Rev-Exp Region 1:MMA Rev-Exp Region 11'!AW13) -> 0 | AX13: =SUM('MMA Rev-Exp Region 1:MMA Rev-Exp Region 11'!AX13) -> 0 | AY13: =SUM('MMA Rev-Exp Region 1:MMA Rev-Exp Region 11'!AY13) -> 0 | AZ13: =SUM('MMA Rev-Exp Region 1:MMA Rev-Exp Region 11'!AZ13) -> 0 | BA13: 0 | BB13: =SUM('MMA Rev-Exp Region 1:MMA Rev-Exp Region 11'!BB13) -> 0 | BC13: =SUM('MMA Rev-Exp Region 1:MMA Rev-Exp Region 11'!BC13) -> 0 | BD13: =SUM('MMA Rev-Exp Region 1:MMA Rev-Exp Region 11'!BD13) -> 0 | BE13: =SUM('MMA Rev-Exp Region 1:MMA Rev-Exp Region 11'!BE13) -> 0 | BF13: =SUM('MMA Rev-Exp Region 1:MMA Rev-Exp Region 11'!BF13) -> 0 | BG13: =SUM('MMA Rev-Exp Region 1:MMA Rev-Exp Region 11'!BG13) -> 0 | BH13: =SUM('MMA Rev-Exp Region 1:MMA Rev-Exp Region 11'!BH13) -> 0 | BI13: =SUM('MMA Rev-Exp Region 1:MMA Rev-Exp Region 11'!BI13) -> 0 | BJ13: =SUM('MMA Rev-Exp Region 1:MMA Rev-Exp Region 11'!BJ13) -> 0 | BK13: =SUM('MMA Rev-Exp Region 1:MMA Rev-Exp Region 11'!BK13) -> 0 | BL13: =SUM('MMA Rev-Exp Region 1:MMA Rev-Exp Region 11'!BL13) -> 0
B14: 1.4.1 | C14: Maternity Kick Payments | D14: 0 | E14: =SUM('MMA Rev-Exp Region 1:MMA Rev-Exp Region 11'!E14) -> 0 | F14: =SUM('MMA Rev-Exp Region 1:MMA Rev-Exp Region 11'!F14) -> 0 | G14: =SUM('MMA Rev-Exp Region 1:MMA Rev-Exp Region 11'!G14) -> 0 | H14: =SUM('MMA Rev-Exp Region 1:MMA Rev-Exp Region 11'!H14) -> 0 | I14: =SUM('MMA Rev-Exp Region 1:MMA Rev-Exp Region 11'!I14) -> 0 | J14: =SUM('MMA Rev-Exp Region 1:MMA Rev-Exp Region 11'!J14) -> 0 | K14: =SUM('MMA Rev-Exp Region 1:MMA Rev-Exp Region 11'!K14) -> 0 | L14: =SUM('MMA Rev-Exp Region 1:MMA Rev-Exp Region 11'!L14) -> 0 | M14: =SUM('MMA Rev-Exp Region 1:MMA Rev-Exp Region 11'!M14) -> 0 | N14: =SUM('MMA Rev-Exp Region 1:MMA Rev-Exp Region 11'!N14) -> 0 | O14: =SUM('MMA Rev-Exp Region 1:MMA Rev-Exp Region 11'!O14) -> 0 | P14: 0 | Q14: =SUM('MMA Rev-Exp Region 1:MMA Rev-Exp Region 11'!Q14) -> 0 | R14: =SUM('MMA Rev-Exp Region 1:MMA Rev-Exp Region 11'!R14) -> 0 | S14: =SUM('MMA Rev-Exp Region 1:MMA Rev-Exp Region 11'!S14) -> 0 | T14: =SUM('MMA Rev-Exp Region 1:MMA Rev-Exp Region 11'!T14) -> 0 | U14: =SUM('MMA Rev-Exp Region 1:MMA Rev-Exp Region 11'!U14) -> 0 | V14: =SUM('MMA Rev-Exp Region 1:MMA Rev-Exp Region 11'!V14) -> 0 | W14: =SUM('MMA Rev-Exp Region 1:MMA Rev-Exp Region 11'!W14) -> 0 | X14: =SUM('MMA Rev-Exp Region 1:MMA Rev-Exp Region 11'!X14) -> 0 | Y14: =SUM('MMA Rev-Exp Region 1:MMA Rev-Exp Region 11'!Y14) -> 0 | Z14: =SUM('MMA Rev-Exp Region 1:MMA Rev-Exp Region 11'!Z14) -> 0 | AA14: =SUM('MMA Rev-Exp Region 1:MMA Rev-Exp Region 11'!AA14) -> 0 | AB14: 0 | AC14: =SUM('MMA Rev-Exp Region 1:MMA Rev-Exp Region 11'!AC14) -> 0 | AD14: =SUM('MMA Rev-Exp Region 1:MMA Rev-Exp Region 11'!AD14) -> 0 | AE14: =SUM('MMA Rev-Exp Region 1:MMA Rev-Exp Region 11'!AE14) -> 0 | AF14: =SUM('MMA Rev-Exp Region 1:MMA Rev-Exp Region 11'!AF14) -> 0 | AG14: =SUM('MMA Rev-Exp Region 1:MMA Rev-Exp Region 11'!AG14) -> 0 | AH14: =SUM('MMA Rev-Exp Region 1:MMA Rev-Exp Region 11'!AH14) -> 0 | AI14: =SUM('MMA Rev-Exp Region 1:MMA Rev-Exp Region 11'!AI14) -> 0 | AJ14: =SUM('MMA Rev-Exp Region 1:MMA Rev-Exp Region 11'!AJ14) -> 0 | AK14: =SUM('MMA Rev-Exp Region 1:MMA Rev-Exp Region 11'!AK14) -> 0 | AL14: =SUM('MMA Rev-Exp Region 1:MMA Rev-Exp Region 11'!AL14) -> 0 | AM14: =SUM('MMA Rev-Exp Region 1:MMA Rev-Exp Region 11'!AM14) -> 0 | AN14: 0 | AO14: =SUM('MMA Rev-Exp Region 1:MMA Rev-Exp Region 11'!AO14) -> 0 | AP14: =SUM('MMA Rev-Exp Region 1:MMA Rev-Exp Region 11'!AP14) -> 0 | AQ14: =SUM('MMA Rev-Exp Region 1:MMA Rev-Exp Region 11'!AQ14) -> 0 | AR14: =SUM('MMA Rev-Exp Region 1:MMA Rev-Exp Region 11'!AR14) -> 0 | AS14: =SUM('MMA Rev-Exp Region 1:MMA Rev-Exp Region 11'!AS14) -> 0 | AT14: =SUM('MMA Rev-Exp Region 1:MMA Rev-Exp Region 11'!AT14) -> 0 | AU14: =SUM('MMA Rev-Exp Region 1:MMA Rev-Exp Region 11'!AU14) -> 0 | AV14: =SUM('MMA Rev-Exp Region 1:MMA Rev-Exp Region 11'!AV14) -> 0 | AW14: =SUM('MMA Rev-Exp Region 1:MMA Rev-Exp Region 11'!AW14) -> 0 | AX14: =SUM('MMA Rev-Exp Region 1:MMA Rev-Exp Region 11'!AX14) -> 0 | AY14: =SUM('MMA Rev-Exp Region 1:MMA Rev-Exp Region 11'!AY14) -> 0 | AZ14: =SUM('MMA Rev-Exp Region 1:MMA Rev-Exp Region 11'!AZ14) -> 0 | BA14: 0 | BB14: =SUM('MMA Rev-Exp Region 1:MMA Rev-Exp Region 11'!BB14) -> 0 | BC14: =SUM('MMA Rev-Exp Region 1:MMA Rev-Exp Region 11'!BC14) -> 0 | BD14: =SUM('MMA Rev-Exp Region 1:MMA Rev-Exp Region 11'!BD14) -> 0 | BE14: =SUM('MMA Rev-Exp Region 1:MMA Rev-Exp Region 11'!BE14) -> 0 | BF14: =SUM('MMA Rev-Exp Region 1:MMA Rev-Exp Region 11'!BF14) -> 0 | BG14: =SUM('MMA Rev-Exp Region 1:MMA Rev-Exp Region 11'!BG14) -> 0 | BH14: =SUM('MMA Rev-Exp Region 1:MMA Rev-Exp Region 11'!BH14) -> 0 | BI14: =SUM('MMA Rev-Exp Region 1:MMA Rev-Exp Region 11'!BI14) -> 0 | BJ14: =SUM('MMA Rev-Exp Region 1:MMA Rev-Exp Region 11'!BJ14) -> 0 | BK14: =SUM('MMA Rev-Exp Region 1:MMA Rev-Exp Region 11'!BK14) -> 0 | BL14: =SUM('MMA Rev-Exp Region 1:MMA Rev-Exp Region 11'!BL14) -> 0
B15: 1.5 | C15: ACA § 9010 related payments | D15: 0 | E15: =SUM('MMA Rev-Exp Region 1:MMA Rev-Exp Region 11'!E15) -> 0 | F15: =SUM('MMA Rev-Exp Region 1:MMA Rev-Exp Region 11'!F15) -> 0 | G15: =SUM('MMA Rev-Exp Region 1:MMA Rev-Exp Region 11'!G15) -> 0 | H15: =SUM('MMA Rev-Exp Region 1:MMA Rev-Exp Region 11'!H15) -> 0 | I15: =SUM('MMA Rev-Exp Region 1:MMA Rev-Exp Region 11'!I15) -> 0 | J15: =SUM('MMA Rev-Exp Region 1:MMA Rev-Exp Region 11'!J15) -> 0 | K15: =SUM('MMA Rev-Exp Region 1:MMA Rev-Exp Region 11'!K15) -> 0 | L15: =SUM('MMA Rev-Exp Region 1:MMA Rev-Exp Region 11'!L15) -> 0 | M15: =SUM('MMA Rev-Exp Region 1:MMA Rev-Exp Region 11'!M15) -> 0 | N15: =SUM('MMA Rev-Exp Region 1:MMA Rev-Exp Region 11'!N15) -> 0 | O15: =SUM('MMA Rev-Exp Region 1:MMA Rev-Exp Region 11'!O15) -> 0 | P15: 0 | Q15: =SUM('MMA Rev-Exp Region 1:MMA Rev-Exp Region 11'!Q15) -> 0 | R15: =SUM('MMA Rev-Exp Region 1:MMA Rev-Exp Region 11'!R15) -> 0 | S15: =SUM('MMA Rev-Exp Region 1:MMA Rev-Exp Region 11'!S15) -> 0 | T15: =SUM('MMA Rev-Exp Region 1:MMA Rev-Exp Region 11'!T15) -> 0 | U15: =SUM('MMA Rev-Exp Region 1:MMA Rev-Exp Region 11'!U15) -> 0 | V15: =SUM('MMA Rev-Exp Region 1:MMA Rev-Exp Region 11'!V15) -> 0 | W15: =SUM('MMA Rev-Exp Region 1:MMA Rev-Exp Region 11'!W15) -> 0 | X15: =SUM('MMA Rev-Exp Region 1:MMA Rev-Exp Region 11'!X15) -> 0 | Y15: =SUM('MMA Rev-Exp Region 1:MMA Rev-Exp Region 11'!Y15) -> 0 | Z15: =SUM('MMA Rev-Exp Region 1:MMA Rev-Exp Region 11'!Z15) -> 0 | AA15: =SUM('MMA Rev-Exp Region 1:MMA Rev-Exp Region 11'!AA15) -> 0 | AB15: 0 | AC15: =SUM('MMA Rev-Exp Region 1:MMA Rev-Exp Region 11'!AC15) -> 0 | AD15: =SUM('MMA Rev-Exp Region 1:MMA Rev-Exp Region 11'!AD15) -> 0 | AE15: =SUM('MMA Rev-Exp Region 1:MMA Rev-Exp Region 11'!AE15) -> 0 | AF15: =SUM('MMA Rev-Exp Region 1:MMA Rev-Exp Region 11'!AF15) -> 0 | AG15: =SUM('MMA Rev-Exp Region 1:MMA Rev-Exp Region 11'!AG15) -> 0 | AH15: =SUM('MMA Rev-Exp Region 1:MMA Rev-Exp Region 11'!AH15) -> 0 | AI15: =SUM('MMA Rev-Exp Region 1:MMA Rev-Exp Region 11'!AI15) -> 0 | AJ15: =SUM('MMA Rev-Exp Region 1:MMA Rev-Exp Region 11'!AJ15) -> 0 | AK15: =SUM('MMA Rev-Exp Region 1:MMA Rev-Exp Region 11'!AK15) -> 0 | AL15: =SUM('MMA Rev-Exp Region 1:MMA Rev-Exp Region 11'!AL15) -> 0 | AM15: =SUM('MMA Rev-Exp Region 1:MMA Rev-Exp Region 11'!AM15) -> 0 | AN15: 0 | AO15: =SUM('MMA Rev-Exp Region 1:MMA Rev-Exp Region 11'!AO15) -> 0 | AP15: =SUM('MMA Rev-Exp Region 1:MMA Rev-Exp Region 11'!AP15) -> 0 | AQ15: =SUM('MMA Rev-Exp Region 1:MMA Rev-Exp Region 11'!AQ15) -> 0 | AR15: =SUM('MMA Rev-Exp Region 1:MMA Rev-Exp Region 11'!AR15) -> 0 | AS15: =SUM('MMA Rev-Exp Region 1:MMA Rev-Exp Region 11'!AS15) -> 0 | AT15: =SUM('MMA Rev-Exp Region 1:MMA Rev-Exp Region 11'!AT15) -> 0 | AU15: =SUM('MMA Rev-Exp Region 1:MMA Rev-Exp Region 11'!AU15) -> 0 | AV15: =SUM('MMA Rev-Exp Region 1:MMA Rev-Exp Region 11'!AV15) -> 0 | AW15: =SUM('MMA Rev-Exp Region 1:MMA Rev-Exp Region 11'!AW15) -> 0 | AX15: =SUM('MMA Rev-Exp Region 1:MMA Rev-Exp Region 11'!AX15) -> 0 | AY15: =SUM('MMA Rev-Exp Region 1:MMA Rev-Exp Region 11'!AY15) -> 0 | AZ15: =SUM('MMA Rev-Exp Region 1:MMA Rev-Exp Region 11'!AZ15) -> 0 | BA15: 0 | BB15: =SUM('MMA Rev-Exp Region 1:MMA Rev-Exp Region 11'!BB15) -> 0 | BC15: =SUM('MMA Rev-Exp Region 1:MMA Rev-Exp Region 11'!BC15) -> 0 | BD15: =SUM('MMA Rev-Exp Region 1:MMA Rev-Exp Region 11'!BD15) -> 0 | BE15: =SUM('MMA Rev-Exp Region 1:MMA Rev-Exp Region 11'!BE15) -> 0 | BF15: =SUM('MMA Rev-Exp Region 1:MMA Rev-Exp Region 11'!BF15) -> 0 | BG15: =SUM('MMA Rev-Exp Region 1:MMA Rev-Exp Region 11'!BG15) -> 0 | BH15: =SUM('MMA Rev-Exp Region 1:MMA Rev-Exp Region 11'!BH15) -> 0 | BI15: =SUM('MMA Rev-Exp Region 1:MMA Rev-Exp Region 11'!BI15) -> 0 | BJ15: =SUM('MMA Rev-Exp Region 1:MMA Rev-Exp Region 11'!BJ15) -> 0 | BK15: =SUM('MMA Rev-Exp Region 1:MMA Rev-Exp Region 11'!BK15) -> 0 | BL15: =SUM('MMA Rev-Exp Region 1:MMA Rev-Exp Region 11'!BL15) -> 0
B16: 1.6 | C16: Other Revenue | D16: 0 | E16: =SUM('MMA Rev-Exp Region 1:MMA Rev-Exp Region 11'!E16) -> 0 | F16: =SUM('MMA Rev-Exp Region 1:MMA Rev-Exp Region 11'!F16) -> 0 | G16: =SUM('MMA Rev-Exp Region 1:MMA Rev-Exp Region 11'!G16) -> 0 | H16: =SUM('MMA Rev-Exp Region 1:MMA Rev-Exp Region 11'!H16) -> 0 | I16: =SUM('MMA Rev-Exp Region 1:MMA Rev-Exp Region 11'!I16) -> 0 | J16: =SUM('MMA Rev-Exp Region 1:MMA Rev-Exp Region 11'!J16) -> 0 | K16: =SUM('MMA Rev-Exp Region 1:MMA Rev-Exp Region 11'!K16) -> 0 | L16: =SUM('MMA Rev-Exp Region 1:MMA Rev-Exp Region 11'!L16) -> 0 | M16: =SUM('MMA Rev-Exp Region 1:MMA Rev-Exp Region 11'!M16) -> 0 | N16: =SUM('MMA Rev-Exp Region 1:MMA Rev-Exp Region 11'!N16) -> 0 | O16: =SUM('MMA Rev-Exp Region 1:MMA Rev-Exp Region 11'!O16) -> 0 | P16: 0 | Q16: =SUM('MMA Rev-Exp Region 1:MMA Rev-Exp Region 11'!Q16) -> 0 | R16: =SUM('MMA Rev-Exp Region 1:MMA Rev-Exp Region 11'!R16) -> 0 | S16: =SUM('MMA Rev-Exp Region 1:MMA Rev-Exp Region 11'!S16) -> 0 | T16: =SUM('MMA Rev-Exp Region 1:MMA Rev-Exp Region 11'!T16) -> 0 | U16: =SUM('MMA Rev-Exp Region 1:MMA Rev-Exp Region 11'!U16) -> 0 | V16: =SUM('MMA Rev-Exp Region 1:MMA Rev-Exp Region 11'!V16) -> 0 | W16: =SUM('MMA Rev-Exp Region 1:MMA Rev-Exp Region 11'!W16) -> 0 | X16: =SUM('MMA Rev-Exp Region 1:MMA Rev-Exp Region 11'!X16) -> 0 | Y16: =SUM('MMA Rev-Exp Region 1:MMA Rev-Exp Region 11'!Y16) -> 0 | Z16: =SUM('MMA Rev-Exp Region 1:MMA Rev-Exp Region 11'!Z16) -> 0 | AA16: =SUM('MMA Rev-Exp Region 1:MMA Rev-Exp Region 11'!AA16) -> 0 | AB16: 0 | AC16: =SUM('MMA Rev-Exp Region 1:MMA Rev-Exp Region 11'!AC16) -> 0 | AD16: =SUM('MMA Rev-Exp Region 1:MMA Rev-Exp Region 11'!AD16) -> 0 | AE16: =SUM('MMA Rev-Exp Region 1:MMA Rev-Exp Region 11'!AE16) -> 0 | AF16: =SUM('MMA Rev-Exp Region 1:MMA Rev-Exp Region 11'!AF16) -> 0 | AG16: =SUM('MMA Rev-Exp Region 1:MMA Rev-Exp Region 11'!AG16) -> 0 | AH16: =SUM('MMA Rev-Exp Region 1:MMA Rev-Exp Region 11'!AH16) -> 0 | AI16: =SUM('MMA Rev-Exp Region 1:MMA Rev-Exp Region 11'!AI16) -> 0 | AJ16: =SUM('MMA Rev-Exp Region 1:MMA Rev-Exp Region 11'!AJ16) -> 0 | AK16: =SUM('MMA Rev-Exp Region 1:MMA Rev-Exp Region 11'!AK16) -> 0 | AL16: =SUM('MMA Rev-Exp Region 1:MMA Rev-Exp Region 11'!AL16) -> 0 | AM16: =SUM('MMA Rev-Exp Region 1:MMA Rev-Exp Region 11'!AM16) -> 0 | AN16: 0 | AO16: =SUM('MMA Rev-Exp Region 1:MMA Rev-Exp Region 11'!AO16) -> 0 | AP16: =SUM('MMA Rev-Exp Region 1:MMA Rev-Exp Region 11'!AP16) -> 0 | AQ16: =SUM('MMA Rev-Exp Region 1:MMA Rev-Exp Region 11'!AQ16) -> 0 | AR16: =SUM('MMA Rev-Exp Region 1:MMA Rev-Exp Region 11'!AR16) -> 0 | AS16: =SUM('MMA Rev-Exp Region 1:MMA Rev-Exp Region 11'!AS16) -> 0 | AT16: =SUM('MMA Rev-Exp Region 1:MMA Rev-Exp Region 11'!AT16) -> 0 | AU16: =SUM('MMA Rev-Exp Region 1:MMA Rev-Exp Region 11'!AU16) -> 0 | AV16: =SUM('MMA Rev-Exp Region 1:MMA Rev-Exp Region 11'!AV16) -> 0 | AW16: =SUM('MMA Rev-Exp Region 1:MMA Rev-Exp Region 11'!AW16) -> 0 | AX16: =SUM('MMA Rev-Exp Region 1:MMA Rev-Exp Region 11'!AX16) -> 0 | AY16: =SUM('MMA Rev-Exp Region 1:MMA Rev-Exp Region 11'!AY16) -> 0 | AZ16: =SUM('MMA Rev-Exp Region 1:MMA Rev-Exp Region 11'!AZ16) -> 0 | BA16: 0 | BB16: =SUM('MMA Rev-Exp Region 1:MMA Rev-Exp Region 11'!BB16) -> 0 | BC16: =SUM('MMA Rev-Exp Region 1:MMA Rev-Exp Region 11'!BC16) -> 0 | BD16: =SUM('MMA Rev-Exp Region 1:MMA Rev-Exp Region 11'!BD16) -> 0 | BE16: =SUM('MMA Rev-Exp Region 1:MMA Rev-Exp Region 11'!BE16) -> 0 | BF16: =SUM('MMA Rev-Exp Region 1:MMA Rev-Exp Region 11'!BF16) -> 0 | BG16: =SUM('MMA Rev-Exp Region 1:MMA Rev-Exp Region 11'!BG16) -> 0 | BH16: =SUM('MMA Rev-Exp Region 1:MMA Rev-Exp Region 11'!BH16) -> 0 | BI16: =SUM('MMA Rev-Exp Region 1:MMA Rev-Exp Region 11'!BI16) -> 0 | BJ16: =SUM('MMA Rev-Exp Region 1:MMA Rev-Exp Region 11'!BJ16) -> 0 | BK16: =SUM('MMA Rev-Exp Region 1:MMA Rev-Exp Region 11'!BK16) -> 0 | BL16: =SUM('MMA Rev-Exp Region 1:MMA Rev-Exp Region 11'!BL16) -> 0
B17: 1.7 | C17: Total Revenue | D17: =SUM(D11:D16) -> 8,967,796 | E17: 0 | F17: 0 | G17: 9,304 | H17: 18,956 | I17: 22,035 | J17: 0 | K17: 829 | L17: 10,272 | M17: 0 | N17: 3,584,721 | O17: 5,321,679 | P17: 9,405,086 | Q17: 0 | R17: 0 | S17: =SUM(S11:S16) -> 4,304 | T17: 20,631 | U17: 23,877 | V17: 0 | W17: 777 | X17: 10,272 | Y17: 0 | Z17: 3,842,040 | AA17: 5,503,185 | AB17: =SUM(AB11:AB16) -> 9,828,720 | AC17: =SUM(AC11:AC16) -> 0 | AD17: =SUM(AD11:AD16) -> 0 | AE17: =SUM(AE11:AE16) -> 8,194 | AF17: 19,746 | AG17: 23,780 | AH17: 0 | AI17: 710 | AJ17: 8,346 | AK17: 0 | AL17: 4,076,862 | AM17: 5,691,083 | AN17: =SUM(AN11:AN16) -> 11,119,876 | AO17: =SUM(AO11:AO16) -> 0 | AP17: =SUM(AP11:AP16) -> 0 | AQ17: =SUM(AQ11:AQ16) -> 2,139 | AR17: 9,444 | AS17: 17,038 | AT17: 0 | AU17: 0 | AV17: 8,745 | AW17: 0 | AX17: 4,361,131 | AY17: 6,721,378 | AZ17: =SUM(AZ11:AZ16) -> (111,045) | BA17: =SUM(BA11:BA16) -> 39,210,433 | BB17: =SUM('MMA Rev-Exp Region 1:MMA Rev-Exp Region 11'!BB17) -> 0 | BC17: =SUM('MMA Rev-Exp Region 1:MMA Rev-Exp Region 11'!BC17) -> 0 | BD17: =SUM('MMA Rev-Exp Region 1:MMA Rev-Exp Region 11'!BD17) -> 23,941 | BE17: =SUM('MMA Rev-Exp Region 1:MMA Rev-Exp Region 11'!BE17) -> 68,777 | BF17: =SUM('MMA Rev-Exp Region 1:MMA Rev-Exp Region 11'!BF17) -> 86,730 | BG17: =SUM('MMA Rev-Exp Region 1:MMA Rev-Exp Region 11'!BG17) -> 0 | BH17: =SUM('MMA Rev-Exp Region 1:MMA Rev-Exp Region 11'!BH17) -> 2,316 | BI17: =SUM('MMA Rev-Exp Region 1:MMA Rev-Exp Region 11'!BI17) -> 37,635 | BJ17: =SUM('MMA Rev-Exp Region 1:MMA Rev-Exp Region 11'!BJ17) -> 0 | BK17: =SUM('MMA Rev-Exp Region 1:MMA Rev-Exp Region 11'!BK17) -> 15,864,754 | BL17: =SUM('MMA Rev-Exp Region 1:MMA Rev-Exp Region 11'!BL17) -> 23,237,325
A18: BENEFIT EXPENSES | D18: JANUARY - MARCH (Q1) | P18: APRIL - JUNE (Q2) | AB18: JULY - SEPTEMBER (Q3) | AN18: OCTOBER - DECEMBER (Q4) | BA18: TOTAL (TO DATE)
D19: Total | E19: TANF Non-SMI | F19: TANF SMI | G19: SSI Medicaid Only Non-SMI | H19: SSI Medicaid Only SMI | I19: Dual Eligible | J19: Child Welfare | K19: HIV/AIDS Dual Eligible | L19: HIV/AIDS Medicaid Only | M19: Private Duty Nursing | N19: LTC Dual Eligible | O19: LTC Medicaid Only | P19: Total | Q19: TANF Non-SMI | R19: TANF SMI | S19: SSI Medicaid Only Non-SMI | T19: SSI Medicaid Only SMI | U19: Dual Eligible | V19: Child Welfare | W19: HIV/AIDS Dual Eligible | X19: HIV/AIDS Medicaid Only | Y19: Private Duty Nursing | Z19: LTC Dual Eligible | AA19: LTC Medicaid Only | AB19: Total | AC19: TANF Non-SMI | AD19: TANF SMI | AE19: SSI Medicaid Only Non-SMI | AF19: SSI Medicaid Only SMI | AG19: Dual Eligible | AH19: Child Welfare | AI19: HIV/AIDS Dual Eligible | AJ19: HIV/AIDS Medicaid Only | AK19: Private Duty Nursing | AL19: LTC Dual Eligible | AM19: LTC Medicaid Only | AN19: Total | AO19: TANF Non-SMI | AP19: TANF SMI | AQ19: SSI Medicaid Only Non-SMI | AR19: SSI Medicaid Only SMI | AS19: Dual Eligible | AT19: Child Welfare | AU19: HIV/AIDS Dual Eligible | AV19: HIV/AIDS Medicaid Only | AW19: Private Duty Nursing | AX19: LTC Dual Eligible | AY19: LTC Medicaid Only | AZ19: Prior Calendar Year Adjustments | BA19: Total | BB19: TANF Non-SMI | BC19: TANF SMI | BD19: SSI Medicaid Only Non-SMI | BE19: SSI Medicaid Only SMI | BF19: Dual Eligible | BG19: Child Welfare | BH19: HIV/AIDS Dual Eligible | BI19: HIV/AIDS Medicaid Only | BJ19: Private Duty Nursing | BK19: LTC Dual Eligible | BL19: LTC Medicaid Only
A20: Hospital Services | B20: 2.1 | C20: Inpatient FFS | D20: =SUM(E20:O20) -> 2,885,171 | E20: =SUM('MMA Rev-Exp Region 1:MMA Rev-Exp Region 11'!E20) -> 0 | F20: =SUM('MMA Rev-Exp Region 1:MMA Rev-Exp Region 11'!F20) -> 0 | G20: =SUM('MMA Rev-Exp Region 1:MMA Rev-Exp Region 11'!G20) -> 0 | H20: =SUM('MMA Rev-Exp Region 1:MMA Rev-Exp Region 11'!H20) -> 0 | I20: =SUM('MMA Rev-Exp Region 1:MMA Rev-Exp Region 11'!I20) -> 209 | J20: =SUM('MMA Rev-Exp Region 1:MMA Rev-Exp Region 11'!J20) -> 0 | K20: =SUM('MMA Rev-Exp Region 1:MMA Rev-Exp Region 11'!K20) -> 0 | L20: =SUM('MMA Rev-Exp Region 1:MMA Rev-Exp Region 11'!L20) -> 0 | M20: =SUM('MMA Rev-Exp Region 1:MMA Rev-Exp Region 11'!M20) -> 0 | N20: =SUM('MMA Rev-Exp Region 1:MMA Rev-Exp Region 11'!N20) -> 707,766 | O20: =SUM('MMA Rev-Exp Region 1:MMA Rev-Exp Region 11'!O20) -> 2,177,195 | P20: =SUM(Q20:AA20) -> 1,900,937 | Q20: =SUM('MMA Rev-Exp Region 1:MMA Rev-Exp Region 11'!Q20) -> 0 | R20: =SUM('MMA Rev-Exp Region 1:MMA Rev-Exp Region 11'!R20) -> 0 | S20: =SUM('MMA Rev-Exp Region 1:MMA Rev-Exp Region 11'!S20) -> 0 | T20: =SUM('MMA Rev-Exp Region 1:MMA Rev-Exp Region 11'!T20) -> 0 | U20: =SUM('MMA Rev-Exp Region 1:MMA Rev-Exp Region 11'!U20) -> 1,535 | V20: =SUM('MMA Rev-Exp Region 1:MMA Rev-Exp Region 11'!V20) -> 0 | W20: =SUM('MMA Rev-Exp Region 1:MMA Rev-Exp Region 11'!W20) -> 0 | X20: =SUM('MMA Rev-Exp Region 1:MMA Rev-Exp Region 11'!X20) -> 0 | Y20: =SUM('MMA Rev-Exp Region 1:MMA Rev-Exp Region 11'!Y20) -> 0 | Z20: =SUM('MMA Rev-Exp Region 1:MMA Rev-Exp Region 11'!Z20) -> 374,924 | AA20: =SUM('MMA Rev-Exp Region 1:MMA Rev-Exp Region 11'!AA20) -> 1,524,478 | AB20: =SUM(AC20:AM20) -> 1,956,644 | AC20: =SUM('MMA Rev-Exp Region 1:MMA Rev-Exp Region 11'!AC20) -> 0 | AD20: =SUM('MMA Rev-Exp Region 1:MMA Rev-Exp Region 11'!AD20) -> 0 | AE20: =SUM('MMA Rev-Exp Region 1:MMA Rev-Exp Region 11'!AE20) -> 0 | AF20: =SUM('MMA Rev-Exp Region 1:MMA Rev-Exp Region 11'!AF20) -> 0 | AG20: =SUM('MMA Rev-Exp Region 1:MMA Rev-Exp Region 11'!AG20) -> 0 | AH20: =SUM('MMA Rev-Exp Region 1:MMA Rev-Exp Region 11'!AH20) -> 0 | AI20: =SUM('MMA Rev-Exp Region 1:MMA Rev-Exp Region 11'!AI20) -> 0 | AJ20: =SUM('MMA Rev-Exp Region 1:MMA Rev-Exp Region 11'!AJ20) -> 0 | AK20: =SUM('MMA Rev-Exp Region 1:MMA Rev-Exp Region 11'!AK20) -> 0 | AL20: =SUM('MMA Rev-Exp Region 1:MMA Rev-Exp Region 11'!AL20) -> 284,361 | AM20: =SUM('MMA Rev-Exp Region 1:MMA Rev-Exp Region 11'!AM20) -> 1,672,283 | AN20: =SUM(AO20:AY20) -> 2,047,354 | AO20: =SUM('MMA Rev-Exp Region 1:MMA Rev-Exp Region 11'!AO20) -> 0 | AP20: =SUM('MMA Rev-Exp Region 1:MMA Rev-Exp Region 11'!AP20) -> 0 | AQ20: =SUM('MMA Rev-Exp Region 1:MMA Rev-Exp Region 11'!AQ20) -> 0 | AR20: =SUM('MMA Rev-Exp Region 1:MMA Rev-Exp Region 11'!AR20) -> 0 | AS20: =SUM('MMA Rev-Exp Region 1:MMA Rev-Exp Region 11'!AS20) -> 4 | AT20: =SUM('MMA Rev-Exp Region 1:MMA Rev-Exp Region 11'!AT20) -> 0 | AU20: =SUM('MMA Rev-Exp Region 1:MMA Rev-Exp Region 11'!AU20) -> 0 | AV20: =SUM('MMA Rev-Exp Region 1:MMA Rev-Exp Region 11'!AV20) -> 0 | AW20: =SUM('MMA Rev-Exp Region 1:MMA Rev-Exp Region 11'!AW20) -> 0 | AX20: =SUM('MMA Rev-Exp Region 1:MMA Rev-Exp Region 11'!AX20) -> 332,095 | AY20: =SUM('MMA Rev-Exp Region 1:MMA Rev-Exp Region 11'!AY20) -> 1,715,255 | AZ20: =SUM('MMA Rev-Exp Region 1:MMA Rev-Exp Region 11'!AZ20) -> 448,408 | BA20: =SUM(BB20:BL20)+AZ20 -> 9,238,513 | BB20: =SUM('MMA Rev-Exp Region 1:MMA Rev-Exp Region 11'!BB20) -> 0 | BC20: =SUM('MMA Rev-Exp Region 1:MMA Rev-Exp Region 11'!BC20) -> 0 | BD20: =SUM('MMA Rev-Exp Region 1:MMA Rev-Exp Region 11'!BD20) -> 0 | BE20: =SUM('MMA Rev-Exp Region 1:MMA Rev-Exp Region 11'!BE20) -> 0 | BF20: =SUM('MMA Rev-Exp Region 1:MMA Rev-Exp Region 11'!BF20) -> 1,748 | BG20: =SUM('MMA Rev-Exp Region 1:MMA Rev-Exp Region 11'!BG20) -> 0 | BH20: =SUM('MMA Rev-Exp Region 1:MMA Rev-Exp Region 11'!BH20) -> 0 | BI20: =SUM('MMA Rev-Exp Region 1:MMA Rev-Exp Region 11'!BI20) -> 0 | BJ20: =SUM('MMA Rev-Exp Region 1:MMA Rev-Exp Region 11'!BJ20) -> 0 | BK20: =SUM('MMA Rev-Exp Region 1:MMA Rev-Exp Region 11'!BK20) -> 1,699,146 | BL20: =SUM('MMA Rev-Exp Region 1:MMA Rev-Exp Region 11'!BL20) -> 7,089,211
B21: 2.2 | C21: Ending IBNP for Inpatient Hospital Services | D21: 22,419 | E21: =SUM('MMA Rev-Exp Region 1:MMA Rev-Exp Region 11'!E21) -> 0 | F21: =SUM('MMA Rev-Exp Region 1:MMA Rev-Exp Region 11'!F21) -> 0 | G21: =SUM('MMA Rev-Exp Region 1:MMA Rev-Exp Region 11'!G21) -> 0 | H21: =SUM('MMA Rev-Exp Region 1:MMA Rev-Exp Region 11'!H21) -> 0 | I21: =SUM('MMA Rev-Exp Region 1:MMA Rev-Exp Region 11'!I21) -> 2 | J21: =SUM('MMA Rev-Exp Region 1:MMA Rev-Exp Region 11'!J21) -> 0 | K21: =SUM('MMA Rev-Exp Region 1:MMA Rev-Exp Region 11'!K21) -> 0 | L21: =SUM('MMA Rev-Exp Region 1:MMA Rev-Exp Region 11'!L21) -> 0 | M21: =SUM('MMA Rev-Exp Region 1:MMA Rev-Exp Region 11'!M21) -> 0 | N21: =SUM('MMA Rev-Exp Region 1:MMA Rev-Exp Region 11'!N21) -> 5,500 | O21: =SUM('MMA Rev-Exp Region 1:MMA Rev-Exp Region 11'!O21) -> 16,918 | P21: 49,240 | Q21: =SUM('MMA Rev-Exp Region 1:MMA Rev-Exp Region 11'!Q21) -> 0 | R21: =SUM('MMA Rev-Exp Region 1:MMA Rev-Exp Region 11'!R21) -> 0 | S21: =SUM('MMA Rev-Exp Region 1:MMA Rev-Exp Region 11'!S21) -> 0 | T21: =SUM('MMA Rev-Exp Region 1:MMA Rev-Exp Region 11'!T21) -> 0 | U21: =SUM('MMA Rev-Exp Region 1:MMA Rev-Exp Region 11'!U21) -> 40 | V21: =SUM('MMA Rev-Exp Region 1:MMA Rev-Exp Region 11'!V21) -> 0 | W21: =SUM('MMA Rev-Exp Region 1:MMA Rev-Exp Region 11'!W21) -> 0 | X21: =SUM('MMA Rev-Exp Region 1:MMA Rev-Exp Region 11'!X21) -> 0 | Y21: =SUM('MMA Rev-Exp Region 1:MMA Rev-Exp Region 11'!Y21) -> 0 | Z21: =SUM('MMA Rev-Exp Region 1:MMA Rev-Exp Region 11'!Z21) -> 9,712 | AA21: =SUM('MMA Rev-Exp Region 1:MMA Rev-Exp Region 11'!AA21) -> 39,489 | AB21: 128,726 | AC21: =SUM('MMA Rev-Exp Region 1:MMA Rev-Exp Region 11'!AC21) -> 0 | AD21: =SUM('MMA Rev-Exp Region 1:MMA Rev-Exp Region 11'!AD21) -> 0 | AE21: =SUM('MMA Rev-Exp Region 1:MMA Rev-Exp Region 11'!AE21) -> 0 | AF21: =SUM('MMA Rev-Exp Region 1:MMA Rev-Exp Region 11'!AF21) -> 0 | AG21: =SUM('MMA Rev-Exp Region 1:MMA Rev-Exp Region 11'!AG21) -> 0 | AH21: =SUM('MMA Rev-Exp Region 1:MMA Rev-Exp Region 11'!AH21) -> 0 | AI21: =SUM('MMA Rev-Exp Region 1:MMA Rev-Exp Region 11'!AI21) -> 0 | AJ21: =SUM('MMA Rev-Exp Region 1:MMA Rev-Exp Region 11'!AJ21) -> 0 | AK21: =SUM('MMA Rev-Exp Region 1:MMA Rev-Exp Region 11'!AK21) -> 0 | AL21: =SUM('MMA Rev-Exp Region 1:MMA Rev-Exp Region 11'!AL21) -> 18,708 | AM21: =SUM('MMA Rev-Exp Region 1:MMA Rev-Exp Region 11'!AM21) -> 110,018 | AN21: 376,387 | AO21: =SUM('MMA Rev-Exp Region 1:MMA Rev-Exp Region 11'!AO21) -> 0 | AP21: =SUM('MMA Rev-Exp Region 1:MMA Rev-Exp Region 11'!AP21) -> 0 | AQ21: =SUM('MMA Rev-Exp Region 1:MMA Rev-Exp Region 11'!AQ21) -> 0 | AR21: =SUM('MMA Rev-Exp Region 1:MMA Rev-Exp Region 11'!AR21) -> 0 | AS21: =SUM('MMA Rev-Exp Region 1:MMA Rev-Exp Region 11'!AS21) -> 1 | AT21: =SUM('MMA Rev-Exp Region 1:MMA Rev-Exp Region 11'!AT21) -> 0 | AU21: =SUM('MMA Rev-Exp Region 1:MMA Rev-Exp Region 11'!AU21) -> 0 | AV21: =SUM('MMA Rev-Exp Region 1:MMA Rev-Exp Region 11'!AV21) -> 0 | AW21: =SUM('MMA Rev-Exp Region 1:MMA Rev-Exp Region 11'!AW21) -> 0 | AX21: =SUM('MMA Rev-Exp Region 1:MMA Rev-Exp Region 11'!AX21) -> 65,875 | AY21: =SUM('MMA Rev-Exp Region 1:MMA Rev-Exp Region 11'!AY21) -> 310,512 | AZ21: =SUM('MMA Rev-Exp Region 1:MMA Rev-Exp Region 11'!AZ21) -> (457,982) | BA21: =SUM(BB21:BL21)+AZ21 -> 118,791 | BB21: =SUM('MMA Rev-Exp Region 1:MMA Rev-Exp Region 11'!BB21) -> 0 | BC21: =SUM('MMA Rev-Exp Region 1:MMA Rev-Exp Region 11'!BC21) -> 0 | BD21: =SUM('MMA Rev-Exp Region 1:MMA Rev-Exp Region 11'!BD21) -> 0 | BE21: =SUM('MMA Rev-Exp Region 1:MMA Rev-Exp Region 11'!BE21) -> 0 | BF21: =SUM('MMA Rev-Exp Region 1:MMA Rev-Exp Region 11'!BF21) -> 42 | BG21: =SUM('MMA Rev-Exp Region 1:MMA Rev-Exp Region 11'!BG21) -> 0 | BH21: =SUM('MMA Rev-Exp Region 1:MMA Rev-Exp Region 11'!BH21) -> 0 | BI21: =SUM('MMA Rev-Exp Region 1:MMA Rev-Exp Region 11'!BI21) -> 0 | BJ21: =SUM('MMA Rev-Exp Region 1:MMA Rev-Exp Region 11'!BJ21) -> 0 | BK21: =SUM('MMA Rev-Exp Region 1:MMA Rev-Exp Region 11'!BK21) -> 99,794 | BL21: =SUM('MMA Rev-Exp Region 1:MMA Rev-Exp Region 11'!BL21) -> 476,936
B22: 2.3 | C22: Outpatient FFS: ER | D22: 273,570 | E22: =SUM('MMA Rev-Exp Region 1:MMA Rev-Exp Region 11'!E22) -> 0 | F22: =SUM('MMA Rev-Exp Region 1:MMA Rev-Exp Region 11'!F22) -> 0 | G22: =SUM('MMA Rev-Exp Region 1:MMA Rev-Exp Region 11'!G22) -> 0 | H22: =SUM('MMA Rev-Exp Region 1:MMA Rev-Exp Region 11'!H22) -> 0 | I22: =SUM('MMA Rev-Exp Region 1:MMA Rev-Exp Region 11'!I22) -> 101 | J22: =SUM('MMA Rev-Exp Region 1:MMA Rev-Exp Region 11'!J22) -> 0 | K22: =SUM('MMA Rev-Exp Region 1:MMA Rev-Exp Region 11'!K22) -> 0 | L22: =SUM('MMA Rev-Exp Region 1:MMA Rev-Exp Region 11'!L22) -> 0 | M22: =SUM('MMA Rev-Exp Region 1:MMA Rev-Exp Region 11'!M22) -> 0 | N22: =SUM('MMA Rev-Exp Region 1:MMA Rev-Exp Region 11'!N22) -> 79,437 | O22: =SUM('MMA Rev-Exp Region 1:MMA Rev-Exp Region 11'!O22) -> 194,032 | P22: 298,675 | Q22: =SUM('MMA Rev-Exp Region 1:MMA Rev-Exp Region 11'!Q22) -> 0 | R22: =SUM('MMA Rev-Exp Region 1:MMA Rev-Exp Region 11'!R22) -> 0 | S22: =SUM('MMA Rev-Exp Region 1:MMA Rev-Exp Region 11'!S22) -> 0 | T22: =SUM('MMA Rev-Exp Region 1:MMA Rev-Exp Region 11'!T22) -> 0 | U22: =SUM('MMA Rev-Exp Region 1:MMA Rev-Exp Region 11'!U22) -> 0 | V22: =SUM('MMA Rev-Exp Region 1:MMA Rev-Exp Region 11'!V22) -> 0 | W22: =SUM('MMA Rev-Exp Region 1:MMA Rev-Exp Region 11'!W22) -> 0 | X22: =SUM('MMA Rev-Exp Region 1:MMA Rev-Exp Region 11'!X22) -> 0 | Y22: =SUM('MMA Rev-Exp Region 1:MMA Rev-Exp Region 11'!Y22) -> 0 | Z22: =SUM('MMA Rev-Exp Region 1:MMA Rev-Exp Region 11'!Z22) -> 62,454 | AA22: =SUM('MMA Rev-Exp Region 1:MMA Rev-Exp Region 11'!AA22) -> 236,220 | AB22: 272,025 | AC22: =SUM('MMA Rev-Exp Region 1:MMA Rev-Exp Region 11'!AC22) -> 0 | AD22: =SUM('MMA Rev-Exp Region 1:MMA Rev-Exp Region 11'!AD22) -> 0 | AE22: =SUM('MMA Rev-Exp Region 1:MMA Rev-Exp Region 11'!AE22) -> 0 | AF22: =SUM('MMA Rev-Exp Region 1:MMA Rev-Exp Region 11'!AF22) -> 0 | AG22: =SUM('MMA Rev-Exp Region 1:MMA Rev-Exp Region 11'!AG22) -> 92 | AH22: =SUM('MMA Rev-Exp Region 1:MMA Rev-Exp Region 11'!AH22) -> 0 | AI22: =SUM('MMA Rev-Exp Region 1:MMA Rev-Exp Region 11'!AI22) -> 0 | AJ22: =SUM('MMA Rev-Exp Region 1:MMA Rev-Exp Region 11'!AJ22) -> 436 | AK22: =SUM('MMA Rev-Exp Region 1:MMA Rev-Exp Region 11'!AK22) -> 0 | AL22: =SUM('MMA Rev-Exp Region 1:MMA Rev-Exp Region 11'!AL22) -> 35,574 | AM22: =SUM('MMA Rev-Exp Region 1:MMA Rev-Exp Region 11'!AM22) -> 235,922 | AN22: 302,146 | AO22: =SUM('MMA Rev-Exp Region 1:MMA Rev-Exp Region 11'!AO22) -> 0 | AP22: =SUM('MMA Rev-Exp Region 1:MMA Rev-Exp Region 11'!AP22) -> 0 | AQ22: =SUM('MMA Rev-Exp Region 1:MMA Rev-Exp Region 11'!AQ22) -> 0 | AR22: =SUM('MMA Rev-Exp Region 1:MMA Rev-Exp Region 11'!AR22) -> 0 | AS22: =SUM('MMA Rev-Exp Region 1:MMA Rev-Exp Region 11'!AS22) -> 27 | AT22: =SUM('MMA Rev-Exp Region 1:MMA Rev-Exp Region 11'!AT22) -> 0 | AU22: =SUM('MMA Rev-Exp Region 1:MMA Rev-Exp Region 11'!AU22) -> 0 | AV22: =SUM('MMA Rev-Exp Region 1:MMA Rev-Exp Region 11'!AV22) -> 3,261 | AW22: =SUM('MMA Rev-Exp Region 1:MMA Rev-Exp Region 11'!AW22) -> 0 | AX22: =SUM('MMA Rev-Exp Region 1:MMA Rev-Exp Region 11'!AX22) -> 28,764 | AY22: =SUM('MMA Rev-Exp Region 1:MMA Rev-Exp Region 11'!AY22) -> 270,093 | AZ22: =SUM('MMA Rev-Exp Region 1:MMA Rev-Exp Region 11'!AZ22) -> 11,637 | BA22: 1,158,053 | BB22: =SUM('MMA Rev-Exp Region 1:MMA Rev-Exp Region 11'!BB22) -> 0 | BC22: =SUM('MMA Rev-Exp Region 1:MMA Rev-Exp Region 11'!BC22) -> 0 | BD22: =SUM('MMA Rev-Exp Region 1:MMA Rev-Exp Region 11'!BD22) -> 0 | BE22: =SUM('MMA Rev-Exp Region 1:MMA Rev-Exp Region 11'!BE22) -> 0 | BF22: =SUM('MMA Rev-Exp Region 1:MMA Rev-Exp Region 11'!BF22) -> 221 | BG22: =SUM('MMA Rev-Exp Region 1:MMA Rev-Exp Region 11'!BG22) -> 0 | BH22: =SUM('MMA Rev-Exp Region 1:MMA Rev-Exp Region 11'!BH22) -> 0 | BI22: =SUM('MMA Rev-Exp Region 1:MMA Rev-Exp Region 11'!BI22) -> 3,697 | BJ22: =SUM('MMA Rev-Exp Region 1:MMA Rev-Exp Region 11'!BJ22) -> 0 | BK22: =SUM('MMA Rev-Exp Region 1:MMA Rev-Exp Region 11'!BK22) -> 206,229 | BL22: =SUM('MMA Rev-Exp Region 1:MMA Rev-Exp Region 11'!BL22) -> 936,268
B23: 2.4 | C23: Outpatient FFS: Other than ER | D23: 439,713 | E23: =SUM('MMA Rev-Exp Region 1:MMA Rev-Exp Region 11'!E23) -> 0 | F23: =SUM('MMA Rev-Exp Region 1:MMA Rev-Exp Region 11'!F23) -> 0 | G23: =SUM('MMA Rev-Exp Region 1:MMA Rev-Exp Region 11'!G23) -> 0 | H23: =SUM('MMA Rev-Exp Region 1:MMA Rev-Exp Region 11'!H23) -> 0 | I23: =SUM('MMA Rev-Exp Region 1:MMA Rev-Exp Region 11'!I23) -> 3,668 | J23: =SUM('MMA Rev-Exp Region 1:MMA Rev-Exp Region 11'!J23) -> 0 | K23: =SUM('MMA Rev-Exp Region 1:MMA Rev-Exp Region 11'!K23) -> 0 | L23: =SUM('MMA Rev-Exp Region 1:MMA Rev-Exp Region 11'!L23) -> 0 | M23: =SUM('MMA Rev-Exp Region 1:MMA Rev-Exp Region 11'!M23) -> 0 | N23: =SUM('MMA Rev-Exp Region 1:MMA Rev-Exp Region 11'!N23) -> 305,276 | O23: =SUM('MMA Rev-Exp Region 1:MMA Rev-Exp Region 11'!O23) -> 130,769 | P23: 241,193 | Q23: =SUM('MMA Rev-Exp Region 1:MMA Rev-Exp Region 11'!Q23) -> 0 | R23: =SUM('MMA Rev-Exp Region 1:MMA Rev-Exp Region 11'!R23) -> 0 | S23: =SUM('MMA Rev-Exp Region 1:MMA Rev-Exp Region 11'!S23) -> 0 | T23: =SUM('MMA Rev-Exp Region 1:MMA Rev-Exp Region 11'!T23) -> 0 | U23: =SUM('MMA Rev-Exp Region 1:MMA Rev-Exp Region 11'!U23) -> 3 | V23: =SUM('MMA Rev-Exp Region 1:MMA Rev-Exp Region 11'!V23) -> 0 | W23: =SUM('MMA Rev-Exp Region 1:MMA Rev-Exp Region 11'!W23) -> 0 | X23: =SUM('MMA Rev-Exp Region 1:MMA Rev-Exp Region 11'!X23) -> 0 | Y23: =SUM('MMA Rev-Exp Region 1:MMA Rev-Exp Region 11'!Y23) -> 0 | Z23: =SUM('MMA Rev-Exp Region 1:MMA Rev-Exp Region 11'!Z23) -> 139,021 | AA23: =SUM('MMA Rev-Exp Region 1:MMA Rev-Exp Region 11'!AA23) -> 102,169 | AB23: 259,358 | AC23: =SUM('MMA Rev-Exp Region 1:MMA Rev-Exp Region 11'!AC23) -> 0 | AD23: =SUM('MMA Rev-Exp Region 1:MMA Rev-Exp Region 11'!AD23) -> 0 | AE23: =SUM('MMA Rev-Exp Region 1:MMA Rev-Exp Region 11'!AE23) -> 0 | AF23: =SUM('MMA Rev-Exp Region 1:MMA Rev-Exp Region 11'!AF23) -> 0 | AG23: =SUM('MMA Rev-Exp Region 1:MMA Rev-Exp Region 11'!AG23) -> 170 | AH23: =SUM('MMA Rev-Exp Region 1:MMA Rev-Exp Region 11'!AH23) -> 0 | AI23: =SUM('MMA Rev-Exp Region 1:MMA Rev-Exp Region 11'!AI23) -> 0 | AJ23: =SUM('MMA Rev-Exp Region 1:MMA Rev-Exp Region 11'!AJ23) -> 0 | AK23: =SUM('MMA Rev-Exp Region 1:MMA Rev-Exp Region 11'!AK23) -> 0 | AL23: =SUM('MMA Rev-Exp Region 1:MMA Rev-Exp Region 11'!AL23) -> 148,012 | AM23: =SUM('MMA Rev-Exp Region 1:MMA Rev-Exp Region 11'!AM23) -> 111,176 | AN23: 281,283 | AO23: =SUM('MMA Rev-Exp Region 1:MMA Rev-Exp Region 11'!AO23) -> 0 | AP23: =SUM('MMA Rev-Exp Region 1:MMA Rev-Exp Region 11'!AP23) -> 0 | AQ23: =SUM('MMA Rev-Exp Region 1:MMA Rev-Exp Region 11'!AQ23) -> 0 | AR23: =SUM('MMA Rev-Exp Region 1:MMA Rev-Exp Region 11'!AR23) -> 0 | AS23: =SUM('MMA Rev-Exp Region 1:MMA Rev-Exp Region 11'!AS23) -> 220 | AT23: =SUM('MMA Rev-Exp Region 1:MMA Rev-Exp Region 11'!AT23) -> 0 | AU23: =SUM('MMA Rev-Exp Region 1:MMA Rev-Exp Region 11'!AU23) -> 0 | AV23: =SUM('MMA Rev-Exp Region 1:MMA Rev-Exp Region 11'!AV23) -> 265 | AW23: =SUM('MMA Rev-Exp Region 1:MMA Rev-Exp Region 11'!AW23) -> 0 | AX23: =SUM('MMA Rev-Exp Region 1:MMA Rev-Exp Region 11'!AX23) -> 144,759 | AY23: =SUM('MMA Rev-Exp Region 1:MMA Rev-Exp Region 11'!AY23) -> 136,039 | AZ23: =SUM('MMA Rev-Exp Region 1:MMA Rev-Exp Region 11'!AZ23) -> (11,940) | BA23: =SUM(BB23:BL23)+AZ23 -> 1,209,607 | BB23: =SUM('MMA Rev-Exp Region 1:MMA Rev-Exp Region 11'!BB23) -> 0 | BC23: =SUM('MMA Rev-Exp Region 1:MMA Rev-Exp Region 11'!BC23) -> 0 | BD23: =SUM('MMA Rev-Exp Region 1:MMA Rev-Exp Region 11'!BD23) -> 0 | BE23: =SUM('MMA Rev-Exp Region 1:MMA Rev-Exp Region 11'!BE23) -> 0 | BF23: =SUM('MMA Rev-Exp Region 1:MMA Rev-Exp Region 11'!BF23) -> 4,060 | BG23: =SUM('MMA Rev-Exp Region 1:MMA Rev-Exp Region 11'!BG23) -> 0 | BH23: =SUM('MMA Rev-Exp Region 1:MMA Rev-Exp Region 11'!BH23) -> 0 | BI23: =SUM('MMA Rev-Exp Region 1:MMA Rev-Exp Region 11'!BI23) -> 265 | BJ23: =SUM('MMA Rev-Exp Region 1:MMA Rev-Exp Region 11'!BJ23) -> 0 | BK23: =SUM('MMA Rev-Exp Region 1:MMA Rev-Exp Region 11'!BK23) -> 737,068 | BL23: =SUM('MMA Rev-Exp Region 1:MMA Rev-Exp Region 11'!BL23) -> 480,154
B24: 2.5 | C24: Ending IBNP for Outpatient Hospital Services | D24: 5,542 | E24: =SUM('MMA Rev-Exp Region 1:MMA Rev-Exp Region 11'!E24) -> 0 | F24: =SUM('MMA Rev-Exp Region 1:MMA Rev-Exp Region 11'!F24) -> 0 | G24: =SUM('MMA Rev-Exp Region 1:MMA Rev-Exp Region 11'!G24) -> 0 | H24: =SUM('MMA Rev-Exp Region 1:MMA Rev-Exp Region 11'!H24) -> 0 | I24: =SUM('MMA Rev-Exp Region 1:MMA Rev-Exp Region 11'!I24) -> 29 | J24: =SUM('MMA Rev-Exp Region 1:MMA Rev-Exp Region 11'!J24) -> 0 | K24: =SUM('MMA Rev-Exp Region 1:MMA Rev-Exp Region 11'!K24) -> 0 | L24: =SUM('MMA Rev-Exp Region 1:MMA Rev-Exp Region 11'!L24) -> 0 | M24: =SUM('MMA Rev-Exp Region 1:MMA Rev-Exp Region 11'!M24) -> 0 | N24: =SUM('MMA Rev-Exp Region 1:MMA Rev-Exp Region 11'!N24) -> 2,989 | O24: =SUM('MMA Rev-Exp Region 1:MMA Rev-Exp Region 11'!O24) -> 2,524 | P24: 13,984 | Q24: =SUM('MMA Rev-Exp Region 1:MMA Rev-Exp Region 11'!Q24) -> 0 | R24: =SUM('MMA Rev-Exp Region 1:MMA Rev-Exp Region 11'!R24) -> 0 | S24: =SUM('MMA Rev-Exp Region 1:MMA Rev-Exp Region 11'!S24) -> 0 | T24: =SUM('MMA Rev-Exp Region 1:MMA Rev-Exp Region 11'!T24) -> 0 | U24: =SUM('MMA Rev-Exp Region 1:MMA Rev-Exp Region 11'!U24) -> 0 | V24: =SUM('MMA Rev-Exp Region 1:MMA Rev-Exp Region 11'!V24) -> 0 | W24: =SUM('MMA Rev-Exp Region 1:MMA Rev-Exp Region 11'!W24) -> 0 | X24: =SUM('MMA Rev-Exp Region 1:MMA Rev-Exp Region 11'!X24) -> 0 | Y24: =SUM('MMA Rev-Exp Region 1:MMA Rev-Exp Region 11'!Y24) -> 0 | Z24: =SUM('MMA Rev-Exp Region 1:MMA Rev-Exp Region 11'!Z24) -> 5,219 | AA24: =SUM('MMA Rev-Exp Region 1:MMA Rev-Exp Region 11'!AA24) -> 8,765 | AB24: 34,959 | AC24: =SUM('MMA Rev-Exp Region 1:MMA Rev-Exp Region 11'!AC24) -> 0 | AD24: =SUM('MMA Rev-Exp Region 1:MMA Rev-Exp Region 11'!AD24) -> 0 | AE24: =SUM('MMA Rev-Exp Region 1:MMA Rev-Exp Region 11'!AE24) -> 0 | AF24: =SUM('MMA Rev-Exp Region 1:MMA Rev-Exp Region 11'!AF24) -> 0 | AG24: =SUM('MMA Rev-Exp Region 1:MMA Rev-Exp Region 11'!AG24) -> 17 | AH24: =SUM('MMA Rev-Exp Region 1:MMA Rev-Exp Region 11'!AH24) -> 0 | AI24: =SUM('MMA Rev-Exp Region 1:MMA Rev-Exp Region 11'!AI24) -> 0 | AJ24: =SUM('MMA Rev-Exp Region 1:MMA Rev-Exp Region 11'!AJ24) -> 29 | AK24: =SUM('MMA Rev-Exp Region 1:MMA Rev-Exp Region 11'!AK24) -> 0 | AL24: =SUM('MMA Rev-Exp Region 1:MMA Rev-Exp Region 11'!AL24) -> 12,078 | AM24: =SUM('MMA Rev-Exp Region 1:MMA Rev-Exp Region 11'!AM24) -> 22,835 | AN24: 115,730 | AO24: =SUM('MMA Rev-Exp Region 1:MMA Rev-Exp Region 11'!AO24) -> 0 | AP24: =SUM('MMA Rev-Exp Region 1:MMA Rev-Exp Region 11'!AP24) -> 0 | AQ24: =SUM('MMA Rev-Exp Region 1:MMA Rev-Exp Region 11'!AQ24) -> 0 | AR24: =SUM('MMA Rev-Exp Region 1:MMA Rev-Exp Region 11'!AR24) -> 0 | AS24: =SUM('MMA Rev-Exp Region 1:MMA Rev-Exp Region 11'!AS24) -> 49 | AT24: =SUM('MMA Rev-Exp Region 1:MMA Rev-Exp Region 11'!AT24) -> 0 | AU24: =SUM('MMA Rev-Exp Region 1:MMA Rev-Exp Region 11'!AU24) -> 0 | AV24: =SUM('MMA Rev-Exp Region 1:MMA Rev-Exp Region 11'!AV24) -> 699 | AW24: =SUM('MMA Rev-Exp Region 1:MMA Rev-Exp Region 11'!AW24) -> 0 | AX24: =SUM('MMA Rev-Exp Region 1:MMA Rev-Exp Region 11'!AX24) -> 34,420 | AY24: =SUM('MMA Rev-Exp Region 1:MMA Rev-Exp Region 11'!AY24) -> 80,561 | AZ24: =SUM('MMA Rev-Exp Region 1:MMA Rev-Exp Region 11'!AZ24) -> (143,109) | BA24: 27,107 | BB24: =SUM('MMA Rev-Exp Region 1:MMA Rev-Exp Region 11'!BB24) -> 0 | BC24: =SUM('MMA Rev-Exp Region 1:MMA Rev-Exp Region 11'!BC24) -> 0 | BD24: =SUM('MMA Rev-Exp Region 1:MMA Rev-Exp Region 11'!BD24) -> 0 | BE24: =SUM('MMA Rev-Exp Region 1:MMA Rev-Exp Region 11'!BE24) -> 0 | BF24: =SUM('MMA Rev-Exp Region 1:MMA Rev-Exp Region 11'!BF24) -> 96 | BG24: =SUM('MMA Rev-Exp Region 1:MMA Rev-Exp Region 11'!BG24) -> 0 | BH24: =SUM('MMA Rev-Exp Region 1:MMA Rev-Exp Region 11'!BH24) -> 0 | BI24: =SUM('MMA Rev-Exp Region 1:MMA Rev-Exp Region 11'!BI24) -> 728 | BJ24: =SUM('MMA Rev-Exp Region 1:MMA Rev-Exp Region 11'!BJ24) -> 0 | BK24: =SUM('MMA Rev-Exp Region 1:MMA Rev-Exp Region 11'!BK24) -> 54,707 | BL24: =SUM('MMA Rev-Exp Region 1:MMA Rev-Exp Region 11'!BL24) -> 114,686
B25: 2.6 | C25: Subcapitated Hospital Services | D25: 0 | E25: =SUM('MMA Rev-Exp Region 1:MMA Rev-Exp Region 11'!E25) -> 0 | F25: =SUM('MMA Rev-Exp Region 1:MMA Rev-Exp Region 11'!F25) -> 0 | G25: =SUM('MMA Rev-Exp Region 1:MMA Rev-Exp Region 11'!G25) -> 0 | H25: =SUM('MMA Rev-Exp Region 1:MMA Rev-Exp Region 11'!H25) -> 0 | I25: =SUM('MMA Rev-Exp Region 1:MMA Rev-Exp Region 11'!I25) -> 0 | J25: =SUM('MMA Rev-Exp Region 1:MMA Rev-Exp Region 11'!J25) -> 0 | K25: =SUM('MMA Rev-Exp Region 1:MMA Rev-Exp Region 11'!K25) -> 0 | L25: =SUM('MMA Rev-Exp Region 1:MMA Rev-Exp Region 11'!L25) -> 0 | M25: =SUM('MMA Rev-Exp Region 1:MMA Rev-Exp Region 11'!M25) -> 0 | N25: =SUM('MMA Rev-Exp Region 1:MMA Rev-Exp Region 11'!N25) -> 0 | O25: =SUM('MMA Rev-Exp Region 1:MMA Rev-Exp Region 11'!O25) -> 0 | P25: 0 | Q25: =SUM('MMA Rev-Exp Region 1:MMA Rev-Exp Region 11'!Q25) -> 0 | R25: =SUM('MMA Rev-Exp Region 1:MMA Rev-Exp Region 11'!R25) -> 0 | S25: =SUM('MMA Rev-Exp Region 1:MMA Rev-Exp Region 11'!S25) -> 0 | T25: =SUM('MMA Rev-Exp Region 1:MMA Rev-Exp Region 11'!T25) -> 0 | U25: =SUM('MMA Rev-Exp Region 1:MMA Rev-Exp Region 11'!U25) -> 0 | V25: =SUM('MMA Rev-Exp Region 1:MMA Rev-Exp Region 11'!V25) -> 0 | W25: =SUM('MMA Rev-Exp Region 1:MMA Rev-Exp Region 11'!W25) -> 0 | X25: =SUM('MMA Rev-Exp Region 1:MMA Rev-Exp Region 11'!X25) -> 0 | Y25: =SUM('MMA Rev-Exp Region 1:MMA Rev-Exp Region 11'!Y25) -> 0 | Z25: =SUM('MMA Rev-Exp Region 1:MMA Rev-Exp Region 11'!Z25) -> 0 | AA25: =SUM('MMA Rev-Exp Region 1:MMA Rev-Exp Region 11'!AA25) -> 0 | AB25: 0 | AC25: =SUM('MMA Rev-Exp Region 1:MMA Rev-Exp Region 11'!AC25) -> 0 | AD25: =SUM('MMA Rev-Exp Region 1:MMA Rev-Exp Region 11'!AD25) -> 0 | AE25: =SUM('MMA Rev-Exp Region 1:MMA Rev-Exp Region 11'!AE25) -> 0 | AF25: =SUM('MMA Rev-Exp Region 1:MMA Rev-Exp Region 11'!AF25) -> 0 | AG25: =SUM('MMA Rev-Exp Region 1:MMA Rev-Exp Region 11'!AG25) -> 0 | AH25: =SUM('MMA Rev-Exp Region 1:MMA Rev-Exp Region 11'!AH25) -> 0 | AI25: =SUM('MMA Rev-Exp Region 1:MMA Rev-Exp Region 11'!AI25) -> 0 | AJ25: =SUM('MMA Rev-Exp Region 1:MMA Rev-Exp Region 11'!AJ25) -> 0 | AK25: =SUM('MMA Rev-Exp Region 1:MMA Rev-Exp Region 11'!AK25) -> 0 | AL25: =SUM('MMA Rev-Exp Region 1:MMA Rev-Exp Region 11'!AL25) -> 0 | AM25: =SUM('MMA Rev-Exp Region 1:MMA Rev-Exp Region 11'!AM25) -> 0 | AN25: 0 | AO25: =SUM('MMA Rev-Exp Region 1:MMA Rev-Exp Region 11'!AO25) -> 0 | AP25: =SUM('MMA Rev-Exp Region 1:MMA Rev-Exp Region 11'!AP25) -> 0 | AQ25: =SUM('MMA Rev-Exp Region 1:MMA Rev-Exp Region 11'!AQ25) -> 0 | AR25: =SUM('MMA Rev-Exp Region 1:MMA Rev-Exp Region 11'!AR25) -> 0 | AS25: =SUM('MMA Rev-Exp Region 1:MMA Rev-Exp Region 11'!AS25) -> 0 | AT25: =SUM('MMA Rev-Exp Region 1:MMA Rev-Exp Region 11'!AT25) -> 0 | AU25: =SUM('MMA Rev-Exp Region 1:MMA Rev-Exp Region 11'!AU25) -> 0 | AV25: =SUM('MMA Rev-Exp Region 1:MMA Rev-Exp Region 11'!AV25) -> 0 | AW25: =SUM('MMA Rev-Exp Region 1:MMA Rev-Exp Region 11'!AW25) -> 0 | AX25: =SUM('MMA Rev-Exp Region 1:MMA Rev-Exp Region 11'!AX25) -> 0 | AY25: =SUM('MMA Rev-Exp Region 1:MMA Rev-Exp Region 11'!AY25) -> 0 | AZ25: =SUM('MMA Rev-Exp Region 1:MMA Rev-Exp Region 11'!AZ25) -> 0 | BA25: =SUM(BB25:BL25)+AZ25 -> 0 | BB25: =SUM('MMA Rev-Exp Region 1:MMA Rev-Exp Region 11'!BB25) -> 0 | BC25: =SUM('MMA Rev-Exp Region 1:MMA Rev-Exp Region 11'!BC25) -> 0 | BD25: =SUM('MMA Rev-Exp Region 1:MMA Rev-Exp Region 11'!BD25) -> 0 | BE25: =SUM('MMA Rev-Exp Region 1:MMA Rev-Exp Region 11'!BE25) -> 0 | BF25: =SUM('MMA Rev-Exp Region 1:MMA Rev-Exp Region 11'!BF25) -> 0 | BG25: =SUM('MMA Rev-Exp Region 1:MMA Rev-Exp Region 11'!BG25) -> 0 | BH25: =SUM('MMA Rev-Exp Region 1:MMA Rev-Exp Region 11'!BH25) -> 0 | BI25: =SUM('MMA Rev-Exp Region 1:MMA Rev-Exp Region 11'!BI25) -> 0 | BJ25: =SUM('MMA Rev-Exp Region 1:MMA Rev-Exp Region 11'!BJ25) -> 0 | BK25: =SUM('MMA Rev-Exp Region 1:MMA Rev-Exp Region 11'!BK25) -> 0 | BL25: =SUM('MMA Rev-Exp Region 1:MMA Rev-Exp Region 11'!BL25) -> 0
B26: 2.7 | C26: Hospital Settlements/AP | D26: (11,726) | E26: =SUM('MMA Rev-Exp Region 1:MMA Rev-Exp Region 11'!E26) -> 0 | F26: =SUM('MMA Rev-Exp Region 1:MMA Rev-Exp Region 11'!F26) -> 0 | G26: =SUM('MMA Rev-Exp Region 1:MMA Rev-Exp Region 11'!G26) -> 2,548 | H26: =SUM('MMA Rev-Exp Region 1:MMA Rev-Exp Region 11'!H26) -> 9,906 | I26: =SUM('MMA Rev-Exp Region 1:MMA Rev-Exp Region 11'!I26) -> (980) | J26: =SUM('MMA Rev-Exp Region 1:MMA Rev-Exp Region 11'!J26) -> 0 | K26: =SUM('MMA Rev-Exp Region 1:MMA Rev-Exp Region 11'!K26) -> 223 | L26: =SUM('MMA Rev-Exp Region 1:MMA Rev-Exp Region 11'!L26) -> 8,834 | M26: =SUM('MMA Rev-Exp Region 1:MMA Rev-Exp Region 11'!M26) -> 0 | N26: =SUM('MMA Rev-Exp Region 1:MMA Rev-Exp Region 11'!N26) -> 39,328 | O26: =SUM('MMA Rev-Exp Region 1:MMA Rev-Exp Region 11'!O26) -> (71,584) | P26: 646,201 | Q26: =SUM('MMA Rev-Exp Region 1:MMA Rev-Exp Region 11'!Q26) -> 0 | R26: =SUM('MMA Rev-Exp Region 1:MMA Rev-Exp Region 11'!R26) -> 0 | S26: =SUM('MMA Rev-Exp Region 1:MMA Rev-Exp Region 11'!S26) -> 0 | T26: =SUM('MMA Rev-Exp Region 1:MMA Rev-Exp Region 11'!T26) -> 6,604 | U26: =SUM('MMA Rev-Exp Region 1:MMA Rev-Exp Region 11'!U26) -> (1,038) | V26: =SUM('MMA Rev-Exp Region 1:MMA Rev-Exp Region 11'!V26) -> 0 | W26: =SUM('MMA Rev-Exp Region 1:MMA Rev-Exp Region 11'!W26) -> 668 | X26: =SUM('MMA Rev-Exp Region 1:MMA Rev-Exp Region 11'!X26) -> 0 | Y26: =SUM('MMA Rev-Exp Region 1:MMA Rev-Exp Region 11'!Y26) -> 0 | Z26: =SUM('MMA Rev-Exp Region 1:MMA Rev-Exp Region 11'!Z26) -> 304,480 | AA26: =SUM('MMA Rev-Exp Region 1:MMA Rev-Exp Region 11'!AA26) -> 335,487 | AB26: 679,185 | AC26: =SUM('MMA Rev-Exp Region 1:MMA Rev-Exp Region 11'!AC26) -> 0 | AD26: =SUM('MMA Rev-Exp Region 1:MMA Rev-Exp Region 11'!AD26) -> 0 | AE26: =SUM('MMA Rev-Exp Region 1:MMA Rev-Exp Region 11'!AE26) -> 2,525 | AF26: =SUM('MMA Rev-Exp Region 1:MMA Rev-Exp Region 11'!AF26) -> 4,403 | AG26: =SUM('MMA Rev-Exp Region 1:MMA Rev-Exp Region 11'!AG26) -> 747 | AH26: =SUM('MMA Rev-Exp Region 1:MMA Rev-Exp Region 11'!AH26) -> 0 | AI26: =SUM('MMA Rev-Exp Region 1:MMA Rev-Exp Region 11'!AI26) -> 223 | AJ26: =SUM('MMA Rev-Exp Region 1:MMA Rev-Exp Region 11'!AJ26) -> 146 | AK26: =SUM('MMA Rev-Exp Region 1:MMA Rev-Exp Region 11'!AK26) -> 0 | AL26: =SUM('MMA Rev-Exp Region 1:MMA Rev-Exp Region 11'!AL26) -> 451,271 | AM26: =SUM('MMA Rev-Exp Region 1:MMA Rev-Exp Region 11'!AM26) -> 219,870 | AN26: 1,236,389 | AO26: =SUM('MMA Rev-Exp Region 1:MMA Rev-Exp Region 11'!AO26) -> 0 | AP26: =SUM('MMA Rev-Exp Region 1:MMA Rev-Exp Region 11'!AP26) -> 0 | AQ26: =SUM('MMA Rev-Exp Region 1:MMA Rev-Exp Region 11'!AQ26) -> 0 | AR26: =SUM('MMA Rev-Exp Region 1:MMA Rev-Exp Region 11'!AR26) -> 0 | AS26: =SUM('MMA Rev-Exp Region 1:MMA Rev-Exp Region 11'!AS26) -> 1,191 | AT26: =SUM('MMA Rev-Exp Region 1:MMA Rev-Exp Region 11'!AT26) -> 0 | AU26: =SUM('MMA Rev-Exp Region 1:MMA Rev-Exp Region 11'!AU26) -> 0 | AV26: =SUM('MMA Rev-Exp Region 1:MMA Rev-Exp Region 11'!AV26) -> 47,307 | AW26: =SUM('MMA Rev-Exp Region 1:MMA Rev-Exp Region 11'!AW26) -> 0 | AX26: =SUM('MMA Rev-Exp Region 1:MMA Rev-Exp Region 11'!AX26) -> 647,553 | AY26: =SUM('MMA Rev-Exp Region 1:MMA Rev-Exp Region 11'!AY26) -> 540,338 | AZ26: =SUM('MMA Rev-Exp Region 1:MMA Rev-Exp Region 11'!AZ26) -> 437,508 | BA26: 2,987,559 | BB26: =SUM('MMA Rev-Exp Region 1:MMA Rev-Exp Region 11'!BB26) -> 0 | BC26: =SUM('MMA Rev-Exp Region 1:MMA Rev-Exp Region 11'!BC26) -> 0 | BD26: =SUM('MMA Rev-Exp Region 1:MMA Rev-Exp Region 11'!BD26) -> 5,073 | BE26: =SUM('MMA Rev-Exp Region 1:MMA Rev-Exp Region 11'!BE26) -> 20,913 | BF26: =SUM('MMA Rev-Exp Region 1:MMA Rev-Exp Region 11'!BF26) -> (80) | BG26: =SUM('MMA Rev-Exp Region 1:MMA Rev-Exp Region 11'!BG26) -> 0 | BH26: =SUM('MMA Rev-Exp Region 1:MMA Rev-Exp Region 11'!BH26) -> 1,114 | BI26: =SUM('MMA Rev-Exp Region 1:MMA Rev-Exp Region 11'!BI26) -> 56,287 | BJ26: =SUM('MMA Rev-Exp Region 1:MMA Rev-Exp Region 11'!BJ26) -> 0 | BK26: =SUM('MMA Rev-Exp Region 1:MMA Rev-Exp Region 11'!BK26) -> 1,442,632 | BL26: =SUM('MMA Rev-Exp Region 1:MMA Rev-Exp Region 11'!BL26) -> 1,024,112
B27: 2.7.1 | C27: Transplant Services | D27: 0 | E27: =SUM('MMA Rev-Exp Region 1:MMA Rev-Exp Region 11'!E27) -> 0 | F27: =SUM('MMA Rev-Exp Region 1:MMA Rev-Exp Region 11'!F27) -> 0 | G27: =SUM('MMA Rev-Exp Region 1:MMA Rev-Exp Region 11'!G27) -> 0 | H27: =SUM('MMA Rev-Exp Region 1:MMA Rev-Exp Region 11'!H27) -> 0 | I27: =SUM('MMA Rev-Exp Region 1:MMA Rev-Exp Region 11'!I27) -> 0 | J27: =SUM('MMA Rev-Exp Region 1:MMA Rev-Exp Region 11'!J27) -> 0 | K27: =SUM('MMA Rev-Exp Region 1:MMA Rev-Exp Region 11'!K27) -> 0 | L27: =SUM('MMA Rev-Exp Region 1:MMA Rev-Exp Region 11'!L27) -> 0 | M27: =SUM('MMA Rev-Exp Region 1:MMA Rev-Exp Region 11'!M27) -> 0 | N27: =SUM('MMA Rev-Exp Region 1:MMA Rev-Exp Region 11'!N27) -> 0 | O27: =SUM('MMA Rev-Exp Region 1:MMA Rev-Exp Region 11'!O27) -> 0 | P27: 0 | Q27: =SUM('MMA Rev-Exp Region 1:MMA Rev-Exp Region 11'!Q27) -> 0 | R27: =SUM('MMA Rev-Exp Region 1:MMA Rev-Exp Region 11'!R27) -> 0 | S27: =SUM('MMA Rev-Exp Region 1:MMA Rev-Exp Region 11'!S27) -> 0 | T27: =SUM('MMA Rev-Exp Region 1:MMA Rev-Exp Region 11'!T27) -> 0 | U27: =SUM('MMA Rev-Exp Region 1:MMA Rev-Exp Region 11'!U27) -> 0 | V27: =SUM('MMA Rev-Exp Region 1:MMA Rev-Exp Region 11'!V27) -> 0 | W27: =SUM('MMA Rev-Exp Region 1:MMA Rev-Exp Region 11'!W27) -> 0 | X27: =SUM('MMA Rev-Exp Region 1:MMA Rev-Exp Region 11'!X27) -> 0 | Y27: =SUM('MMA Rev-Exp Region 1:MMA Rev-Exp Region 11'!Y27) -> 0 | Z27: =SUM('MMA Rev-Exp Region 1:MMA Rev-Exp Region 11'!Z27) -> 0 | AA27: =SUM('MMA Rev-Exp Region 1:MMA Rev-Exp Region 11'!AA27) -> 0 | AB27: 0 | AC27: =SUM('MMA Rev-Exp Region 1:MMA Rev-Exp Region 11'!AC27) -> 0 | AD27: =SUM('MMA Rev-Exp Region 1:MMA Rev-Exp Region 11'!AD27) -> 0 | AE27: =SUM('MMA Rev-Exp Region 1:MMA Rev-Exp Region 11'!AE27) -> 0 | AF27: =SUM('MMA Rev-Exp Region 1:MMA Rev-Exp Region 11'!AF27) -> 0 | AG27: =SUM('MMA Rev-Exp Region 1:MMA Rev-Exp Region 11'!AG27) -> 0 | AH27: =SUM('MMA Rev-Exp Region 1:MMA Rev-Exp Region 11'!AH27) -> 0 | AI27: =SUM('MMA Rev-Exp Region 1:MMA Rev-Exp Region 11'!AI27) -> 0 | AJ27: =SUM('MMA Rev-Exp Region 1:MMA Rev-Exp Region 11'!AJ27) -> 0 | AK27: =SUM('MMA Rev-Exp Region 1:MMA Rev-Exp Region 11'!AK27) -> 0 | AL27: =SUM('MMA Rev-Exp Region 1:MMA Rev-Exp Region 11'!AL27) -> 0 | AM27: =SUM('MMA Rev-Exp Region 1:MMA Rev-Exp Region 11'!AM27) -> 0 | AN27: 0 | AO27: =SUM('MMA Rev-Exp Region 1:MMA Rev-Exp Region 11'!AO27) -> 0 | AP27: =SUM('MMA Rev-Exp Region 1:MMA Rev-Exp Region 11'!AP27) -> 0 | AQ27: =SUM('MMA Rev-Exp Region 1:MMA Rev-Exp Region 11'!AQ27) -> 0 | AR27: =SUM('MMA Rev-Exp Region 1:MMA Rev-Exp Region 11'!AR27) -> 0 | AS27: =SUM('MMA Rev-Exp Region 1:MMA Rev-Exp Region 11'!AS27) -> 0 | AT27: =SUM('MMA Rev-Exp Region 1:MMA Rev-Exp Region 11'!AT27) -> 0 | AU27: =SUM('MMA Rev-Exp Region 1:MMA Rev-Exp Region 11'!AU27) -> 0 | AV27: =SUM('MMA Rev-Exp Region 1:MMA Rev-Exp Region 11'!AV27) -> 0 | AW27: =SUM('MMA Rev-Exp Region 1:MMA Rev-Exp Region 11'!AW27) -> 0 | AX27: =SUM('MMA Rev-Exp Region 1:MMA Rev-Exp Region 11'!AX27) -> 0 | AY27: =SUM('MMA Rev-Exp Region 1:MMA Rev-Exp Region 11'!AY27) -> 0 | AZ27: =SUM('MMA Rev-Exp Region 1:MMA Rev-Exp Region 11'!AZ27) -> 0 | BA27: 0 | BB27: =SUM('MMA Rev-Exp Region 1:MMA Rev-Exp Region 11'!BB27) -> 0 | BC27: =SUM('MMA Rev-Exp Region 1:MMA Rev-Exp Region 11'!BC27) -> 0 | BD27: =SUM('MMA Rev-Exp Region 1:MMA Rev-Exp Region 11'!BD27) -> 0 | BE27: =SUM('MMA Rev-Exp Region 1:MMA Rev-Exp Region 11'!BE27) -> 0 | BF27: =SUM('MMA Rev-Exp Region 1:MMA Rev-Exp Region 11'!BF27) -> 0 | BG27: =SUM('MMA Rev-Exp Region 1:MMA Rev-Exp Region 11'!BG27) -> 0 | BH27: =SUM('MMA Rev-Exp Region 1:MMA Rev-Exp Region 11'!BH27) -> 0 | BI27: =SUM('MMA Rev-Exp Region 1:MMA Rev-Exp Region 11'!BI27) -> 0 | BJ27: =SUM('MMA Rev-Exp Region 1:MMA Rev-Exp Region 11'!BJ27) -> 0 | BK27: =SUM('MMA Rev-Exp Region 1:MMA Rev-Exp Region 11'!BK27) -> 0 | BL27: =SUM('MMA Rev-Exp Region 1:MMA Rev-Exp Region 11'!BL27) -> 0
B28: 2.8 | C28: Total Hospital Services | D28: =SUM(D20:D27) -> 3,614,689 | E28: 0 | F28: 0 | G28: 2,548 | H28: 9,906 | I28: 3,029 | J28: 0 | K28: 223 | L28: 8,834 | M28: 0 | N28: 1,140,295 | O28: 2,449,854 | P28: 3,150,230 | Q28: =SUM(Q20:Q27) -> 0 | R28: 0 | S28: 0 | T28: 6,604 | U28: 540 | V28: 0 | W28: 668 | X28: 0 | Y28: 0 | Z28: 895,810 | AA28: 2,246,609 | AB28: =SUM(AB20:AB27) -> 3,330,898 | AC28: =SUM(AC20:AC27) -> 0 | AD28: 0 | AE28: 2,525 | AF28: 4,403 | AG28: 1,027 | AH28: 0 | AI28: 223 | AJ28: 611 | AK28: 0 | AL28: 950,004 | AM28: 2,372,105 | AN28: =SUM(AN20:AN27) -> 4,359,289 | AO28: =SUM(AO20:AO27) -> 0 | AP28: 0 | AQ28: 0 | AR28: 0 | AS28: 1,492 | AT28: 0 | AU28: 0 | AV28: 51,532 | AW28: 0 | AX28: 1,253,467 | AY28: 3,052,799 | AZ28: =SUM(AZ20:AZ27) -> 284,523 | BA28: =SUM(BA20:BA27) -> 14,739,629 | BB28: =SUM('MMA Rev-Exp Region 1:MMA Rev-Exp Region 11'!BB28) -> 0 | BC28: =SUM('MMA Rev-Exp Region 1:MMA Rev-Exp Region 11'!BC28) -> 0 | BD28: =SUM('MMA Rev-Exp Region 1:MMA Rev-Exp Region 11'!BD28) -> 5,073 | BE28: =SUM('MMA Rev-Exp Region 1:MMA Rev-Exp Region 11'!BE28) -> 20,913 | BF28: =SUM('MMA Rev-Exp Region 1:MMA Rev-Exp Region 11'!BF28) -> 6,088 | BG28: =SUM('MMA Rev-Exp Region 1:MMA Rev-Exp Region 11'!BG28) -> 0 | BH28: =SUM('MMA Rev-Exp Region 1:MMA Rev-Exp Region 11'!BH28) -> 1,114 | BI28: =SUM('MMA Rev-Exp Region 1:MMA Rev-Exp Region 11'!BI28) -> 60,977 | BJ28: =SUM('MMA Rev-Exp Region 1:MMA Rev-Exp Region 11'!BJ28) -> 0 | BK28: =SUM('MMA Rev-Exp Region 1:MMA Rev-Exp Region 11'!BK28) -> 4,239,576 | BL28: =SUM('MMA Rev-Exp Region 1:MMA Rev-Exp Region 11'!BL28) -> 10,121,366
A29: Professional Services | B29: 3.1 | C29: Primary Care FFS | D29: =SUM(E29:O29) -> 558,776 | E29: =SUM('MMA Rev-Exp Region 1:MMA Rev-Exp Region 11'!E29) -> 0 | F29: =SUM('MMA Rev-Exp Region 1:MMA Rev-Exp Region 11'!F29) -> 0 | G29: =SUM('MMA Rev-Exp Region 1:MMA Rev-Exp Region 11'!G29) -> 0 | H29: =SUM('MMA Rev-Exp Region 1:MMA Rev-Exp Region 11'!H29) -> 0 | I29: =SUM('MMA Rev-Exp Region 1:MMA Rev-Exp Region 11'!I29) -> 361 | J29: =SUM('MMA Rev-Exp Region 1:MMA Rev-Exp Region 11'!J29) -> 0 | K29: =SUM('MMA Rev-Exp Region 1:MMA Rev-Exp Region 11'!K29) -> 0 | L29: =SUM('MMA Rev-Exp Region 1:MMA Rev-Exp Region 11'!L29) -> 0 | M29: =SUM('MMA Rev-Exp Region 1:MMA Rev-Exp Region 11'!M29) -> 0 | N29: =SUM('MMA Rev-Exp Region 1:MMA Rev-Exp Region 11'!N29) -> 428,398 | O29: =SUM('MMA Rev-Exp Region 1:MMA Rev-Exp Region 11'!O29) -> 130,016 | P29: =SUM(Q29:AA29) -> 198,078 | Q29: =SUM('MMA Rev-Exp Region 1:MMA Rev-Exp Region 11'!Q29) -> 0 | R29: =SUM('MMA Rev-Exp Region 1:MMA Rev-Exp Region 11'!R29) -> 0 | S29: =SUM('MMA Rev-Exp Region 1:MMA Rev-Exp Region 11'!S29) -> 0 | T29: =SUM('MMA Rev-Exp Region 1:MMA Rev-Exp Region 11'!T29) -> 0 | U29: =SUM('MMA Rev-Exp Region 1:MMA Rev-Exp Region 11'!U29) -> 225 | V29: =SUM('MMA Rev-Exp Region 1:MMA Rev-Exp Region 11'!V29) -> 0 | W29: =SUM('MMA Rev-Exp Region 1:MMA Rev-Exp Region 11'!W29) -> 0 | X29: =SUM('MMA Rev-Exp Region 1:MMA Rev-Exp Region 11'!X29) -> 0 | Y29: =SUM('MMA Rev-Exp Region 1:MMA Rev-Exp Region 11'!Y29) -> 0 | Z29: =SUM('MMA Rev-Exp Region 1:MMA Rev-Exp Region 11'!Z29) -> 53,443 | AA29: =SUM('MMA Rev-Exp Region 1:MMA Rev-Exp Region 11'!AA29) -> 144,410 | AB29: =SUM(AC29:AM29) -> 173,069 | AC29: =SUM('MMA Rev-Exp Region 1:MMA Rev-Exp Region 11'!AC29) -> 0 | AD29: =SUM('MMA Rev-Exp Region 1:MMA Rev-Exp Region 11'!AD29) -> 0 | AE29: =SUM('MMA Rev-Exp Region 1:MMA Rev-Exp Region 11'!AE29) -> 0 | AF29: =SUM('MMA Rev-Exp Region 1:MMA Rev-Exp Region 11'!AF29) -> 0 | AG29: =SUM('MMA Rev-Exp Region 1:MMA Rev-Exp Region 11'!AG29) -> 34 | AH29: =SUM('MMA Rev-Exp Region 1:MMA Rev-Exp Region 11'!AH29) -> 0 | AI29: =SUM('MMA Rev-Exp Region 1:MMA Rev-Exp Region 11'!AI29) -> 0 | AJ29: =SUM('MMA Rev-Exp Region 1:MMA Rev-Exp Region 11'!AJ29) -> 0 | AK29: =SUM('MMA Rev-Exp Region 1:MMA Rev-Exp Region 11'!AK29) -> 0 | AL29: =SUM('MMA Rev-Exp Region 1:MMA Rev-Exp Region 11'!AL29) -> 34,475 | AM29: =SUM('MMA Rev-Exp Region 1:MMA Rev-Exp Region 11'!AM29) -> 138,559 | AN29: =SUM(AO29:AY29) -> 145,892 | AO29: =SUM('MMA Rev-Exp Region 1:MMA Rev-Exp Region 11'!AO29) -> 0 | AP29: =SUM('MMA Rev-Exp Region 1:MMA Rev-Exp Region 11'!AP29) -> 0 | AQ29: =SUM('MMA Rev-Exp Region 1:MMA Rev-Exp Region 11'!AQ29) -> 0 | AR29: =SUM('MMA Rev-Exp Region 1:MMA Rev-Exp Region 11'!AR29) -> 0 | AS29: =SUM('MMA Rev-Exp Region 1:MMA Rev-Exp Region 11'!AS29) -> 156 | AT29: =SUM('MMA Rev-Exp Region 1:MMA Rev-Exp Region 11'!AT29) -> 0 | AU29: =SUM('MMA Rev-Exp Region 1:MMA Rev-Exp Region 11'!AU29) -> 0 | AV29: =SUM('MMA Rev-Exp Region 1:MMA Rev-Exp Region 11'!AV29) -> 51 | AW29: =SUM('MMA Rev-Exp Region 1:MMA Rev-Exp Region 11'!AW29) -> 0 | AX29: =SUM('MMA Rev-Exp Region 1:MMA Rev-Exp Region 11'!AX29) -> 30,355 | AY29: =SUM('MMA Rev-Exp Region 1:MMA Rev-Exp Region 11'!AY29) -> 115,331 | AZ29: =SUM('MMA Rev-Exp Region 1:MMA Rev-Exp Region 11'!AZ29) -> 25,081 | BA29: =SUM(BB29:BL29)+AZ29 -> 1,100,896 | BB29: =SUM('MMA Rev-Exp Region 1:MMA Rev-Exp Region 11'!BB29) -> 0 | BC29: =SUM('MMA Rev-Exp Region 1:MMA Rev-Exp Region 11'!BC29) -> 0 | BD29: =SUM('MMA Rev-Exp Region 1:MMA Rev-Exp Region 11'!BD29) -> 0 | BE29: =SUM('MMA Rev-Exp Region 1:MMA Rev-Exp Region 11'!BE29) -> 0 | BF29: =SUM('MMA Rev-Exp Region 1:MMA Rev-Exp Region 11'!BF29) -> 776 | BG29: =SUM('MMA Rev-Exp Region 1:MMA Rev-Exp Region 11'!BG29) -> 0 | BH29: =SUM('MMA Rev-Exp Region 1:MMA Rev-Exp Region 11'!BH29) -> 0 | BI29: =SUM('MMA Rev-Exp Region 1:MMA Rev-Exp Region 11'!BI29) -> 51 | BJ29: =SUM('MMA Rev-Exp Region 1:MMA Rev-Exp Region 11'!BJ29) -> 0 | BK29: =SUM('MMA Rev-Exp Region 1:MMA Rev-Exp Region 11'!BK29) -> 546,671 | BL29: =SUM('MMA Rev-Exp Region 1:MMA Rev-Exp Region 11'!BL29) -> 528,316
B30: 3.2 | C30: Specialty Care FFS | D30: 94,557 | E30: =SUM('MMA Rev-Exp Region 1:MMA Rev-Exp Region 11'!E30) -> 0 | F30: =SUM('MMA Rev-Exp Region 1:MMA Rev-Exp Region 11'!F30) -> 0 | G30: =SUM('MMA Rev-Exp Region 1:MMA Rev-Exp Region 11'!G30) -> 0 | H30: =SUM('MMA Rev-Exp Region 1:MMA Rev-Exp Region 11'!H30) -> 0 | I30: =SUM('MMA Rev-Exp Region 1:MMA Rev-Exp Region 11'!I30) -> 146 | J30: =SUM('MMA Rev-Exp Region 1:MMA Rev-Exp Region 11'!J30) -> 0 | K30: =SUM('MMA Rev-Exp Region 1:MMA Rev-Exp Region 11'!K30) -> 0 | L30: =SUM('MMA Rev-Exp Region 1:MMA Rev-Exp Region 11'!L30) -> 0 | M30: =SUM('MMA Rev-Exp Region 1:MMA Rev-Exp Region 11'!M30) -> 0 | N30: =SUM('MMA Rev-Exp Region 1:MMA Rev-Exp Region 11'!N30) -> 69,137 | O30: =SUM('MMA Rev-Exp Region 1:MMA Rev-Exp Region 11'!O30) -> 25,275 | P30: 49,707 | Q30: =SUM('MMA Rev-Exp Region 1:MMA Rev-Exp Region 11'!Q30) -> 0 | R30: =SUM('MMA Rev-Exp Region 1:MMA Rev-Exp Region 11'!R30) -> 0 | S30: =SUM('MMA Rev-Exp Region 1:MMA Rev-Exp Region 11'!S30) -> 0 | T30: =SUM('MMA Rev-Exp Region 1:MMA Rev-Exp Region 11'!T30) -> 0 | U30: =SUM('MMA Rev-Exp Region 1:MMA Rev-Exp Region 11'!U30) -> 38 | V30: =SUM('MMA Rev-Exp Region 1:MMA Rev-Exp Region 11'!V30) -> 0 | W30: =SUM('MMA Rev-Exp Region 1:MMA Rev-Exp Region 11'!W30) -> 0 | X30: =SUM('MMA Rev-Exp Region 1:MMA Rev-Exp Region 11'!X30) -> 0 | Y30: =SUM('MMA Rev-Exp Region 1:MMA Rev-Exp Region 11'!Y30) -> 0 | Z30: =SUM('MMA Rev-Exp Region 1:MMA Rev-Exp Region 11'!Z30) -> 28,544 | AA30: =SUM('MMA Rev-Exp Region 1:MMA Rev-Exp Region 11'!AA30) -> 21,125 | AB30: 52,350 | AC30: =SUM('MMA Rev-Exp Region 1:MMA Rev-Exp Region 11'!AC30) -> 0 | AD30: =SUM('MMA Rev-Exp Region 1:MMA Rev-Exp Region 11'!AD30) -> 0 | AE30: =SUM('MMA Rev-Exp Region 1:MMA Rev-Exp Region 11'!AE30) -> 0 | AF30: =SUM('MMA Rev-Exp Region 1:MMA Rev-Exp Region 11'!AF30) -> 0 | AG30: =SUM('MMA Rev-Exp Region 1:MMA Rev-Exp Region 11'!AG30) -> 59 | AH30: =SUM('MMA Rev-Exp Region 1:MMA Rev-Exp Region 11'!AH30) -> 0 | AI30: =SUM('MMA Rev-Exp Region 1:MMA Rev-Exp Region 11'!AI30) -> 0 | AJ30: =SUM('MMA Rev-Exp Region 1:MMA Rev-Exp Region 11'!AJ30) -> 0 | AK30: =SUM('MMA Rev-Exp Region 1:MMA Rev-Exp Region 11'!AK30) -> 0 | AL30: =SUM('MMA Rev-Exp Region 1:MMA Rev-Exp Region 11'!AL30) -> 27,355 | AM30: =SUM('MMA Rev-Exp Region 1:MMA Rev-Exp Region 11'!AM30) -> 24,936 | AN30: 32,730 | AO30: =SUM('MMA Rev-Exp Region 1:MMA Rev-Exp Region 11'!AO30) -> 0 | AP30: =SUM('MMA Rev-Exp Region 1:MMA Rev-Exp Region 11'!AP30) -> 0 | AQ30: =SUM('MMA Rev-Exp Region 1:MMA Rev-Exp Region 11'!AQ30) -> 0 | AR30: =SUM('MMA Rev-Exp Region 1:MMA Rev-Exp Region 11'!AR30) -> 0 | AS30: =SUM('MMA Rev-Exp Region 1:MMA Rev-Exp Region 11'!AS30) -> 122 | AT30: =SUM('MMA Rev-Exp Region 1:MMA Rev-Exp Region 11'!AT30) -> 0 | AU30: =SUM('MMA Rev-Exp Region 1:MMA Rev-Exp Region 11'!AU30) -> 0 | AV30: =SUM('MMA Rev-Exp Region 1:MMA Rev-Exp Region 11'!AV30) -> 0 | AW30: =SUM('MMA Rev-Exp Region 1:MMA Rev-Exp Region 11'!AW30) -> 0 | AX30: =SUM('MMA Rev-Exp Region 1:MMA Rev-Exp Region 11'!AX30) -> 13,852 | AY30: =SUM('MMA Rev-Exp Region 1:MMA Rev-Exp Region 11'!AY30) -> 18,756 | AZ30: =SUM('MMA Rev-Exp Region 1:MMA Rev-Exp Region 11'!AZ30) -> 0 | BA30: =SUM(BB30:BL30)+AZ30 -> 229,344 | BB30: =SUM('MMA Rev-Exp Region 1:MMA Rev-Exp Region 11'!BB30) -> 0 | BC30: =SUM('MMA Rev-Exp Region 1:MMA Rev-Exp Region 11'!BC30) -> 0 | BD30: =SUM('MMA Rev-Exp Region 1:MMA Rev-Exp Region 11'!BD30) -> 0 | BE30: =SUM('MMA Rev-Exp Region 1:MMA Rev-Exp Region 11'!BE30) -> 0 | BF30: =SUM('MMA Rev-Exp Region 1:MMA Rev-Exp Region 11'!BF30) -> 365 | BG30: =SUM('MMA Rev-Exp Region 1:MMA Rev-Exp Region 11'!BG30) -> 0 | BH30: =SUM('MMA Rev-Exp Region 1:MMA Rev-Exp Region 11'!BH30) -> 0 | BI30: =SUM('MMA Rev-Exp Region 1:MMA Rev-Exp Region 11'!BI30) -> 0 | BJ30: =SUM('MMA Rev-Exp Region 1:MMA Rev-Exp Region 11'!BJ30) -> 0 | BK30: =SUM('MMA Rev-Exp Region 1:MMA Rev-Exp Region 11'!BK30) -> 138,887 | BL30: =SUM('MMA Rev-Exp Region 1:MMA Rev-Exp Region 11'!BL30) -> 90,092
B31: 3.3 | C31: Other Professional FFS | D31: 2,175 | E31: =SUM('MMA Rev-Exp Region 1:MMA Rev-Exp Region 11'!E31) -> 0 | F31: =SUM('MMA Rev-Exp Region 1:MMA Rev-Exp Region 11'!F31) -> 0 | G31: =SUM('MMA Rev-Exp Region 1:MMA Rev-Exp Region 11'!G31) -> 0 | H31: =SUM('MMA Rev-Exp Region 1:MMA Rev-Exp Region 11'!H31) -> 0 | I31: =SUM('MMA Rev-Exp Region 1:MMA Rev-Exp Region 11'!I31) -> 0 | J31: =SUM('MMA Rev-Exp Region 1:MMA Rev-Exp Region 11'!J31) -> 0 | K31: =SUM('MMA Rev-Exp Region 1:MMA Rev-Exp Region 11'!K31) -> 0 | L31: =SUM('MMA Rev-Exp Region 1:MMA Rev-Exp Region 11'!L31) -> 0 | M31: =SUM('MMA Rev-Exp Region 1:MMA Rev-Exp Region 11'!M31) -> 0 | N31: =SUM('MMA Rev-Exp Region 1:MMA Rev-Exp Region 11'!N31) -> 1,076 | O31: =SUM('MMA Rev-Exp Region 1:MMA Rev-Exp Region 11'!O31) -> 1,099 | P31: 1,388 | Q31: =SUM('MMA Rev-Exp Region 1:MMA Rev-Exp Region 11'!Q31) -> 0 | R31: =SUM('MMA Rev-Exp Region 1:MMA Rev-Exp Region 11'!R31) -> 0 | S31: =SUM('MMA Rev-Exp Region 1:MMA Rev-Exp Region 11'!S31) -> 0 | T31: =SUM('MMA Rev-Exp Region 1:MMA Rev-Exp Region 11'!T31) -> 0 | U31: =SUM('MMA Rev-Exp Region 1:MMA Rev-Exp Region 11'!U31) -> 0 | V31: =SUM('MMA Rev-Exp Region 1:MMA Rev-Exp Region 11'!V31) -> 0 | W31: =SUM('MMA Rev-Exp Region 1:MMA Rev-Exp Region 11'!W31) -> 0 | X31: =SUM('MMA Rev-Exp Region 1:MMA Rev-Exp Region 11'!X31) -> 0 | Y31: =SUM('MMA Rev-Exp Region 1:MMA Rev-Exp Region 11'!Y31) -> 0 | Z31: =SUM('MMA Rev-Exp Region 1:MMA Rev-Exp Region 11'!Z31) -> 300 | AA31: =SUM('MMA Rev-Exp Region 1:MMA Rev-Exp Region 11'!AA31) -> 1,088 | AB31: 1,805 | AC31: =SUM('MMA Rev-Exp Region 1:MMA Rev-Exp Region 11'!AC31) -> 0 | AD31: =SUM('MMA Rev-Exp Region 1:MMA Rev-Exp Region 11'!AD31) -> 0 | AE31: =SUM('MMA Rev-Exp Region 1:MMA Rev-Exp Region 11'!AE31) -> 0 | AF31: =SUM('MMA Rev-Exp Region 1:MMA Rev-Exp Region 11'!AF31) -> 0 | AG31: =SUM('MMA Rev-Exp Region 1:MMA Rev-Exp Region 11'!AG31) -> 0 | AH31: =SUM('MMA Rev-Exp Region 1:MMA Rev-Exp Region 11'!AH31) -> 0 | AI31: =SUM('MMA Rev-Exp Region 1:MMA Rev-Exp Region 11'!AI31) -> 0 | AJ31: =SUM('MMA Rev-Exp Region 1:MMA Rev-Exp Region 11'!AJ31) -> 0 | AK31: =SUM('MMA Rev-Exp Region 1:MMA Rev-Exp Region 11'!AK31) -> 0 | AL31: =SUM('MMA Rev-Exp Region 1:MMA Rev-Exp Region 11'!AL31) -> 355 | AM31: =SUM('MMA Rev-Exp Region 1:MMA Rev-Exp Region 11'!AM31) -> 1,449 | AN31: 2,203 | AO31: =SUM('MMA Rev-Exp Region 1:MMA Rev-Exp Region 11'!AO31) -> 0 | AP31: =SUM('MMA Rev-Exp Region 1:MMA Rev-Exp Region 11'!AP31) -> 0 | AQ31: =SUM('MMA Rev-Exp Region 1:MMA Rev-Exp Region 11'!AQ31) -> 0 | AR31: =SUM('MMA Rev-Exp Region 1:MMA Rev-Exp Region 11'!AR31) -> 0 | AS31: =SUM('MMA Rev-Exp Region 1:MMA Rev-Exp Region 11'!AS31) -> 0 | AT31: =SUM('MMA Rev-Exp Region 1:MMA Rev-Exp Region 11'!AT31) -> 0 | AU31: =SUM('MMA Rev-Exp Region 1:MMA Rev-Exp Region 11'!AU31) -> 0 | AV31: =SUM('MMA Rev-Exp Region 1:MMA Rev-Exp Region 11'!AV31) -> 0 | AW31: =SUM('MMA Rev-Exp Region 1:MMA Rev-Exp Region 11'!AW31) -> 0 | AX31: =SUM('MMA Rev-Exp Region 1:MMA Rev-Exp Region 11'!AX31) -> 191 | AY31: =SUM('MMA Rev-Exp Region 1:MMA Rev-Exp Region 11'!AY31) -> 2,013 | AZ31: =SUM('MMA Rev-Exp Region 1:MMA Rev-Exp Region 11'!AZ31) -> 90 | BA31: 7,660 | BB31: =SUM('MMA Rev-Exp Region 1:MMA Rev-Exp Region 11'!BB31) -> 0 | BC31: =SUM('MMA Rev-Exp Region 1:MMA Rev-Exp Region 11'!BC31) -> 0 | BD31: =SUM('MMA Rev-Exp Region 1:MMA Rev-Exp Region 11'!BD31) -> 0 | BE31: =SUM('MMA Rev-Exp Region 1:MMA Rev-Exp Region 11'!BE31) -> 0 | BF31: =SUM('MMA Rev-Exp Region 1:MMA Rev-Exp Region 11'!BF31) -> 0 | BG31: =SUM('MMA Rev-Exp Region 1:MMA Rev-Exp Region 11'!BG31) -> 0 | BH31: =SUM('MMA Rev-Exp Region 1:MMA Rev-Exp Region 11'!BH31) -> 0 | BI31: =SUM('MMA Rev-Exp Region 1:MMA Rev-Exp Region 11'!BI31) -> 0 | BJ31: =SUM('MMA Rev-Exp Region 1:MMA Rev-Exp Region 11'!BJ31) -> 0 | BK31: =SUM('MMA Rev-Exp Region 1:MMA Rev-Exp Region 11'!BK31) -> 1,922 | BL31: =SUM('MMA Rev-Exp Region 1:MMA Rev-Exp Region 11'!BL31) -> 5,649
B32: 3.4 | C32: § 1202 PCP Payments to providers | D32: 0 | E32: =SUM('MMA Rev-Exp Region 1:MMA Rev-Exp Region 11'!E32) -> 0 | F32: =SUM('MMA Rev-Exp Region 1:MMA Rev-Exp Region 11'!F32) -> 0 | G32: =SUM('MMA Rev-Exp Region 1:MMA Rev-Exp Region 11'!G32) -> 0 | H32: =SUM('MMA Rev-Exp Region 1:MMA Rev-Exp Region 11'!H32) -> 0 | I32: =SUM('MMA Rev-Exp Region 1:MMA Rev-Exp Region 11'!I32) -> 0 | J32: =SUM('MMA Rev-Exp Region 1:MMA Rev-Exp Region 11'!J32) -> 0 | K32: =SUM('MMA Rev-Exp Region 1:MMA Rev-Exp Region 11'!K32) -> 0 | L32: =SUM('MMA Rev-Exp Region 1:MMA Rev-Exp Region 11'!L32) -> 0 | M32: =SUM('MMA Rev-Exp Region 1:MMA Rev-Exp Region 11'!M32) -> 0 | N32: =SUM('MMA Rev-Exp Region 1:MMA Rev-Exp Region 11'!N32) -> 0 | O32: =SUM('MMA Rev-Exp Region 1:MMA Rev-Exp Region 11'!O32) -> 0 | P32: 0 | Q32: =SUM('MMA Rev-Exp Region 1:MMA Rev-Exp Region 11'!Q32) -> 0 | R32: =SUM('MMA Rev-Exp Region 1:MMA Rev-Exp Region 11'!R32) -> 0 | S32: =SUM('MMA Rev-Exp Region 1:MMA Rev-Exp Region 11'!S32) -> 0 | T32: =SUM('MMA Rev-Exp Region 1:MMA Rev-Exp Region 11'!T32) -> 0 | U32: =SUM('MMA Rev-Exp Region 1:MMA Rev-Exp Region 11'!U32) -> 0 | V32: =SUM('MMA Rev-Exp Region 1:MMA Rev-Exp Region 11'!V32) -> 0 | W32: =SUM('MMA Rev-Exp Region 1:MMA Rev-Exp Region 11'!W32) -> 0 | X32: =SUM('MMA Rev-Exp Region 1:MMA Rev-Exp Region 11'!X32) -> 0 | Y32: =SUM('MMA Rev-Exp Region 1:MMA Rev-Exp Region 11'!Y32) -> 0 | Z32: =SUM('MMA Rev-Exp Region 1:MMA Rev-Exp Region 11'!Z32) -> 0 | AA32: =SUM('MMA Rev-Exp Region 1:MMA Rev-Exp Region 11'!AA32) -> 0 | AB32: 0 | AC32: =SUM('MMA Rev-Exp Region 1:MMA Rev-Exp Region 11'!AC32) -> 0 | AD32: =SUM('MMA Rev-Exp Region 1:MMA Rev-Exp Region 11'!AD32) -> 0 | AE32: =SUM('MMA Rev-Exp Region 1:MMA Rev-Exp Region 11'!AE32) -> 0 | AF32: =SUM('MMA Rev-Exp Region 1:MMA Rev-Exp Region 11'!AF32) -> 0 | AG32: =SUM('MMA Rev-Exp Region 1:MMA Rev-Exp Region 11'!AG32) -> 0 | AH32: =SUM('MMA Rev-Exp Region 1:MMA Rev-Exp Region 11'!AH32) -> 0 | AI32: =SUM('MMA Rev-Exp Region 1:MMA Rev-Exp Region 11'!AI32) -> 0 | AJ32: =SUM('MMA Rev-Exp Region 1:MMA Rev-Exp Region 11'!AJ32) -> 0 | AK32: =SUM('MMA Rev-Exp Region 1:MMA Rev-Exp Region 11'!AK32) -> 0 | AL32: =SUM('MMA Rev-Exp Region 1:MMA Rev-Exp Region 11'!AL32) -> 0 | AM32: =SUM('MMA Rev-Exp Region 1:MMA Rev-Exp Region 11'!AM32) -> 0 | AN32: 0 | AO32: =SUM('MMA Rev-Exp Region 1:MMA Rev-Exp Region 11'!AO32) -> 0 | AP32: =SUM('MMA Rev-Exp Region 1:MMA Rev-Exp Region 11'!AP32) -> 0 | AQ32: =SUM('MMA Rev-Exp Region 1:MMA Rev-Exp Region 11'!AQ32) -> 0 | AR32: =SUM('MMA Rev-Exp Region 1:MMA Rev-Exp Region 11'!AR32) -> 0 | AS32: =SUM('MMA Rev-Exp Region 1:MMA Rev-Exp Region 11'!AS32) -> 0 | AT32: =SUM('MMA Rev-Exp Region 1:MMA Rev-Exp Region 11'!AT32) -> 0 | AU32: =SUM('MMA Rev-Exp Region 1:MMA Rev-Exp Region 11'!AU32) -> 0 | AV32: =SUM('MMA Rev-Exp Region 1:MMA Rev-Exp Region 11'!AV32) -> 0 | AW32: =SUM('MMA Rev-Exp Region 1:MMA Rev-Exp Region 11'!AW32) -> 0 | AX32: =SUM('MMA Rev-Exp Region 1:MMA Rev-Exp Region 11'!AX32) -> 0 | AY32: =SUM('MMA Rev-Exp Region 1:MMA Rev-Exp Region 11'!AY32) -> 0 | AZ32: =SUM('MMA Rev-Exp Region 1:MMA Rev-Exp Region 11'!AZ32) -> 0 | BA32: 0 | BB32: =SUM('MMA Rev-Exp Region 1:MMA Rev-Exp Region 11'!BB32) -> 0 | BC32: =SUM('MMA Rev-Exp Region 1:MMA Rev-Exp Region 11'!BC32) -> 0 | BD32: =SUM('MMA Rev-Exp Region 1:MMA Rev-Exp Region 11'!BD32) -> 0 | BE32: =SUM('MMA Rev-Exp Region 1:MMA Rev-Exp Region 11'!BE32) -> 0 | BF32: =SUM('MMA Rev-Exp Region 1:MMA Rev-Exp Region 11'!BF32) -> 0 | BG32: =SUM('MMA Rev-Exp Region 1:MMA Rev-Exp Region 11'!BG32) -> 0 | BH32: =SUM('MMA Rev-Exp Region 1:MMA Rev-Exp Region 11'!BH32) -> 0 | BI32: =SUM('MMA Rev-Exp Region 1:MMA Rev-Exp Region 11'!BI32) -> 0 | BJ32: =SUM('MMA Rev-Exp Region 1:MMA Rev-Exp Region 11'!BJ32) -> 0 | BK32: =SUM('MMA Rev-Exp Region 1:MMA Rev-Exp Region 11'!BK32) -> 0 | BL32: =SUM('MMA Rev-Exp Region 1:MMA Rev-Exp Region 11'!BL32) -> 0
B33: 3.5 | C33: Subcapitated Professional Services | D33: 0 | E33: =SUM('MMA Rev-Exp Region 1:MMA Rev-Exp Region 11'!E33) -> 0 | F33: =SUM('MMA Rev-Exp Region 1:MMA Rev-Exp Region 11'!F33) -> 0 | G33: =SUM('MMA Rev-Exp Region 1:MMA Rev-Exp Region 11'!G33) -> 0 | H33: =SUM('MMA Rev-Exp Region 1:MMA Rev-Exp Region 11'!H33) -> 0 | I33: =SUM('MMA Rev-Exp Region 1:MMA Rev-Exp Region 11'!I33) -> 0 | J33: =SUM('MMA Rev-Exp Region 1:MMA Rev-Exp Region 11'!J33) -> 0 | K33: =SUM('MMA Rev-Exp Region 1:MMA Rev-Exp Region 11'!K33) -> 0 | L33: =SUM('MMA Rev-Exp Region 1:MMA Rev-Exp Region 11'!L33) -> 0 | M33: =SUM('MMA Rev-Exp Region 1:MMA Rev-Exp Region 11'!M33) -> 0 | N33: =SUM('MMA Rev-Exp Region 1:MMA Rev-Exp Region 11'!N33) -> 0 | O33: =SUM('MMA Rev-Exp Region 1:MMA Rev-Exp Region 11'!O33) -> 0 | P33: 0 | Q33: =SUM('MMA Rev-Exp Region 1:MMA Rev-Exp Region 11'!Q33) -> 0 | R33: =SUM('MMA Rev-Exp Region 1:MMA Rev-Exp Region 11'!R33) -> 0 | S33: =SUM('MMA Rev-Exp Region 1:MMA Rev-Exp Region 11'!S33) -> 0 | T33: =SUM('MMA Rev-Exp Region 1:MMA Rev-Exp Region 11'!T33) -> 0 | U33: =SUM('MMA Rev-Exp Region 1:MMA Rev-Exp Region 11'!U33) -> 0 | V33: =SUM('MMA Rev-Exp Region 1:MMA Rev-Exp Region 11'!V33) -> 0 | W33: =SUM('MMA Rev-Exp Region 1:MMA Rev-Exp Region 11'!W33) -> 0 | X33: =SUM('MMA Rev-Exp Region 1:MMA Rev-Exp Region 11'!X33) -> 0 | Y33: =SUM('MMA Rev-Exp Region 1:MMA Rev-Exp Region 11'!Y33) -> 0 | Z33: =SUM('MMA Rev-Exp Region 1:MMA Rev-Exp Region 11'!Z33) -> 0 | AA33: =SUM('MMA Rev-Exp Region 1:MMA Rev-Exp Region 11'!AA33) -> 0 | AB33: 0 | AC33: =SUM('MMA Rev-Exp Region 1:MMA Rev-Exp Region 11'!AC33) -> 0 | AD33: =SUM('MMA Rev-Exp Region 1:MMA Rev-Exp Region 11'!AD33) -> 0 | AE33: =SUM('MMA Rev-Exp Region 1:MMA Rev-Exp Region 11'!AE33) -> 0 | AF33: =SUM('MMA Rev-Exp Region 1:MMA Rev-Exp Region 11'!AF33) -> 0 | AG33: =SUM('MMA Rev-Exp Region 1:MMA Rev-Exp Region 11'!AG33) -> 0 | AH33: =SUM('MMA Rev-Exp Region 1:MMA Rev-Exp Region 11'!AH33) -> 0 | AI33: =SUM('MMA Rev-Exp Region 1:MMA Rev-Exp Region 11'!AI33) -> 0 | AJ33: =SUM('MMA Rev-Exp Region 1:MMA Rev-Exp Region 11'!AJ33) -> 0 | AK33: =SUM('MMA Rev-Exp Region 1:MMA Rev-Exp Region 11'!AK33) -> 0 | AL33: =SUM('MMA Rev-Exp Region 1:MMA Rev-Exp Region 11'!AL33) -> 0 | AM33: =SUM('MMA Rev-Exp Region 1:MMA Rev-Exp Region 11'!AM33) -> 0 | AN33: 0 | AO33: =SUM('MMA Rev-Exp Region 1:MMA Rev-Exp Region 11'!AO33) -> 0 | AP33: =SUM('MMA Rev-Exp Region 1:MMA Rev-Exp Region 11'!AP33) -> 0 | AQ33: =SUM('MMA Rev-Exp Region 1:MMA Rev-Exp Region 11'!AQ33) -> 0 | AR33: =SUM('MMA Rev-Exp Region 1:MMA Rev-Exp Region 11'!AR33) -> 0 | AS33: =SUM('MMA Rev-Exp Region 1:MMA Rev-Exp Region 11'!AS33) -> 0 | AT33: =SUM('MMA Rev-Exp Region 1:MMA Rev-Exp Region 11'!AT33) -> 0 | AU33: =SUM('MMA Rev-Exp Region 1:MMA Rev-Exp Region 11'!AU33) -> 0 | AV33: =SUM('MMA Rev-Exp Region 1:MMA Rev-Exp Region 11'!AV33) -> 0 | AW33: =SUM('MMA Rev-Exp Region 1:MMA Rev-Exp Region 11'!AW33) -> 0 | AX33: =SUM('MMA Rev-Exp Region 1:MMA Rev-Exp Region 11'!AX33) -> 0 | AY33: =SUM('MMA Rev-Exp Region 1:MMA Rev-Exp Region 11'!AY33) -> 0 | AZ33: =SUM('MMA Rev-Exp Region 1:MMA Rev-Exp Region 11'!AZ33) -> 0 | BA33: 0 | BB33: =SUM('MMA Rev-Exp Region 1:MMA Rev-Exp Region 11'!BB33) -> 0 | BC33: =SUM('MMA Rev-Exp Region 1:MMA Rev-Exp Region 11'!BC33) -> 0 | BD33: =SUM('MMA Rev-Exp Region 1:MMA Rev-Exp Region 11'!BD33) -> 0 | BE33: =SUM('MMA Rev-Exp Region 1:MMA Rev-Exp Region 11'!BE33) -> 0 | BF33: =SUM('MMA Rev-Exp Region 1:MMA Rev-Exp Region 11'!BF33) -> 0 | BG33: =SUM('MMA Rev-Exp Region 1:MMA Rev-Exp Region 11'!BG33) -> 0 | BH33: =SUM('MMA Rev-Exp Region 1:MMA Rev-Exp Region 11'!BH33) -> 0 | BI33: =SUM('MMA Rev-Exp Region 1:MMA Rev-Exp Region 11'!BI33) -> 0 | BJ33: =SUM('MMA Rev-Exp Region 1:MMA Rev-Exp Region 11'!BJ33) -> 0 | BK33: =SUM('MMA Rev-Exp Region 1:MMA Rev-Exp Region 11'!BK33) -> 0 | BL33: =SUM('MMA Rev-Exp Region 1:MMA Rev-Exp Region 11'!BL33) -> 0
B34: 3.6 | C34: Ending IBNP for Professional Services | D34: 5,094 | E34: =SUM('MMA Rev-Exp Region 1:MMA Rev-Exp Region 11'!E34) -> 0 | F34: =SUM('MMA Rev-Exp Region 1:MMA Rev-Exp Region 11'!F34) -> 0 | G34: =SUM('MMA Rev-Exp Region 1:MMA Rev-Exp Region 11'!G34) -> 0 | H34: =SUM('MMA Rev-Exp Region 1:MMA Rev-Exp Region 11'!H34) -> 0 | I34: =SUM('MMA Rev-Exp Region 1:MMA Rev-Exp Region 11'!I34) -> 4 | J34: =SUM('MMA Rev-Exp Region 1:MMA Rev-Exp Region 11'!J34) -> 0 | K34: =SUM('MMA Rev-Exp Region 1:MMA Rev-Exp Region 11'!K34) -> 0 | L34: =SUM('MMA Rev-Exp Region 1:MMA Rev-Exp Region 11'!L34) -> 0 | M34: =SUM('MMA Rev-Exp Region 1:MMA Rev-Exp Region 11'!M34) -> 0 | N34: =SUM('MMA Rev-Exp Region 1:MMA Rev-Exp Region 11'!N34) -> 3,874 | O34: =SUM('MMA Rev-Exp Region 1:MMA Rev-Exp Region 11'!O34) -> 1,215 | P34: 6,454 | Q34: =SUM('MMA Rev-Exp Region 1:MMA Rev-Exp Region 11'!Q34) -> 0 | R34: =SUM('MMA Rev-Exp Region 1:MMA Rev-Exp Region 11'!R34) -> 0 | S34: =SUM('MMA Rev-Exp Region 1:MMA Rev-Exp Region 11'!S34) -> 0 | T34: =SUM('MMA Rev-Exp Region 1:MMA Rev-Exp Region 11'!T34) -> 0 | U34: =SUM('MMA Rev-Exp Region 1:MMA Rev-Exp Region 11'!U34) -> 7 | V34: =SUM('MMA Rev-Exp Region 1:MMA Rev-Exp Region 11'!V34) -> 0 | W34: =SUM('MMA Rev-Exp Region 1:MMA Rev-Exp Region 11'!W34) -> 0 | X34: =SUM('MMA Rev-Exp Region 1:MMA Rev-Exp Region 11'!X34) -> 0 | Y34: =SUM('MMA Rev-Exp Region 1:MMA Rev-Exp Region 11'!Y34) -> 0 | Z34: =SUM('MMA Rev-Exp Region 1:MMA Rev-Exp Region 11'!Z34) -> 2,131 | AA34: =SUM('MMA Rev-Exp Region 1:MMA Rev-Exp Region 11'!AA34) -> 4,316 | AB34: 14,949 | AC34: =SUM('MMA Rev-Exp Region 1:MMA Rev-Exp Region 11'!AC34) -> 0 | AD34: =SUM('MMA Rev-Exp Region 1:MMA Rev-Exp Region 11'!AD34) -> 0 | AE34: =SUM('MMA Rev-Exp Region 1:MMA Rev-Exp Region 11'!AE34) -> 0 | AF34: =SUM('MMA Rev-Exp Region 1:MMA Rev-Exp Region 11'!AF34) -> 0 | AG34: =SUM('MMA Rev-Exp Region 1:MMA Rev-Exp Region 11'!AG34) -> 6 | AH34: =SUM('MMA Rev-Exp Region 1:MMA Rev-Exp Region 11'!AH34) -> 0 | AI34: =SUM('MMA Rev-Exp Region 1:MMA Rev-Exp Region 11'!AI34) -> 0 | AJ34: =SUM('MMA Rev-Exp Region 1:MMA Rev-Exp Region 11'!AJ34) -> 0 | AK34: =SUM('MMA Rev-Exp Region 1:MMA Rev-Exp Region 11'!AK34) -> 0 | AL34: =SUM('MMA Rev-Exp Region 1:MMA Rev-Exp Region 11'!AL34) -> 4,091 | AM34: =SUM('MMA Rev-Exp Region 1:MMA Rev-Exp Region 11'!AM34) -> 10,852 | AN34: 35,869 | AO34: =SUM('MMA Rev-Exp Region 1:MMA Rev-Exp Region 11'!AO34) -> 0 | AP34: =SUM('MMA Rev-Exp Region 1:MMA Rev-Exp Region 11'!AP34) -> 0 | AQ34: =SUM('MMA Rev-Exp Region 1:MMA Rev-Exp Region 11'!AQ34) -> 0 | AR34: =SUM('MMA Rev-Exp Region 1:MMA Rev-Exp Region 11'!AR34) -> 0 | AS34: =SUM('MMA Rev-Exp Region 1:MMA Rev-Exp Region 11'!AS34) -> 55 | AT34: =SUM('MMA Rev-Exp Region 1:MMA Rev-Exp Region 11'!AT34) -> 0 | AU34: =SUM('MMA Rev-Exp Region 1:MMA Rev-Exp Region 11'!AU34) -> 0 | AV34: =SUM('MMA Rev-Exp Region 1:MMA Rev-Exp Region 11'!AV34) -> 10 | AW34: =SUM('MMA Rev-Exp Region 1:MMA Rev-Exp Region 11'!AW34) -> 0 | AX34: =SUM('MMA Rev-Exp Region 1:MMA Rev-Exp Region 11'!AX34) -> 8,807 | AY34: =SUM('MMA Rev-Exp Region 1:MMA Rev-Exp Region 11'!AY34) -> 26,997 | AZ34: =SUM('MMA Rev-Exp Region 1:MMA Rev-Exp Region 11'!AZ34) -> (36,848) | BA34: 25,517 | BB34: =SUM('MMA Rev-Exp Region 1:MMA Rev-Exp Region 11'!BB34) -> 0 | BC34: =SUM('MMA Rev-Exp Region 1:MMA Rev-Exp Region 11'!BC34) -> 0 | BD34: =SUM('MMA Rev-Exp Region 1:MMA Rev-Exp Region 11'!BD34) -> 0 | BE34: =SUM('MMA Rev-Exp Region 1:MMA Rev-Exp Region 11'!BE34) -> 0 | BF34: =SUM('MMA Rev-Exp Region 1:MMA Rev-Exp Region 11'!BF34) -> 72 | BG34: =SUM('MMA Rev-Exp Region 1:MMA Rev-Exp Region 11'!BG34) -> 0 | BH34: =SUM('MMA Rev-Exp Region 1:MMA Rev-Exp Region 11'!BH34) -> 0 | BI34: =SUM('MMA Rev-Exp Region 1:MMA Rev-Exp Region 11'!BI34) -> 10 | BJ34: =SUM('MMA Rev-Exp Region 1:MMA Rev-Exp Region 11'!BJ34) -> 0 | BK34: =SUM('MMA Rev-Exp Region 1:MMA Rev-Exp Region 11'!BK34) -> 18,904 | BL34: =SUM('MMA Rev-Exp Region 1:MMA Rev-Exp Region 11'!BL34) -> 43,380
B35: 3.7 | C35: Professional Settlements/AP | D35: 89,174 | E35: =SUM('MMA Rev-Exp Region 1:MMA Rev-Exp Region 11'!E35) -> 0 | F35: =SUM('MMA Rev-Exp Region 1:MMA Rev-Exp Region 11'!F35) -> 0 | G35: =SUM('MMA Rev-Exp Region 1:MMA Rev-Exp Region 11'!G35) -> 0 | H35: =SUM('MMA Rev-Exp Region 1:MMA Rev-Exp Region 11'!H35) -> 0 | I35: =SUM('MMA Rev-Exp Region 1:MMA Rev-Exp Region 11'!I35) -> (133) | J35: =SUM('MMA Rev-Exp Region 1:MMA Rev-Exp Region 11'!J35) -> 0 | K35: =SUM('MMA Rev-Exp Region 1:MMA Rev-Exp Region 11'!K35) -> 0 | L35: =SUM('MMA Rev-Exp Region 1:MMA Rev-Exp Region 11'!L35) -> 0 | M35: =SUM('MMA Rev-Exp Region 1:MMA Rev-Exp Region 11'!M35) -> 0 | N35: =SUM('MMA Rev-Exp Region 1:MMA Rev-Exp Region 11'!N35) -> 67,008 | O35: =SUM('MMA Rev-Exp Region 1:MMA Rev-Exp Region 11'!O35) -> 22,298 | P35: 83,419 | Q35: =SUM('MMA Rev-Exp Region 1:MMA Rev-Exp Region 11'!Q35) -> 0 | R35: =SUM('MMA Rev-Exp Region 1:MMA Rev-Exp Region 11'!R35) -> 0 | S35: =SUM('MMA Rev-Exp Region 1:MMA Rev-Exp Region 11'!S35) -> 0 | T35: =SUM('MMA Rev-Exp Region 1:MMA Rev-Exp Region 11'!T35) -> 0 | U35: =SUM('MMA Rev-Exp Region 1:MMA Rev-Exp Region 11'!U35) -> 439 | V35: =SUM('MMA Rev-Exp Region 1:MMA Rev-Exp Region 11'!V35) -> 0 | W35: =SUM('MMA Rev-Exp Region 1:MMA Rev-Exp Region 11'!W35) -> 0 | X35: =SUM('MMA Rev-Exp Region 1:MMA Rev-Exp Region 11'!X35) -> 0 | Y35: =SUM('MMA Rev-Exp Region 1:MMA Rev-Exp Region 11'!Y35) -> 0 | Z35: =SUM('MMA Rev-Exp Region 1:MMA Rev-Exp Region 11'!Z35) -> 41,932 | AA35: =SUM('MMA Rev-Exp Region 1:MMA Rev-Exp Region 11'!AA35) -> 41,048 | AB35: 98,105 | AC35: =SUM('MMA Rev-Exp Region 1:MMA Rev-Exp Region 11'!AC35) -> 0 | AD35: =SUM('MMA Rev-Exp Region 1:MMA Rev-Exp Region 11'!AD35) -> 0 | AE35: =SUM('MMA Rev-Exp Region 1:MMA Rev-Exp Region 11'!AE35) -> 0 | AF35: =SUM('MMA Rev-Exp Region 1:MMA Rev-Exp Region 11'!AF35) -> 0 | AG35: =SUM('MMA Rev-Exp Region 1:MMA Rev-Exp Region 11'!AG35) -> 369 | AH35: =SUM('MMA Rev-Exp Region 1:MMA Rev-Exp Region 11'!AH35) -> 0 | AI35: =SUM('MMA Rev-Exp Region 1:MMA Rev-Exp Region 11'!AI35) -> 0 | AJ35: =SUM('MMA Rev-Exp Region 1:MMA Rev-Exp Region 11'!AJ35) -> 0 | AK35: =SUM('MMA Rev-Exp Region 1:MMA Rev-Exp Region 11'!AK35) -> 0 | AL35: =SUM('MMA Rev-Exp Region 1:MMA Rev-Exp Region 11'!AL35) -> 58,890 | AM35: =SUM('MMA Rev-Exp Region 1:MMA Rev-Exp Region 11'!AM35) -> 38,847 | AN35: 108,681 | AO35: =SUM('MMA Rev-Exp Region 1:MMA Rev-Exp Region 11'!AO35) -> 0 | AP35: =SUM('MMA Rev-Exp Region 1:MMA Rev-Exp Region 11'!AP35) -> 0 | AQ35: =SUM('MMA Rev-Exp Region 1:MMA Rev-Exp Region 11'!AQ35) -> 0 | AR35: =SUM('MMA Rev-Exp Region 1:MMA Rev-Exp Region 11'!AR35) -> 0 | AS35: =SUM('MMA Rev-Exp Region 1:MMA Rev-Exp Region 11'!AS35) -> 118 | AT35: =SUM('MMA Rev-Exp Region 1:MMA Rev-Exp Region 11'!AT35) -> 0 | AU35: =SUM('MMA Rev-Exp Region 1:MMA Rev-Exp Region 11'!AU35) -> 0 | AV35: =SUM('MMA Rev-Exp Region 1:MMA Rev-Exp Region 11'!AV35) -> 679 | AW35: =SUM('MMA Rev-Exp Region 1:MMA Rev-Exp Region 11'!AW35) -> 0 | AX35: =SUM('MMA Rev-Exp Region 1:MMA Rev-Exp Region 11'!AX35) -> 60,195 | AY35: =SUM('MMA Rev-Exp Region 1:MMA Rev-Exp Region 11'!AY35) -> 47,688 | AZ35: =SUM('MMA Rev-Exp Region 1:MMA Rev-Exp Region 11'!AZ35) -> (10,365) | BA35: 369,014 | BB35: =SUM('MMA Rev-Exp Region 1:MMA Rev-Exp Region 11'!BB35) -> 0 | BC35: =SUM('MMA Rev-Exp Region 1:MMA Rev-Exp Region 11'!BC35) -> 0 | BD35: =SUM('MMA Rev-Exp Region 1:MMA Rev-Exp Region 11'!BD35) -> 0 | BE35: =SUM('MMA Rev-Exp Region 1:MMA Rev-Exp Region 11'!BE35) -> 0 | BF35: =SUM('MMA Rev-Exp Region 1:MMA Rev-Exp Region 11'!BF35) -> 794 | BG35: =SUM('MMA Rev-Exp Region 1:MMA Rev-Exp Region 11'!BG35) -> 0 | BH35: =SUM('MMA Rev-Exp Region 1:MMA Rev-Exp Region 11'!BH35) -> 0 | BI35: =SUM('MMA Rev-Exp Region 1:MMA Rev-Exp Region 11'!BI35) -> 679 | BJ35: =SUM('MMA Rev-Exp Region 1:MMA Rev-Exp Region 11'!BJ35) -> 0 | BK35: =SUM('MMA Rev-Exp Region 1:MMA Rev-Exp Region 11'!BK35) -> 228,025 | BL35: =SUM('MMA Rev-Exp Region 1:MMA Rev-Exp Region 11'!BL35) -> 149,881
B36: 3.8 | C36: Total Physician Services | D36: =SUM(D29:D35) -> 749,775 | E36: 0 | F36: 0 | G36: 0 | H36: 0 | I36: 379 | J36: 0 | K36: 0 | L36: 0 | M36: 0 | N36: 569,493 | O36: 179,903 | P36: 339,046 | Q36: 0 | R36: =SUM(R29:R35) -> 0 | S36: 0 | T36: 0 | U36: 709 | V36: 0 | W36: 0 | X36: 0 | Y36: 0 | Z36: 126,350 | AA36: 211,987 | AB36: =SUM(AB29:AB35) -> 340,278 | AC36: =SUM(AC29:AC35) -> 0 | AD36: =SUM(AD29:AD35) -> 0 | AE36: 0 | AF36: 0 | AG36: 468 | AH36: 0 | AI36: 0 | AJ36: 0 | AK36: 0 | AL36: 125,166 | AM36: 214,643 | AN36: =SUM(AN29:AN35) -> 325,375 | AO36: =SUM(AO29:AO35) -> 0 | AP36: =SUM(AP29:AP35) -> 0 | AQ36: 0 | AR36: 0 | AS36: 451 | AT36: 0 | AU36: 0 | AV36: 740 | AW36: 0 | AX36: 113,400 | AY36: 210,785 | AZ36: =SUM(AZ29:AZ35) -> (22,042) | BA36: =SUM(BA29:BA35) -> 1,732,432 | BB36: =SUM('MMA Rev-Exp Region 1:MMA Rev-Exp Region 11'!BB36) -> 0 | BC36: =SUM('MMA Rev-Exp Region 1:MMA Rev-Exp Region 11'!BC36) -> 0 | BD36: =SUM('MMA Rev-Exp Region 1:MMA Rev-Exp Region 11'!BD36) -> 0 | BE36: =SUM('MMA Rev-Exp Region 1:MMA Rev-Exp Region 11'!BE36) -> 0 | BF36: =SUM('MMA Rev-Exp Region 1:MMA Rev-Exp Region 11'!BF36) -> 2,007 | BG36: =SUM('MMA Rev-Exp Region 1:MMA Rev-Exp Region 11'!BG36) -> 0 | BH36: =SUM('MMA Rev-Exp Region 1:MMA Rev-Exp Region 11'!BH36) -> 0 | BI36: =SUM('MMA Rev-Exp Region 1:MMA Rev-Exp Region 11'!BI36) -> 740 | BJ36: =SUM('MMA Rev-Exp Region 1:MMA Rev-Exp Region 11'!BJ36) -> 0 | BK36: =SUM('MMA Rev-Exp Region 1:MMA Rev-Exp Region 11'!BK36) -> 934,409 | BL36: =SUM('MMA Rev-Exp Region 1:MMA Rev-Exp Region 11'!BL36) -> 817,318
A37: Maternity Services | B37: 4.1.1 | C37: Maternity Services | D37: =SUM(E37:O37) -> 0 | E37: =SUM('MMA Rev-Exp Region 1:MMA Rev-Exp Region 11'!E37) -> 0 | F37: =SUM('MMA Rev-Exp Region 1:MMA Rev-Exp Region 11'!F37) -> 0 | G37: =SUM('MMA Rev-Exp Region 1:MMA Rev-Exp Region 11'!G37) -> 0 | H37: =SUM('MMA Rev-Exp Region 1:MMA Rev-Exp Region 11'!H37) -> 0 | I37: =SUM('MMA Rev-Exp Region 1:MMA Rev-Exp Region 11'!I37) -> 0 | J37: =SUM('MMA Rev-Exp Region 1:MMA Rev-Exp Region 11'!J37) -> 0 | K37: =SUM('MMA Rev-Exp Region 1:MMA Rev-Exp Region 11'!K37) -> 0 | L37: =SUM('MMA Rev-Exp Region 1:MMA Rev-Exp Region 11'!L37) -> 0 | M37: =SUM('MMA Rev-Exp Region 1:MMA Rev-Exp Region 11'!M37) -> 0 | N37: =SUM('MMA Rev-Exp Region 1:MMA Rev-Exp Region 11'!N37) -> 0 | O37: =SUM('MMA Rev-Exp Region 1:MMA Rev-Exp Region 11'!O37) -> 0 | P37: =SUM(Q37:AA37) -> 0 | Q37: =SUM('MMA Rev-Exp Region 1:MMA Rev-Exp Region 11'!Q37) -> 0 | R37: =SUM('MMA Rev-Exp Region 1:MMA Rev-Exp Region 11'!R37) -> 0 | S37: =SUM('MMA Rev-Exp Region 1:MMA Rev-Exp Region 11'!S37) -> 0 | T37: =SUM('MMA Rev-Exp Region 1:MMA Rev-Exp Region 11'!T37) -> 0 | U37: =SUM('MMA Rev-Exp Region 1:MMA Rev-Exp Region 11'!U37) -> 0 | V37: =SUM('MMA Rev-Exp Region 1:MMA Rev-Exp Region 11'!V37) -> 0 | W37: =SUM('MMA Rev-Exp Region 1:MMA Rev-Exp Region 11'!W37) -> 0 | X37: =SUM('MMA Rev-Exp Region 1:MMA Rev-Exp Region 11'!X37) -> 0 | Y37: =SUM('MMA Rev-Exp Region 1:MMA Rev-Exp Region 11'!Y37) -> 0 | Z37: =SUM('MMA Rev-Exp Region 1:MMA Rev-Exp Region 11'!Z37) -> 0 | AA37: =SUM('MMA Rev-Exp Region 1:MMA Rev-Exp Region 11'!AA37) -> 0 | AB37: =SUM(AC37:AM37) -> 0 | AC37: =SUM('MMA Rev-Exp Region 1:MMA Rev-Exp Region 11'!AC37) -> 0 | AD37: =SUM('MMA Rev-Exp Region 1:MMA Rev-Exp Region 11'!AD37) -> 0 | AE37: =SUM('MMA Rev-Exp Region 1:MMA Rev-Exp Region 11'!AE37) -> 0 | AF37: =SUM('MMA Rev-Exp Region 1:MMA Rev-Exp Region 11'!AF37) -> 0 | AG37: =SUM('MMA Rev-Exp Region 1:MMA Rev-Exp Region 11'!AG37) -> 0 | AH37: =SUM('MMA Rev-Exp Region 1:MMA Rev-Exp Region 11'!AH37) -> 0 | AI37: =SUM('MMA Rev-Exp Region 1:MMA Rev-Exp Region 11'!AI37) -> 0 | AJ37: =SUM('MMA Rev-Exp Region 1:MMA Rev-Exp Region 11'!AJ37) -> 0 | AK37: =SUM('MMA Rev-Exp Region 1:MMA Rev-Exp Region 11'!AK37) -> 0 | AL37: =SUM('MMA Rev-Exp Region 1:MMA Rev-Exp Region 11'!AL37) -> 0 | AM37: =SUM('MMA Rev-Exp Region 1:MMA Rev-Exp Region 11'!AM37) -> 0 | AN37: =SUM(AO37:AY37) -> 0 | AO37: =SUM('MMA Rev-Exp Region 1:MMA Rev-Exp Region 11'!AO37) -> 0 | AP37: =SUM('MMA Rev-Exp Region 1:MMA Rev-Exp Region 11'!AP37) -> 0 | AQ37: =SUM('MMA Rev-Exp Region 1:MMA Rev-Exp Region 11'!AQ37) -> 0 | AR37: =SUM('MMA Rev-Exp Region 1:MMA Rev-Exp Region 11'!AR37) -> 0 | AS37: =SUM('MMA Rev-Exp Region 1:MMA Rev-Exp Region 11'!AS37) -> 0 | AT37: =SUM('MMA Rev-Exp Region 1:MMA Rev-Exp Region 11'!AT37) -> 0 | AU37: =SUM('MMA Rev-Exp Region 1:MMA Rev-Exp Region 11'!AU37) -> 0 | AV37: =SUM('MMA Rev-Exp Region 1:MMA Rev-Exp Region 11'!AV37) -> 0 | AW37: =SUM('MMA Rev-Exp Region 1:MMA Rev-Exp Region 11'!AW37) -> 0 | AX37: =SUM('MMA Rev-Exp Region 1:MMA Rev-Exp Region 11'!AX37) -> 0 | AY37: =SUM('MMA Rev-Exp Region 1:MMA Rev-Exp Region 11'!AY37) -> 0 | AZ37: =SUM('MMA Rev-Exp Region 1:MMA Rev-Exp Region 11'!AZ37) -> 0 | BA37: =SUM(BB37:BL37)+AZ37 -> 0 | BB37: =SUM('MMA Rev-Exp Region 1:MMA Rev-Exp Region 11'!BB37) -> 0 | BC37: =SUM('MMA Rev-Exp Region 1:MMA Rev-Exp Region 11'!BC37) -> 0 | BD37: =SUM('MMA Rev-Exp Region 1:MMA Rev-Exp Region 11'!BD37) -> 0 | BE37: =SUM('MMA Rev-Exp Region 1:MMA Rev-Exp Region 11'!BE37) -> 0 | BF37: =SUM('MMA Rev-Exp Region 1:MMA Rev-Exp Region 11'!BF37) -> 0 | BG37: =SUM('MMA Rev-Exp Region 1:MMA Rev-Exp Region 11'!BG37) -> 0 | BH37: =SUM('MMA Rev-Exp Region 1:MMA Rev-Exp Region 11'!BH37) -> 0 | BI37: =SUM('MMA Rev-Exp Region 1:MMA Rev-Exp Region 11'!BI37) -> 0 | BJ37: =SUM('MMA Rev-Exp Region 1:MMA Rev-Exp Region 11'!BJ37) -> 0 | BK37: =SUM('MMA Rev-Exp Region 1:MMA Rev-Exp Region 11'!BK37) -> 0 | BL37: =SUM('MMA Rev-Exp Region 1:MMA Rev-Exp Region 11'!BL37) -> 0
B38: 4.2.1 | C38: Ending IBNP for Maternity Services | D38: =SUM(E38:O38) -> 0 | E38: =SUM('MMA Rev-Exp Region 1:MMA Rev-Exp Region 11'!E38) -> 0 | F38: =SUM('MMA Rev-Exp Region 1:MMA Rev-Exp Region 11'!F38) -> 0 | G38: =SUM('MMA Rev-Exp Region 1:MMA Rev-Exp Region 11'!G38) -> 0 | H38: =SUM('MMA Rev-Exp Region 1:MMA Rev-Exp Region 11'!H38) -> 0 | I38: =SUM('MMA Rev-Exp Region 1:MMA Rev-Exp Region 11'!I38) -> 0 | J38: =SUM('MMA Rev-Exp Region 1:MMA Rev-Exp Region 11'!J38) -> 0 | K38: =SUM('MMA Rev-Exp Region 1:MMA Rev-Exp Region 11'!K38) -> 0 | L38: =SUM('MMA Rev-Exp Region 1:MMA Rev-Exp Region 11'!L38) -> 0 | M38: =SUM('MMA Rev-Exp Region 1:MMA Rev-Exp Region 11'!M38) -> 0 | N38: =SUM('MMA Rev-Exp Region 1:MMA Rev-Exp Region 11'!N38) -> 0 | O38: =SUM('MMA Rev-Exp Region 1:MMA Rev-Exp Region 11'!O38) -> 0 | P38: =SUM(Q38:AA38) -> 0 | Q38: =SUM('MMA Rev-Exp Region 1:MMA Rev-Exp Region 11'!Q38) -> 0 | R38: =SUM('MMA Rev-Exp Region 1:MMA Rev-Exp Region 11'!R38) -> 0 | S38: =SUM('MMA Rev-Exp Region 1:MMA Rev-Exp Region 11'!S38) -> 0 | T38: =SUM('MMA Rev-Exp Region 1:MMA Rev-Exp Region 11'!T38) -> 0 | U38: =SUM('MMA Rev-Exp Region 1:MMA Rev-Exp Region 11'!U38) -> 0 | V38: =SUM('MMA Rev-Exp Region 1:MMA Rev-Exp Region 11'!V38) -> 0 | W38: =SUM('MMA Rev-Exp Region 1:MMA Rev-Exp Region 11'!W38) -> 0 | X38: =SUM('MMA Rev-Exp Region 1:MMA Rev-Exp Region 11'!X38) -> 0 | Y38: =SUM('MMA Rev-Exp Region 1:MMA Rev-Exp Region 11'!Y38) -> 0 | Z38: =SUM('MMA Rev-Exp Region 1:MMA Rev-Exp Region 11'!Z38) -> 0 | AA38: =SUM('MMA Rev-Exp Region 1:MMA Rev-Exp Region 11'!AA38) -> 0 | AB38: =SUM(AC38:AM38) -> 0 | AC38: =SUM('MMA Rev-Exp Region 1:MMA Rev-Exp Region 11'!AC38) -> 0 | AD38: =SUM('MMA Rev-Exp Region 1:MMA Rev-Exp Region 11'!AD38) -> 0 | AE38: =SUM('MMA Rev-Exp Region 1:MMA Rev-Exp Region 11'!AE38) -> 0 | AF38: =SUM('MMA Rev-Exp Region 1:MMA Rev-Exp Region 11'!AF38) -> 0 | AG38: =SUM('MMA Rev-Exp Region 1:MMA Rev-Exp Region 11'!AG38) -> 0 | AH38: =SUM('MMA Rev-Exp Region 1:MMA Rev-Exp Region 11'!AH38) -> 0 | AI38: =SUM('MMA Rev-Exp Region 1:MMA Rev-Exp Region 11'!AI38) -> 0 | AJ38: =SUM('MMA Rev-Exp Region 1:MMA Rev-Exp Region 11'!AJ38) -> 0 | AK38: =SUM('MMA Rev-Exp Region 1:MMA Rev-Exp Region 11'!AK38) -> 0 | AL38: =SUM('MMA Rev-Exp Region 1:MMA Rev-Exp Region 11'!AL38) -> 0 | AM38: =SUM('MMA Rev-Exp Region 1:MMA Rev-Exp Region 11'!AM38) -> 0 | AN38: =SUM(AO38:AY38) -> 0 | AO38: =SUM('MMA Rev-Exp Region 1:MMA Rev-Exp Region 11'!AO38) -> 0 | AP38: =SUM('MMA Rev-Exp Region 1:MMA Rev-Exp Region 11'!AP38) -> 0 | AQ38: =SUM('MMA Rev-Exp Region 1:MMA Rev-Exp Region 11'!AQ38) -> 0 | AR38: =SUM('MMA Rev-Exp Region 1:MMA Rev-Exp Region 11'!AR38) -> 0 | AS38: =SUM('MMA Rev-Exp Region 1:MMA Rev-Exp Region 11'!AS38) -> 0 | AT38: =SUM('MMA Rev-Exp Region 1:MMA Rev-Exp Region 11'!AT38) -> 0 | AU38: =SUM('MMA Rev-Exp Region 1:MMA Rev-Exp Region 11'!AU38) -> 0 | AV38: =SUM('MMA Rev-Exp Region 1:MMA Rev-Exp Region 11'!AV38) -> 0 | AW38: =SUM('MMA Rev-Exp Region 1:MMA Rev-Exp Region 11'!AW38) -> 0 | AX38: =SUM('MMA Rev-Exp Region 1:MMA Rev-Exp Region 11'!AX38) -> 0 | AY38: =SUM('MMA Rev-Exp Region 1:MMA Rev-Exp Region 11'!AY38) -> 0 | AZ38: =SUM('MMA Rev-Exp Region 1:MMA Rev-Exp Region 11'!AZ38) -> 0 | BA38: =SUM(BB38:BL38)+AZ38 -> 0 | BB38: =SUM('MMA Rev-Exp Region 1:MMA Rev-Exp Region 11'!BB38) -> 0 | BC38: =SUM('MMA Rev-Exp Region 1:MMA Rev-Exp Region 11'!BC38) -> 0 | BD38: =SUM('MMA Rev-Exp Region 1:MMA Rev-Exp Region 11'!BD38) -> 0 | BE38: =SUM('MMA Rev-Exp Region 1:MMA Rev-Exp Region 11'!BE38) -> 0 | BF38: =SUM('MMA Rev-Exp Region 1:MMA Rev-Exp Region 11'!BF38) -> 0 | BG38: =SUM('MMA Rev-Exp Region 1:MMA Rev-Exp Region 11'!BG38) -> 0 | BH38: =SUM('MMA Rev-Exp Region 1:MMA Rev-Exp Region 11'!BH38) -> 0 | BI38: =SUM('MMA Rev-Exp Region 1:MMA Rev-Exp Region 11'!BI38) -> 0 | BJ38: =SUM('MMA Rev-Exp Region 1:MMA Rev-Exp Region 11'!BJ38) -> 0 | BK38: =SUM('MMA Rev-Exp Region 1:MMA Rev-Exp Region 11'!BK38) -> 0 | BL38: =SUM('MMA Rev-Exp Region 1:MMA Rev-Exp Region 11'!BL38) -> 0
B39: 4.3.1 | C39: Maternity Settlements/AP | D39: =SUM(E39:O39) -> 0 | E39: =SUM('MMA Rev-Exp Region 1:MMA Rev-Exp Region 11'!E39) -> 0 | F39: =SUM('MMA Rev-Exp Region 1:MMA Rev-Exp Region 11'!F39) -> 0 | G39: =SUM('MMA Rev-Exp Region 1:MMA Rev-Exp Region 11'!G39) -> 0 | H39: =SUM('MMA Rev-Exp Region 1:MMA Rev-Exp Region 11'!H39) -> 0 | I39: =SUM('MMA Rev-Exp Region 1:MMA Rev-Exp Region 11'!I39) -> 0 | J39: =SUM('MMA Rev-Exp Region 1:MMA Rev-Exp Region 11'!J39) -> 0 | K39: =SUM('MMA Rev-Exp Region 1:MMA Rev-Exp Region 11'!K39) -> 0 | L39: =SUM('MMA Rev-Exp Region 1:MMA Rev-Exp Region 11'!L39) -> 0 | M39: =SUM('MMA Rev-Exp Region 1:MMA Rev-Exp Region 11'!M39) -> 0 | N39: =SUM('MMA Rev-Exp Region 1:MMA Rev-Exp Region 11'!N39) -> 0 | O39: =SUM('MMA Rev-Exp Region 1:MMA Rev-Exp Region 11'!O39) -> 0 | P39: =SUM(Q39:AA39) -> 0 | Q39: =SUM('MMA Rev-Exp Region 1:MMA Rev-Exp Region 11'!Q39) -> 0 | R39: =SUM('MMA Rev-Exp Region 1:MMA Rev-Exp Region 11'!R39) -> 0 | S39: =SUM('MMA Rev-Exp Region 1:MMA Rev-Exp Region 11'!S39) -> 0 | T39: =SUM('MMA Rev-Exp Region 1:MMA Rev-Exp Region 11'!T39) -> 0 | U39: =SUM('MMA Rev-Exp Region 1:MMA Rev-Exp Region 11'!U39) -> 0 | V39: =SUM('MMA Rev-Exp Region 1:MMA Rev-Exp Region 11'!V39) -> 0 | W39: =SUM('MMA Rev-Exp Region 1:MMA Rev-Exp Region 11'!W39) -> 0 | X39: =SUM('MMA Rev-Exp Region 1:MMA Rev-Exp Region 11'!X39) -> 0 | Y39: =SUM('MMA Rev-Exp Region 1:MMA Rev-Exp Region 11'!Y39) -> 0 | Z39: =SUM('MMA Rev-Exp Region 1:MMA Rev-Exp Region 11'!Z39) -> 0 | AA39: =SUM('MMA Rev-Exp Region 1:MMA Rev-Exp Region 11'!AA39) -> 0 | AB39: =SUM(AC39:AM39) -> 0 | AC39: =SUM('MMA Rev-Exp Region 1:MMA Rev-Exp Region 11'!AC39) -> 0 | AD39: =SUM('MMA Rev-Exp Region 1:MMA Rev-Exp Region 11'!AD39) -> 0 | AE39: =SUM('MMA Rev-Exp Region 1:MMA Rev-Exp Region 11'!AE39) -> 0 | AF39: =SUM('MMA Rev-Exp Region 1:MMA Rev-Exp Region 11'!AF39) -> 0 | AG39: =SUM('MMA Rev-Exp Region 1:MMA Rev-Exp Region 11'!AG39) -> 0 | AH39: =SUM('MMA Rev-Exp Region 1:MMA Rev-Exp Region 11'!AH39) -> 0 | AI39: =SUM('MMA Rev-Exp Region 1:MMA Rev-Exp Region 11'!AI39) -> 0 | AJ39: =SUM('MMA Rev-Exp Region 1:MMA Rev-Exp Region 11'!AJ39) -> 0 | AK39: =SUM('MMA Rev-Exp Region 1:MMA Rev-Exp Region 11'!AK39) -> 0 | AL39: =SUM('MMA Rev-Exp Region 1:MMA Rev-Exp Region 11'!AL39) -> 0 | AM39: =SUM('MMA Rev-Exp Region 1:MMA Rev-Exp Region 11'!AM39) -> 0 | AN39: =SUM(AO39:AY39) -> 0 | AO39: =SUM('MMA Rev-Exp Region 1:MMA Rev-Exp Region 11'!AO39) -> 0 | AP39: =SUM('MMA Rev-Exp Region 1:MMA Rev-Exp Region 11'!AP39) -> 0 | AQ39: =SUM('MMA Rev-Exp Region 1:MMA Rev-Exp Region 11'!AQ39) -> 0 | AR39: =SUM('MMA Rev-Exp Region 1:MMA Rev-Exp Region 11'!AR39) -> 0 | AS39: =SUM('MMA Rev-Exp Region 1:MMA Rev-Exp Region 11'!AS39) -> 0 | AT39: =SUM('MMA Rev-Exp Region 1:MMA Rev-Exp Region 11'!AT39) -> 0 | AU39: =SUM('MMA Rev-Exp Region 1:MMA Rev-Exp Region 11'!AU39) -> 0 | AV39: =SUM('MMA Rev-Exp Region 1:MMA Rev-Exp Region 11'!AV39) -> 0 | AW39: =SUM('MMA Rev-Exp Region 1:MMA Rev-Exp Region 11'!AW39) -> 0 | AX39: =SUM('MMA Rev-Exp Region 1:MMA Rev-Exp Region 11'!AX39) -> 0 | AY39: =SUM('MMA Rev-Exp Region 1:MMA Rev-Exp Region 11'!AY39) -> 0 | AZ39: =SUM('MMA Rev-Exp Region 1:MMA Rev-Exp Region 11'!AZ39) -> 0 | BA39: =SUM(BB39:BL39)+AZ39 -> 0 | BB39: =SUM('MMA Rev-Exp Region 1:MMA Rev-Exp Region 11'!BB39) -> 0 | BC39: =SUM('MMA Rev-Exp Region 1:MMA Rev-Exp Region 11'!BC39) -> 0 | BD39: =SUM('MMA Rev-Exp Region 1:MMA Rev-Exp Region 11'!BD39) -> 0 | BE39: =SUM('MMA Rev-Exp Region 1:MMA Rev-Exp Region 11'!BE39) -> 0 | BF39: =SUM('MMA Rev-Exp Region 1:MMA Rev-Exp Region 11'!BF39) -> 0 | BG39: =SUM('MMA Rev-Exp Region 1:MMA Rev-Exp Region 11'!BG39) -> 0 | BH39: =SUM('MMA Rev-Exp Region 1:MMA Rev-Exp Region 11'!BH39) -> 0 | BI39: =SUM('MMA Rev-Exp Region 1:MMA Rev-Exp Region 11'!BI39) -> 0 | BJ39: =SUM('MMA Rev-Exp Region 1:MMA Rev-Exp Region 11'!BJ39) -> 0 | BK39: =SUM('MMA Rev-Exp Region 1:MMA Rev-Exp Region 11'!BK39) -> 0 | BL39: =SUM('MMA Rev-Exp Region 1:MMA Rev-Exp Region 11'!BL39) -> 0
B40: 4.4.1 | C40: Total Maternity Services | D40: =SUM(D37:D39) -> 0 | E40: 0 | F40: 0 | G40: 0 | H40: 0 | I40: 0 | J40: 0 | K40: 0 | L40: 0 | M40: 0 | N40: 0 | O40: 0 | P40: 0 | Q40: =SUM(Q37:Q39) -> 0 | R40: 0 | S40: 0 | T40: 0 | U40: 0 | V40: 0 | W40: 0 | X40: 0 | Y40: 0 | Z40: 0 | AA40: 0 | AB40: =SUM(AB37:AB39) -> 0 | AC40: =SUM(AC37:AC39) -> 0 | AD40: 0 | AE40: 0 | AF40: 0 | AG40: 0 | AH40: 0 | AI40: 0 | AJ40: 0 | AK40: 0 | AL40: 0 | AM40: 0 | AN40: =SUM(AN37:AN39) -> 0 | AO40: =SUM(AO37:AO39) -> 0 | AP40: 0 | AQ40: 0 | AR40: 0 | AS40: 0 | AT40: 0 | AU40: 0 | AV40: 0 | AW40: 0 | AX40: 0 | AY40: 0 | AZ40: =SUM(AZ37:AZ39) -> 0 | BA40: =SUM(BA37:BA39) -> 0 | BB40: =SUM('MMA Rev-Exp Region 1:MMA Rev-Exp Region 11'!BB40) -> 0 | BC40: =SUM('MMA Rev-Exp Region 1:MMA Rev-Exp Region 11'!BC40) -> 0 | BD40: =SUM('MMA Rev-Exp Region 1:MMA Rev-Exp Region 11'!BD40) -> 0 | BE40: =SUM('MMA Rev-Exp Region 1:MMA Rev-Exp Region 11'!BE40) -> 0 | BF40: =SUM('MMA Rev-Exp Region 1:MMA Rev-Exp Region 11'!BF40) -> 0 | BG40: =SUM('MMA Rev-Exp Region 1:MMA Rev-Exp Region 11'!BG40) -> 0 | BH40: =SUM('MMA Rev-Exp Region 1:MMA Rev-Exp Region 11'!BH40) -> 0 | BI40: =SUM('MMA Rev-Exp Region 1:MMA Rev-Exp Region 11'!BI40) -> 0 | BJ40: =SUM('MMA Rev-Exp Region 1:MMA Rev-Exp Region 11'!BJ40) -> 0 | BK40: =SUM('MMA Rev-Exp Region 1:MMA Rev-Exp Region 11'!BK40) -> 0 | BL40: =SUM('MMA Rev-Exp Region 1:MMA Rev-Exp Region 11'!BL40) -> 0
A41: Mental Health | B41: 5.1 | C41: Mental Health & Substance Abuse FFS | D41: =SUM(E41:O41) -> 605,264 | E41: =SUM('MMA Rev-Exp Region 1:MMA Rev-Exp Region 11'!E41) -> 0 | F41: =SUM('MMA Rev-Exp Region 1:MMA Rev-Exp Region 11'!F41) -> 0 | G41: =SUM('MMA Rev-Exp Region 1:MMA Rev-Exp Region 11'!G41) -> 0 | H41: =SUM('MMA Rev-Exp Region 1:MMA Rev-Exp Region 11'!H41) -> 0 | I41: =SUM('MMA Rev-Exp Region 1:MMA Rev-Exp Region 11'!I41) -> 155 | J41: =SUM('MMA Rev-Exp Region 1:MMA Rev-Exp Region 11'!J41) -> 0 | K41: =SUM('MMA Rev-Exp Region 1:MMA Rev-Exp Region 11'!K41) -> 0 | L41: =SUM('MMA Rev-Exp Region 1:MMA Rev-Exp Region 11'!L41) -> 0 | M41: =SUM('MMA Rev-Exp Region 1:MMA Rev-Exp Region 11'!M41) -> 0 | N41: =SUM('MMA Rev-Exp Region 1:MMA Rev-Exp Region 11'!N41) -> 412,773 | O41: =SUM('MMA Rev-Exp Region 1:MMA Rev-Exp Region 11'!O41) -> 192,336 | P41: =SUM(Q41:AA41) -> 1,009,168 | Q41: =SUM('MMA Rev-Exp Region 1:MMA Rev-Exp Region 11'!Q41) -> 0 | R41: =SUM('MMA Rev-Exp Region 1:MMA Rev-Exp Region 11'!R41) -> 0 | S41: =SUM('MMA Rev-Exp Region 1:MMA Rev-Exp Region 11'!S41) -> 0 | T41: =SUM('MMA Rev-Exp Region 1:MMA Rev-Exp Region 11'!T41) -> 0 | U41: =SUM('MMA Rev-Exp Region 1:MMA Rev-Exp Region 11'!U41) -> 0 | V41: =SUM('MMA Rev-Exp Region 1:MMA Rev-Exp Region 11'!V41) -> 0 | W41: =SUM('MMA Rev-Exp Region 1:MMA Rev-Exp Region 11'!W41) -> 0 | X41: =SUM('MMA Rev-Exp Region 1:MMA Rev-Exp Region 11'!X41) -> 0 | Y41: =SUM('MMA Rev-Exp Region 1:MMA Rev-Exp Region 11'!Y41) -> 0 | Z41: =SUM('MMA Rev-Exp Region 1:MMA Rev-Exp Region 11'!Z41) -> 735,397 | AA41: =SUM('MMA Rev-Exp Region 1:MMA Rev-Exp Region 11'!AA41) -> 273,771 | AB41: =SUM(AC41:AM41) -> 228,967 | AC41: =SUM('MMA Rev-Exp Region 1:MMA Rev-Exp Region 11'!AC41) -> 0 | AD41: =SUM('MMA Rev-Exp Region 1:MMA Rev-Exp Region 11'!AD41) -> 0 | AE41: =SUM('MMA Rev-Exp Region 1:MMA Rev-Exp Region 11'!AE41) -> 0 | AF41: =SUM('MMA Rev-Exp Region 1:MMA Rev-Exp Region 11'!AF41) -> 0 | AG41: =SUM('MMA Rev-Exp Region 1:MMA Rev-Exp Region 11'!AG41) -> 4 | AH41: =SUM('MMA Rev-Exp Region 1:MMA Rev-Exp Region 11'!AH41) -> 0 | AI41: =SUM('MMA Rev-Exp Region 1:MMA Rev-Exp Region 11'!AI41) -> 0 | AJ41: =SUM('MMA Rev-Exp Region 1:MMA Rev-Exp Region 11'!AJ41) -> 0 | AK41: =SUM('MMA Rev-Exp Region 1:MMA Rev-Exp Region 11'!AK41) -> 0 | AL41: =SUM('MMA Rev-Exp Region 1:MMA Rev-Exp Region 11'!AL41) -> 172,499 | AM41: =SUM('MMA Rev-Exp Region 1:MMA Rev-Exp Region 11'!AM41) -> 56,465 | AN41: =SUM(AO41:AY41) -> 29,543 | AO41: =SUM('MMA Rev-Exp Region 1:MMA Rev-Exp Region 11'!AO41) -> 0 | AP41: =SUM('MMA Rev-Exp Region 1:MMA Rev-Exp Region 11'!AP41) -> 0 | AQ41: =SUM('MMA Rev-Exp Region 1:MMA Rev-Exp Region 11'!AQ41) -> 0 | AR41: =SUM('MMA Rev-Exp Region 1:MMA Rev-Exp Region 11'!AR41) -> 0 | AS41: =SUM('MMA Rev-Exp Region 1:MMA Rev-Exp Region 11'!AS41) -> 0 | AT41: =SUM('MMA Rev-Exp Region 1:MMA Rev-Exp Region 11'!AT41) -> 0 | AU41: =SUM('MMA Rev-Exp Region 1:MMA Rev-Exp Region 11'!AU41) -> 0 | AV41: =SUM('MMA Rev-Exp Region 1:MMA Rev-Exp Region 11'!AV41) -> 0 | AW41: =SUM('MMA Rev-Exp Region 1:MMA Rev-Exp Region 11'!AW41) -> 0 | AX41: =SUM('MMA Rev-Exp Region 1:MMA Rev-Exp Region 11'!AX41) -> 15,802 | AY41: =SUM('MMA Rev-Exp Region 1:MMA Rev-Exp Region 11'!AY41) -> 13,741 | AZ41: =SUM('MMA Rev-Exp Region 1:MMA Rev-Exp Region 11'!AZ41) -> 8,868 | BA41: =SUM(BB41:BL41)+AZ41 -> 1,881,810 | BB41: =SUM('MMA Rev-Exp Region 1:MMA Rev-Exp Region 11'!BB41) -> 0 | BC41: =SUM('MMA Rev-Exp Region 1:MMA Rev-Exp Region 11'!BC41) -> 0 | BD41: =SUM('MMA Rev-Exp Region 1:MMA Rev-Exp Region 11'!BD41) -> 0 | BE41: =SUM('MMA Rev-Exp Region 1:MMA Rev-Exp Region 11'!BE41) -> 0 | BF41: =SUM('MMA Rev-Exp Region 1:MMA Rev-Exp Region 11'!BF41) -> 158 | BG41: =SUM('MMA Rev-Exp Region 1:MMA Rev-Exp Region 11'!BG41) -> 0 | BH41: =SUM('MMA Rev-Exp Region 1:MMA Rev-Exp Region 11'!BH41) -> 0 | BI41: =SUM('MMA Rev-Exp Region 1:MMA Rev-Exp Region 11'!BI41) -> 0 | BJ41: =SUM('MMA Rev-Exp Region 1:MMA Rev-Exp Region 11'!BJ41) -> 0 | BK41: =SUM('MMA Rev-Exp Region 1:MMA Rev-Exp Region 11'!BK41) -> 1,336,471 | BL41: =SUM('MMA Rev-Exp Region 1:MMA Rev-Exp Region 11'!BL41) -> 536,313
B42: 5.2 | C42: Mental Health & Substance Abuse Subcapitation | D42: =SUM(E42:O42) -> 0 | E42: =SUM('MMA Rev-Exp Region 1:MMA Rev-Exp Region 11'!E42) -> 0 | F42: =SUM('MMA Rev-Exp Region 1:MMA Rev-Exp Region 11'!F42) -> 0 | G42: =SUM('MMA Rev-Exp Region 1:MMA Rev-Exp Region 11'!G42) -> 0 | H42: =SUM('MMA Rev-Exp Region 1:MMA Rev-Exp Region 11'!H42) -> 0 | I42: =SUM('MMA Rev-Exp Region 1:MMA Rev-Exp Region 11'!I42) -> 0 | J42: =SUM('MMA Rev-Exp Region 1:MMA Rev-Exp Region 11'!J42) -> 0 | K42: =SUM('MMA Rev-Exp Region 1:MMA Rev-Exp Region 11'!K42) -> 0 | L42: =SUM('MMA Rev-Exp Region 1:MMA Rev-Exp Region 11'!L42) -> 0 | M42: =SUM('MMA Rev-Exp Region 1:MMA Rev-Exp Region 11'!M42) -> 0 | N42: =SUM('MMA Rev-Exp Region 1:MMA Rev-Exp Region 11'!N42) -> 0 | O42: =SUM('MMA Rev-Exp Region 1:MMA Rev-Exp Region 11'!O42) -> 0 | P42: =SUM(Q42:AA42) -> 0 | Q42: =SUM('MMA Rev-Exp Region 1:MMA Rev-Exp Region 11'!Q42) -> 0 | R42: =SUM('MMA Rev-Exp Region 1:MMA Rev-Exp Region 11'!R42) -> 0 | S42: =SUM('MMA Rev-Exp Region 1:MMA Rev-Exp Region 11'!S42) -> 0 | T42: =SUM('MMA Rev-Exp Region 1:MMA Rev-Exp Region 11'!T42) -> 0 | U42: =SUM('MMA Rev-Exp Region 1:MMA Rev-Exp Region 11'!U42) -> 0 | V42: =SUM('MMA Rev-Exp Region 1:MMA Rev-Exp Region 11'!V42) -> 0 | W42: =SUM('MMA Rev-Exp Region 1:MMA Rev-Exp Region 11'!W42) -> 0 | X42: =SUM('MMA Rev-Exp Region 1:MMA Rev-Exp Region 11'!X42) -> 0 | Y42: =SUM('MMA Rev-Exp Region 1:MMA Rev-Exp Region 11'!Y42) -> 0 | Z42: =SUM('MMA Rev-Exp Region 1:MMA Rev-Exp Region 11'!Z42) -> 0 | AA42: =SUM('MMA Rev-Exp Region 1:MMA Rev-Exp Region 11'!AA42) -> 0 | AB42: =SUM(AC42:AM42) -> 0 | AC42: =SUM('MMA Rev-Exp Region 1:MMA Rev-Exp Region 11'!AC42) -> 0 | AD42: =SUM('MMA Rev-Exp Region 1:MMA Rev-Exp Region 11'!AD42) -> 0 | AE42: =SUM('MMA Rev-Exp Region 1:MMA Rev-Exp Region 11'!AE42) -> 0 | AF42: =SUM('MMA Rev-Exp Region 1:MMA Rev-Exp Region 11'!AF42) -> 0 | AG42: =SUM('MMA Rev-Exp Region 1:MMA Rev-Exp Region 11'!AG42) -> 0 | AH42: =SUM('MMA Rev-Exp Region 1:MMA Rev-Exp Region 11'!AH42) -> 0 | AI42: =SUM('MMA Rev-Exp Region 1:MMA Rev-Exp Region 11'!AI42) -> 0 | AJ42: =SUM('MMA Rev-Exp Region 1:MMA Rev-Exp Region 11'!AJ42) -> 0 | AK42: =SUM('MMA Rev-Exp Region 1:MMA Rev-Exp Region 11'!AK42) -> 0 | AL42: =SUM('MMA Rev-Exp Region 1:MMA Rev-Exp Region 11'!AL42) -> 0 | AM42: =SUM('MMA Rev-Exp Region 1:MMA Rev-Exp Region 11'!AM42) -> 0 | AN42: =SUM(AO42:AY42) -> 0 | AO42: =SUM('MMA Rev-Exp Region 1:MMA Rev-Exp Region 11'!AO42) -> 0 | AP42: =SUM('MMA Rev-Exp Region 1:MMA Rev-Exp Region 11'!AP42) -> 0 | AQ42: =SUM('MMA Rev-Exp Region 1:MMA Rev-Exp Region 11'!AQ42) -> 0 | AR42: =SUM('MMA Rev-Exp Region 1:MMA Rev-Exp Region 11'!AR42) -> 0 | AS42: =SUM('MMA Rev-Exp Region 1:MMA Rev-Exp Region 11'!AS42) -> 0 | AT42: =SUM('MMA Rev-Exp Region 1:MMA Rev-Exp Region 11'!AT42) -> 0 | AU42: =SUM('MMA Rev-Exp Region 1:MMA Rev-Exp Region 11'!AU42) -> 0 | AV42: =SUM('MMA Rev-Exp Region 1:MMA Rev-Exp Region 11'!AV42) -> 0 | AW42: =SUM('MMA Rev-Exp Region 1:MMA Rev-Exp Region 11'!AW42) -> 0 | AX42: =SUM('MMA Rev-Exp Region 1:MMA Rev-Exp Region 11'!AX42) -> 0 | AY42: =SUM('MMA Rev-Exp Region 1:MMA Rev-Exp Region 11'!AY42) -> 0 | AZ42: =SUM('MMA Rev-Exp Region 1:MMA Rev-Exp Region 11'!AZ42) -> 0 | BA42: =SUM(BB42:BL42)+AZ42 -> 0 | BB42: =SUM('MMA Rev-Exp Region 1:MMA Rev-Exp Region 11'!BB42) -> 0 | BC42: =SUM('MMA Rev-Exp Region 1:MMA Rev-Exp Region 11'!BC42) -> 0 | BD42: =SUM('MMA Rev-Exp Region 1:MMA Rev-Exp Region 11'!BD42) -> 0 | BE42: =SUM('MMA Rev-Exp Region 1:MMA Rev-Exp Region 11'!BE42) -> 0 | BF42: =SUM('MMA Rev-Exp Region 1:MMA Rev-Exp Region 11'!BF42) -> 0 | BG42: =SUM('MMA Rev-Exp Region 1:MMA Rev-Exp Region 11'!BG42) -> 0 | BH42: =SUM('MMA Rev-Exp Region 1:MMA Rev-Exp Region 11'!BH42) -> 0 | BI42: =SUM('MMA Rev-Exp Region 1:MMA Rev-Exp Region 11'!BI42) -> 0 | BJ42: =SUM('MMA Rev-Exp Region 1:MMA Rev-Exp Region 11'!BJ42) -> 0 | BK42: =SUM('MMA Rev-Exp Region 1:MMA Rev-Exp Region 11'!BK42) -> 0 | BL42: =SUM('MMA Rev-Exp Region 1:MMA Rev-Exp Region 11'!BL42) -> 0
B43: 5.3 | C43: Ending IBNP for Mental Health & Substance Abuse | D43: =SUM(E43:O43) -> 4,703 | E43: =SUM('MMA Rev-Exp Region 1:MMA Rev-Exp Region 11'!E43) -> 0 | F43: =SUM('MMA Rev-Exp Region 1:MMA Rev-Exp Region 11'!F43) -> 0 | G43: =SUM('MMA Rev-Exp Region 1:MMA Rev-Exp Region 11'!G43) -> 0 | H43: =SUM('MMA Rev-Exp Region 1:MMA Rev-Exp Region 11'!H43) -> 0 | I43: =SUM('MMA Rev-Exp Region 1:MMA Rev-Exp Region 11'!I43) -> 1 | J43: =SUM('MMA Rev-Exp Region 1:MMA Rev-Exp Region 11'!J43) -> 0 | K43: =SUM('MMA Rev-Exp Region 1:MMA Rev-Exp Region 11'!K43) -> 0 | L43: =SUM('MMA Rev-Exp Region 1:MMA Rev-Exp Region 11'!L43) -> 0 | M43: =SUM('MMA Rev-Exp Region 1:MMA Rev-Exp Region 11'!M43) -> 0 | N43: =SUM('MMA Rev-Exp Region 1:MMA Rev-Exp Region 11'!N43) -> 3,207 | O43: =SUM('MMA Rev-Exp Region 1:MMA Rev-Exp Region 11'!O43) -> 1,495 | P43: =SUM(Q43:AA43) -> 26,141 | Q43: =SUM('MMA Rev-Exp Region 1:MMA Rev-Exp Region 11'!Q43) -> 0 | R43: =SUM('MMA Rev-Exp Region 1:MMA Rev-Exp Region 11'!R43) -> 0 | S43: =SUM('MMA Rev-Exp Region 1:MMA Rev-Exp Region 11'!S43) -> 0 | T43: =SUM('MMA Rev-Exp Region 1:MMA Rev-Exp Region 11'!T43) -> 0 | U43: =SUM('MMA Rev-Exp Region 1:MMA Rev-Exp Region 11'!U43) -> 0 | V43: =SUM('MMA Rev-Exp Region 1:MMA Rev-Exp Region 11'!V43) -> 0 | W43: =SUM('MMA Rev-Exp Region 1:MMA Rev-Exp Region 11'!W43) -> 0 | X43: =SUM('MMA Rev-Exp Region 1:MMA Rev-Exp Region 11'!X43) -> 0 | Y43: =SUM('MMA Rev-Exp Region 1:MMA Rev-Exp Region 11'!Y43) -> 0 | Z43: =SUM('MMA Rev-Exp Region 1:MMA Rev-Exp Region 11'!Z43) -> 19,049 | AA43: =SUM('MMA Rev-Exp Region 1:MMA Rev-Exp Region 11'!AA43) -> 7,092 | AB43: =SUM(AC43:AM43) -> 15,064 | AC43: =SUM('MMA Rev-Exp Region 1:MMA Rev-Exp Region 11'!AC43) -> 0 | AD43: =SUM('MMA Rev-Exp Region 1:MMA Rev-Exp Region 11'!AD43) -> 0 | AE43: =SUM('MMA Rev-Exp Region 1:MMA Rev-Exp Region 11'!AE43) -> 0 | AF43: =SUM('MMA Rev-Exp Region 1:MMA Rev-Exp Region 11'!AF43) -> 0 | AG43: =SUM('MMA Rev-Exp Region 1:MMA Rev-Exp Region 11'!AG43) -> 0 | AH43: =SUM('MMA Rev-Exp Region 1:MMA Rev-Exp Region 11'!AH43) -> 0 | AI43: =SUM('MMA Rev-Exp Region 1:MMA Rev-Exp Region 11'!AI43) -> 0 | AJ43: =SUM('MMA Rev-Exp Region 1:MMA Rev-Exp Region 11'!AJ43) -> 0 | AK43: =SUM('MMA Rev-Exp Region 1:MMA Rev-Exp Region 11'!AK43) -> 0 | AL43: =SUM('MMA Rev-Exp Region 1:MMA Rev-Exp Region 11'!AL43) -> 11,349 | AM43: =SUM('MMA Rev-Exp Region 1:MMA Rev-Exp Region 11'!AM43) -> 3,715 | AN43: =SUM(AO43:AY43) -> 5,860 | AO43: =SUM('MMA Rev-Exp Region 1:MMA Rev-Exp Region 11'!AO43) -> 0 | AP43: =SUM('MMA Rev-Exp Region 1:MMA Rev-Exp Region 11'!AP43) -> 0 | AQ43: =SUM('MMA Rev-Exp Region 1:MMA Rev-Exp Region 11'!AQ43) -> 0 | AR43: =SUM('MMA Rev-Exp Region 1:MMA Rev-Exp Region 11'!AR43) -> 0 | AS43: =SUM('MMA Rev-Exp Region 1:MMA Rev-Exp Region 11'!AS43) -> 0 | AT43: =SUM('MMA Rev-Exp Region 1:MMA Rev-Exp Region 11'!AT43) -> 0 | AU43: =SUM('MMA Rev-Exp Region 1:MMA Rev-Exp Region 11'!AU43) -> 0 | AV43: =SUM('MMA Rev-Exp Region 1:MMA Rev-Exp Region 11'!AV43) -> 0 | AW43: =SUM('MMA Rev-Exp Region 1:MMA Rev-Exp Region 11'!AW43) -> 0 | AX43: =SUM('MMA Rev-Exp Region 1:MMA Rev-Exp Region 11'!AX43) -> 3,135 | AY43: =SUM('MMA Rev-Exp Region 1:MMA Rev-Exp Region 11'!AY43) -> 2,726 | AZ43: =SUM('MMA Rev-Exp Region 1:MMA Rev-Exp Region 11'!AZ43) -> (47,018) | BA43: =SUM(BB43:BL43)+AZ43 -> 4,750 | BB43: =SUM('MMA Rev-Exp Region 1:MMA Rev-Exp Region 11'!BB43) -> 0 | BC43: =SUM('MMA Rev-Exp Region 1:MMA Rev-Exp Region 11'!BC43) -> 0 | BD43: =SUM('MMA Rev-Exp Region 1:MMA Rev-Exp Region 11'!BD43) -> 0 | BE43: =SUM('MMA Rev-Exp Region 1:MMA Rev-Exp Region 11'!BE43) -> 0 | BF43: =SUM('MMA Rev-Exp Region 1:MMA Rev-Exp Region 11'!BF43) -> 1 | BG43: =SUM('MMA Rev-Exp Region 1:MMA Rev-Exp Region 11'!BG43) -> 0 | BH43: =SUM('MMA Rev-Exp Region 1:MMA Rev-Exp Region 11'!BH43) -> 0 | BI43: =SUM('MMA Rev-Exp Region 1:MMA Rev-Exp Region 11'!BI43) -> 0 | BJ43: =SUM('MMA Rev-Exp Region 1:MMA Rev-Exp Region 11'!BJ43) -> 0 | BK43: =SUM('MMA Rev-Exp Region 1:MMA Rev-Exp Region 11'!BK43) -> 36,740 | BL43: =SUM('MMA Rev-Exp Region 1:MMA Rev-Exp Region 11'!BL43) -> 15,026
B44: 5.4 | C44: Mental Health Settlements/AP | D44: =SUM(E44:O44) -> 49,456 | E44: =SUM('MMA Rev-Exp Region 1:MMA Rev-Exp Region 11'!E44) -> 0 | F44: =SUM('MMA Rev-Exp Region 1:MMA Rev-Exp Region 11'!F44) -> 0 | G44: =SUM('MMA Rev-Exp Region 1:MMA Rev-Exp Region 11'!G44) -> 0 | H44: =SUM('MMA Rev-Exp Region 1:MMA Rev-Exp Region 11'!H44) -> 0 | I44: =SUM('MMA Rev-Exp Region 1:MMA Rev-Exp Region 11'!I44) -> 353 | J44: =SUM('MMA Rev-Exp Region 1:MMA Rev-Exp Region 11'!J44) -> 0 | K44: =SUM('MMA Rev-Exp Region 1:MMA Rev-Exp Region 11'!K44) -> 0 | L44: =SUM('MMA Rev-Exp Region 1:MMA Rev-Exp Region 11'!L44) -> 0 | M44: =SUM('MMA Rev-Exp Region 1:MMA Rev-Exp Region 11'!M44) -> 0 | N44: =SUM('MMA Rev-Exp Region 1:MMA Rev-Exp Region 11'!N44) -> 31,778 | O44: =SUM('MMA Rev-Exp Region 1:MMA Rev-Exp Region 11'!O44) -> 17,324 | P44: =SUM(Q44:AA44) -> 75,798 | Q44: =SUM('MMA Rev-Exp Region 1:MMA Rev-Exp Region 11'!Q44) -> 0 | R44: =SUM('MMA Rev-Exp Region 1:MMA Rev-Exp Region 11'!R44) -> 0 | S44: =SUM('MMA Rev-Exp Region 1:MMA Rev-Exp Region 11'!S44) -> 0 | T44: =SUM('MMA Rev-Exp Region 1:MMA Rev-Exp Region 11'!T44) -> 0 | U44: =SUM('MMA Rev-Exp Region 1:MMA Rev-Exp Region 11'!U44) -> 0 | V44: =SUM('MMA Rev-Exp Region 1:MMA Rev-Exp Region 11'!V44) -> 0 | W44: =SUM('MMA Rev-Exp Region 1:MMA Rev-Exp Region 11'!W44) -> 0 | X44: =SUM('MMA Rev-Exp Region 1:MMA Rev-Exp Region 11'!X44) -> 0 | Y44: =SUM('MMA Rev-Exp Region 1:MMA Rev-Exp Region 11'!Y44) -> 0 | Z44: =SUM('MMA Rev-Exp Region 1:MMA Rev-Exp Region 11'!Z44) -> 25,584 | AA44: =SUM('MMA Rev-Exp Region 1:MMA Rev-Exp Region 11'!AA44) -> 50,214 | AB44: =SUM(AC44:AM44) -> 169,978 | AC44: =SUM('MMA Rev-Exp Region 1:MMA Rev-Exp Region 11'!AC44) -> 0 | AD44: =SUM('MMA Rev-Exp Region 1:MMA Rev-Exp Region 11'!AD44) -> 0 | AE44: =SUM('MMA Rev-Exp Region 1:MMA Rev-Exp Region 11'!AE44) -> 0 | AF44: =SUM('MMA Rev-Exp Region 1:MMA Rev-Exp Region 11'!AF44) -> 0 | AG44: =SUM('MMA Rev-Exp Region 1:MMA Rev-Exp Region 11'!AG44) -> (3) | AH44: =SUM('MMA Rev-Exp Region 1:MMA Rev-Exp Region 11'!AH44) -> 0 | AI44: =SUM('MMA Rev-Exp Region 1:MMA Rev-Exp Region 11'!AI44) -> 0 | AJ44: =SUM('MMA Rev-Exp Region 1:MMA Rev-Exp Region 11'!AJ44) -> 0 | AK44: =SUM('MMA Rev-Exp Region 1:MMA Rev-Exp Region 11'!AK44) -> 0 | AL44: =SUM('MMA Rev-Exp Region 1:MMA Rev-Exp Region 11'!AL44) -> 150,680 | AM44: =SUM('MMA Rev-Exp Region 1:MMA Rev-Exp Region 11'!AM44) -> 19,301 | AN44: =SUM(AO44:AY44) -> 31,418 | AO44: =SUM('MMA Rev-Exp Region 1:MMA Rev-Exp Region 11'!AO44) -> 0 | AP44: =SUM('MMA Rev-Exp Region 1:MMA Rev-Exp Region 11'!AP44) -> 0 | AQ44: =SUM('MMA Rev-Exp Region 1:MMA Rev-Exp Region 11'!AQ44) -> 0 | AR44: =SUM('MMA Rev-Exp Region 1:MMA Rev-Exp Region 11'!AR44) -> 0 | AS44: =SUM('MMA Rev-Exp Region 1:MMA Rev-Exp Region 11'!AS44) -> 0 | AT44: =SUM('MMA Rev-Exp Region 1:MMA Rev-Exp Region 11'!AT44) -> 0 | AU44: =SUM('MMA Rev-Exp Region 1:MMA Rev-Exp Region 11'!AU44) -> 0 | AV44: =SUM('MMA Rev-Exp Region 1:MMA Rev-Exp Region 11'!AV44) -> 0 | AW44: =SUM('MMA Rev-Exp Region 1:MMA Rev-Exp Region 11'!AW44) -> 0 | AX44: =SUM('MMA Rev-Exp Region 1:MMA Rev-Exp Region 11'!AX44) -> 22,819 | AY44: =SUM('MMA Rev-Exp Region 1:MMA Rev-Exp Region 11'!AY44) -> 8,599 | AZ44: =SUM('MMA Rev-Exp Region 1:MMA Rev-Exp Region 11'!AZ44) -> (121,008) | BA44: =SUM(BB44:BL44)+AZ44 -> 205,642 | BB44: =SUM('MMA Rev-Exp Region 1:MMA Rev-Exp Region 11'!BB44) -> 0 | BC44: =SUM('MMA Rev-Exp Region 1:MMA Rev-Exp Region 11'!BC44) -> 0 | BD44: =SUM('MMA Rev-Exp Region 1:MMA Rev-Exp Region 11'!BD44) -> 0 | BE44: =SUM('MMA Rev-Exp Region 1:MMA Rev-Exp Region 11'!BE44) -> 0 | BF44: =SUM('MMA Rev-Exp Region 1:MMA Rev-Exp Region 11'!BF44) -> 351 | BG44: =SUM('MMA Rev-Exp Region 1:MMA Rev-Exp Region 11'!BG44) -> 0 | BH44: =SUM('MMA Rev-Exp Region 1:MMA Rev-Exp Region 11'!BH44) -> 0 | BI44: =SUM('MMA Rev-Exp Region 1:MMA Rev-Exp Region 11'!BI44) -> 0 | BJ44: =SUM('MMA Rev-Exp Region 1:MMA Rev-Exp Region 11'!BJ44) -> 0 | BK44: =SUM('MMA Rev-Exp Region 1:MMA Rev-Exp Region 11'!BK44) -> 230,862 | BL44: =SUM('MMA Rev-Exp Region 1:MMA Rev-Exp Region 11'!BL44) -> 95,438
B45: 5.5 | C45: Total Mental Health & Substance Abuse Services | D45: =SUM(D41:D44) -> 659,422 | E45: 0 | F45: 0 | G45: 0 | H45: 0 | I45: 509 | J45: 0 | K45: 0 | L45: 0 | M45: 0 | N45: 447,758 | O45: 211,155 | P45: 1,111,107 | Q45: =SUM(Q41:Q44) -> 0 | R45: 0 | S45: 0 | T45: 0 | U45: 0 | V45: 0 | W45: 0 | X45: 0 | Y45: 0 | Z45: 780,031 | AA45: 331,077 | AB45: =SUM(AB41:AB44) -> 414,009 | AC45: =SUM(AC41:AC44) -> 0 | AD45: 0 | AE45: 0 | AF45: 0 | AG45: 1 | AH45: 0 | AI45: 0 | AJ45: 0 | AK45: 0 | AL45: 334,528 | AM45: 79,481 | AN45: =SUM(AN41:AN44) -> 66,821 | AO45: =SUM(AO41:AO44) -> 0 | AP45: 0 | AQ45: 0 | AR45: 0 | AS45: 0 | AT45: 0 | AU45: 0 | AV45: 0 | AW45: 0 | AX45: 41,756 | AY45: 25,065 | AZ45: =SUM(AZ41:AZ44) -> (159,158) | BA45: =SUM(BA41:BA44) -> 2,092,202 | BB45: =SUM('MMA Rev-Exp Region 1:MMA Rev-Exp Region 11'!BB45) -> 0 | BC45: =SUM('MMA Rev-Exp Region 1:MMA Rev-Exp Region 11'!BC45) -> 0 | BD45: =SUM('MMA Rev-Exp Region 1:MMA Rev-Exp Region 11'!BD45) -> 0 | BE45: =SUM('MMA Rev-Exp Region 1:MMA Rev-Exp Region 11'!BE45) -> 0 | BF45: =SUM('MMA Rev-Exp Region 1:MMA Rev-Exp Region 11'!BF45) -> 510 | BG45: =SUM('MMA Rev-Exp Region 1:MMA Rev-Exp Region 11'!BG45) -> 0 | BH45: =SUM('MMA Rev-Exp Region 1:MMA Rev-Exp Region 11'!BH45) -> 0 | BI45: =SUM('MMA Rev-Exp Region 1:MMA Rev-Exp Region 11'!BI45) -> 0 | BJ45: =SUM('MMA Rev-Exp Region 1:MMA Rev-Exp Region 11'!BJ45) -> 0 | BK45: =SUM('MMA Rev-Exp Region 1:MMA Rev-Exp Region 11'!BK45) -> 1,604,072 | BL45: =SUM('MMA Rev-Exp Region 1:MMA Rev-Exp Region 11'!BL45) -> 646,777
A46: Dental | B46: 6.1 | C46: Dental FFS | D46: =SUM(E46:O46) -> 0 | E46: =SUM('MMA Rev-Exp Region 1:MMA Rev-Exp Region 11'!E46) -> 0 | F46: =SUM('MMA Rev-Exp Region 1:MMA Rev-Exp Region 11'!F46) -> 0 | G46: =SUM('MMA Rev-Exp Region 1:MMA Rev-Exp Region 11'!G46) -> 0 | H46: =SUM('MMA Rev-Exp Region 1:MMA Rev-Exp Region 11'!H46) -> 0 | I46: =SUM('MMA Rev-Exp Region 1:MMA Rev-Exp Region 11'!I46) -> 0 | J46: =SUM('MMA Rev-Exp Region 1:MMA Rev-Exp Region 11'!J46) -> 0 | K46: =SUM('MMA Rev-Exp Region 1:MMA Rev-Exp Region 11'!K46) -> 0 | L46: =SUM('MMA Rev-Exp Region 1:MMA Rev-Exp Region 11'!L46) -> 0 | M46: =SUM('MMA Rev-Exp Region 1:MMA Rev-Exp Region 11'!M46) -> 0 | N46: =SUM('MMA Rev-Exp Region 1:MMA Rev-Exp Region 11'!N46) -> 0 | O46: =SUM('MMA Rev-Exp Region 1:MMA Rev-Exp Region 11'!O46) -> 0 | P46: =SUM(Q46:AA46) -> 0 | Q46: =SUM('MMA Rev-Exp Region 1:MMA Rev-Exp Region 11'!Q46) -> 0 | R46: =SUM('MMA Rev-Exp Region 1:MMA Rev-Exp Region 11'!R46) -> 0 | S46: =SUM('MMA Rev-Exp Region 1:MMA Rev-Exp Region 11'!S46) -> 0 | T46: =SUM('MMA Rev-Exp Region 1:MMA Rev-Exp Region 11'!T46) -> 0 | U46: =SUM('MMA Rev-Exp Region 1:MMA Rev-Exp Region 11'!U46) -> 0 | V46: =SUM('MMA Rev-Exp Region 1:MMA Rev-Exp Region 11'!V46) -> 0 | W46: =SUM('MMA Rev-Exp Region 1:MMA Rev-Exp Region 11'!W46) -> 0 | X46: =SUM('MMA Rev-Exp Region 1:MMA Rev-Exp Region 11'!X46) -> 0 | Y46: =SUM('MMA Rev-Exp Region 1:MMA Rev-Exp Region 11'!Y46) -> 0 | Z46: =SUM('MMA Rev-Exp Region 1:MMA Rev-Exp Region 11'!Z46) -> 0 | AA46: =SUM('MMA Rev-Exp Region 1:MMA Rev-Exp Region 11'!AA46) -> 0 | AB46: =SUM(AC46:AM46) -> 0 | AC46: =SUM('MMA Rev-Exp Region 1:MMA Rev-Exp Region 11'!AC46) -> 0 | AD46: =SUM('MMA Rev-Exp Region 1:MMA Rev-Exp Region 11'!AD46) -> 0 | AE46: =SUM('MMA Rev-Exp Region 1:MMA Rev-Exp Region 11'!AE46) -> 0 | AF46: =SUM('MMA Rev-Exp Region 1:MMA Rev-Exp Region 11'!AF46) -> 0 | AG46: =SUM('MMA Rev-Exp Region 1:MMA Rev-Exp Region 11'!AG46) -> 0 | AH46: =SUM('MMA Rev-Exp Region 1:MMA Rev-Exp Region 11'!AH46) -> 0 | AI46: =SUM('MMA Rev-Exp Region 1:MMA Rev-Exp Region 11'!AI46) -> 0 | AJ46: =SUM('MMA Rev-Exp Region 1:MMA Rev-Exp Region 11'!AJ46) -> 0 | AK46: =SUM('MMA Rev-Exp Region 1:MMA Rev-Exp Region 11'!AK46) -> 0 | AL46: =SUM('MMA Rev-Exp Region 1:MMA Rev-Exp Region 11'!AL46) -> 0 | AM46: =SUM('MMA Rev-Exp Region 1:MMA Rev-Exp Region 11'!AM46) -> 0 | AN46: =SUM(AO46:AY46) -> 0 | AO46: =SUM('MMA Rev-Exp Region 1:MMA Rev-Exp Region 11'!AO46) -> 0 | AP46: =SUM('MMA Rev-Exp Region 1:MMA Rev-Exp Region 11'!AP46) -> 0 | AQ46: =SUM('MMA Rev-Exp Region 1:MMA Rev-Exp Region 11'!AQ46) -> 0 | AR46: =SUM('MMA Rev-Exp Region 1:MMA Rev-Exp Region 11'!AR46) -> 0 | AS46: =SUM('MMA Rev-Exp Region 1:MMA Rev-Exp Region 11'!AS46) -> 0 | AT46: =SUM('MMA Rev-Exp Region 1:MMA Rev-Exp Region 11'!AT46) -> 0 | AU46: =SUM('MMA Rev-Exp Region 1:MMA Rev-Exp Region 11'!AU46) -> 0 | AV46: =SUM('MMA Rev-Exp Region 1:MMA Rev-Exp Region 11'!AV46) -> 0 | AW46: =SUM('MMA Rev-Exp Region 1:MMA Rev-Exp Region 11'!AW46) -> 0 | AX46: =SUM('MMA Rev-Exp Region 1:MMA Rev-Exp Region 11'!AX46) -> 0 | AY46: =SUM('MMA Rev-Exp Region 1:MMA Rev-Exp Region 11'!AY46) -> 0 | AZ46: =SUM('MMA Rev-Exp Region 1:MMA Rev-Exp Region 11'!AZ46) -> 0 | BA46: =SUM(BB46:BL46)+AZ46 -> 0 | BB46: =SUM('MMA Rev-Exp Region 1:MMA Rev-Exp Region 11'!BB46) -> 0 | BC46: =SUM('MMA Rev-Exp Region 1:MMA Rev-Exp Region 11'!BC46) -> 0 | BD46: =SUM('MMA Rev-Exp Region 1:MMA Rev-Exp Region 11'!BD46) -> 0 | BE46: =SUM('MMA Rev-Exp Region 1:MMA Rev-Exp Region 11'!BE46) -> 0 | BF46: =SUM('MMA Rev-Exp Region 1:MMA Rev-Exp Region 11'!BF46) -> 0 | BG46: =SUM('MMA Rev-Exp Region 1:MMA Rev-Exp Region 11'!BG46) -> 0 | BH46: =SUM('MMA Rev-Exp Region 1:MMA Rev-Exp Region 11'!BH46) -> 0 | BI46: =SUM('MMA Rev-Exp Region 1:MMA Rev-Exp Region 11'!BI46) -> 0 | BJ46: =SUM('MMA Rev-Exp Region 1:MMA Rev-Exp Region 11'!BJ46) -> 0 | BK46: =SUM('MMA Rev-Exp Region 1:MMA Rev-Exp Region 11'!BK46) -> 0 | BL46: =SUM('MMA Rev-Exp Region 1:MMA Rev-Exp Region 11'!BL46) -> 0
B47: 6.2 | C47: Dental Subcapitation | D47: =SUM(E47:O47) -> 0 | E47: =SUM('MMA Rev-Exp Region 1:MMA Rev-Exp Region 11'!E47) -> 0 | F47: =SUM('MMA Rev-Exp Region 1:MMA Rev-Exp Region 11'!F47) -> 0 | G47: =SUM('MMA Rev-Exp Region 1:MMA Rev-Exp Region 11'!G47) -> 0 | H47: =SUM('MMA Rev-Exp Region 1:MMA Rev-Exp Region 11'!H47) -> 0 | I47: =SUM('MMA Rev-Exp Region 1:MMA Rev-Exp Region 11'!I47) -> 0 | J47: =SUM('MMA Rev-Exp Region 1:MMA Rev-Exp Region 11'!J47) -> 0 | K47: =SUM('MMA Rev-Exp Region 1:MMA Rev-Exp Region 11'!K47) -> 0 | L47: =SUM('MMA Rev-Exp Region 1:MMA Rev-Exp Region 11'!L47) -> 0 | M47: =SUM('MMA Rev-Exp Region 1:MMA Rev-Exp Region 11'!M47) -> 0 | N47: =SUM('MMA Rev-Exp Region 1:MMA Rev-Exp Region 11'!N47) -> 0 | O47: =SUM('MMA Rev-Exp Region 1:MMA Rev-Exp Region 11'!O47) -> 0 | P47: =SUM(Q47:AA47) -> 0 | Q47: =SUM('MMA Rev-Exp Region 1:MMA Rev-Exp Region 11'!Q47) -> 0 | R47: =SUM('MMA Rev-Exp Region 1:MMA Rev-Exp Region 11'!R47) -> 0 | S47: =SUM('MMA Rev-Exp Region 1:MMA Rev-Exp Region 11'!S47) -> 0 | T47: =SUM('MMA Rev-Exp Region 1:MMA Rev-Exp Region 11'!T47) -> 0 | U47: =SUM('MMA Rev-Exp Region 1:MMA Rev-Exp Region 11'!U47) -> 0 | V47: =SUM('MMA Rev-Exp Region 1:MMA Rev-Exp Region 11'!V47) -> 0 | W47: =SUM('MMA Rev-Exp Region 1:MMA Rev-Exp Region 11'!W47) -> 0 | X47: =SUM('MMA Rev-Exp Region 1:MMA Rev-Exp Region 11'!X47) -> 0 | Y47: =SUM('MMA Rev-Exp Region 1:MMA Rev-Exp Region 11'!Y47) -> 0 | Z47: =SUM('MMA Rev-Exp Region 1:MMA Rev-Exp Region 11'!Z47) -> 0 | AA47: =SUM('MMA Rev-Exp Region 1:MMA Rev-Exp Region 11'!AA47) -> 0 | AB47: =SUM(AC47:AM47) -> 0 | AC47: =SUM('MMA Rev-Exp Region 1:MMA Rev-Exp Region 11'!AC47) -> 0 | AD47: =SUM('MMA Rev-Exp Region 1:MMA Rev-Exp Region 11'!AD47) -> 0 | AE47: =SUM('MMA Rev-Exp Region 1:MMA Rev-Exp Region 11'!AE47) -> 0 | AF47: =SUM('MMA Rev-Exp Region 1:MMA Rev-Exp Region 11'!AF47) -> 0 | AG47: =SUM('MMA Rev-Exp Region 1:MMA Rev-Exp Region 11'!AG47) -> 0 | AH47: =SUM('MMA Rev-Exp Region 1:MMA Rev-Exp Region 11'!AH47) -> 0 | AI47: =SUM('MMA Rev-Exp Region 1:MMA Rev-Exp Region 11'!AI47) -> 0 | AJ47: =SUM('MMA Rev-Exp Region 1:MMA Rev-Exp Region 11'!AJ47) -> 0 | AK47: =SUM('MMA Rev-Exp Region 1:MMA Rev-Exp Region 11'!AK47) -> 0 | AL47: =SUM('MMA Rev-Exp Region 1:MMA Rev-Exp Region 11'!AL47) -> 0 | AM47: =SUM('MMA Rev-Exp Region 1:MMA Rev-Exp Region 11'!AM47) -> 0 | AN47: =SUM(AO47:AY47) -> 0 | AO47: =SUM('MMA Rev-Exp Region 1:MMA Rev-Exp Region 11'!AO47) -> 0 | AP47: =SUM('MMA Rev-Exp Region 1:MMA Rev-Exp Region 11'!AP47) -> 0 | AQ47: =SUM('MMA Rev-Exp Region 1:MMA Rev-Exp Region 11'!AQ47) -> 0 | AR47: =SUM('MMA Rev-Exp Region 1:MMA Rev-Exp Region 11'!AR47) -> 0 | AS47: =SUM('MMA Rev-Exp Region 1:MMA Rev-Exp Region 11'!AS47) -> 0 | AT47: =SUM('MMA Rev-Exp Region 1:MMA Rev-Exp Region 11'!AT47) -> 0 | AU47: =SUM('MMA Rev-Exp Region 1:MMA Rev-Exp Region 11'!AU47) -> 0 | AV47: =SUM('MMA Rev-Exp Region 1:MMA Rev-Exp Region 11'!AV47) -> 0 | AW47: =SUM('MMA Rev-Exp Region 1:MMA Rev-Exp Region 11'!AW47) -> 0 | AX47: =SUM('MMA Rev-Exp Region 1:MMA Rev-Exp Region 11'!AX47) -> 0 | AY47: =SUM('MMA Rev-Exp Region 1:MMA Rev-Exp Region 11'!AY47) -> 0 | AZ47: =SUM('MMA Rev-Exp Region 1:MMA Rev-Exp Region 11'!AZ47) -> 0 | BA47: =SUM(BB47:BL47)+AZ47 -> 0 | BB47: =SUM('MMA Rev-Exp Region 1:MMA Rev-Exp Region 11'!BB47) -> 0 | BC47: =SUM('MMA Rev-Exp Region 1:MMA Rev-Exp Region 11'!BC47) -> 0 | BD47: =SUM('MMA Rev-Exp Region 1:MMA Rev-Exp Region 11'!BD47) -> 0 | BE47: =SUM('MMA Rev-Exp Region 1:MMA Rev-Exp Region 11'!BE47) -> 0 | BF47: =SUM('MMA Rev-Exp Region 1:MMA Rev-Exp Region 11'!BF47) -> 0 | BG47: =SUM('MMA Rev-Exp Region 1:MMA Rev-Exp Region 11'!BG47) -> 0 | BH47: =SUM('MMA Rev-Exp Region 1:MMA Rev-Exp Region 11'!BH47) -> 0 | BI47: =SUM('MMA Rev-Exp Region 1:MMA Rev-Exp Region 11'!BI47) -> 0 | BJ47: =SUM('MMA Rev-Exp Region 1:MMA Rev-Exp Region 11'!BJ47) -> 0 | BK47: =SUM('MMA Rev-Exp Region 1:MMA Rev-Exp Region 11'!BK47) -> 0 | BL47: =SUM('MMA Rev-Exp Region 1:MMA Rev-Exp Region 11'!BL47) -> 0
B48: 6.3 | C48: Ending IBNP for Dental Services | D48: =SUM(E48:O48) -> 0 | E48: =SUM('MMA Rev-Exp Region 1:MMA Rev-Exp Region 11'!E48) -> 0 | F48: =SUM('MMA Rev-Exp Region 1:MMA Rev-Exp Region 11'!F48) -> 0 | G48: =SUM('MMA Rev-Exp Region 1:MMA Rev-Exp Region 11'!G48) -> 0 | H48: =SUM('MMA Rev-Exp Region 1:MMA Rev-Exp Region 11'!H48) -> 0 | I48: =SUM('MMA Rev-Exp Region 1:MMA Rev-Exp Region 11'!I48) -> 0 | J48: =SUM('MMA Rev-Exp Region 1:MMA Rev-Exp Region 11'!J48) -> 0 | K48: =SUM('MMA Rev-Exp Region 1:MMA Rev-Exp Region 11'!K48) -> 0 | L48: =SUM('MMA Rev-Exp Region 1:MMA Rev-Exp Region 11'!L48) -> 0 | M48: =SUM('MMA Rev-Exp Region 1:MMA Rev-Exp Region 11'!M48) -> 0 | N48: =SUM('MMA Rev-Exp Region 1:MMA Rev-Exp Region 11'!N48) -> 0 | O48: =SUM('MMA Rev-Exp Region 1:MMA Rev-Exp Region 11'!O48) -> 0 | P48: =SUM(Q48:AA48) -> 0 | Q48: =SUM('MMA Rev-Exp Region 1:MMA Rev-Exp Region 11'!Q48) -> 0 | R48: =SUM('MMA Rev-Exp Region 1:MMA Rev-Exp Region 11'!R48) -> 0 | S48: =SUM('MMA Rev-Exp Region 1:MMA Rev-Exp Region 11'!S48) -> 0 | T48: =SUM('MMA Rev-Exp Region 1:MMA Rev-Exp Region 11'!T48) -> 0 | U48: =SUM('MMA Rev-Exp Region 1:MMA Rev-Exp Region 11'!U48) -> 0 | V48: =SUM('MMA Rev-Exp Region 1:MMA Rev-Exp Region 11'!V48) -> 0 | W48: =SUM('MMA Rev-Exp Region 1:MMA Rev-Exp Region 11'!W48) -> 0 | X48: =SUM('MMA Rev-Exp Region 1:MMA Rev-Exp Region 11'!X48) -> 0 | Y48: =SUM('MMA Rev-Exp Region 1:MMA Rev-Exp Region 11'!Y48) -> 0 | Z48: =SUM('MMA Rev-Exp Region 1:MMA Rev-Exp Region 11'!Z48) -> 0 | AA48: =SUM('MMA Rev-Exp Region 1:MMA Rev-Exp Region 11'!AA48) -> 0 | AB48: =SUM(AC48:AM48) -> 0 | AC48: =SUM('MMA Rev-Exp Region 1:MMA Rev-Exp Region 11'!AC48) -> 0 | AD48: =SUM('MMA Rev-Exp Region 1:MMA Rev-Exp Region 11'!AD48) -> 0 | AE48: =SUM('MMA Rev-Exp Region 1:MMA Rev-Exp Region 11'!AE48) -> 0 | AF48: =SUM('MMA Rev-Exp Region 1:MMA Rev-Exp Region 11'!AF48) -> 0 | AG48: =SUM('MMA Rev-Exp Region 1:MMA Rev-Exp Region 11'!AG48) -> 0 | AH48: =SUM('MMA Rev-Exp Region 1:MMA Rev-Exp Region 11'!AH48) -> 0 | AI48: =SUM('MMA Rev-Exp Region 1:MMA Rev-Exp Region 11'!AI48) -> 0 | AJ48: =SUM('MMA Rev-Exp Region 1:MMA Rev-Exp Region 11'!AJ48) -> 0 | AK48: =SUM('MMA Rev-Exp Region 1:MMA Rev-Exp Region 11'!AK48) -> 0 | AL48: =SUM('MMA Rev-Exp Region 1:MMA Rev-Exp Region 11'!AL48) -> 0 | AM48: =SUM('MMA Rev-Exp Region 1:MMA Rev-Exp Region 11'!AM48) -> 0 | AN48: =SUM(AO48:AY48) -> 0 | AO48: =SUM('MMA Rev-Exp Region 1:MMA Rev-Exp Region 11'!AO48) -> 0 | AP48: =SUM('MMA Rev-Exp Region 1:MMA Rev-Exp Region 11'!AP48) -> 0 | AQ48: =SUM('MMA Rev-Exp Region 1:MMA Rev-Exp Region 11'!AQ48) -> 0 | AR48: =SUM('MMA Rev-Exp Region 1:MMA Rev-Exp Region 11'!AR48) -> 0 | AS48: =SUM('MMA Rev-Exp Region 1:MMA Rev-Exp Region 11'!AS48) -> 0 | AT48: =SUM('MMA Rev-Exp Region 1:MMA Rev-Exp Region 11'!AT48) -> 0 | AU48: =SUM('MMA Rev-Exp Region 1:MMA Rev-Exp Region 11'!AU48) -> 0 | AV48: =SUM('MMA Rev-Exp Region 1:MMA Rev-Exp Region 11'!AV48) -> 0 | AW48: =SUM('MMA Rev-Exp Region 1:MMA Rev-Exp Region 11'!AW48) -> 0 | AX48: =SUM('MMA Rev-Exp Region 1:MMA Rev-Exp Region 11'!AX48) -> 0 | AY48: =SUM('MMA Rev-Exp Region 1:MMA Rev-Exp Region 11'!AY48) -> 0 | AZ48: =SUM('MMA Rev-Exp Region 1:MMA Rev-Exp Region 11'!AZ48) -> 0 | BA48: =SUM(BB48:BL48)+AZ48 -> 0 | BB48: =SUM('MMA Rev-Exp Region 1:MMA Rev-Exp Region 11'!BB48) -> 0 | BC48: =SUM('MMA Rev-Exp Region 1:MMA Rev-Exp Region 11'!BC48) -> 0 | BD48: =SUM('MMA Rev-Exp Region 1:MMA Rev-Exp Region 11'!BD48) -> 0 | BE48: =SUM('MMA Rev-Exp Region 1:MMA Rev-Exp Region 11'!BE48) -> 0 | BF48: =SUM('MMA Rev-Exp Region 1:MMA Rev-Exp Region 11'!BF48) -> 0 | BG48: =SUM('MMA Rev-Exp Region 1:MMA Rev-Exp Region 11'!BG48) -> 0 | BH48: =SUM('MMA Rev-Exp Region 1:MMA Rev-Exp Region 11'!BH48) -> 0 | BI48: =SUM('MMA Rev-Exp Region 1:MMA Rev-Exp Region 11'!BI48) -> 0 | BJ48: =SUM('MMA Rev-Exp Region 1:MMA Rev-Exp Region 11'!BJ48) -> 0 | BK48: =SUM('MMA Rev-Exp Region 1:MMA Rev-Exp Region 11'!BK48) -> 0 | BL48: =SUM('MMA Rev-Exp Region 1:MMA Rev-Exp Region 11'!BL48) -> 0
B49: 6.4 | C49: Dental Settlements/AP | D49: =SUM(E49:O49) -> 0 | E49: =SUM('MMA Rev-Exp Region 1:MMA Rev-Exp Region 11'!E49) -> 0 | F49: =SUM('MMA Rev-Exp Region 1:MMA Rev-Exp Region 11'!F49) -> 0 | G49: =SUM('MMA Rev-Exp Region 1:MMA Rev-Exp Region 11'!G49) -> 0 | H49: =SUM('MMA Rev-Exp Region 1:MMA Rev-Exp Region 11'!H49) -> 0 | I49: =SUM('MMA Rev-Exp Region 1:MMA Rev-Exp Region 11'!I49) -> 0 | J49: =SUM('MMA Rev-Exp Region 1:MMA Rev-Exp Region 11'!J49) -> 0 | K49: =SUM('MMA Rev-Exp Region 1:MMA Rev-Exp Region 11'!K49) -> 0 | L49: =SUM('MMA Rev-Exp Region 1:MMA Rev-Exp Region 11'!L49) -> 0 | M49: =SUM('MMA Rev-Exp Region 1:MMA Rev-Exp Region 11'!M49) -> 0 | N49: =SUM('MMA Rev-Exp Region 1:MMA Rev-Exp Region 11'!N49) -> 0 | O49: =SUM('MMA Rev-Exp Region 1:MMA Rev-Exp Region 11'!O49) -> 0 | P49: =SUM(Q49:AA49) -> 0 | Q49: =SUM('MMA Rev-Exp Region 1:MMA Rev-Exp Region 11'!Q49) -> 0 | R49: =SUM('MMA Rev-Exp Region 1:MMA Rev-Exp Region 11'!R49) -> 0 | S49: =SUM('MMA Rev-Exp Region 1:MMA Rev-Exp Region 11'!S49) -> 0 | T49: =SUM('MMA Rev-Exp Region 1:MMA Rev-Exp Region 11'!T49) -> 0 | U49: =SUM('MMA Rev-Exp Region 1:MMA Rev-Exp Region 11'!U49) -> 0 | V49: =SUM('MMA Rev-Exp Region 1:MMA Rev-Exp Region 11'!V49) -> 0 | W49: =SUM('MMA Rev-Exp Region 1:MMA Rev-Exp Region 11'!W49) -> 0 | X49: =SUM('MMA Rev-Exp Region 1:MMA Rev-Exp Region 11'!X49) -> 0 | Y49: =SUM('MMA Rev-Exp Region 1:MMA Rev-Exp Region 11'!Y49) -> 0 | Z49: =SUM('MMA Rev-Exp Region 1:MMA Rev-Exp Region 11'!Z49) -> 0 | AA49: =SUM('MMA Rev-Exp Region 1:MMA Rev-Exp Region 11'!AA49) -> 0 | AB49: =SUM(AC49:AM49) -> 0 | AC49: =SUM('MMA Rev-Exp Region 1:MMA Rev-Exp Region 11'!AC49) -> 0 | AD49: =SUM('MMA Rev-Exp Region 1:MMA Rev-Exp Region 11'!AD49) -> 0 | AE49: =SUM('MMA Rev-Exp Region 1:MMA Rev-Exp Region 11'!AE49) -> 0 | AF49: =SUM('MMA Rev-Exp Region 1:MMA Rev-Exp Region 11'!AF49) -> 0 | AG49: =SUM('MMA Rev-Exp Region 1:MMA Rev-Exp Region 11'!AG49) -> 0 | AH49: =SUM('MMA Rev-Exp Region 1:MMA Rev-Exp Region 11'!AH49) -> 0 | AI49: =SUM('MMA Rev-Exp Region 1:MMA Rev-Exp Region 11'!AI49) -> 0 | AJ49: =SUM('MMA Rev-Exp Region 1:MMA Rev-Exp Region 11'!AJ49) -> 0 | AK49: =SUM('MMA Rev-Exp Region 1:MMA Rev-Exp Region 11'!AK49) -> 0 | AL49: =SUM('MMA Rev-Exp Region 1:MMA Rev-Exp Region 11'!AL49) -> 0 | AM49: =SUM('MMA Rev-Exp Region 1:MMA Rev-Exp Region 11'!AM49) -> 0 | AN49: =SUM(AO49:AY49) -> 0 | AO49: =SUM('MMA Rev-Exp Region 1:MMA Rev-Exp Region 11'!AO49) -> 0 | AP49: =SUM('MMA Rev-Exp Region 1:MMA Rev-Exp Region 11'!AP49) -> 0 | AQ49: =SUM('MMA Rev-Exp Region 1:MMA Rev-Exp Region 11'!AQ49) -> 0 | AR49: =SUM('MMA Rev-Exp Region 1:MMA Rev-Exp Region 11'!AR49) -> 0 | AS49: =SUM('MMA Rev-Exp Region 1:MMA Rev-Exp Region 11'!AS49) -> 0 | AT49: =SUM('MMA Rev-Exp Region 1:MMA Rev-Exp Region 11'!AT49) -> 0 | AU49: =SUM('MMA Rev-Exp Region 1:MMA Rev-Exp Region 11'!AU49) -> 0 | AV49: =SUM('MMA Rev-Exp Region 1:MMA Rev-Exp Region 11'!AV49) -> 0 | AW49: =SUM('MMA Rev-Exp Region 1:MMA Rev-Exp Region 11'!AW49) -> 0 | AX49: =SUM('MMA Rev-Exp Region 1:MMA Rev-Exp Region 11'!AX49) -> 0 | AY49: =SUM('MMA Rev-Exp Region 1:MMA Rev-Exp Region 11'!AY49) -> 0 | AZ49: =SUM('MMA Rev-Exp Region 1:MMA Rev-Exp Region 11'!AZ49) -> 0 | BA49: =SUM(BB49:BL49)+AZ49 -> 0 | BB49: =SUM('MMA Rev-Exp Region 1:MMA Rev-Exp Region 11'!BB49) -> 0 | BC49: =SUM('MMA Rev-Exp Region 1:MMA Rev-Exp Region 11'!BC49) -> 0 | BD49: =SUM('MMA Rev-Exp Region 1:MMA Rev-Exp Region 11'!BD49) -> 0 | BE49: =SUM('MMA Rev-Exp Region 1:MMA Rev-Exp Region 11'!BE49) -> 0 | BF49: =SUM('MMA Rev-Exp Region 1:MMA Rev-Exp Region 11'!BF49) -> 0 | BG49: =SUM('MMA Rev-Exp Region 1:MMA Rev-Exp Region 11'!BG49) -> 0 | BH49: =SUM('MMA Rev-Exp Region 1:MMA Rev-Exp Region 11'!BH49) -> 0 | BI49: =SUM('MMA Rev-Exp Region 1:MMA Rev-Exp Region 11'!BI49) -> 0 | BJ49: =SUM('MMA Rev-Exp Region 1:MMA Rev-Exp Region 11'!BJ49) -> 0 | BK49: =SUM('MMA Rev-Exp Region 1:MMA Rev-Exp Region 11'!BK49) -> 0 | BL49: =SUM('MMA Rev-Exp Region 1:MMA Rev-Exp Region 11'!BL49) -> 0
B50: 6.5 | C50: Total Dental Services | D50: =SUM(D46:D49) -> 0 | E50: 0 | F50: 0 | G50: 0 | H50: 0 | I50: 0 | J50: 0 | K50: 0 | L50: 0 | M50: 0 | N50: 0 | O50: 0 | P50: 0 | Q50: =SUM(Q46:Q49) -> 0 | R50: 0 | S50: 0 | T50: 0 | U50: 0 | V50: 0 | W50: 0 | X50: 0 | Y50: 0 | Z50: 0 | AA50: 0 | AB50: =SUM(AB46:AB49) -> 0 | AC50: =SUM(AC46:AC49) -> 0 | AD50: 0 | AE50: 0 | AF50: 0 | AG50: 0 | AH50: 0 | AI50: 0 | AJ50: 0 | AK50: 0 | AL50: 0 | AM50: 0 | AN50: =SUM(AN46:AN49) -> 0 | AO50: =SUM(AO46:AO49) -> 0 | AP50: 0 | AQ50: 0 | AR50: 0 | AS50: 0 | AT50: 0 | AU50: 0 | AV50: 0 | AW50: 0 | AX50: 0 | AY50: 0 | AZ50: =SUM(AZ46:AZ49) -> 0 | BA50: =SUM(BA46:BA49) -> 0 | BB50: =SUM('MMA Rev-Exp Region 1:MMA Rev-Exp Region 11'!BB50) -> 0 | BC50: =SUM('MMA Rev-Exp Region 1:MMA Rev-Exp Region 11'!BC50) -> 0 | BD50: =SUM('MMA Rev-Exp Region 1:MMA Rev-Exp Region 11'!BD50) -> 0 | BE50: =SUM('MMA Rev-Exp Region 1:MMA Rev-Exp Region 11'!BE50) -> 0 | BF50: =SUM('MMA Rev-Exp Region 1:MMA Rev-Exp Region 11'!BF50) -> 0 | BG50: =SUM('MMA Rev-Exp Region 1:MMA Rev-Exp Region 11'!BG50) -> 0 | BH50: =SUM('MMA Rev-Exp Region 1:MMA Rev-Exp Region 11'!BH50) -> 0 | BI50: =SUM('MMA Rev-Exp Region 1:MMA Rev-Exp Region 11'!BI50) -> 0 | BJ50: =SUM('MMA Rev-Exp Region 1:MMA Rev-Exp Region 11'!BJ50) -> 0 | BK50: =SUM('MMA Rev-Exp Region 1:MMA Rev-Exp Region 11'!BK50) -> 0 | BL50: =SUM('MMA Rev-Exp Region 1:MMA Rev-Exp Region 11'!BL50) -> 0
A51: Transportation | B51: 7.1 | C51: Transportation FFS | D51: =SUM(E51:O51) -> 353,691 | E51: =SUM('MMA Rev-Exp Region 1:MMA Rev-Exp Region 11'!E51) -> 0 | F51: =SUM('MMA Rev-Exp Region 1:MMA Rev-Exp Region 11'!F51) -> 0 | G51: =SUM('MMA Rev-Exp Region 1:MMA Rev-Exp Region 11'!G51) -> 0 | H51: =SUM('MMA Rev-Exp Region 1:MMA Rev-Exp Region 11'!H51) -> 0 | I51: =SUM('MMA Rev-Exp Region 1:MMA Rev-Exp Region 11'!I51) -> 477 | J51: =SUM('MMA Rev-Exp Region 1:MMA Rev-Exp Region 11'!J51) -> 0 | K51: =SUM('MMA Rev-Exp Region 1:MMA Rev-Exp Region 11'!K51) -> 326 | L51: =SUM('MMA Rev-Exp Region 1:MMA Rev-Exp Region 11'!L51) -> 0 | M51: =SUM('MMA Rev-Exp Region 1:MMA Rev-Exp Region 11'!M51) -> 0 | N51: =SUM('MMA Rev-Exp Region 1:MMA Rev-Exp Region 11'!N51) -> 288,112 | O51: =SUM('MMA Rev-Exp Region 1:MMA Rev-Exp Region 11'!O51) -> 64,776 | P51: =SUM(Q51:AA51) -> 362,403 | Q51: =SUM('MMA Rev-Exp Region 1:MMA Rev-Exp Region 11'!Q51) -> 0 | R51: =SUM('MMA Rev-Exp Region 1:MMA Rev-Exp Region 11'!R51) -> 0 | S51: =SUM('MMA Rev-Exp Region 1:MMA Rev-Exp Region 11'!S51) -> 0 | T51: =SUM('MMA Rev-Exp Region 1:MMA Rev-Exp Region 11'!T51) -> 0 | U51: =SUM('MMA Rev-Exp Region 1:MMA Rev-Exp Region 11'!U51) -> 1,623 | V51: =SUM('MMA Rev-Exp Region 1:MMA Rev-Exp Region 11'!V51) -> 0 | W51: =SUM('MMA Rev-Exp Region 1:MMA Rev-Exp Region 11'!W51) -> 79 | X51: =SUM('MMA Rev-Exp Region 1:MMA Rev-Exp Region 11'!X51) -> 0 | Y51: =SUM('MMA Rev-Exp Region 1:MMA Rev-Exp Region 11'!Y51) -> 0 | Z51: =SUM('MMA Rev-Exp Region 1:MMA Rev-Exp Region 11'!Z51) -> 294,702 | AA51: =SUM('MMA Rev-Exp Region 1:MMA Rev-Exp Region 11'!AA51) -> 65,999 | AB51: =SUM(AC51:AM51) -> 390,460 | AC51: =SUM('MMA Rev-Exp Region 1:MMA Rev-Exp Region 11'!AC51) -> 0 | AD51: =SUM('MMA Rev-Exp Region 1:MMA Rev-Exp Region 11'!AD51) -> 0 | AE51: =SUM('MMA Rev-Exp Region 1:MMA Rev-Exp Region 11'!AE51) -> 0 | AF51: =SUM('MMA Rev-Exp Region 1:MMA Rev-Exp Region 11'!AF51) -> 0 | AG51: =SUM('MMA Rev-Exp Region 1:MMA Rev-Exp Region 11'!AG51) -> 701 | AH51: =SUM('MMA Rev-Exp Region 1:MMA Rev-Exp Region 11'!AH51) -> 0 | AI51: =SUM('MMA Rev-Exp Region 1:MMA Rev-Exp Region 11'!AI51) -> 0 | AJ51: =SUM('MMA Rev-Exp Region 1:MMA Rev-Exp Region 11'!AJ51) -> 0 | AK51: =SUM('MMA Rev-Exp Region 1:MMA Rev-Exp Region 11'!AK51) -> 0 | AL51: =SUM('MMA Rev-Exp Region 1:MMA Rev-Exp Region 11'!AL51) -> 318,275 | AM51: =SUM('MMA Rev-Exp Region 1:MMA Rev-Exp Region 11'!AM51) -> 71,483 | AN51: =SUM(AO51:AY51) -> 351,413 | AO51: =SUM('MMA Rev-Exp Region 1:MMA Rev-Exp Region 11'!AO51) -> 0 | AP51: =SUM('MMA Rev-Exp Region 1:MMA Rev-Exp Region 11'!AP51) -> 0 | AQ51: =SUM('MMA Rev-Exp Region 1:MMA Rev-Exp Region 11'!AQ51) -> 0 | AR51: =SUM('MMA Rev-Exp Region 1:MMA Rev-Exp Region 11'!AR51) -> 0 | AS51: =SUM('MMA Rev-Exp Region 1:MMA Rev-Exp Region 11'!AS51) -> 273 | AT51: =SUM('MMA Rev-Exp Region 1:MMA Rev-Exp Region 11'!AT51) -> 0 | AU51: =SUM('MMA Rev-Exp Region 1:MMA Rev-Exp Region 11'!AU51) -> 0 | AV51: =SUM('MMA Rev-Exp Region 1:MMA Rev-Exp Region 11'!AV51) -> 190 | AW51: =SUM('MMA Rev-Exp Region 1:MMA Rev-Exp Region 11'!AW51) -> 0 | AX51: =SUM('MMA Rev-Exp Region 1:MMA Rev-Exp Region 11'!AX51) -> 284,674 | AY51: =SUM('MMA Rev-Exp Region 1:MMA Rev-Exp Region 11'!AY51) -> 66,276 | AZ51: =SUM('MMA Rev-Exp Region 1:MMA Rev-Exp Region 11'!AZ51) -> 19,613 | BA51: =SUM(BB51:BL51)+AZ51 -> 1,477,579 | BB51: =SUM('MMA Rev-Exp Region 1:MMA Rev-Exp Region 11'!BB51) -> 0 | BC51: =SUM('MMA Rev-Exp Region 1:MMA Rev-Exp Region 11'!BC51) -> 0 | BD51: =SUM('MMA Rev-Exp Region 1:MMA Rev-Exp Region 11'!BD51) -> 0 | BE51: =SUM('MMA Rev-Exp Region 1:MMA Rev-Exp Region 11'!BE51) -> 0 | BF51: =SUM('MMA Rev-Exp Region 1:MMA Rev-Exp Region 11'!BF51) -> 3,074 | BG51: =SUM('MMA Rev-Exp Region 1:MMA Rev-Exp Region 11'!BG51) -> 0 | BH51: =SUM('MMA Rev-Exp Region 1:MMA Rev-Exp Region 11'!BH51) -> 405 | BI51: =SUM('MMA Rev-Exp Region 1:MMA Rev-Exp Region 11'!BI51) -> 190 | BJ51: =SUM('MMA Rev-Exp Region 1:MMA Rev-Exp Region 11'!BJ51) -> 0 | BK51: =SUM('MMA Rev-Exp Region 1:MMA Rev-Exp Region 11'!BK51) -> 1,185,763 | BL51: =SUM('MMA Rev-Exp Region 1:MMA Rev-Exp Region 11'!BL51) -> 268,534
B52: 7.2 | C52: Transportation Subcapitation | D52: =SUM(E52:O52) -> 0 | E52: =SUM('MMA Rev-Exp Region 1:MMA Rev-Exp Region 11'!E52) -> 0 | F52: =SUM('MMA Rev-Exp Region 1:MMA Rev-Exp Region 11'!F52) -> 0 | G52: =SUM('MMA Rev-Exp Region 1:MMA Rev-Exp Region 11'!G52) -> 0 | H52: =SUM('MMA Rev-Exp Region 1:MMA Rev-Exp Region 11'!H52) -> 0 | I52: =SUM('MMA Rev-Exp Region 1:MMA Rev-Exp Region 11'!I52) -> 0 | J52: =SUM('MMA Rev-Exp Region 1:MMA Rev-Exp Region 11'!J52) -> 0 | K52: =SUM('MMA Rev-Exp Region 1:MMA Rev-Exp Region 11'!K52) -> 0 | L52: =SUM('MMA Rev-Exp Region 1:MMA Rev-Exp Region 11'!L52) -> 0 | M52: =SUM('MMA Rev-Exp Region 1:MMA Rev-Exp Region 11'!M52) -> 0 | N52: =SUM('MMA Rev-Exp Region 1:MMA Rev-Exp Region 11'!N52) -> 0 | O52: =SUM('MMA Rev-Exp Region 1:MMA Rev-Exp Region 11'!O52) -> 0 | P52: =SUM(Q52:AA52) -> 0 | Q52: =SUM('MMA Rev-Exp Region 1:MMA Rev-Exp Region 11'!Q52) -> 0 | R52: =SUM('MMA Rev-Exp Region 1:MMA Rev-Exp Region 11'!R52) -> 0 | S52: =SUM('MMA Rev-Exp Region 1:MMA Rev-Exp Region 11'!S52) -> 0 | T52: =SUM('MMA Rev-Exp Region 1:MMA Rev-Exp Region 11'!T52) -> 0 | U52: =SUM('MMA Rev-Exp Region 1:MMA Rev-Exp Region 11'!U52) -> 0 | V52: =SUM('MMA Rev-Exp Region 1:MMA Rev-Exp Region 11'!V52) -> 0 | W52: =SUM('MMA Rev-Exp Region 1:MMA Rev-Exp Region 11'!W52) -> 0 | X52: =SUM('MMA Rev-Exp Region 1:MMA Rev-Exp Region 11'!X52) -> 0 | Y52: =SUM('MMA Rev-Exp Region 1:MMA Rev-Exp Region 11'!Y52) -> 0 | Z52: =SUM('MMA Rev-Exp Region 1:MMA Rev-Exp Region 11'!Z52) -> 0 | AA52: =SUM('MMA Rev-Exp Region 1:MMA Rev-Exp Region 11'!AA52) -> 0 | AB52: =SUM(AC52:AM52) -> 0 | AC52: =SUM('MMA Rev-Exp Region 1:MMA Rev-Exp Region 11'!AC52) -> 0 | AD52: =SUM('MMA Rev-Exp Region 1:MMA Rev-Exp Region 11'!AD52) -> 0 | AE52: =SUM('MMA Rev-Exp Region 1:MMA Rev-Exp Region 11'!AE52) -> 0 | AF52: =SUM('MMA Rev-Exp Region 1:MMA Rev-Exp Region 11'!AF52) -> 0 | AG52: =SUM('MMA Rev-Exp Region 1:MMA Rev-Exp Region 11'!AG52) -> 0 | AH52: =SUM('MMA Rev-Exp Region 1:MMA Rev-Exp Region 11'!AH52) -> 0 | AI52: =SUM('MMA Rev-Exp Region 1:MMA Rev-Exp Region 11'!AI52) -> 0 | AJ52: =SUM('MMA Rev-Exp Region 1:MMA Rev-Exp Region 11'!AJ52) -> 0 | AK52: =SUM('MMA Rev-Exp Region 1:MMA Rev-Exp Region 11'!AK52) -> 0 | AL52: =SUM('MMA Rev-Exp Region 1:MMA Rev-Exp Region 11'!AL52) -> 0 | AM52: =SUM('MMA Rev-Exp Region 1:MMA Rev-Exp Region 11'!AM52) -> 0 | AN52: =SUM(AO52:AY52) -> 0 | AO52: =SUM('MMA Rev-Exp Region 1:MMA Rev-Exp Region 11'!AO52) -> 0 | AP52: =SUM('MMA Rev-Exp Region 1:MMA Rev-Exp Region 11'!AP52) -> 0 | AQ52: =SUM('MMA Rev-Exp Region 1:MMA Rev-Exp Region 11'!AQ52) -> 0 | AR52: =SUM('MMA Rev-Exp Region 1:MMA Rev-Exp Region 11'!AR52) -> 0 | AS52: =SUM('MMA Rev-Exp Region 1:MMA Rev-Exp Region 11'!AS52) -> 0 | AT52: =SUM('MMA Rev-Exp Region 1:MMA Rev-Exp Region 11'!AT52) -> 0 | AU52: =SUM('MMA Rev-Exp Region 1:MMA Rev-Exp Region 11'!AU52) -> 0 | AV52: =SUM('MMA Rev-Exp Region 1:MMA Rev-Exp Region 11'!AV52) -> 0 | AW52: =SUM('MMA Rev-Exp Region 1:MMA Rev-Exp Region 11'!AW52) -> 0 | AX52: =SUM('MMA Rev-Exp Region 1:MMA Rev-Exp Region 11'!AX52) -> 0 | AY52: =SUM('MMA Rev-Exp Region 1:MMA Rev-Exp Region 11'!AY52) -> 0 | AZ52: =SUM('MMA Rev-Exp Region 1:MMA Rev-Exp Region 11'!AZ52) -> 0 | BA52: =SUM(BB52:BL52)+AZ52 -> 0 | BB52: =SUM('MMA Rev-Exp Region 1:MMA Rev-Exp Region 11'!BB52) -> 0 | BC52: =SUM('MMA Rev-Exp Region 1:MMA Rev-Exp Region 11'!BC52) -> 0 | BD52: =SUM('MMA Rev-Exp Region 1:MMA Rev-Exp Region 11'!BD52) -> 0 | BE52: =SUM('MMA Rev-Exp Region 1:MMA Rev-Exp Region 11'!BE52) -> 0 | BF52: =SUM('MMA Rev-Exp Region 1:MMA Rev-Exp Region 11'!BF52) -> 0 | BG52: =SUM('MMA Rev-Exp Region 1:MMA Rev-Exp Region 11'!BG52) -> 0 | BH52: =SUM('MMA Rev-Exp Region 1:MMA Rev-Exp Region 11'!BH52) -> 0 | BI52: =SUM('MMA Rev-Exp Region 1:MMA Rev-Exp Region 11'!BI52) -> 0 | BJ52: =SUM('MMA Rev-Exp Region 1:MMA Rev-Exp Region 11'!BJ52) -> 0 | BK52: =SUM('MMA Rev-Exp Region 1:MMA Rev-Exp Region 11'!BK52) -> 0 | BL52: =SUM('MMA Rev-Exp Region 1:MMA Rev-Exp Region 11'!BL52) -> 0
B53: 7.3 | C53: Ending IBNP for Transportation | D53: =SUM(E53:O53) -> 2,748 | E53: =SUM('MMA Rev-Exp Region 1:MMA Rev-Exp Region 11'!E53) -> 0 | F53: =SUM('MMA Rev-Exp Region 1:MMA Rev-Exp Region 11'!F53) -> 0 | G53: =SUM('MMA Rev-Exp Region 1:MMA Rev-Exp Region 11'!G53) -> 0 | H53: =SUM('MMA Rev-Exp Region 1:MMA Rev-Exp Region 11'!H53) -> 0 | I53: =SUM('MMA Rev-Exp Region 1:MMA Rev-Exp Region 11'!I53) -> 4 | J53: =SUM('MMA Rev-Exp Region 1:MMA Rev-Exp Region 11'!J53) -> 0 | K53: =SUM('MMA Rev-Exp Region 1:MMA Rev-Exp Region 11'!K53) -> 3 | L53: =SUM('MMA Rev-Exp Region 1:MMA Rev-Exp Region 11'!L53) -> 0 | M53: =SUM('MMA Rev-Exp Region 1:MMA Rev-Exp Region 11'!M53) -> 0 | N53: =SUM('MMA Rev-Exp Region 1:MMA Rev-Exp Region 11'!N53) -> 2,239 | O53: =SUM('MMA Rev-Exp Region 1:MMA Rev-Exp Region 11'!O53) -> 503 | P53: =SUM(Q53:AA53) -> 9,387 | Q53: =SUM('MMA Rev-Exp Region 1:MMA Rev-Exp Region 11'!Q53) -> 0 | R53: =SUM('MMA Rev-Exp Region 1:MMA Rev-Exp Region 11'!R53) -> 0 | S53: =SUM('MMA Rev-Exp Region 1:MMA Rev-Exp Region 11'!S53) -> 0 | T53: =SUM('MMA Rev-Exp Region 1:MMA Rev-Exp Region 11'!T53) -> 0 | U53: =SUM('MMA Rev-Exp Region 1:MMA Rev-Exp Region 11'!U53) -> 42 | V53: =SUM('MMA Rev-Exp Region 1:MMA Rev-Exp Region 11'!V53) -> 0 | W53: =SUM('MMA Rev-Exp Region 1:MMA Rev-Exp Region 11'!W53) -> 2 | X53: =SUM('MMA Rev-Exp Region 1:MMA Rev-Exp Region 11'!X53) -> 0 | Y53: =SUM('MMA Rev-Exp Region 1:MMA Rev-Exp Region 11'!Y53) -> 0 | Z53: =SUM('MMA Rev-Exp Region 1:MMA Rev-Exp Region 11'!Z53) -> 7,634 | AA53: =SUM('MMA Rev-Exp Region 1:MMA Rev-Exp Region 11'!AA53) -> 1,710 | AB53: =SUM(AC53:AM53) -> 25,688 | AC53: =SUM('MMA Rev-Exp Region 1:MMA Rev-Exp Region 11'!AC53) -> 0 | AD53: =SUM('MMA Rev-Exp Region 1:MMA Rev-Exp Region 11'!AD53) -> 0 | AE53: =SUM('MMA Rev-Exp Region 1:MMA Rev-Exp Region 11'!AE53) -> 0 | AF53: =SUM('MMA Rev-Exp Region 1:MMA Rev-Exp Region 11'!AF53) -> 0 | AG53: =SUM('MMA Rev-Exp Region 1:MMA Rev-Exp Region 11'!AG53) -> 46 | AH53: =SUM('MMA Rev-Exp Region 1:MMA Rev-Exp Region 11'!AH53) -> 0 | AI53: =SUM('MMA Rev-Exp Region 1:MMA Rev-Exp Region 11'!AI53) -> 0 | AJ53: =SUM('MMA Rev-Exp Region 1:MMA Rev-Exp Region 11'!AJ53) -> 0 | AK53: =SUM('MMA Rev-Exp Region 1:MMA Rev-Exp Region 11'!AK53) -> 0 | AL53: =SUM('MMA Rev-Exp Region 1:MMA Rev-Exp Region 11'!AL53) -> 20,939 | AM53: =SUM('MMA Rev-Exp Region 1:MMA Rev-Exp Region 11'!AM53) -> 4,703 | AN53: =SUM(AO53:AY53) -> 69,707 | AO53: =SUM('MMA Rev-Exp Region 1:MMA Rev-Exp Region 11'!AO53) -> 0 | AP53: =SUM('MMA Rev-Exp Region 1:MMA Rev-Exp Region 11'!AP53) -> 0 | AQ53: =SUM('MMA Rev-Exp Region 1:MMA Rev-Exp Region 11'!AQ53) -> 0 | AR53: =SUM('MMA Rev-Exp Region 1:MMA Rev-Exp Region 11'!AR53) -> 0 | AS53: =SUM('MMA Rev-Exp Region 1:MMA Rev-Exp Region 11'!AS53) -> 54 | AT53: =SUM('MMA Rev-Exp Region 1:MMA Rev-Exp Region 11'!AT53) -> 0 | AU53: =SUM('MMA Rev-Exp Region 1:MMA Rev-Exp Region 11'!AU53) -> 0 | AV53: =SUM('MMA Rev-Exp Region 1:MMA Rev-Exp Region 11'!AV53) -> 38 | AW53: =SUM('MMA Rev-Exp Region 1:MMA Rev-Exp Region 11'!AW53) -> 0 | AX53: =SUM('MMA Rev-Exp Region 1:MMA Rev-Exp Region 11'!AX53) -> 56,468 | AY53: =SUM('MMA Rev-Exp Region 1:MMA Rev-Exp Region 11'!AY53) -> 13,147 | AZ53: =SUM('MMA Rev-Exp Region 1:MMA Rev-Exp Region 11'!AZ53) -> (70,927) | BA53: =SUM(BB53:BL53)+AZ53 -> 36,604 | BB53: =SUM('MMA Rev-Exp Region 1:MMA Rev-Exp Region 11'!BB53) -> 0 | BC53: =SUM('MMA Rev-Exp Region 1:MMA Rev-Exp Region 11'!BC53) -> 0 | BD53: =SUM('MMA Rev-Exp Region 1:MMA Rev-Exp Region 11'!BD53) -> 0 | BE53: =SUM('MMA Rev-Exp Region 1:MMA Rev-Exp Region 11'!BE53) -> 0 | BF53: =SUM('MMA Rev-Exp Region 1:MMA Rev-Exp Region 11'!BF53) -> 146 | BG53: =SUM('MMA Rev-Exp Region 1:MMA Rev-Exp Region 11'!BG53) -> 0 | BH53: =SUM('MMA Rev-Exp Region 1:MMA Rev-Exp Region 11'!BH53) -> 5 | BI53: =SUM('MMA Rev-Exp Region 1:MMA Rev-Exp Region 11'!BI53) -> 38 | BJ53: =SUM('MMA Rev-Exp Region 1:MMA Rev-Exp Region 11'!BJ53) -> 0 | BK53: =SUM('MMA Rev-Exp Region 1:MMA Rev-Exp Region 11'!BK53) -> 87,280 | BL53: =SUM('MMA Rev-Exp Region 1:MMA Rev-Exp Region 11'!BL53) -> 20,062
B54: 7.4 | C54: Transportation Settlements/AP | D54: =SUM(E54:O54) -> 53,618 | E54: =SUM('MMA Rev-Exp Region 1:MMA Rev-Exp Region 11'!E54) -> 0 | F54: =SUM('MMA Rev-Exp Region 1:MMA Rev-Exp Region 11'!F54) -> 0 | G54: =SUM('MMA Rev-Exp Region 1:MMA Rev-Exp Region 11'!G54) -> 0 | H54: =SUM('MMA Rev-Exp Region 1:MMA Rev-Exp Region 11'!H54) -> 0 | I54: =SUM('MMA Rev-Exp Region 1:MMA Rev-Exp Region 11'!I54) -> (140) | J54: =SUM('MMA Rev-Exp Region 1:MMA Rev-Exp Region 11'!J54) -> 0 | K54: =SUM('MMA Rev-Exp Region 1:MMA Rev-Exp Region 11'!K54) -> 79 | L54: =SUM('MMA Rev-Exp Region 1:MMA Rev-Exp Region 11'!L54) -> 0 | M54: =SUM('MMA Rev-Exp Region 1:MMA Rev-Exp Region 11'!M54) -> 0 | N54: =SUM('MMA Rev-Exp Region 1:MMA Rev-Exp Region 11'!N54) -> 45,927 | O54: =SUM('MMA Rev-Exp Region 1:MMA Rev-Exp Region 11'!O54) -> 7,753 | P54: =SUM(Q54:AA54) -> 177,555 | Q54: =SUM('MMA Rev-Exp Region 1:MMA Rev-Exp Region 11'!Q54) -> 0 | R54: =SUM('MMA Rev-Exp Region 1:MMA Rev-Exp Region 11'!R54) -> 0 | S54: =SUM('MMA Rev-Exp Region 1:MMA Rev-Exp Region 11'!S54) -> 0 | T54: =SUM('MMA Rev-Exp Region 1:MMA Rev-Exp Region 11'!T54) -> 1,052 | U54: =SUM('MMA Rev-Exp Region 1:MMA Rev-Exp Region 11'!U54) -> 4,011 | V54: =SUM('MMA Rev-Exp Region 1:MMA Rev-Exp Region 11'!V54) -> 0 | W54: =SUM('MMA Rev-Exp Region 1:MMA Rev-Exp Region 11'!W54) -> (81) | X54: =SUM('MMA Rev-Exp Region 1:MMA Rev-Exp Region 11'!X54) -> 0 | Y54: =SUM('MMA Rev-Exp Region 1:MMA Rev-Exp Region 11'!Y54) -> 0 | Z54: =SUM('MMA Rev-Exp Region 1:MMA Rev-Exp Region 11'!Z54) -> 160,343 | AA54: =SUM('MMA Rev-Exp Region 1:MMA Rev-Exp Region 11'!AA54) -> 12,229 | AB54: =SUM(AC54:AM54) -> 327,857 | AC54: =SUM('MMA Rev-Exp Region 1:MMA Rev-Exp Region 11'!AC54) -> 0 | AD54: =SUM('MMA Rev-Exp Region 1:MMA Rev-Exp Region 11'!AD54) -> 0 | AE54: =SUM('MMA Rev-Exp Region 1:MMA Rev-Exp Region 11'!AE54) -> 0 | AF54: =SUM('MMA Rev-Exp Region 1:MMA Rev-Exp Region 11'!AF54) -> 1,052 | AG54: =SUM('MMA Rev-Exp Region 1:MMA Rev-Exp Region 11'!AG54) -> 887 | AH54: =SUM('MMA Rev-Exp Region 1:MMA Rev-Exp Region 11'!AH54) -> 0 | AI54: =SUM('MMA Rev-Exp Region 1:MMA Rev-Exp Region 11'!AI54) -> 0 | AJ54: =SUM('MMA Rev-Exp Region 1:MMA Rev-Exp Region 11'!AJ54) -> 0 | AK54: =SUM('MMA Rev-Exp Region 1:MMA Rev-Exp Region 11'!AK54) -> 0 | AL54: =SUM('MMA Rev-Exp Region 1:MMA Rev-Exp Region 11'!AL54) -> 307,820 | AM54: =SUM('MMA Rev-Exp Region 1:MMA Rev-Exp Region 11'!AM54) -> 18,098 | AN54: =SUM(AO54:AY54) -> 395,392 | AO54: =SUM('MMA Rev-Exp Region 1:MMA Rev-Exp Region 11'!AO54) -> 0 | AP54: =SUM('MMA Rev-Exp Region 1:MMA Rev-Exp Region 11'!AP54) -> 0 | AQ54: =SUM('MMA Rev-Exp Region 1:MMA Rev-Exp Region 11'!AQ54) -> 0 | AR54: =SUM('MMA Rev-Exp Region 1:MMA Rev-Exp Region 11'!AR54) -> 0 | AS54: =SUM('MMA Rev-Exp Region 1:MMA Rev-Exp Region 11'!AS54) -> 2,899 | AT54: =SUM('MMA Rev-Exp Region 1:MMA Rev-Exp Region 11'!AT54) -> 0 | AU54: =SUM('MMA Rev-Exp Region 1:MMA Rev-Exp Region 11'!AU54) -> 0 | AV54: =SUM('MMA Rev-Exp Region 1:MMA Rev-Exp Region 11'!AV54) -> 2,549 | AW54: =SUM('MMA Rev-Exp Region 1:MMA Rev-Exp Region 11'!AW54) -> 0 | AX54: =SUM('MMA Rev-Exp Region 1:MMA Rev-Exp Region 11'!AX54) -> 364,815 | AY54: =SUM('MMA Rev-Exp Region 1:MMA Rev-Exp Region 11'!AY54) -> 25,128 | AZ54: =SUM('MMA Rev-Exp Region 1:MMA Rev-Exp Region 11'!AZ54) -> 15,127 | BA54: =SUM(BB54:BL54)+AZ54 -> 969,549 | BB54: =SUM('MMA Rev-Exp Region 1:MMA Rev-Exp Region 11'!BB54) -> 0 | BC54: =SUM('MMA Rev-Exp Region 1:MMA Rev-Exp Region 11'!BC54) -> 0 | BD54: =SUM('MMA Rev-Exp Region 1:MMA Rev-Exp Region 11'!BD54) -> 0 | BE54: =SUM('MMA Rev-Exp Region 1:MMA Rev-Exp Region 11'!BE54) -> 2,104 | BF54: =SUM('MMA Rev-Exp Region 1:MMA Rev-Exp Region 11'!BF54) -> 7,657 | BG54: =SUM('MMA Rev-Exp Region 1:MMA Rev-Exp Region 11'!BG54) -> 0 | BH54: =SUM('MMA Rev-Exp Region 1:MMA Rev-Exp Region 11'!BH54) -> (2) | BI54: =SUM('MMA Rev-Exp Region 1:MMA Rev-Exp Region 11'!BI54) -> 2,549 | BJ54: =SUM('MMA Rev-Exp Region 1:MMA Rev-Exp Region 11'!BJ54) -> 0 | BK54: =SUM('MMA Rev-Exp Region 1:MMA Rev-Exp Region 11'!BK54) -> 878,906 | BL54: =SUM('MMA Rev-Exp Region 1:MMA Rev-Exp Region 11'!BL54) -> 63,208
B55: 7.5 | C55: Total Transportation Services | D55: =SUM(D51:D54) -> 410,057 | E55: 0 | F55: 0 | G55: 0 | H55: 0 | I55: 340 | J55: 0 | K55: 407 | L55: 0 | M55: 0 | N55: 336,278 | O55: 73,032 | P55: 549,345 | Q55: =SUM(Q51:Q54) -> 0 | R55: 0 | S55: 0 | T55: 1,052 | U55: 5,676 | V55: 0 | W55: 0 | X55: 0 | Y55: 0 | Z55: 462,679 | AA55: 79,938 | AB55: =SUM(AB51:AB54) -> 744,005 | AC55: =SUM(AC51:AC54) -> 0 | AD55: 0 | AE55: 0 | AF55: 1,052 | AG55: 1,634 | AH55: 0 | AI55: 0 | AJ55: 0 | AK55: 0 | AL55: 647,035 | AM55: 94,284 | AN55: =SUM(AN51:AN54) -> 816,512 | AO55: =SUM(AO51:AO54) -> 0 | AP55: 0 | AQ55: 0 | AR55: 0 | AS55: 3,227 | AT55: 0 | AU55: 0 | AV55: 2,777 | AW55: 0 | AX55: 705,957 | AY55: 104,551 | AZ55: =SUM(AZ51:AZ54) -> (36,187) | BA55: =SUM(BA51:BA54) -> 2,483,731 | BB55: =SUM('MMA Rev-Exp Region 1:MMA Rev-Exp Region 11'!BB55) -> 0 | BC55: =SUM('MMA Rev-Exp Region 1:MMA Rev-Exp Region 11'!BC55) -> 0 | BD55: =SUM('MMA Rev-Exp Region 1:MMA Rev-Exp Region 11'!BD55) -> 0 | BE55: =SUM('MMA Rev-Exp Region 1:MMA Rev-Exp Region 11'!BE55) -> 2,104 | BF55: =SUM('MMA Rev-Exp Region 1:MMA Rev-Exp Region 11'!BF55) -> 10,877 | BG55: =SUM('MMA Rev-Exp Region 1:MMA Rev-Exp Region 11'!BG55) -> 0 | BH55: =SUM('MMA Rev-Exp Region 1:MMA Rev-Exp Region 11'!BH55) -> 407 | BI55: =SUM('MMA Rev-Exp Region 1:MMA Rev-Exp Region 11'!BI55) -> 2,777 | BJ55: =SUM('MMA Rev-Exp Region 1:MMA Rev-Exp Region 11'!BJ55) -> 0 | BK55: =SUM('MMA Rev-Exp Region 1:MMA Rev-Exp Region 11'!BK55) -> 2,151,949 | BL55: =SUM('MMA Rev-Exp Region 1:MMA Rev-Exp Region 11'!BL55) -> 351,805
A56: Pharmacy | B56: 8.1 | C56: Prescription Drugs FFS | D56: =SUM(E56:O56) -> 1,302,374 | E56: =SUM('MMA Rev-Exp Region 1:MMA Rev-Exp Region 11'!E56) -> 0 | F56: =SUM('MMA Rev-Exp Region 1:MMA Rev-Exp Region 11'!F56) -> 0 | G56: =SUM('MMA Rev-Exp Region 1:MMA Rev-Exp Region 11'!G56) -> 0 | H56: =SUM('MMA Rev-Exp Region 1:MMA Rev-Exp Region 11'!H56) -> 0 | I56: =SUM('MMA Rev-Exp Region 1:MMA Rev-Exp Region 11'!I56) -> 1 | J56: =SUM('MMA Rev-Exp Region 1:MMA Rev-Exp Region 11'!J56) -> 0 | K56: =SUM('MMA Rev-Exp Region 1:MMA Rev-Exp Region 11'!K56) -> 0 | L56: =SUM('MMA Rev-Exp Region 1:MMA Rev-Exp Region 11'!L56) -> 0 | M56: =SUM('MMA Rev-Exp Region 1:MMA Rev-Exp Region 11'!M56) -> 0 | N56: =SUM('MMA Rev-Exp Region 1:MMA Rev-Exp Region 11'!N56) -> 32,272 | O56: =SUM('MMA Rev-Exp Region 1:MMA Rev-Exp Region 11'!O56) -> 1,270,102 | P56: =SUM(Q56:AA56) -> 1,395,225 | Q56: =SUM('MMA Rev-Exp Region 1:MMA Rev-Exp Region 11'!Q56) -> 0 | R56: =SUM('MMA Rev-Exp Region 1:MMA Rev-Exp Region 11'!R56) -> 0 | S56: =SUM('MMA Rev-Exp Region 1:MMA Rev-Exp Region 11'!S56) -> 0 | T56: =SUM('MMA Rev-Exp Region 1:MMA Rev-Exp Region 11'!T56) -> 0 | U56: =SUM('MMA Rev-Exp Region 1:MMA Rev-Exp Region 11'!U56) -> 0 | V56: =SUM('MMA Rev-Exp Region 1:MMA Rev-Exp Region 11'!V56) -> 0 | W56: =SUM('MMA Rev-Exp Region 1:MMA Rev-Exp Region 11'!W56) -> 0 | X56: =SUM('MMA Rev-Exp Region 1:MMA Rev-Exp Region 11'!X56) -> 0 | Y56: =SUM('MMA Rev-Exp Region 1:MMA Rev-Exp Region 11'!Y56) -> 0 | Z56: =SUM('MMA Rev-Exp Region 1:MMA Rev-Exp Region 11'!Z56) -> 28,288 | AA56: =SUM('MMA Rev-Exp Region 1:MMA Rev-Exp Region 11'!AA56) -> 1,366,937 | AB56: =SUM(AC56:AM56) -> 1,539,214 | AC56: =SUM('MMA Rev-Exp Region 1:MMA Rev-Exp Region 11'!AC56) -> 0 | AD56: =SUM('MMA Rev-Exp Region 1:MMA Rev-Exp Region 11'!AD56) -> 0 | AE56: =SUM('MMA Rev-Exp Region 1:MMA Rev-Exp Region 11'!AE56) -> 0 | AF56: =SUM('MMA Rev-Exp Region 1:MMA Rev-Exp Region 11'!AF56) -> 0 | AG56: =SUM('MMA Rev-Exp Region 1:MMA Rev-Exp Region 11'!AG56) -> 2 | AH56: =SUM('MMA Rev-Exp Region 1:MMA Rev-Exp Region 11'!AH56) -> 0 | AI56: =SUM('MMA Rev-Exp Region 1:MMA Rev-Exp Region 11'!AI56) -> 0 | AJ56: =SUM('MMA Rev-Exp Region 1:MMA Rev-Exp Region 11'!AJ56) -> 4,688 | AK56: =SUM('MMA Rev-Exp Region 1:MMA Rev-Exp Region 11'!AK56) -> 0 | AL56: =SUM('MMA Rev-Exp Region 1:MMA Rev-Exp Region 11'!AL56) -> 21,509 | AM56: =SUM('MMA Rev-Exp Region 1:MMA Rev-Exp Region 11'!AM56) -> 1,513,015 | AN56: =SUM(AO56:AY56) -> 1,563,817 | AO56: =SUM('MMA Rev-Exp Region 1:MMA Rev-Exp Region 11'!AO56) -> 0 | AP56: =SUM('MMA Rev-Exp Region 1:MMA Rev-Exp Region 11'!AP56) -> 0 | AQ56: =SUM('MMA Rev-Exp Region 1:MMA Rev-Exp Region 11'!AQ56) -> 0 | AR56: =SUM('MMA Rev-Exp Region 1:MMA Rev-Exp Region 11'!AR56) -> 0 | AS56: =SUM('MMA Rev-Exp Region 1:MMA Rev-Exp Region 11'!AS56) -> 0 | AT56: =SUM('MMA Rev-Exp Region 1:MMA Rev-Exp Region 11'!AT56) -> 0 | AU56: =SUM('MMA Rev-Exp Region 1:MMA Rev-Exp Region 11'!AU56) -> 0 | AV56: =SUM('MMA Rev-Exp Region 1:MMA Rev-Exp Region 11'!AV56) -> (3,911) | AW56: =SUM('MMA Rev-Exp Region 1:MMA Rev-Exp Region 11'!AW56) -> 0 | AX56: =SUM('MMA Rev-Exp Region 1:MMA Rev-Exp Region 11'!AX56) -> 10,887 | AY56: =SUM('MMA Rev-Exp Region 1:MMA Rev-Exp Region 11'!AY56) -> 1,556,841 | AZ56: =SUM('MMA Rev-Exp Region 1:MMA Rev-Exp Region 11'!AZ56) -> 0 | BA56: =SUM(BB56:BL56)+AZ56 -> 5,800,631 | BB56: =SUM('MMA Rev-Exp Region 1:MMA Rev-Exp Region 11'!BB56) -> 0 | BC56: =SUM('MMA Rev-Exp Region 1:MMA Rev-Exp Region 11'!BC56) -> 0 | BD56: =SUM('MMA Rev-Exp Region 1:MMA Rev-Exp Region 11'!BD56) -> 0 | BE56: =SUM('MMA Rev-Exp Region 1:MMA Rev-Exp Region 11'!BE56) -> 0 | BF56: =SUM('MMA Rev-Exp Region 1:MMA Rev-Exp Region 11'!BF56) -> 3 | BG56: =SUM('MMA Rev-Exp Region 1:MMA Rev-Exp Region 11'!BG56) -> 0 | BH56: =SUM('MMA Rev-Exp Region 1:MMA Rev-Exp Region 11'!BH56) -> 0 | BI56: =SUM('MMA Rev-Exp Region 1:MMA Rev-Exp Region 11'!BI56) -> 777 | BJ56: =SUM('MMA Rev-Exp Region 1:MMA Rev-Exp Region 11'!BJ56) -> 0 | BK56: =SUM('MMA Rev-Exp Region 1:MMA Rev-Exp Region 11'!BK56) -> 92,956 | BL56: =SUM('MMA Rev-Exp Region 1:MMA Rev-Exp Region 11'!BL56) -> 5,706,896
B57: 8.2 | C57: Hepatitis C Prescription Drug FFS | D57: 0 | E57: =SUM('MMA Rev-Exp Region 1:MMA Rev-Exp Region 11'!E57) -> 0 | F57: =SUM('MMA Rev-Exp Region 1:MMA Rev-Exp Region 11'!F57) -> 0 | G57: =SUM('MMA Rev-Exp Region 1:MMA Rev-Exp Region 11'!G57) -> 0 | H57: =SUM('MMA Rev-Exp Region 1:MMA Rev-Exp Region 11'!H57) -> 0 | I57: =SUM('MMA Rev-Exp Region 1:MMA Rev-Exp Region 11'!I57) -> 0 | J57: =SUM('MMA Rev-Exp Region 1:MMA Rev-Exp Region 11'!J57) -> 0 | K57: =SUM('MMA Rev-Exp Region 1:MMA Rev-Exp Region 11'!K57) -> 0 | L57: =SUM('MMA Rev-Exp Region 1:MMA Rev-Exp Region 11'!L57) -> 0 | M57: =SUM('MMA Rev-Exp Region 1:MMA Rev-Exp Region 11'!M57) -> 0 | N57: =SUM('MMA Rev-Exp Region 1:MMA Rev-Exp Region 11'!N57) -> 0 | O57: =SUM('MMA Rev-Exp Region 1:MMA Rev-Exp Region 11'!O57) -> 0 | P57: 0 | Q57: =SUM('MMA Rev-Exp Region 1:MMA Rev-Exp Region 11'!Q57) -> 0 | R57: =SUM('MMA Rev-Exp Region 1:MMA Rev-Exp Region 11'!R57) -> 0 | S57: =SUM('MMA Rev-Exp Region 1:MMA Rev-Exp Region 11'!S57) -> 0 | T57: =SUM('MMA Rev-Exp Region 1:MMA Rev-Exp Region 11'!T57) -> 0 | U57: =SUM('MMA Rev-Exp Region 1:MMA Rev-Exp Region 11'!U57) -> 0 | V57: =SUM('MMA Rev-Exp Region 1:MMA Rev-Exp Region 11'!V57) -> 0 | W57: =SUM('MMA Rev-Exp Region 1:MMA Rev-Exp Region 11'!W57) -> 0 | X57: =SUM('MMA Rev-Exp Region 1:MMA Rev-Exp Region 11'!X57) -> 0 | Y57: =SUM('MMA Rev-Exp Region 1:MMA Rev-Exp Region 11'!Y57) -> 0 | Z57: =SUM('MMA Rev-Exp Region 1:MMA Rev-Exp Region 11'!Z57) -> 0 | AA57: =SUM('MMA Rev-Exp Region 1:MMA Rev-Exp Region 11'!AA57) -> 0 | AB57: 0 | AC57: =SUM('MMA Rev-Exp Region 1:MMA Rev-Exp Region 11'!AC57) -> 0 | AD57: =SUM('MMA Rev-Exp Region 1:MMA Rev-Exp Region 11'!AD57) -> 0 | AE57: =SUM('MMA Rev-Exp Region 1:MMA Rev-Exp Region 11'!AE57) -> 0 | AF57: =SUM('MMA Rev-Exp Region 1:MMA Rev-Exp Region 11'!AF57) -> 0 | AG57: =SUM('MMA Rev-Exp Region 1:MMA Rev-Exp Region 11'!AG57) -> 0 | AH57: =SUM('MMA Rev-Exp Region 1:MMA Rev-Exp Region 11'!AH57) -> 0 | AI57: =SUM('MMA Rev-Exp Region 1:MMA Rev-Exp Region 11'!AI57) -> 0 | AJ57: =SUM('MMA Rev-Exp Region 1:MMA Rev-Exp Region 11'!AJ57) -> 0 | AK57: =SUM('MMA Rev-Exp Region 1:MMA Rev-Exp Region 11'!AK57) -> 0 | AL57: =SUM('MMA Rev-Exp Region 1:MMA Rev-Exp Region 11'!AL57) -> 0 | AM57: =SUM('MMA Rev-Exp Region 1:MMA Rev-Exp Region 11'!AM57) -> 0 | AN57: 0 | AO57: =SUM('MMA Rev-Exp Region 1:MMA Rev-Exp Region 11'!AO57) -> 0 | AP57: =SUM('MMA Rev-Exp Region 1:MMA Rev-Exp Region 11'!AP57) -> 0 | AQ57: =SUM('MMA Rev-Exp Region 1:MMA Rev-Exp Region 11'!AQ57) -> 0 | AR57: =SUM('MMA Rev-Exp Region 1:MMA Rev-Exp Region 11'!AR57) -> 0 | AS57: =SUM('MMA Rev-Exp Region 1:MMA Rev-Exp Region 11'!AS57) -> 0 | AT57: =SUM('MMA Rev-Exp Region 1:MMA Rev-Exp Region 11'!AT57) -> 0 | AU57: =SUM('MMA Rev-Exp Region 1:MMA Rev-Exp Region 11'!AU57) -> 0 | AV57: =SUM('MMA Rev-Exp Region 1:MMA Rev-Exp Region 11'!AV57) -> 0 | AW57: =SUM('MMA Rev-Exp Region 1:MMA Rev-Exp Region 11'!AW57) -> 0 | AX57: =SUM('MMA Rev-Exp Region 1:MMA Rev-Exp Region 11'!AX57) -> 0 | AY57: =SUM('MMA Rev-Exp Region 1:MMA Rev-Exp Region 11'!AY57) -> 0 | AZ57: =SUM('MMA Rev-Exp Region 1:MMA Rev-Exp Region 11'!AZ57) -> 0 | BA57: =SUM(BB57:BL57)+AZ57 -> 0 | BB57: =SUM('MMA Rev-Exp Region 1:MMA Rev-Exp Region 11'!BB57) -> 0 | BC57: =SUM('MMA Rev-Exp Region 1:MMA Rev-Exp Region 11'!BC57) -> 0 | BD57: =SUM('MMA Rev-Exp Region 1:MMA Rev-Exp Region 11'!BD57) -> 0 | BE57: =SUM('MMA Rev-Exp Region 1:MMA Rev-Exp Region 11'!BE57) -> 0 | BF57: =SUM('MMA Rev-Exp Region 1:MMA Rev-Exp Region 11'!BF57) -> 0 | BG57: =SUM('MMA Rev-Exp Region 1:MMA Rev-Exp Region 11'!BG57) -> 0 | BH57: =SUM('MMA Rev-Exp Region 1:MMA Rev-Exp Region 11'!BH57) -> 0 | BI57: =SUM('MMA Rev-Exp Region 1:MMA Rev-Exp Region 11'!BI57) -> 0 | BJ57: =SUM('MMA Rev-Exp Region 1:MMA Rev-Exp Region 11'!BJ57) -> 0 | BK57: =SUM('MMA Rev-Exp Region 1:MMA Rev-Exp Region 11'!BK57) -> 0 | BL57: =SUM('MMA Rev-Exp Region 1:MMA Rev-Exp Region 11'!BL57) -> 0
B58: 8.3 | C58: Ending IBNP for Prescription Drugs | D58: 0 | E58: =SUM('MMA Rev-Exp Region 1:MMA Rev-Exp Region 11'!E58) -> 0 | F58: =SUM('MMA Rev-Exp Region 1:MMA Rev-Exp Region 11'!F58) -> 0 | G58: =SUM('MMA Rev-Exp Region 1:MMA Rev-Exp Region 11'!G58) -> 0 | H58: =SUM('MMA Rev-Exp Region 1:MMA Rev-Exp Region 11'!H58) -> 0 | I58: =SUM('MMA Rev-Exp Region 1:MMA Rev-Exp Region 11'!I58) -> 0 | J58: =SUM('MMA Rev-Exp Region 1:MMA Rev-Exp Region 11'!J58) -> 0 | K58: =SUM('MMA Rev-Exp Region 1:MMA Rev-Exp Region 11'!K58) -> 0 | L58: =SUM('MMA Rev-Exp Region 1:MMA Rev-Exp Region 11'!L58) -> 0 | M58: =SUM('MMA Rev-Exp Region 1:MMA Rev-Exp Region 11'!M58) -> 0 | N58: =SUM('MMA Rev-Exp Region 1:MMA Rev-Exp Region 11'!N58) -> 0 | O58: =SUM('MMA Rev-Exp Region 1:MMA Rev-Exp Region 11'!O58) -> 0 | P58: 0 | Q58: =SUM('MMA Rev-Exp Region 1:MMA Rev-Exp Region 11'!Q58) -> 0 | R58: =SUM('MMA Rev-Exp Region 1:MMA Rev-Exp Region 11'!R58) -> 0 | S58: =SUM('MMA Rev-Exp Region 1:MMA Rev-Exp Region 11'!S58) -> 0 | T58: =SUM('MMA Rev-Exp Region 1:MMA Rev-Exp Region 11'!T58) -> 0 | U58: =SUM('MMA Rev-Exp Region 1:MMA Rev-Exp Region 11'!U58) -> 0 | V58: =SUM('MMA Rev-Exp Region 1:MMA Rev-Exp Region 11'!V58) -> 0 | W58: =SUM('MMA Rev-Exp Region 1:MMA Rev-Exp Region 11'!W58) -> 0 | X58: =SUM('MMA Rev-Exp Region 1:MMA Rev-Exp Region 11'!X58) -> 0 | Y58: =SUM('MMA Rev-Exp Region 1:MMA Rev-Exp Region 11'!Y58) -> 0 | Z58: =SUM('MMA Rev-Exp Region 1:MMA Rev-Exp Region 11'!Z58) -> 0 | AA58: =SUM('MMA Rev-Exp Region 1:MMA Rev-Exp Region 11'!AA58) -> 0 | AB58: 309 | AC58: =SUM('MMA Rev-Exp Region 1:MMA Rev-Exp Region 11'!AC58) -> 0 | AD58: =SUM('MMA Rev-Exp Region 1:MMA Rev-Exp Region 11'!AD58) -> 0 | AE58: =SUM('MMA Rev-Exp Region 1:MMA Rev-Exp Region 11'!AE58) -> 0 | AF58: =SUM('MMA Rev-Exp Region 1:MMA Rev-Exp Region 11'!AF58) -> 0 | AG58: =SUM('MMA Rev-Exp Region 1:MMA Rev-Exp Region 11'!AG58) -> 0 | AH58: =SUM('MMA Rev-Exp Region 1:MMA Rev-Exp Region 11'!AH58) -> 0 | AI58: =SUM('MMA Rev-Exp Region 1:MMA Rev-Exp Region 11'!AI58) -> 0 | AJ58: =SUM('MMA Rev-Exp Region 1:MMA Rev-Exp Region 11'!AJ58) -> 308 | AK58: =SUM('MMA Rev-Exp Region 1:MMA Rev-Exp Region 11'!AK58) -> 0 | AL58: =SUM('MMA Rev-Exp Region 1:MMA Rev-Exp Region 11'!AL58) -> 0 | AM58: =SUM('MMA Rev-Exp Region 1:MMA Rev-Exp Region 11'!AM58) -> 0 | AN58: 116,771 | AO58: =SUM('MMA Rev-Exp Region 1:MMA Rev-Exp Region 11'!AO58) -> 0 | AP58: =SUM('MMA Rev-Exp Region 1:MMA Rev-Exp Region 11'!AP58) -> 0 | AQ58: =SUM('MMA Rev-Exp Region 1:MMA Rev-Exp Region 11'!AQ58) -> 0 | AR58: =SUM('MMA Rev-Exp Region 1:MMA Rev-Exp Region 11'!AR58) -> 0 | AS58: =SUM('MMA Rev-Exp Region 1:MMA Rev-Exp Region 11'!AS58) -> 0 | AT58: =SUM('MMA Rev-Exp Region 1:MMA Rev-Exp Region 11'!AT58) -> 0 | AU58: =SUM('MMA Rev-Exp Region 1:MMA Rev-Exp Region 11'!AU58) -> 0 | AV58: =SUM('MMA Rev-Exp Region 1:MMA Rev-Exp Region 11'!AV58) -> 0 | AW58: =SUM('MMA Rev-Exp Region 1:MMA Rev-Exp Region 11'!AW58) -> 0 | AX58: =SUM('MMA Rev-Exp Region 1:MMA Rev-Exp Region 11'!AX58) -> 0 | AY58: =SUM('MMA Rev-Exp Region 1:MMA Rev-Exp Region 11'!AY58) -> 116,771 | AZ58: =SUM('MMA Rev-Exp Region 1:MMA Rev-Exp Region 11'!AZ58) -> (255,183) | BA58: (138,103) | BB58: =SUM('MMA Rev-Exp Region 1:MMA Rev-Exp Region 11'!BB58) -> 0 | BC58: =SUM('MMA Rev-Exp Region 1:MMA Rev-Exp Region 11'!BC58) -> 0 | BD58: =SUM('MMA Rev-Exp Region 1:MMA Rev-Exp Region 11'!BD58) -> 0 | BE58: =SUM('MMA Rev-Exp Region 1:MMA Rev-Exp Region 11'!BE58) -> 0 | BF58: =SUM('MMA Rev-Exp Region 1:MMA Rev-Exp Region 11'!BF58) -> 0 | BG58: =SUM('MMA Rev-Exp Region 1:MMA Rev-Exp Region 11'!BG58) -> 0 | BH58: =SUM('MMA Rev-Exp Region 1:MMA Rev-Exp Region 11'!BH58) -> 0 | BI58: =SUM('MMA Rev-Exp Region 1:MMA Rev-Exp Region 11'!BI58) -> 308 | BJ58: =SUM('MMA Rev-Exp Region 1:MMA Rev-Exp Region 11'!BJ58) -> 0 | BK58: =SUM('MMA Rev-Exp Region 1:MMA Rev-Exp Region 11'!BK58) -> 0 | BL58: =SUM('MMA Rev-Exp Region 1:MMA Rev-Exp Region 11'!BL58) -> 116,771
B59: 8.4 | C59: Prescription Drug Rebates | D59: 0 | E59: =SUM('MMA Rev-Exp Region 1:MMA Rev-Exp Region 11'!E59) -> 0 | F59: =SUM('MMA Rev-Exp Region 1:MMA Rev-Exp Region 11'!F59) -> 0 | G59: =SUM('MMA Rev-Exp Region 1:MMA Rev-Exp Region 11'!G59) -> 0 | H59: =SUM('MMA Rev-Exp Region 1:MMA Rev-Exp Region 11'!H59) -> 0 | I59: =SUM('MMA Rev-Exp Region 1:MMA Rev-Exp Region 11'!I59) -> 0 | J59: =SUM('MMA Rev-Exp Region 1:MMA Rev-Exp Region 11'!J59) -> 0 | K59: =SUM('MMA Rev-Exp Region 1:MMA Rev-Exp Region 11'!K59) -> 0 | L59: =SUM('MMA Rev-Exp Region 1:MMA Rev-Exp Region 11'!L59) -> 0 | M59: =SUM('MMA Rev-Exp Region 1:MMA Rev-Exp Region 11'!M59) -> 0 | N59: =SUM('MMA Rev-Exp Region 1:MMA Rev-Exp Region 11'!N59) -> 0 | O59: =SUM('MMA Rev-Exp Region 1:MMA Rev-Exp Region 11'!O59) -> 0 | P59: 0 | Q59: =SUM('MMA Rev-Exp Region 1:MMA Rev-Exp Region 11'!Q59) -> 0 | R59: =SUM('MMA Rev-Exp Region 1:MMA Rev-Exp Region 11'!R59) -> 0 | S59: =SUM('MMA Rev-Exp Region 1:MMA Rev-Exp Region 11'!S59) -> 0 | T59: =SUM('MMA Rev-Exp Region 1:MMA Rev-Exp Region 11'!T59) -> 0 | U59: =SUM('MMA Rev-Exp Region 1:MMA Rev-Exp Region 11'!U59) -> 0 | V59: =SUM('MMA Rev-Exp Region 1:MMA Rev-Exp Region 11'!V59) -> 0 | W59: =SUM('MMA Rev-Exp Region 1:MMA Rev-Exp Region 11'!W59) -> 0 | X59: =SUM('MMA Rev-Exp Region 1:MMA Rev-Exp Region 11'!X59) -> 0 | Y59: =SUM('MMA Rev-Exp Region 1:MMA Rev-Exp Region 11'!Y59) -> 0 | Z59: =SUM('MMA Rev-Exp Region 1:MMA Rev-Exp Region 11'!Z59) -> 0 | AA59: =SUM('MMA Rev-Exp Region 1:MMA Rev-Exp Region 11'!AA59) -> 0 | AB59: 0 | AC59: =SUM('MMA Rev-Exp Region 1:MMA Rev-Exp Region 11'!AC59) -> 0 | AD59: =SUM('MMA Rev-Exp Region 1:MMA Rev-Exp Region 11'!AD59) -> 0 | AE59: =SUM('MMA Rev-Exp Region 1:MMA Rev-Exp Region 11'!AE59) -> 0 | AF59: =SUM('MMA Rev-Exp Region 1:MMA Rev-Exp Region 11'!AF59) -> 0 | AG59: =SUM('MMA Rev-Exp Region 1:MMA Rev-Exp Region 11'!AG59) -> 0 | AH59: =SUM('MMA Rev-Exp Region 1:MMA Rev-Exp Region 11'!AH59) -> 0 | AI59: =SUM('MMA Rev-Exp Region 1:MMA Rev-Exp Region 11'!AI59) -> 0 | AJ59: =SUM('MMA Rev-Exp Region 1:MMA Rev-Exp Region 11'!AJ59) -> 0 | AK59: =SUM('MMA Rev-Exp Region 1:MMA Rev-Exp Region 11'!AK59) -> 0 | AL59: =SUM('MMA Rev-Exp Region 1:MMA Rev-Exp Region 11'!AL59) -> 0 | AM59: =SUM('MMA Rev-Exp Region 1:MMA Rev-Exp Region 11'!AM59) -> 0 | AN59: 0 | AO59: =SUM('MMA Rev-Exp Region 1:MMA Rev-Exp Region 11'!AO59) -> 0 | AP59: =SUM('MMA Rev-Exp Region 1:MMA Rev-Exp Region 11'!AP59) -> 0 | AQ59: =SUM('MMA Rev-Exp Region 1:MMA Rev-Exp Region 11'!AQ59) -> 0 | AR59: =SUM('MMA Rev-Exp Region 1:MMA Rev-Exp Region 11'!AR59) -> 0 | AS59: =SUM('MMA Rev-Exp Region 1:MMA Rev-Exp Region 11'!AS59) -> 0 | AT59: =SUM('MMA Rev-Exp Region 1:MMA Rev-Exp Region 11'!AT59) -> 0 | AU59: =SUM('MMA Rev-Exp Region 1:MMA Rev-Exp Region 11'!AU59) -> 0 | AV59: =SUM('MMA Rev-Exp Region 1:MMA Rev-Exp Region 11'!AV59) -> 0 | AW59: =SUM('MMA Rev-Exp Region 1:MMA Rev-Exp Region 11'!AW59) -> 0 | AX59: =SUM('MMA Rev-Exp Region 1:MMA Rev-Exp Region 11'!AX59) -> 0 | AY59: =SUM('MMA Rev-Exp Region 1:MMA Rev-Exp Region 11'!AY59) -> 0 | AZ59: =SUM('MMA Rev-Exp Region 1:MMA Rev-Exp Region 11'!AZ59) -> 0 | BA59: 0 | BB59: =SUM('MMA Rev-Exp Region 1:MMA Rev-Exp Region 11'!BB59) -> 0 | BC59: =SUM('MMA Rev-Exp Region 1:MMA Rev-Exp Region 11'!BC59) -> 0 | BD59: =SUM('MMA Rev-Exp Region 1:MMA Rev-Exp Region 11'!BD59) -> 0 | BE59: =SUM('MMA Rev-Exp Region 1:MMA Rev-Exp Region 11'!BE59) -> 0 | BF59: =SUM('MMA Rev-Exp Region 1:MMA Rev-Exp Region 11'!BF59) -> 0 | BG59: =SUM('MMA Rev-Exp Region 1:MMA Rev-Exp Region 11'!BG59) -> 0 | BH59: =SUM('MMA Rev-Exp Region 1:MMA Rev-Exp Region 11'!BH59) -> 0 | BI59: =SUM('MMA Rev-Exp Region 1:MMA Rev-Exp Region 11'!BI59) -> 0 | BJ59: =SUM('MMA Rev-Exp Region 1:MMA Rev-Exp Region 11'!BJ59) -> 0 | BK59: =SUM('MMA Rev-Exp Region 1:MMA Rev-Exp Region 11'!BK59) -> 0 | BL59: =SUM('MMA Rev-Exp Region 1:MMA Rev-Exp Region 11'!BL59) -> 0
B60: 8.5 | C60: Ending accrual for Rebates receivable | D60: 0 | E60: =SUM('MMA Rev-Exp Region 1:MMA Rev-Exp Region 11'!E60) -> 0 | F60: =SUM('MMA Rev-Exp Region 1:MMA Rev-Exp Region 11'!F60) -> 0 | G60: =SUM('MMA Rev-Exp Region 1:MMA Rev-Exp Region 11'!G60) -> 0 | H60: =SUM('MMA Rev-Exp Region 1:MMA Rev-Exp Region 11'!H60) -> 0 | I60: =SUM('MMA Rev-Exp Region 1:MMA Rev-Exp Region 11'!I60) -> 0 | J60: =SUM('MMA Rev-Exp Region 1:MMA Rev-Exp Region 11'!J60) -> 0 | K60: =SUM('MMA Rev-Exp Region 1:MMA Rev-Exp Region 11'!K60) -> 0 | L60: =SUM('MMA Rev-Exp Region 1:MMA Rev-Exp Region 11'!L60) -> 0 | M60: =SUM('MMA Rev-Exp Region 1:MMA Rev-Exp Region 11'!M60) -> 0 | N60: =SUM('MMA Rev-Exp Region 1:MMA Rev-Exp Region 11'!N60) -> 0 | O60: =SUM('MMA Rev-Exp Region 1:MMA Rev-Exp Region 11'!O60) -> 0 | P60: 0 | Q60: =SUM('MMA Rev-Exp Region 1:MMA Rev-Exp Region 11'!Q60) -> 0 | R60: =SUM('MMA Rev-Exp Region 1:MMA Rev-Exp Region 11'!R60) -> 0 | S60: =SUM('MMA Rev-Exp Region 1:MMA Rev-Exp Region 11'!S60) -> 0 | T60: =SUM('MMA Rev-Exp Region 1:MMA Rev-Exp Region 11'!T60) -> 0 | U60: =SUM('MMA Rev-Exp Region 1:MMA Rev-Exp Region 11'!U60) -> 0 | V60: =SUM('MMA Rev-Exp Region 1:MMA Rev-Exp Region 11'!V60) -> 0 | W60: =SUM('MMA Rev-Exp Region 1:MMA Rev-Exp Region 11'!W60) -> 0 | X60: =SUM('MMA Rev-Exp Region 1:MMA Rev-Exp Region 11'!X60) -> 0 | Y60: =SUM('MMA Rev-Exp Region 1:MMA Rev-Exp Region 11'!Y60) -> 0 | Z60: =SUM('MMA Rev-Exp Region 1:MMA Rev-Exp Region 11'!Z60) -> 0 | AA60: =SUM('MMA Rev-Exp Region 1:MMA Rev-Exp Region 11'!AA60) -> 0 | AB60: 0 | AC60: =SUM('MMA Rev-Exp Region 1:MMA Rev-Exp Region 11'!AC60) -> 0 | AD60: =SUM('MMA Rev-Exp Region 1:MMA Rev-Exp Region 11'!AD60) -> 0 | AE60: =SUM('MMA Rev-Exp Region 1:MMA Rev-Exp Region 11'!AE60) -> 0 | AF60: =SUM('MMA Rev-Exp Region 1:MMA Rev-Exp Region 11'!AF60) -> 0 | AG60: =SUM('MMA Rev-Exp Region 1:MMA Rev-Exp Region 11'!AG60) -> 0 | AH60: =SUM('MMA Rev-Exp Region 1:MMA Rev-Exp Region 11'!AH60) -> 0 | AI60: =SUM('MMA Rev-Exp Region 1:MMA Rev-Exp Region 11'!AI60) -> 0 | AJ60: =SUM('MMA Rev-Exp Region 1:MMA Rev-Exp Region 11'!AJ60) -> 0 | AK60: =SUM('MMA Rev-Exp Region 1:MMA Rev-Exp Region 11'!AK60) -> 0 | AL60: =SUM('MMA Rev-Exp Region 1:MMA Rev-Exp Region 11'!AL60) -> 0 | AM60: =SUM('MMA Rev-Exp Region 1:MMA Rev-Exp Region 11'!AM60) -> 0 | AN60: 0 | AO60: =SUM('MMA Rev-Exp Region 1:MMA Rev-Exp Region 11'!AO60) -> 0 | AP60: =SUM('MMA Rev-Exp Region 1:MMA Rev-Exp Region 11'!AP60) -> 0 | AQ60: =SUM('MMA Rev-Exp Region 1:MMA Rev-Exp Region 11'!AQ60) -> 0 | AR60: =SUM('MMA Rev-Exp Region 1:MMA Rev-Exp Region 11'!AR60) -> 0 | AS60: =SUM('MMA Rev-Exp Region 1:MMA Rev-Exp Region 11'!AS60) -> 0 | AT60: =SUM('MMA Rev-Exp Region 1:MMA Rev-Exp Region 11'!AT60) -> 0 | AU60: =SUM('MMA Rev-Exp Region 1:MMA Rev-Exp Region 11'!AU60) -> 0 | AV60: =SUM('MMA Rev-Exp Region 1:MMA Rev-Exp Region 11'!AV60) -> 0 | AW60: =SUM('MMA Rev-Exp Region 1:MMA Rev-Exp Region 11'!AW60) -> 0 | AX60: =SUM('MMA Rev-Exp Region 1:MMA Rev-Exp Region 11'!AX60) -> 0 | AY60: =SUM('MMA Rev-Exp Region 1:MMA Rev-Exp Region 11'!AY60) -> 0 | AZ60: =SUM('MMA Rev-Exp Region 1:MMA Rev-Exp Region 11'!AZ60) -> 0 | BA60: 0 | BB60: =SUM('MMA Rev-Exp Region 1:MMA Rev-Exp Region 11'!BB60) -> 0 | BC60: =SUM('MMA Rev-Exp Region 1:MMA Rev-Exp Region 11'!BC60) -> 0 | BD60: =SUM('MMA Rev-Exp Region 1:MMA Rev-Exp Region 11'!BD60) -> 0 | BE60: =SUM('MMA Rev-Exp Region 1:MMA Rev-Exp Region 11'!BE60) -> 0 | BF60: =SUM('MMA Rev-Exp Region 1:MMA Rev-Exp Region 11'!BF60) -> 0 | BG60: =SUM('MMA Rev-Exp Region 1:MMA Rev-Exp Region 11'!BG60) -> 0 | BH60: =SUM('MMA Rev-Exp Region 1:MMA Rev-Exp Region 11'!BH60) -> 0 | BI60: =SUM('MMA Rev-Exp Region 1:MMA Rev-Exp Region 11'!BI60) -> 0 | BJ60: =SUM('MMA Rev-Exp Region 1:MMA Rev-Exp Region 11'!BJ60) -> 0 | BK60: =SUM('MMA Rev-Exp Region 1:MMA Rev-Exp Region 11'!BK60) -> 0 | BL60: =SUM('MMA Rev-Exp Region 1:MMA Rev-Exp Region 11'!BL60) -> 0
B61: 8.6 | C61: Prescription Drugs Subcapitation | D61: 0 | E61: =SUM('MMA Rev-Exp Region 1:MMA Rev-Exp Region 11'!E61) -> 0 | F61: =SUM('MMA Rev-Exp Region 1:MMA Rev-Exp Region 11'!F61) -> 0 | G61: =SUM('MMA Rev-Exp Region 1:MMA Rev-Exp Region 11'!G61) -> 0 | H61: =SUM('MMA Rev-Exp Region 1:MMA Rev-Exp Region 11'!H61) -> 0 | I61: =SUM('MMA Rev-Exp Region 1:MMA Rev-Exp Region 11'!I61) -> 0 | J61: =SUM('MMA Rev-Exp Region 1:MMA Rev-Exp Region 11'!J61) -> 0 | K61: =SUM('MMA Rev-Exp Region 1:MMA Rev-Exp Region 11'!K61) -> 0 | L61: =SUM('MMA Rev-Exp Region 1:MMA Rev-Exp Region 11'!L61) -> 0 | M61: =SUM('MMA Rev-Exp Region 1:MMA Rev-Exp Region 11'!M61) -> 0 | N61: =SUM('MMA Rev-Exp Region 1:MMA Rev-Exp Region 11'!N61) -> 0 | O61: =SUM('MMA Rev-Exp Region 1:MMA Rev-Exp Region 11'!O61) -> 0 | P61: 0 | Q61: =SUM('MMA Rev-Exp Region 1:MMA Rev-Exp Region 11'!Q61) -> 0 | R61: =SUM('MMA Rev-Exp Region 1:MMA Rev-Exp Region 11'!R61) -> 0 | S61: =SUM('MMA Rev-Exp Region 1:MMA Rev-Exp Region 11'!S61) -> 0 | T61: =SUM('MMA Rev-Exp Region 1:MMA Rev-Exp Region 11'!T61) -> 0 | U61: =SUM('MMA Rev-Exp Region 1:MMA Rev-Exp Region 11'!U61) -> 0 | V61: =SUM('MMA Rev-Exp Region 1:MMA Rev-Exp Region 11'!V61) -> 0 | W61: =SUM('MMA Rev-Exp Region 1:MMA Rev-Exp Region 11'!W61) -> 0 | X61: =SUM('MMA Rev-Exp Region 1:MMA Rev-Exp Region 11'!X61) -> 0 | Y61: =SUM('MMA Rev-Exp Region 1:MMA Rev-Exp Region 11'!Y61) -> 0 | Z61: =SUM('MMA Rev-Exp Region 1:MMA Rev-Exp Region 11'!Z61) -> 0 | AA61: =SUM('MMA Rev-Exp Region 1:MMA Rev-Exp Region 11'!AA61) -> 0 | AB61: 0 | AC61: =SUM('MMA Rev-Exp Region 1:MMA Rev-Exp Region 11'!AC61) -> 0 | AD61: =SUM('MMA Rev-Exp Region 1:MMA Rev-Exp Region 11'!AD61) -> 0 | AE61: =SUM('MMA Rev-Exp Region 1:MMA Rev-Exp Region 11'!AE61) -> 0 | AF61: =SUM('MMA Rev-Exp Region 1:MMA Rev-Exp Region 11'!AF61) -> 0 | AG61: =SUM('MMA Rev-Exp Region 1:MMA Rev-Exp Region 11'!AG61) -> 0 | AH61: =SUM('MMA Rev-Exp Region 1:MMA Rev-Exp Region 11'!AH61) -> 0 | AI61: =SUM('MMA Rev-Exp Region 1:MMA Rev-Exp Region 11'!AI61) -> 0 | AJ61: =SUM('MMA Rev-Exp Region 1:MMA Rev-Exp Region 11'!AJ61) -> 0 | AK61: =SUM('MMA Rev-Exp Region 1:MMA Rev-Exp Region 11'!AK61) -> 0 | AL61: =SUM('MMA Rev-Exp Region 1:MMA Rev-Exp Region 11'!AL61) -> 0 | AM61: =SUM('MMA Rev-Exp Region 1:MMA Rev-Exp Region 11'!AM61) -> 0 | AN61: 0 | AO61: =SUM('MMA Rev-Exp Region 1:MMA Rev-Exp Region 11'!AO61) -> 0 | AP61: =SUM('MMA Rev-Exp Region 1:MMA Rev-Exp Region 11'!AP61) -> 0 | AQ61: =SUM('MMA Rev-Exp Region 1:MMA Rev-Exp Region 11'!AQ61) -> 0 | AR61: =SUM('MMA Rev-Exp Region 1:MMA Rev-Exp Region 11'!AR61) -> 0 | AS61: =SUM('MMA Rev-Exp Region 1:MMA Rev-Exp Region 11'!AS61) -> 0 | AT61: =SUM('MMA Rev-Exp Region 1:MMA Rev-Exp Region 11'!AT61) -> 0 | AU61: =SUM('MMA Rev-Exp Region 1:MMA Rev-Exp Region 11'!AU61) -> 0 | AV61: =SUM('MMA Rev-Exp Region 1:MMA Rev-Exp Region 11'!AV61) -> 0 | AW61: =SUM('MMA Rev-Exp Region 1:MMA Rev-Exp Region 11'!AW61) -> 0 | AX61: =SUM('MMA Rev-Exp Region 1:MMA Rev-Exp Region 11'!AX61) -> 0 | AY61: =SUM('MMA Rev-Exp Region 1:MMA Rev-Exp Region 11'!AY61) -> 0 | AZ61: =SUM('MMA Rev-Exp Region 1:MMA Rev-Exp Region 11'!AZ61) -> 0 | BA61: 0 | BB61: =SUM('MMA Rev-Exp Region 1:MMA Rev-Exp Region 11'!BB61) -> 0 | BC61: =SUM('MMA Rev-Exp Region 1:MMA Rev-Exp Region 11'!BC61) -> 0 | BD61: =SUM('MMA Rev-Exp Region 1:MMA Rev-Exp Region 11'!BD61) -> 0 | BE61: =SUM('MMA Rev-Exp Region 1:MMA Rev-Exp Region 11'!BE61) -> 0 | BF61: =SUM('MMA Rev-Exp Region 1:MMA Rev-Exp Region 11'!BF61) -> 0 | BG61: =SUM('MMA Rev-Exp Region 1:MMA Rev-Exp Region 11'!BG61) -> 0 | BH61: =SUM('MMA Rev-Exp Region 1:MMA Rev-Exp Region 11'!BH61) -> 0 | BI61: =SUM('MMA Rev-Exp Region 1:MMA Rev-Exp Region 11'!BI61) -> 0 | BJ61: =SUM('MMA Rev-Exp Region 1:MMA Rev-Exp Region 11'!BJ61) -> 0 | BK61: =SUM('MMA Rev-Exp Region 1:MMA Rev-Exp Region 11'!BK61) -> 0 | BL61: =SUM('MMA Rev-Exp Region 1:MMA Rev-Exp Region 11'!BL61) -> 0
B62: 8.7 | C62: Prescription Drug Settlements/AP | D62: 171,221 | E62: =SUM('MMA Rev-Exp Region 1:MMA Rev-Exp Region 11'!E62) -> 0 | F62: =SUM('MMA Rev-Exp Region 1:MMA Rev-Exp Region 11'!F62) -> 0 | G62: =SUM('MMA Rev-Exp Region 1:MMA Rev-Exp Region 11'!G62) -> 0 | H62: =SUM('MMA Rev-Exp Region 1:MMA Rev-Exp Region 11'!H62) -> 0 | I62: =SUM('MMA Rev-Exp Region 1:MMA Rev-Exp Region 11'!I62) -> 3 | J62: =SUM('MMA Rev-Exp Region 1:MMA Rev-Exp Region 11'!J62) -> 0 | K62: =SUM('MMA Rev-Exp Region 1:MMA Rev-Exp Region 11'!K62) -> 0 | L62: =SUM('MMA Rev-Exp Region 1:MMA Rev-Exp Region 11'!L62) -> 0 | M62: =SUM('MMA Rev-Exp Region 1:MMA Rev-Exp Region 11'!M62) -> 0 | N62: =SUM('MMA Rev-Exp Region 1:MMA Rev-Exp Region 11'!N62) -> 3,404 | O62: =SUM('MMA Rev-Exp Region 1:MMA Rev-Exp Region 11'!O62) -> 167,814 | P62: 324,809 | Q62: =SUM('MMA Rev-Exp Region 1:MMA Rev-Exp Region 11'!Q62) -> 0 | R62: =SUM('MMA Rev-Exp Region 1:MMA Rev-Exp Region 11'!R62) -> 0 | S62: =SUM('MMA Rev-Exp Region 1:MMA Rev-Exp Region 11'!S62) -> 0 | T62: =SUM('MMA Rev-Exp Region 1:MMA Rev-Exp Region 11'!T62) -> 0 | U62: =SUM('MMA Rev-Exp Region 1:MMA Rev-Exp Region 11'!U62) -> 0 | V62: =SUM('MMA Rev-Exp Region 1:MMA Rev-Exp Region 11'!V62) -> 0 | W62: =SUM('MMA Rev-Exp Region 1:MMA Rev-Exp Region 11'!W62) -> 0 | X62: =SUM('MMA Rev-Exp Region 1:MMA Rev-Exp Region 11'!X62) -> 0 | Y62: =SUM('MMA Rev-Exp Region 1:MMA Rev-Exp Region 11'!Y62) -> 0 | Z62: =SUM('MMA Rev-Exp Region 1:MMA Rev-Exp Region 11'!Z62) -> 5,763 | AA62: =SUM('MMA Rev-Exp Region 1:MMA Rev-Exp Region 11'!AA62) -> 319,046 | AB62: 454,418 | AC62: =SUM('MMA Rev-Exp Region 1:MMA Rev-Exp Region 11'!AC62) -> 0 | AD62: =SUM('MMA Rev-Exp Region 1:MMA Rev-Exp Region 11'!AD62) -> 0 | AE62: =SUM('MMA Rev-Exp Region 1:MMA Rev-Exp Region 11'!AE62) -> 0 | AF62: =SUM('MMA Rev-Exp Region 1:MMA Rev-Exp Region 11'!AF62) -> 0 | AG62: =SUM('MMA Rev-Exp Region 1:MMA Rev-Exp Region 11'!AG62) -> (2) | AH62: =SUM('MMA Rev-Exp Region 1:MMA Rev-Exp Region 11'!AH62) -> 0 | AI62: =SUM('MMA Rev-Exp Region 1:MMA Rev-Exp Region 11'!AI62) -> 0 | AJ62: =SUM('MMA Rev-Exp Region 1:MMA Rev-Exp Region 11'!AJ62) -> 1,570 | AK62: =SUM('MMA Rev-Exp Region 1:MMA Rev-Exp Region 11'!AK62) -> 0 | AL62: =SUM('MMA Rev-Exp Region 1:MMA Rev-Exp Region 11'!AL62) -> 19,206 | AM62: =SUM('MMA Rev-Exp Region 1:MMA Rev-Exp Region 11'!AM62) -> 433,644 | AN62: 499,939 | AO62: =SUM('MMA Rev-Exp Region 1:MMA Rev-Exp Region 11'!AO62) -> 0 | AP62: =SUM('MMA Rev-Exp Region 1:MMA Rev-Exp Region 11'!AP62) -> 0 | AQ62: =SUM('MMA Rev-Exp Region 1:MMA Rev-Exp Region 11'!AQ62) -> 0 | AR62: =SUM('MMA Rev-Exp Region 1:MMA Rev-Exp Region 11'!AR62) -> 0 | AS62: =SUM('MMA Rev-Exp Region 1:MMA Rev-Exp Region 11'!AS62) -> 0 | AT62: =SUM('MMA Rev-Exp Region 1:MMA Rev-Exp Region 11'!AT62) -> 0 | AU62: =SUM('MMA Rev-Exp Region 1:MMA Rev-Exp Region 11'!AU62) -> 0 | AV62: =SUM('MMA Rev-Exp Region 1:MMA Rev-Exp Region 11'!AV62) -> (43,788) | AW62: =SUM('MMA Rev-Exp Region 1:MMA Rev-Exp Region 11'!AW62) -> 0 | AX62: =SUM('MMA Rev-Exp Region 1:MMA Rev-Exp Region 11'!AX62) -> 13,585 | AY62: =SUM('MMA Rev-Exp Region 1:MMA Rev-Exp Region 11'!AY62) -> 530,142 | AZ62: =SUM('MMA Rev-Exp Region 1:MMA Rev-Exp Region 11'!AZ62) -> 14,704 | BA62: 1,465,091 | BB62: =SUM('MMA Rev-Exp Region 1:MMA Rev-Exp Region 11'!BB62) -> 0 | BC62: =SUM('MMA Rev-Exp Region 1:MMA Rev-Exp Region 11'!BC62) -> 0 | BD62: =SUM('MMA Rev-Exp Region 1:MMA Rev-Exp Region 11'!BD62) -> 0 | BE62: =SUM('MMA Rev-Exp Region 1:MMA Rev-Exp Region 11'!BE62) -> 0 | BF62: =SUM('MMA Rev-Exp Region 1:MMA Rev-Exp Region 11'!BF62) -> 1 | BG62: =SUM('MMA Rev-Exp Region 1:MMA Rev-Exp Region 11'!BG62) -> 0 | BH62: =SUM('MMA Rev-Exp Region 1:MMA Rev-Exp Region 11'!BH62) -> 0 | BI62: =SUM('MMA Rev-Exp Region 1:MMA Rev-Exp Region 11'!BI62) -> (42,218) | BJ62: =SUM('MMA Rev-Exp Region 1:MMA Rev-Exp Region 11'!BJ62) -> 0 | BK62: =SUM('MMA Rev-Exp Region 1:MMA Rev-Exp Region 11'!BK62) -> 41,959 | BL62: =SUM('MMA Rev-Exp Region 1:MMA Rev-Exp Region 11'!BL62) -> 1,450,645
B63: 8.8 | C63: Total Prescription Drugs | D63: =SUM(D56:D62) -> 1,473,596 | E63: 0 | F63: 0 | G63: 0 | H63: 0 | I63: 4 | J63: 0 | K63: 0 | L63: 0 | M63: 0 | N63: 35,676 | O63: 1,437,915 | P63: 1,720,034 | Q63: =SUM(Q56:Q62) -> 0 | R63: 0 | S63: 0 | T63: 0 | U63: 0 | V63: 0 | W63: 0 | X63: 0 | Y63: 0 | Z63: 34,051 | AA63: 1,685,983 | AB63: =SUM(AB56:AB62) -> 1,993,941 | AC63: =SUM(AC56:AC62) -> 0 | AD63: 0 | AE63: 0 | AF63: 0 | AG63: 1 | AH63: 0 | AI63: 0 | AJ63: 6,566 | AK63: 0 | AL63: 40,715 | AM63: 1,946,659 | AN63: =SUM(AN56:AN62) -> 2,180,527 | AO63: =SUM(AO56:AO62) -> 0 | AP63: 0 | AQ63: 0 | AR63: 0 | AS63: 0 | AT63: 0 | AU63: 0 | AV63: (47,699) | AW63: 0 | AX63: 24,472 | AY63: 2,203,754 | AZ63: =SUM(AZ56:AZ62) -> (240,479) | BA63: =SUM(BA56:BA62) -> 7,127,619 | BB63: =SUM('MMA Rev-Exp Region 1:MMA Rev-Exp Region 11'!BB63) -> 0 | BC63: =SUM('MMA Rev-Exp Region 1:MMA Rev-Exp Region 11'!BC63) -> 0 | BD63: =SUM('MMA Rev-Exp Region 1:MMA Rev-Exp Region 11'!BD63) -> 0 | BE63: =SUM('MMA Rev-Exp Region 1:MMA Rev-Exp Region 11'!BE63) -> 0 | BF63: =SUM('MMA Rev-Exp Region 1:MMA Rev-Exp Region 11'!BF63) -> 4 | BG63: =SUM('MMA Rev-Exp Region 1:MMA Rev-Exp Region 11'!BG63) -> 0 | BH63: =SUM('MMA Rev-Exp Region 1:MMA Rev-Exp Region 11'!BH63) -> 0 | BI63: =SUM('MMA Rev-Exp Region 1:MMA Rev-Exp Region 11'!BI63) -> (41,132) | BJ63: =SUM('MMA Rev-Exp Region 1:MMA Rev-Exp Region 11'!BJ63) -> 0 | BK63: =SUM('MMA Rev-Exp Region 1:MMA Rev-Exp Region 11'!BK63) -> 134,914 | BL63: =SUM('MMA Rev-Exp Region 1:MMA Rev-Exp Region 11'!BL63) -> 7,274,311
A64: Other Services | B64: 9.1 | C64: Home Health, Private Duty Nursing, Personal Care FFS | D64: =SUM(E64:M64) -> 0 | E64: =SUM('MMA Rev-Exp Region 1:MMA Rev-Exp Region 11'!E64) -> 0 | F64: =SUM('MMA Rev-Exp Region 1:MMA Rev-Exp Region 11'!F64) -> 0 | G64: =SUM('MMA Rev-Exp Region 1:MMA Rev-Exp Region 11'!G64) -> 0 | H64: =SUM('MMA Rev-Exp Region 1:MMA Rev-Exp Region 11'!H64) -> 0 | I64: =SUM('MMA Rev-Exp Region 1:MMA Rev-Exp Region 11'!I64) -> 0 | J64: =SUM('MMA Rev-Exp Region 1:MMA Rev-Exp Region 11'!J64) -> 0 | K64: =SUM('MMA Rev-Exp Region 1:MMA Rev-Exp Region 11'!K64) -> 0 | L64: =SUM('MMA Rev-Exp Region 1:MMA Rev-Exp Region 11'!L64) -> 0 | M64: =SUM('MMA Rev-Exp Region 1:MMA Rev-Exp Region 11'!M64) -> 0 | N64: =SUM('MMA Rev-Exp Region 1:MMA Rev-Exp Region 11'!N64) -> 0 | O64: =SUM('MMA Rev-Exp Region 1:MMA Rev-Exp Region 11'!O64) -> 0 | P64: =SUM(Q64:Y64) -> 0 | Q64: =SUM('MMA Rev-Exp Region 1:MMA Rev-Exp Region 11'!Q64) -> 0 | R64: =SUM('MMA Rev-Exp Region 1:MMA Rev-Exp Region 11'!R64) -> 0 | S64: =SUM('MMA Rev-Exp Region 1:MMA Rev-Exp Region 11'!S64) -> 0 | T64: =SUM('MMA Rev-Exp Region 1:MMA Rev-Exp Region 11'!T64) -> 0 | U64: =SUM('MMA Rev-Exp Region 1:MMA Rev-Exp Region 11'!U64) -> 0 | V64: =SUM('MMA Rev-Exp Region 1:MMA Rev-Exp Region 11'!V64) -> 0 | W64: =SUM('MMA Rev-Exp Region 1:MMA Rev-Exp Region 11'!W64) -> 0 | X64: =SUM('MMA Rev-Exp Region 1:MMA Rev-Exp Region 11'!X64) -> 0 | Y64: =SUM('MMA Rev-Exp Region 1:MMA Rev-Exp Region 11'!Y64) -> 0 | AB64: =SUM(AC64:AK64) -> 0 | AC64: =SUM('MMA Rev-Exp Region 1:MMA Rev-Exp Region 11'!AC64) -> 0 | AD64: =SUM('MMA Rev-Exp Region 1:MMA Rev-Exp Region 11'!AD64) -> 0 | AE64: =SUM('MMA Rev-Exp Region 1:MMA Rev-Exp Region 11'!AE64) -> 0 | AF64: =SUM('MMA Rev-Exp Region 1:MMA Rev-Exp Region 11'!AF64) -> 0 | AG64: =SUM('MMA Rev-Exp Region 1:MMA Rev-Exp Region 11'!AG64) -> 0 | AH64: =SUM('MMA Rev-Exp Region 1:MMA Rev-Exp Region 11'!AH64) -> 0 | AI64: =SUM('MMA Rev-Exp Region 1:MMA Rev-Exp Region 11'!AI64) -> 0 | AJ64: =SUM('MMA Rev-Exp Region 1:MMA Rev-Exp Region 11'!AJ64) -> 0 | AK64: =SUM('MMA Rev-Exp Region 1:MMA Rev-Exp Region 11'!AK64) -> 0 | AN64: =SUM(AO64:AW64) -> 0 | AO64: =SUM('MMA Rev-Exp Region 1:MMA Rev-Exp Region 11'!AO64) -> 0 | AP64: =SUM('MMA Rev-Exp Region 1:MMA Rev-Exp Region 11'!AP64) -> 0 | AQ64: =SUM('MMA Rev-Exp Region 1:MMA Rev-Exp Region 11'!AQ64) -> 0 | AR64: =SUM('MMA Rev-Exp Region 1:MMA Rev-Exp Region 11'!AR64) -> 0 | AS64: =SUM('MMA Rev-Exp Region 1:MMA Rev-Exp Region 11'!AS64) -> 0 | AT64: =SUM('MMA Rev-Exp Region 1:MMA Rev-Exp Region 11'!AT64) -> 0 | AU64: =SUM('MMA Rev-Exp Region 1:MMA Rev-Exp Region 11'!AU64) -> 0 | AV64: =SUM('MMA Rev-Exp Region 1:MMA Rev-Exp Region 11'!AV64) -> 0 | AW64: =SUM('MMA Rev-Exp Region 1:MMA Rev-Exp Region 11'!AW64) -> 0 | AZ64: =SUM('MMA Rev-Exp Region 1:MMA Rev-Exp Region 11'!AZ64) -> 6,317 | BA64: =SUM(BB64:BJ64)+AZ64 -> 6,317 | BB64: =SUM('MMA Rev-Exp Region 1:MMA Rev-Exp Region 11'!BB64) -> 0 | BC64: =SUM('MMA Rev-Exp Region 1:MMA Rev-Exp Region 11'!BC64) -> 0 | BD64: =SUM('MMA Rev-Exp Region 1:MMA Rev-Exp Region 11'!BD64) -> 0 | BE64: =SUM('MMA Rev-Exp Region 1:MMA Rev-Exp Region 11'!BE64) -> 0 | BF64: =SUM('MMA Rev-Exp Region 1:MMA Rev-Exp Region 11'!BF64) -> 0 | BG64: =SUM('MMA Rev-Exp Region 1:MMA Rev-Exp Region 11'!BG64) -> 0 | BH64: =SUM('MMA Rev-Exp Region 1:MMA Rev-Exp Region 11'!BH64) -> 0 | BI64: =SUM('MMA Rev-Exp Region 1:MMA Rev-Exp Region 11'!BI64) -> 0 | BJ64: =SUM('MMA Rev-Exp Region 1:MMA Rev-Exp Region 11'!BJ64) -> 0
B65: 9.2 | C65: Hospice FFS | D65: =SUM(E65:M65) -> 10,453 | E65: =SUM('MMA Rev-Exp Region 1:MMA Rev-Exp Region 11'!E65) -> 0 | F65: =SUM('MMA Rev-Exp Region 1:MMA Rev-Exp Region 11'!F65) -> 0 | G65: =SUM('MMA Rev-Exp Region 1:MMA Rev-Exp Region 11'!G65) -> 0 | H65: =SUM('MMA Rev-Exp Region 1:MMA Rev-Exp Region 11'!H65) -> 0 | I65: =SUM('MMA Rev-Exp Region 1:MMA Rev-Exp Region 11'!I65) -> 10,453 | J65: =SUM('MMA Rev-Exp Region 1:MMA Rev-Exp Region 11'!J65) -> 0 | K65: =SUM('MMA Rev-Exp Region 1:MMA Rev-Exp Region 11'!K65) -> 0 | L65: =SUM('MMA Rev-Exp Region 1:MMA Rev-Exp Region 11'!L65) -> 0 | M65: =SUM('MMA Rev-Exp Region 1:MMA Rev-Exp Region 11'!M65) -> 0 | N65: =SUM('MMA Rev-Exp Region 1:MMA Rev-Exp Region 11'!N65) -> 0 | O65: =SUM('MMA Rev-Exp Region 1:MMA Rev-Exp Region 11'!O65) -> 0 | P65: =SUM(Q65:Y65) -> 17,345 | Q65: =SUM('MMA Rev-Exp Region 1:MMA Rev-Exp Region 11'!Q65) -> 0 | R65: =SUM('MMA Rev-Exp Region 1:MMA Rev-Exp Region 11'!R65) -> 0 | S65: =SUM('MMA Rev-Exp Region 1:MMA Rev-Exp Region 11'!S65) -> 0 | T65: =SUM('MMA Rev-Exp Region 1:MMA Rev-Exp Region 11'!T65) -> 0 | U65: =SUM('MMA Rev-Exp Region 1:MMA Rev-Exp Region 11'!U65) -> 17,345 | V65: =SUM('MMA Rev-Exp Region 1:MMA Rev-Exp Region 11'!V65) -> 0 | W65: =SUM('MMA Rev-Exp Region 1:MMA Rev-Exp Region 11'!W65) -> 0 | X65: =SUM('MMA Rev-Exp Region 1:MMA Rev-Exp Region 11'!X65) -> 0 | Y65: =SUM('MMA Rev-Exp Region 1:MMA Rev-Exp Region 11'!Y65) -> 0 | AB65: =SUM(AC65:AK65) -> 4,356 | AC65: =SUM('MMA Rev-Exp Region 1:MMA Rev-Exp Region 11'!AC65) -> 0 | AD65: =SUM('MMA Rev-Exp Region 1:MMA Rev-Exp Region 11'!AD65) -> 0 | AE65: =SUM('MMA Rev-Exp Region 1:MMA Rev-Exp Region 11'!AE65) -> 0 | AF65: =SUM('MMA Rev-Exp Region 1:MMA Rev-Exp Region 11'!AF65) -> 0 | AG65: =SUM('MMA Rev-Exp Region 1:MMA Rev-Exp Region 11'!AG65) -> 4,356 | AH65: =SUM('MMA Rev-Exp Region 1:MMA Rev-Exp Region 11'!AH65) -> 0 | AI65: =SUM('MMA Rev-Exp Region 1:MMA Rev-Exp Region 11'!AI65) -> 0 | AJ65: =SUM('MMA Rev-Exp Region 1:MMA Rev-Exp Region 11'!AJ65) -> 0 | AK65: =SUM('MMA Rev-Exp Region 1:MMA Rev-Exp Region 11'!AK65) -> 0 | AN65: =SUM(AO65:AW65) -> 0 | AO65: =SUM('MMA Rev-Exp Region 1:MMA Rev-Exp Region 11'!AO65) -> 0 | AP65: =SUM('MMA Rev-Exp Region 1:MMA Rev-Exp Region 11'!AP65) -> 0 | AQ65: =SUM('MMA Rev-Exp Region 1:MMA Rev-Exp Region 11'!AQ65) -> 0 | AR65: =SUM('MMA Rev-Exp Region 1:MMA Rev-Exp Region 11'!AR65) -> 0 | AS65: =SUM('MMA Rev-Exp Region 1:MMA Rev-Exp Region 11'!AS65) -> 0 | AT65: =SUM('MMA Rev-Exp Region 1:MMA Rev-Exp Region 11'!AT65) -> 0 | AU65: =SUM('MMA Rev-Exp Region 1:MMA Rev-Exp Region 11'!AU65) -> 0 | AV65: =SUM('MMA Rev-Exp Region 1:MMA Rev-Exp Region 11'!AV65) -> 0 | AW65: =SUM('MMA Rev-Exp Region 1:MMA Rev-Exp Region 11'!AW65) -> 0 | AZ65: =SUM('MMA Rev-Exp Region 1:MMA Rev-Exp Region 11'!AZ65) -> 1,678 | BA65: =SUM(BB65:BJ65)+AZ65 -> 33,832 | BB65: =SUM('MMA Rev-Exp Region 1:MMA Rev-Exp Region 11'!BB65) -> 0 | BC65: =SUM('MMA Rev-Exp Region 1:MMA Rev-Exp Region 11'!BC65) -> 0 | BD65: =SUM('MMA Rev-Exp Region 1:MMA Rev-Exp Region 11'!BD65) -> 0 | BE65: =SUM('MMA Rev-Exp Region 1:MMA Rev-Exp Region 11'!BE65) -> 0 | BF65: =SUM('MMA Rev-Exp Region 1:MMA Rev-Exp Region 11'!BF65) -> 32,154 | BG65: =SUM('MMA Rev-Exp Region 1:MMA Rev-Exp Region 11'!BG65) -> 0 | BH65: =SUM('MMA Rev-Exp Region 1:MMA Rev-Exp Region 11'!BH65) -> 0 | BI65: =SUM('MMA Rev-Exp Region 1:MMA Rev-Exp Region 11'!BI65) -> 0 | BJ65: =SUM('MMA Rev-Exp Region 1:MMA Rev-Exp Region 11'!BJ65) -> 0
B66: 9.2.1 | C66: Nursing Facility FFS | D66: =SUM(E66:M66) -> 23,193 | E66: =SUM('MMA Rev-Exp Region 1:MMA Rev-Exp Region 11'!E66) -> 0 | F66: =SUM('MMA Rev-Exp Region 1:MMA Rev-Exp Region 11'!F66) -> 0 | G66: =SUM('MMA Rev-Exp Region 1:MMA Rev-Exp Region 11'!G66) -> 0 | H66: =SUM('MMA Rev-Exp Region 1:MMA Rev-Exp Region 11'!H66) -> 0 | I66: =SUM('MMA Rev-Exp Region 1:MMA Rev-Exp Region 11'!I66) -> 23,193 | J66: =SUM('MMA Rev-Exp Region 1:MMA Rev-Exp Region 11'!J66) -> 0 | K66: =SUM('MMA Rev-Exp Region 1:MMA Rev-Exp Region 11'!K66) -> 0 | L66: =SUM('MMA Rev-Exp Region 1:MMA Rev-Exp Region 11'!L66) -> 0 | M66: =SUM('MMA Rev-Exp Region 1:MMA Rev-Exp Region 11'!M66) -> 0 | N66: =SUM('MMA Rev-Exp Region 1:MMA Rev-Exp Region 11'!N66) -> 0 | O66: =SUM('MMA Rev-Exp Region 1:MMA Rev-Exp Region 11'!O66) -> 0 | P66: =SUM(Q66:Y66) -> 6,201 | Q66: =SUM('MMA Rev-Exp Region 1:MMA Rev-Exp Region 11'!Q66) -> 0 | R66: =SUM('MMA Rev-Exp Region 1:MMA Rev-Exp Region 11'!R66) -> 0 | S66: =SUM('MMA Rev-Exp Region 1:MMA Rev-Exp Region 11'!S66) -> 0 | T66: =SUM('MMA Rev-Exp Region 1:MMA Rev-Exp Region 11'!T66) -> 0 | U66: =SUM('MMA Rev-Exp Region 1:MMA Rev-Exp Region 11'!U66) -> 6,201 | V66: =SUM('MMA Rev-Exp Region 1:MMA Rev-Exp Region 11'!V66) -> 0 | W66: =SUM('MMA Rev-Exp Region 1:MMA Rev-Exp Region 11'!W66) -> 0 | X66: =SUM('MMA Rev-Exp Region 1:MMA Rev-Exp Region 11'!X66) -> 0 | Y66: =SUM('MMA Rev-Exp Region 1:MMA Rev-Exp Region 11'!Y66) -> 0 | AB66: =SUM(AC66:AK66) -> 18,296 | AC66: =SUM('MMA Rev-Exp Region 1:MMA Rev-Exp Region 11'!AC66) -> 0 | AD66: =SUM('MMA Rev-Exp Region 1:MMA Rev-Exp Region 11'!AD66) -> 0 | AE66: =SUM('MMA Rev-Exp Region 1:MMA Rev-Exp Region 11'!AE66) -> 0 | AF66: =SUM('MMA Rev-Exp Region 1:MMA Rev-Exp Region 11'!AF66) -> 0 | AG66: =SUM('MMA Rev-Exp Region 1:MMA Rev-Exp Region 11'!AG66) -> 18,296 | AH66: =SUM('MMA Rev-Exp Region 1:MMA Rev-Exp Region 11'!AH66) -> 0 | AI66: =SUM('MMA Rev-Exp Region 1:MMA Rev-Exp Region 11'!AI66) -> 0 | AJ66: =SUM('MMA Rev-Exp Region 1:MMA Rev-Exp Region 11'!AJ66) -> 0 | AK66: =SUM('MMA Rev-Exp Region 1:MMA Rev-Exp Region 11'!AK66) -> 0 | AN66: =SUM(AO66:AW66) -> 63,184 | AO66: =SUM('MMA Rev-Exp Region 1:MMA Rev-Exp Region 11'!AO66) -> 0 | AP66: =SUM('MMA Rev-Exp Region 1:MMA Rev-Exp Region 11'!AP66) -> 0 | AQ66: =SUM('MMA Rev-Exp Region 1:MMA Rev-Exp Region 11'!AQ66) -> 0 | AR66: =SUM('MMA Rev-Exp Region 1:MMA Rev-Exp Region 11'!AR66) -> 0 | AS66: =SUM('MMA Rev-Exp Region 1:MMA Rev-Exp Region 11'!AS66) -> 63,184 | AT66: =SUM('MMA Rev-Exp Region 1:MMA Rev-Exp Region 11'!AT66) -> 0 | AU66: =SUM('MMA Rev-Exp Region 1:MMA Rev-Exp Region 11'!AU66) -> 0 | AV66: =SUM('MMA Rev-Exp Region 1:MMA Rev-Exp Region 11'!AV66) -> 0 | AW66: =SUM('MMA Rev-Exp Region 1:MMA Rev-Exp Region 11'!AW66) -> 0 | AZ66: =SUM('MMA Rev-Exp Region 1:MMA Rev-Exp Region 11'!AZ66) -> 60,963 | BA66: =SUM(BB66:BJ66)+AZ66 -> 171,838 | BB66: =SUM('MMA Rev-Exp Region 1:MMA Rev-Exp Region 11'!BB66) -> 0 | BC66: =SUM('MMA Rev-Exp Region 1:MMA Rev-Exp Region 11'!BC66) -> 0 | BD66: =SUM('MMA Rev-Exp Region 1:MMA Rev-Exp Region 11'!BD66) -> 0 | BE66: =SUM('MMA Rev-Exp Region 1:MMA Rev-Exp Region 11'!BE66) -> 0 | BF66: =SUM('MMA Rev-Exp Region 1:MMA Rev-Exp Region 11'!BF66) -> 110,875 | BG66: =SUM('MMA Rev-Exp Region 1:MMA Rev-Exp Region 11'!BG66) -> 0 | BH66: =SUM('MMA Rev-Exp Region 1:MMA Rev-Exp Region 11'!BH66) -> 0 | BI66: =SUM('MMA Rev-Exp Region 1:MMA Rev-Exp Region 11'!BI66) -> 0 | BJ66: =SUM('MMA Rev-Exp Region 1:MMA Rev-Exp Region 11'!BJ66) -> 0
B67: 9.3 | C67: DME FFS | D67: =SUM(E67:M67) -> 730 | E67: =SUM('MMA Rev-Exp Region 1:MMA Rev-Exp Region 11'!E67) -> 0 | F67: =SUM('MMA Rev-Exp Region 1:MMA Rev-Exp Region 11'!F67) -> 0 | G67: =SUM('MMA Rev-Exp Region 1:MMA Rev-Exp Region 11'!G67) -> 0 | H67: =SUM('MMA Rev-Exp Region 1:MMA Rev-Exp Region 11'!H67) -> 0 | I67: =SUM('MMA Rev-Exp Region 1:MMA Rev-Exp Region 11'!I67) -> 730 | J67: =SUM('MMA Rev-Exp Region 1:MMA Rev-Exp Region 11'!J67) -> 0 | K67: =SUM('MMA Rev-Exp Region 1:MMA Rev-Exp Region 11'!K67) -> 0 | L67: =SUM('MMA Rev-Exp Region 1:MMA Rev-Exp Region 11'!L67) -> 0 | M67: =SUM('MMA Rev-Exp Region 1:MMA Rev-Exp Region 11'!M67) -> 0 | N67: =SUM('MMA Rev-Exp Region 1:MMA Rev-Exp Region 11'!N67) -> 0 | O67: =SUM('MMA Rev-Exp Region 1:MMA Rev-Exp Region 11'!O67) -> 0 | P67: =SUM(Q67:Y67) -> 339 | Q67: =SUM('MMA Rev-Exp Region 1:MMA Rev-Exp Region 11'!Q67) -> 0 | R67: =SUM('MMA Rev-Exp Region 1:MMA Rev-Exp Region 11'!R67) -> 0 | S67: =SUM('MMA Rev-Exp Region 1:MMA Rev-Exp Region 11'!S67) -> 0 | T67: =SUM('MMA Rev-Exp Region 1:MMA Rev-Exp Region 11'!T67) -> 0 | U67: =SUM('MMA Rev-Exp Region 1:MMA Rev-Exp Region 11'!U67) -> 339 | V67: =SUM('MMA Rev-Exp Region 1:MMA Rev-Exp Region 11'!V67) -> 0 | W67: =SUM('MMA Rev-Exp Region 1:MMA Rev-Exp Region 11'!W67) -> 0 | X67: =SUM('MMA Rev-Exp Region 1:MMA Rev-Exp Region 11'!X67) -> 0 | Y67: =SUM('MMA Rev-Exp Region 1:MMA Rev-Exp Region 11'!Y67) -> 0 | AB67: =SUM(AC67:AK67) -> 357 | AC67: =SUM('MMA Rev-Exp Region 1:MMA Rev-Exp Region 11'!AC67) -> 0 | AD67: =SUM('MMA Rev-Exp Region 1:MMA Rev-Exp Region 11'!AD67) -> 0 | AE67: =SUM('MMA Rev-Exp Region 1:MMA Rev-Exp Region 11'!AE67) -> 0 | AF67: =SUM('MMA Rev-Exp Region 1:MMA Rev-Exp Region 11'!AF67) -> 0 | AG67: =SUM('MMA Rev-Exp Region 1:MMA Rev-Exp Region 11'!AG67) -> 357 | AH67: =SUM('MMA Rev-Exp Region 1:MMA Rev-Exp Region 11'!AH67) -> 0 | AI67: =SUM('MMA Rev-Exp Region 1:MMA Rev-Exp Region 11'!AI67) -> 0 | AJ67: =SUM('MMA Rev-Exp Region 1:MMA Rev-Exp Region 11'!AJ67) -> 0 | AK67: =SUM('MMA Rev-Exp Region 1:MMA Rev-Exp Region 11'!AK67) -> 0 | AN67: =SUM(AO67:AW67) -> 315 | AO67: =SUM('MMA Rev-Exp Region 1:MMA Rev-Exp Region 11'!AO67) -> 0 | AP67: =SUM('MMA Rev-Exp Region 1:MMA Rev-Exp Region 11'!AP67) -> 0 | AQ67: =SUM('MMA Rev-Exp Region 1:MMA Rev-Exp Region 11'!AQ67) -> 0 | AR67: =SUM('MMA Rev-Exp Region 1:MMA Rev-Exp Region 11'!AR67) -> 0 | AS67: =SUM('MMA Rev-Exp Region 1:MMA Rev-Exp Region 11'!AS67) -> 315 | AT67: =SUM('MMA Rev-Exp Region 1:MMA Rev-Exp Region 11'!AT67) -> 0 | AU67: =SUM('MMA Rev-Exp Region 1:MMA Rev-Exp Region 11'!AU67) -> 0 | AV67: =SUM('MMA Rev-Exp Region 1:MMA Rev-Exp Region 11'!AV67) -> 0 | AW67: =SUM('MMA Rev-Exp Region 1:MMA Rev-Exp Region 11'!AW67) -> 0 | AZ67: =SUM('MMA Rev-Exp Region 1:MMA Rev-Exp Region 11'!AZ67) -> 36 | BA67: =SUM(BB67:BJ67)+AZ67 -> 1,778 | BB67: =SUM('MMA Rev-Exp Region 1:MMA Rev-Exp Region 11'!BB67) -> 0 | BC67: =SUM('MMA Rev-Exp Region 1:MMA Rev-Exp Region 11'!BC67) -> 0 | BD67: =SUM('MMA Rev-Exp Region 1:MMA Rev-Exp Region 11'!BD67) -> 0 | BE67: =SUM('MMA Rev-Exp Region 1:MMA Rev-Exp Region 11'!BE67) -> 0 | BF67: =SUM('MMA Rev-Exp Region 1:MMA Rev-Exp Region 11'!BF67) -> 1,742 | BG67: =SUM('MMA Rev-Exp Region 1:MMA Rev-Exp Region 11'!BG67) -> 0 | BH67: =SUM('MMA Rev-Exp Region 1:MMA Rev-Exp Region 11'!BH67) -> 0 | BI67: =SUM('MMA Rev-Exp Region 1:MMA Rev-Exp Region 11'!BI67) -> 0 | BJ67: =SUM('MMA Rev-Exp Region 1:MMA Rev-Exp Region 11'!BJ67) -> 0
B68: 9.4 | C68: Other State Plan Services FFS | D68: =SUM(E68:O68) -> 355,948 | E68: =SUM('MMA Rev-Exp Region 1:MMA Rev-Exp Region 11'!E68) -> 0 | F68: =SUM('MMA Rev-Exp Region 1:MMA Rev-Exp Region 11'!F68) -> 0 | G68: =SUM('MMA Rev-Exp Region 1:MMA Rev-Exp Region 11'!G68) -> 0 | H68: =SUM('MMA Rev-Exp Region 1:MMA Rev-Exp Region 11'!H68) -> 0 | I68: =SUM('MMA Rev-Exp Region 1:MMA Rev-Exp Region 11'!I68) -> 12,319 | J68: =SUM('MMA Rev-Exp Region 1:MMA Rev-Exp Region 11'!J68) -> 0 | K68: =SUM('MMA Rev-Exp Region 1:MMA Rev-Exp Region 11'!K68) -> 64 | L68: =SUM('MMA Rev-Exp Region 1:MMA Rev-Exp Region 11'!L68) -> 0 | M68: =SUM('MMA Rev-Exp Region 1:MMA Rev-Exp Region 11'!M68) -> 0 | N68: =SUM('MMA Rev-Exp Region 1:MMA Rev-Exp Region 11'!N68) -> 170,888 | O68: =SUM('MMA Rev-Exp Region 1:MMA Rev-Exp Region 11'!O68) -> 172,677 | P68: =SUM(Q68:AA68) -> 459,794 | Q68: =SUM('MMA Rev-Exp Region 1:MMA Rev-Exp Region 11'!Q68) -> 0 | R68: =SUM('MMA Rev-Exp Region 1:MMA Rev-Exp Region 11'!R68) -> 0 | S68: =SUM('MMA Rev-Exp Region 1:MMA Rev-Exp Region 11'!S68) -> 0 | T68: =SUM('MMA Rev-Exp Region 1:MMA Rev-Exp Region 11'!T68) -> 0 | U68: =SUM('MMA Rev-Exp Region 1:MMA Rev-Exp Region 11'!U68) -> 9,129 | V68: =SUM('MMA Rev-Exp Region 1:MMA Rev-Exp Region 11'!V68) -> 0 | W68: =SUM('MMA Rev-Exp Region 1:MMA Rev-Exp Region 11'!W68) -> 0 | X68: =SUM('MMA Rev-Exp Region 1:MMA Rev-Exp Region 11'!X68) -> 0 | Y68: =SUM('MMA Rev-Exp Region 1:MMA Rev-Exp Region 11'!Y68) -> 0 | Z68: =SUM('MMA Rev-Exp Region 1:MMA Rev-Exp Region 11'!Z68) -> 342,525 | AA68: =SUM('MMA Rev-Exp Region 1:MMA Rev-Exp Region 11'!AA68) -> 108,140 | AB68: =SUM(AC68:AM68) -> 514,688 | AC68: =SUM('MMA Rev-Exp Region 1:MMA Rev-Exp Region 11'!AC68) -> 0 | AD68: =SUM('MMA Rev-Exp Region 1:MMA Rev-Exp Region 11'!AD68) -> 0 | AE68: =SUM('MMA Rev-Exp Region 1:MMA Rev-Exp Region 11'!AE68) -> 0 | AF68: =SUM('MMA Rev-Exp Region 1:MMA Rev-Exp Region 11'!AF68) -> 0 | AG68: =SUM('MMA Rev-Exp Region 1:MMA Rev-Exp Region 11'!AG68) -> 5,856 | AH68: =SUM('MMA Rev-Exp Region 1:MMA Rev-Exp Region 11'!AH68) -> 0 | AI68: =SUM('MMA Rev-Exp Region 1:MMA Rev-Exp Region 11'!AI68) -> 50 | AJ68: =SUM('MMA Rev-Exp Region 1:MMA Rev-Exp Region 11'!AJ68) -> 0 | AK68: =SUM('MMA Rev-Exp Region 1:MMA Rev-Exp Region 11'!AK68) -> 0 | AL68: =SUM('MMA Rev-Exp Region 1:MMA Rev-Exp Region 11'!AL68) -> 392,950 | AM68: =SUM('MMA Rev-Exp Region 1:MMA Rev-Exp Region 11'!AM68) -> 115,833 | AN68: =SUM(AO68:AY68) -> 473,099 | AO68: =SUM('MMA Rev-Exp Region 1:MMA Rev-Exp Region 11'!AO68) -> 0 | AP68: =SUM('MMA Rev-Exp Region 1:MMA Rev-Exp Region 11'!AP68) -> 0 | AQ68: =SUM('MMA Rev-Exp Region 1:MMA Rev-Exp Region 11'!AQ68) -> 0 | AR68: =SUM('MMA Rev-Exp Region 1:MMA Rev-Exp Region 11'!AR68) -> 0 | AS68: =SUM('MMA Rev-Exp Region 1:MMA Rev-Exp Region 11'!AS68) -> 6,075 | AT68: =SUM('MMA Rev-Exp Region 1:MMA Rev-Exp Region 11'!AT68) -> 0 | AU68: =SUM('MMA Rev-Exp Region 1:MMA Rev-Exp Region 11'!AU68) -> 0 | AV68: =SUM('MMA Rev-Exp Region 1:MMA Rev-Exp Region 11'!AV68) -> 0 | AW68: =SUM('MMA Rev-Exp Region 1:MMA Rev-Exp Region 11'!AW68) -> 0 | AX68: =SUM('MMA Rev-Exp Region 1:MMA Rev-Exp Region 11'!AX68) -> 366,930 | AY68: =SUM('MMA Rev-Exp Region 1:MMA Rev-Exp Region 11'!AY68) -> 100,094 | AZ68: =SUM('MMA Rev-Exp Region 1:MMA Rev-Exp Region 11'!AZ68) -> 90,764 | BA68: =SUM(BB68:BL68)+AZ68 -> 1,894,293 | BB68: =SUM('MMA Rev-Exp Region 1:MMA Rev-Exp Region 11'!BB68) -> 0 | BC68: =SUM('MMA Rev-Exp Region 1:MMA Rev-Exp Region 11'!BC68) -> 0 | BD68: =SUM('MMA Rev-Exp Region 1:MMA Rev-Exp Region 11'!BD68) -> 0 | BE68: =SUM('MMA Rev-Exp Region 1:MMA Rev-Exp Region 11'!BE68) -> 0 | BF68: =SUM('MMA Rev-Exp Region 1:MMA Rev-Exp Region 11'!BF68) -> 33,379 | BG68: =SUM('MMA Rev-Exp Region 1:MMA Rev-Exp Region 11'!BG68) -> 0 | BH68: =SUM('MMA Rev-Exp Region 1:MMA Rev-Exp Region 11'!BH68) -> 114 | BI68: =SUM('MMA Rev-Exp Region 1:MMA Rev-Exp Region 11'!BI68) -> 0 | BJ68: =SUM('MMA Rev-Exp Region 1:MMA Rev-Exp Region 11'!BJ68) -> 0 | BK68: =SUM('MMA Rev-Exp Region 1:MMA Rev-Exp Region 11'!BK68) -> 1,273,293 | BL68: =SUM('MMA Rev-Exp Region 1:MMA Rev-Exp Region 11'!BL68) -> 496,744
B69: 9.5 | C69: Other Services Subcapitation | D69: =SUM(E69:O69) -> 0 | E69: =SUM('MMA Rev-Exp Region 1:MMA Rev-Exp Region 11'!E69) -> 0 | F69: =SUM('MMA Rev-Exp Region 1:MMA Rev-Exp Region 11'!F69) -> 0 | G69: =SUM('MMA Rev-Exp Region 1:MMA Rev-Exp Region 11'!G69) -> 0 | H69: =SUM('MMA Rev-Exp Region 1:MMA Rev-Exp Region 11'!H69) -> 0 | I69: =SUM('MMA Rev-Exp Region 1:MMA Rev-Exp Region 11'!I69) -> 0 | J69: =SUM('MMA Rev-Exp Region 1:MMA Rev-Exp Region 11'!J69) -> 0 | K69: =SUM('MMA Rev-Exp Region 1:MMA Rev-Exp Region 11'!K69) -> 0 | L69: =SUM('MMA Rev-Exp Region 1:MMA Rev-Exp Region 11'!L69) -> 0 | M69: =SUM('MMA Rev-Exp Region 1:MMA Rev-Exp Region 11'!M69) -> 0 | N69: =SUM('MMA Rev-Exp Region 1:MMA Rev-Exp Region 11'!N69) -> 0 | O69: =SUM('MMA Rev-Exp Region 1:MMA Rev-Exp Region 11'!O69) -> 0 | P69: =SUM(Q69:AA69) -> 0 | Q69: =SUM('MMA Rev-Exp Region 1:MMA Rev-Exp Region 11'!Q69) -> 0 | R69: =SUM('MMA Rev-Exp Region 1:MMA Rev-Exp Region 11'!R69) -> 0 | S69: =SUM('MMA Rev-Exp Region 1:MMA Rev-Exp Region 11'!S69) -> 0 | T69: =SUM('MMA Rev-Exp Region 1:MMA Rev-Exp Region 11'!T69) -> 0 | U69: =SUM('MMA Rev-Exp Region 1:MMA Rev-Exp Region 11'!U69) -> 0 | V69: =SUM('MMA Rev-Exp Region 1:MMA Rev-Exp Region 11'!V69) -> 0 | W69: =SUM('MMA Rev-Exp Region 1:MMA Rev-Exp Region 11'!W69) -> 0 | X69: =SUM('MMA Rev-Exp Region 1:MMA Rev-Exp Region 11'!X69) -> 0 | Y69: =SUM('MMA Rev-Exp Region 1:MMA Rev-Exp Region 11'!Y69) -> 0 | Z69: =SUM('MMA Rev-Exp Region 1:MMA Rev-Exp Region 11'!Z69) -> 0 | AA69: =SUM('MMA Rev-Exp Region 1:MMA Rev-Exp Region 11'!AA69) -> 0 | AB69: =SUM(AC69:AM69) -> 0 | AC69: =SUM('MMA Rev-Exp Region 1:MMA Rev-Exp Region 11'!AC69) -> 0 | AD69: =SUM('MMA Rev-Exp Region 1:MMA Rev-Exp Region 11'!AD69) -> 0 | AE69: =SUM('MMA Rev-Exp Region 1:MMA Rev-Exp Region 11'!AE69) -> 0 | AF69: =SUM('MMA Rev-Exp Region 1:MMA Rev-Exp Region 11'!AF69) -> 0 | AG69: =SUM('MMA Rev-Exp Region 1:MMA Rev-Exp Region 11'!AG69) -> 0 | AH69: =SUM('MMA Rev-Exp Region 1:MMA Rev-Exp Region 11'!AH69) -> 0 | AI69: =SUM('MMA Rev-Exp Region 1:MMA Rev-Exp Region 11'!AI69) -> 0 | AJ69: =SUM('MMA Rev-Exp Region 1:MMA Rev-Exp Region 11'!AJ69) -> 0 | AK69: =SUM('MMA Rev-Exp Region 1:MMA Rev-Exp Region 11'!AK69) -> 0 | AL69: =SUM('MMA Rev-Exp Region 1:MMA Rev-Exp Region 11'!AL69) -> 0 | AM69: =SUM('MMA Rev-Exp Region 1:MMA Rev-Exp Region 11'!AM69) -> 0 | AN69: =SUM(AO69:AY69) -> 0 | AO69: =SUM('MMA Rev-Exp Region 1:MMA Rev-Exp Region 11'!AO69) -> 0 | AP69: =SUM('MMA Rev-Exp Region 1:MMA Rev-Exp Region 11'!AP69) -> 0 | AQ69: =SUM('MMA Rev-Exp Region 1:MMA Rev-Exp Region 11'!AQ69) -> 0 | AR69: =SUM('MMA Rev-Exp Region 1:MMA Rev-Exp Region 11'!AR69) -> 0 | AS69: =SUM('MMA Rev-Exp Region 1:MMA Rev-Exp Region 11'!AS69) -> 0 | AT69: =SUM('MMA Rev-Exp Region 1:MMA Rev-Exp Region 11'!AT69) -> 0 | AU69: =SUM('MMA Rev-Exp Region 1:MMA Rev-Exp Region 11'!AU69) -> 0 | AV69: =SUM('MMA Rev-Exp Region 1:MMA Rev-Exp Region 11'!AV69) -> 0 | AW69: =SUM('MMA Rev-Exp Region 1:MMA Rev-Exp Region 11'!AW69) -> 0 | AX69: =SUM('MMA Rev-Exp Region 1:MMA Rev-Exp Region 11'!AX69) -> 0 | AY69: =SUM('MMA Rev-Exp Region 1:MMA Rev-Exp Region 11'!AY69) -> 0 | AZ69: =SUM('MMA Rev-Exp Region 1:MMA Rev-Exp Region 11'!AZ69) -> 0 | BA69: =SUM(BB69:BL69)+AZ69 -> 0 | BB69: =SUM('MMA Rev-Exp Region 1:MMA Rev-Exp Region 11'!BB69) -> 0 | BC69: =SUM('MMA Rev-Exp Region 1:MMA Rev-Exp Region 11'!BC69) -> 0 | BD69: =SUM('MMA Rev-Exp Region 1:MMA Rev-Exp Region 11'!BD69) -> 0 | BE69: =SUM('MMA Rev-Exp Region 1:MMA Rev-Exp Region 11'!BE69) -> 0 | BF69: =SUM('MMA Rev-Exp Region 1:MMA Rev-Exp Region 11'!BF69) -> 0 | BG69: =SUM('MMA Rev-Exp Region 1:MMA Rev-Exp Region 11'!BG69) -> 0 | BH69: =SUM('MMA Rev-Exp Region 1:MMA Rev-Exp Region 11'!BH69) -> 0 | BI69: =SUM('MMA Rev-Exp Region 1:MMA Rev-Exp Region 11'!BI69) -> 0 | BJ69: =SUM('MMA Rev-Exp Region 1:MMA Rev-Exp Region 11'!BJ69) -> 0 | BK69: =SUM('MMA Rev-Exp Region 1:MMA Rev-Exp Region 11'!BK69) -> 0 | BL69: =SUM('MMA Rev-Exp Region 1:MMA Rev-Exp Region 11'!BL69) -> 0
B70: 9.6 | C70: Ending IBNP for Other Services | D70: =SUM(E70:O70) -> 2,635 | E70: =SUM('MMA Rev-Exp Region 1:MMA Rev-Exp Region 11'!E70) -> 0 | F70: =SUM('MMA Rev-Exp Region 1:MMA Rev-Exp Region 11'!F70) -> 0 | G70: =SUM('MMA Rev-Exp Region 1:MMA Rev-Exp Region 11'!G70) -> 0 | H70: =SUM('MMA Rev-Exp Region 1:MMA Rev-Exp Region 11'!H70) -> 0 | I70: =SUM('MMA Rev-Exp Region 1:MMA Rev-Exp Region 11'!I70) -> 363 | J70: =SUM('MMA Rev-Exp Region 1:MMA Rev-Exp Region 11'!J70) -> 0 | K70: =SUM('MMA Rev-Exp Region 1:MMA Rev-Exp Region 11'!K70) -> 0 | L70: =SUM('MMA Rev-Exp Region 1:MMA Rev-Exp Region 11'!L70) -> 0 | M70: =SUM('MMA Rev-Exp Region 1:MMA Rev-Exp Region 11'!M70) -> 0 | N70: =SUM('MMA Rev-Exp Region 1:MMA Rev-Exp Region 11'!N70) -> 1,238 | O70: =SUM('MMA Rev-Exp Region 1:MMA Rev-Exp Region 11'!O70) -> 1,033 | P70: =SUM(Q70:AA70) -> 11,457 | Q70: =SUM('MMA Rev-Exp Region 1:MMA Rev-Exp Region 11'!Q70) -> 0 | R70: =SUM('MMA Rev-Exp Region 1:MMA Rev-Exp Region 11'!R70) -> 0 | S70: =SUM('MMA Rev-Exp Region 1:MMA Rev-Exp Region 11'!S70) -> 0 | T70: =SUM('MMA Rev-Exp Region 1:MMA Rev-Exp Region 11'!T70) -> 0 | U70: =SUM('MMA Rev-Exp Region 1:MMA Rev-Exp Region 11'!U70) -> 855 | V70: =SUM('MMA Rev-Exp Region 1:MMA Rev-Exp Region 11'!V70) -> 0 | W70: =SUM('MMA Rev-Exp Region 1:MMA Rev-Exp Region 11'!W70) -> 0 | X70: =SUM('MMA Rev-Exp Region 1:MMA Rev-Exp Region 11'!X70) -> 0 | Y70: =SUM('MMA Rev-Exp Region 1:MMA Rev-Exp Region 11'!Y70) -> 0 | Z70: =SUM('MMA Rev-Exp Region 1:MMA Rev-Exp Region 11'!Z70) -> 8,562 | AA70: =SUM('MMA Rev-Exp Region 1:MMA Rev-Exp Region 11'!AA70) -> 2,040 | AB70: =SUM(AC70:AM70) -> 32,964 | AC70: =SUM('MMA Rev-Exp Region 1:MMA Rev-Exp Region 11'!AC70) -> 0 | AD70: =SUM('MMA Rev-Exp Region 1:MMA Rev-Exp Region 11'!AD70) -> 0 | AE70: =SUM('MMA Rev-Exp Region 1:MMA Rev-Exp Region 11'!AE70) -> 0 | AF70: =SUM('MMA Rev-Exp Region 1:MMA Rev-Exp Region 11'!AF70) -> 0 | AG70: =SUM('MMA Rev-Exp Region 1:MMA Rev-Exp Region 11'!AG70) -> 1,899 | AH70: =SUM('MMA Rev-Exp Region 1:MMA Rev-Exp Region 11'!AH70) -> 0 | AI70: =SUM('MMA Rev-Exp Region 1:MMA Rev-Exp Region 11'!AI70) -> 3 | AJ70: =SUM('MMA Rev-Exp Region 1:MMA Rev-Exp Region 11'!AJ70) -> 0 | AK70: =SUM('MMA Rev-Exp Region 1:MMA Rev-Exp Region 11'!AK70) -> 0 | AL70: =SUM('MMA Rev-Exp Region 1:MMA Rev-Exp Region 11'!AL70) -> 25,182 | AM70: =SUM('MMA Rev-Exp Region 1:MMA Rev-Exp Region 11'!AM70) -> 5,879 | AN70: =SUM(AO70:AY70) -> 97,558 | AO70: =SUM('MMA Rev-Exp Region 1:MMA Rev-Exp Region 11'!AO70) -> 0 | AP70: =SUM('MMA Rev-Exp Region 1:MMA Rev-Exp Region 11'!AP70) -> 0 | AQ70: =SUM('MMA Rev-Exp Region 1:MMA Rev-Exp Region 11'!AQ70) -> 0 | AR70: =SUM('MMA Rev-Exp Region 1:MMA Rev-Exp Region 11'!AR70) -> 0 | AS70: =SUM('MMA Rev-Exp Region 1:MMA Rev-Exp Region 11'!AS70) -> 13,801 | AT70: =SUM('MMA Rev-Exp Region 1:MMA Rev-Exp Region 11'!AT70) -> 0 | AU70: =SUM('MMA Rev-Exp Region 1:MMA Rev-Exp Region 11'!AU70) -> 0 | AV70: =SUM('MMA Rev-Exp Region 1:MMA Rev-Exp Region 11'!AV70) -> 0 | AW70: =SUM('MMA Rev-Exp Region 1:MMA Rev-Exp Region 11'!AW70) -> 0 | AX70: =SUM('MMA Rev-Exp Region 1:MMA Rev-Exp Region 11'!AX70) -> 70,858 | AY70: =SUM('MMA Rev-Exp Region 1:MMA Rev-Exp Region 11'!AY70) -> 12,899 | AZ70: =SUM('MMA Rev-Exp Region 1:MMA Rev-Exp Region 11'!AZ70) -> (72,157) | BA70: =SUM(BB70:BL70)+AZ70 -> 72,456 | BB70: =SUM('MMA Rev-Exp Region 1:MMA Rev-Exp Region 11'!BB70) -> 0 | BC70: =SUM('MMA Rev-Exp Region 1:MMA Rev-Exp Region 11'!BC70) -> 0 | BD70: =SUM('MMA Rev-Exp Region 1:MMA Rev-Exp Region 11'!BD70) -> 0 | BE70: =SUM('MMA Rev-Exp Region 1:MMA Rev-Exp Region 11'!BE70) -> 0 | BF70: =SUM('MMA Rev-Exp Region 1:MMA Rev-Exp Region 11'!BF70) -> 16,918 | BG70: =SUM('MMA Rev-Exp Region 1:MMA Rev-Exp Region 11'!BG70) -> 0 | BH70: =SUM('MMA Rev-Exp Region 1:MMA Rev-Exp Region 11'!BH70) -> 4 | BI70: =SUM('MMA Rev-Exp Region 1:MMA Rev-Exp Region 11'!BI70) -> 0 | BJ70: =SUM('MMA Rev-Exp Region 1:MMA Rev-Exp Region 11'!BJ70) -> 0 | BK70: =SUM('MMA Rev-Exp Region 1:MMA Rev-Exp Region 11'!BK70) -> 105,840 | BL70: =SUM('MMA Rev-Exp Region 1:MMA Rev-Exp Region 11'!BL70) -> 21,851
B71: 9.7 | C71: Other Service Settlements/AP | D71: =SUM(E71:O71) -> 15,820 | E71: =SUM('MMA Rev-Exp Region 1:MMA Rev-Exp Region 11'!E71) -> 0 | F71: =SUM('MMA Rev-Exp Region 1:MMA Rev-Exp Region 11'!F71) -> 0 | G71: =SUM('MMA Rev-Exp Region 1:MMA Rev-Exp Region 11'!G71) -> 5,454 | H71: =SUM('MMA Rev-Exp Region 1:MMA Rev-Exp Region 11'!H71) -> 0 | I71: =SUM('MMA Rev-Exp Region 1:MMA Rev-Exp Region 11'!I71) -> (33,305) | J71: =SUM('MMA Rev-Exp Region 1:MMA Rev-Exp Region 11'!J71) -> 0 | K71: =SUM('MMA Rev-Exp Region 1:MMA Rev-Exp Region 11'!K71) -> 16 | L71: =SUM('MMA Rev-Exp Region 1:MMA Rev-Exp Region 11'!L71) -> 0 | M71: =SUM('MMA Rev-Exp Region 1:MMA Rev-Exp Region 11'!M71) -> 0 | N71: =SUM('MMA Rev-Exp Region 1:MMA Rev-Exp Region 11'!N71) -> 26,148 | O71: =SUM('MMA Rev-Exp Region 1:MMA Rev-Exp Region 11'!O71) -> 17,508 | P71: =SUM(Q71:AA71) -> 194,195 | Q71: =SUM('MMA Rev-Exp Region 1:MMA Rev-Exp Region 11'!Q71) -> 0 | R71: =SUM('MMA Rev-Exp Region 1:MMA Rev-Exp Region 11'!R71) -> 0 | S71: =SUM('MMA Rev-Exp Region 1:MMA Rev-Exp Region 11'!S71) -> 3,701 | T71: =SUM('MMA Rev-Exp Region 1:MMA Rev-Exp Region 11'!T71) -> 0 | U71: =SUM('MMA Rev-Exp Region 1:MMA Rev-Exp Region 11'!U71) -> (23,540) | V71: =SUM('MMA Rev-Exp Region 1:MMA Rev-Exp Region 11'!V71) -> 0 | W71: =SUM('MMA Rev-Exp Region 1:MMA Rev-Exp Region 11'!W71) -> 0 | X71: =SUM('MMA Rev-Exp Region 1:MMA Rev-Exp Region 11'!X71) -> 0 | Y71: =SUM('MMA Rev-Exp Region 1:MMA Rev-Exp Region 11'!Y71) -> 0 | Z71: =SUM('MMA Rev-Exp Region 1:MMA Rev-Exp Region 11'!Z71) -> 187,592 | AA71: =SUM('MMA Rev-Exp Region 1:MMA Rev-Exp Region 11'!AA71) -> 26,442 | AB71: =SUM(AC71:AM71) -> 397,657 | AC71: =SUM('MMA Rev-Exp Region 1:MMA Rev-Exp Region 11'!AC71) -> 0 | AD71: =SUM('MMA Rev-Exp Region 1:MMA Rev-Exp Region 11'!AD71) -> 0 | AE71: =SUM('MMA Rev-Exp Region 1:MMA Rev-Exp Region 11'!AE71) -> 4,521 | AF71: =SUM('MMA Rev-Exp Region 1:MMA Rev-Exp Region 11'!AF71) -> 7,263 | AG71: =SUM('MMA Rev-Exp Region 1:MMA Rev-Exp Region 11'!AG71) -> (14,956) | AH71: =SUM('MMA Rev-Exp Region 1:MMA Rev-Exp Region 11'!AH71) -> 0 | AI71: =SUM('MMA Rev-Exp Region 1:MMA Rev-Exp Region 11'!AI71) -> 321 | AJ71: =SUM('MMA Rev-Exp Region 1:MMA Rev-Exp Region 11'!AJ71) -> 0 | AK71: =SUM('MMA Rev-Exp Region 1:MMA Rev-Exp Region 11'!AK71) -> 0 | AL71: =SUM('MMA Rev-Exp Region 1:MMA Rev-Exp Region 11'!AL71) -> 380,634 | AM71: =SUM('MMA Rev-Exp Region 1:MMA Rev-Exp Region 11'!AM71) -> 19,875 | AN71: =SUM(AO71:AY71) -> 420,658 | AO71: =SUM('MMA Rev-Exp Region 1:MMA Rev-Exp Region 11'!AO71) -> 0 | AP71: =SUM('MMA Rev-Exp Region 1:MMA Rev-Exp Region 11'!AP71) -> 0 | AQ71: =SUM('MMA Rev-Exp Region 1:MMA Rev-Exp Region 11'!AQ71) -> 0 | AR71: =SUM('MMA Rev-Exp Region 1:MMA Rev-Exp Region 11'!AR71) -> 2,467 | AS71: =SUM('MMA Rev-Exp Region 1:MMA Rev-Exp Region 11'!AS71) -> (75,354) | AT71: =SUM('MMA Rev-Exp Region 1:MMA Rev-Exp Region 11'!AT71) -> 0 | AU71: =SUM('MMA Rev-Exp Region 1:MMA Rev-Exp Region 11'!AU71) -> 0 | AV71: =SUM('MMA Rev-Exp Region 1:MMA Rev-Exp Region 11'!AV71) -> 0 | AW71: =SUM('MMA Rev-Exp Region 1:MMA Rev-Exp Region 11'!AW71) -> 0 | AX71: =SUM('MMA Rev-Exp Region 1:MMA Rev-Exp Region 11'!AX71) -> 459,539 | AY71: =SUM('MMA Rev-Exp Region 1:MMA Rev-Exp Region 11'!AY71) -> 34,005 | AZ71: =SUM('MMA Rev-Exp Region 1:MMA Rev-Exp Region 11'!AZ71) -> 9,244 | BA71: =SUM(BB71:BL71)+AZ71 -> 1,037,574 | BB71: =SUM('MMA Rev-Exp Region 1:MMA Rev-Exp Region 11'!BB71) -> 0 | BC71: =SUM('MMA Rev-Exp Region 1:MMA Rev-Exp Region 11'!BC71) -> 0 | BD71: =SUM('MMA Rev-Exp Region 1:MMA Rev-Exp Region 11'!BD71) -> 13,676 | BE71: =SUM('MMA Rev-Exp Region 1:MMA Rev-Exp Region 11'!BE71) -> 9,730 | BF71: =SUM('MMA Rev-Exp Region 1:MMA Rev-Exp Region 11'!BF71) -> (147,156) | BG71: =SUM('MMA Rev-Exp Region 1:MMA Rev-Exp Region 11'!BG71) -> 0 | BH71: =SUM('MMA Rev-Exp Region 1:MMA Rev-Exp Region 11'!BH71) -> 336 | BI71: =SUM('MMA Rev-Exp Region 1:MMA Rev-Exp Region 11'!BI71) -> 0 | BJ71: =SUM('MMA Rev-Exp Region 1:MMA Rev-Exp Region 11'!BJ71) -> 0 | BK71: =SUM('MMA Rev-Exp Region 1:MMA Rev-Exp Region 11'!BK71) -> 1,053,914 | BL71: =SUM('MMA Rev-Exp Region 1:MMA Rev-Exp Region 11'!BL71) -> 97,830
B72: 9.8 | C72: Total Other Services | D72: =SUM(D64:D71) -> 408,780 | E72: 0 | F72: 0 | G72: 5,454 | H72: 0 | I72: 13,754 | J72: 0 | K72: 80 | L72: 0 | M72: 0 | N72: =SUM(N68:N71) -> 198,273 | O72: =SUM(O68:O71) -> 191,218 | P72: =SUM(P64:P71) -> 689,331 | Q72: 0 | R72: 0 | S72: 3,701 | T72: 0 | U72: 10,329 | V72: 0 | W72: 0 | X72: 0 | Y72: 0 | Z72: =SUM(Z68:Z71) -> 538,679 | AA72: =SUM(AA68:AA71) -> 136,622 | AB72: =SUM(AB64:AB71) -> 968,318 | AC72: =SUM(AC64:AC71) -> 0 | AD72: 0 | AE72: 4,521 | AF72: 7,263 | AG72: 15,807 | AH72: 0 | AI72: 374 | AJ72: 0 | AK72: 0 | AL72: =SUM(AL68:AL71) -> 798,766 | AM72: =SUM(AM68:AM71) -> 141,587 | AN72: =SUM(AN64:AN71) -> 1,054,814 | AO72: =SUM(AO64:AO71) -> 0 | AP72: 0 | AQ72: 0 | AR72: 2,467 | AS72: 8,022 | AT72: 0 | AU72: 0 | AV72: 0 | AW72: =SUM(AW64:AW71) -> 0 | AX72: =SUM(AX68:AX71) -> 897,328 | AY72: =SUM(AY68:AY71) -> 146,998 | AZ72: =SUM(AZ64:AZ71) -> 96,845 | BA72: =SUM(BA64:BA71) -> 3,218,088 | BB72: =SUM('MMA Rev-Exp Region 1:MMA Rev-Exp Region 11'!BB72) -> 0 | BC72: =SUM('MMA Rev-Exp Region 1:MMA Rev-Exp Region 11'!BC72) -> 0 | BD72: =SUM('MMA Rev-Exp Region 1:MMA Rev-Exp Region 11'!BD72) -> 13,676 | BE72: =SUM('MMA Rev-Exp Region 1:MMA Rev-Exp Region 11'!BE72) -> 9,730 | BF72: =SUM('MMA Rev-Exp Region 1:MMA Rev-Exp Region 11'!BF72) -> 47,912 | BG72: =SUM('MMA Rev-Exp Region 1:MMA Rev-Exp Region 11'!BG72) -> 0 | BH72: =SUM('MMA Rev-Exp Region 1:MMA Rev-Exp Region 11'!BH72) -> 454 | BI72: =SUM('MMA Rev-Exp Region 1:MMA Rev-Exp Region 11'!BI72) -> 0 | BJ72: =SUM('MMA Rev-Exp Region 1:MMA Rev-Exp Region 11'!BJ72) -> 0 | BK72: =SUM('MMA Rev-Exp Region 1:MMA Rev-Exp Region 11'!BK72) -> 2,433,046 | BL72: =SUM('MMA Rev-Exp Region 1:MMA Rev-Exp Region 11'!BL72) -> 616,425
A73: Expanded Benefits | B73: 10.1 | C73: Expanded Benefits FFS | D73: =SUM(E73:O73) -> 345,986 | E73: =SUM('MMA Rev-Exp Region 1:MMA Rev-Exp Region 11'!E73) -> 0 | F73: =SUM('MMA Rev-Exp Region 1:MMA Rev-Exp Region 11'!F73) -> 0 | G73: =SUM('MMA Rev-Exp Region 1:MMA Rev-Exp Region 11'!G73) -> 0 | H73: =SUM('MMA Rev-Exp Region 1:MMA Rev-Exp Region 11'!H73) -> 0 | I73: =SUM('MMA Rev-Exp Region 1:MMA Rev-Exp Region 11'!I73) -> 274 | J73: =SUM('MMA Rev-Exp Region 1:MMA Rev-Exp Region 11'!J73) -> 0 | K73: =SUM('MMA Rev-Exp Region 1:MMA Rev-Exp Region 11'!K73) -> 4 | L73: =SUM('MMA Rev-Exp Region 1:MMA Rev-Exp Region 11'!L73) -> 0 | M73: =SUM('MMA Rev-Exp Region 1:MMA Rev-Exp Region 11'!M73) -> 0 | N73: =SUM('MMA Rev-Exp Region 1:MMA Rev-Exp Region 11'!N73) -> 316,358 | O73: =SUM('MMA Rev-Exp Region 1:MMA Rev-Exp Region 11'!O73) -> 29,350 | P73: =SUM(Q73:AA73) -> 350,368 | Q73: =SUM('MMA Rev-Exp Region 1:MMA Rev-Exp Region 11'!Q73) -> 0 | R73: =SUM('MMA Rev-Exp Region 1:MMA Rev-Exp Region 11'!R73) -> 0 | S73: =SUM('MMA Rev-Exp Region 1:MMA Rev-Exp Region 11'!S73) -> 0 | T73: =SUM('MMA Rev-Exp Region 1:MMA Rev-Exp Region 11'!T73) -> 0 | U73: =SUM('MMA Rev-Exp Region 1:MMA Rev-Exp Region 11'!U73) -> 1,999 | V73: =SUM('MMA Rev-Exp Region 1:MMA Rev-Exp Region 11'!V73) -> 0 | W73: =SUM('MMA Rev-Exp Region 1:MMA Rev-Exp Region 11'!W73) -> 12 | X73: =SUM('MMA Rev-Exp Region 1:MMA Rev-Exp Region 11'!X73) -> 0 | Y73: =SUM('MMA Rev-Exp Region 1:MMA Rev-Exp Region 11'!Y73) -> 0 | Z73: =SUM('MMA Rev-Exp Region 1:MMA Rev-Exp Region 11'!Z73) -> 316,756 | AA73: =SUM('MMA Rev-Exp Region 1:MMA Rev-Exp Region 11'!AA73) -> 31,601 | AB73: =SUM(AC73:AM73) -> 357,453 | AC73: =SUM('MMA Rev-Exp Region 1:MMA Rev-Exp Region 11'!AC73) -> 0 | AD73: =SUM('MMA Rev-Exp Region 1:MMA Rev-Exp Region 11'!AD73) -> 0 | AE73: =SUM('MMA Rev-Exp Region 1:MMA Rev-Exp Region 11'!AE73) -> 0 | AF73: =SUM('MMA Rev-Exp Region 1:MMA Rev-Exp Region 11'!AF73) -> 0 | AG73: =SUM('MMA Rev-Exp Region 1:MMA Rev-Exp Region 11'!AG73) -> 536 | AH73: =SUM('MMA Rev-Exp Region 1:MMA Rev-Exp Region 11'!AH73) -> 0 | AI73: =SUM('MMA Rev-Exp Region 1:MMA Rev-Exp Region 11'!AI73) -> 2 | AJ73: =SUM('MMA Rev-Exp Region 1:MMA Rev-Exp Region 11'!AJ73) -> 0 | AK73: =SUM('MMA Rev-Exp Region 1:MMA Rev-Exp Region 11'!AK73) -> 0 | AL73: =SUM('MMA Rev-Exp Region 1:MMA Rev-Exp Region 11'!AL73) -> 320,442 | AM73: =SUM('MMA Rev-Exp Region 1:MMA Rev-Exp Region 11'!AM73) -> 36,473 | AN73: =SUM(AO73:AY73) -> 364,173 | AO73: =SUM('MMA Rev-Exp Region 1:MMA Rev-Exp Region 11'!AO73) -> 0 | AP73: =SUM('MMA Rev-Exp Region 1:MMA Rev-Exp Region 11'!AP73) -> 0 | AQ73: =SUM('MMA Rev-Exp Region 1:MMA Rev-Exp Region 11'!AQ73) -> 0 | AR73: =SUM('MMA Rev-Exp Region 1:MMA Rev-Exp Region 11'!AR73) -> 0 | AS73: =SUM('MMA Rev-Exp Region 1:MMA Rev-Exp Region 11'!AS73) -> 274 | AT73: =SUM('MMA Rev-Exp Region 1:MMA Rev-Exp Region 11'!AT73) -> 0 | AU73: =SUM('MMA Rev-Exp Region 1:MMA Rev-Exp Region 11'!AU73) -> 0 | AV73: =SUM('MMA Rev-Exp Region 1:MMA Rev-Exp Region 11'!AV73) -> 14 | AW73: =SUM('MMA Rev-Exp Region 1:MMA Rev-Exp Region 11'!AW73) -> 0 | AX73: =SUM('MMA Rev-Exp Region 1:MMA Rev-Exp Region 11'!AX73) -> 336,910 | AY73: =SUM('MMA Rev-Exp Region 1:MMA Rev-Exp Region 11'!AY73) -> 26,975 | AZ73: =SUM('MMA Rev-Exp Region 1:MMA Rev-Exp Region 11'!AZ73) -> 37,855 | BA73: =SUM(BB73:BL73)+AZ73 -> 1,455,835 | BB73: =SUM('MMA Rev-Exp Region 1:MMA Rev-Exp Region 11'!BB73) -> 0 | BC73: =SUM('MMA Rev-Exp Region 1:MMA Rev-Exp Region 11'!BC73) -> 0 | BD73: =SUM('MMA Rev-Exp Region 1:MMA Rev-Exp Region 11'!BD73) -> 0 | BE73: =SUM('MMA Rev-Exp Region 1:MMA Rev-Exp Region 11'!BE73) -> 0 | BF73: =SUM('MMA Rev-Exp Region 1:MMA Rev-Exp Region 11'!BF73) -> 3,083 | BG73: =SUM('MMA Rev-Exp Region 1:MMA Rev-Exp Region 11'!BG73) -> 0 | BH73: =SUM('MMA Rev-Exp Region 1:MMA Rev-Exp Region 11'!BH73) -> 18 | BI73: =SUM('MMA Rev-Exp Region 1:MMA Rev-Exp Region 11'!BI73) -> 14 | BJ73: =SUM('MMA Rev-Exp Region 1:MMA Rev-Exp Region 11'!BJ73) -> 0 | BK73: =SUM('MMA Rev-Exp Region 1:MMA Rev-Exp Region 11'!BK73) -> 1,290,466 | BL73: =SUM('MMA Rev-Exp Region 1:MMA Rev-Exp Region 11'!BL73) -> 124,399
